Workbook

Sheet CAPA
B12: PROPOSTA DE PREÇOS
B13: Desconto ofertado:
B14: BDI serviços da licitante: | D14: 0.2339
B15: BDI materiais da licitante: | D15: 0.15
B16: Observações:
B17: 1. Preencher apenas a coluna em amarelo com os dados da proposta de preços da licitante.

Sheet PO TOTAL
B1: EXECUÇÃO DE SERVIÇOS DE PAVIMENTAÇÃO COM TRATAMENTO SUPERFICIAL DUPLO EM VIAS DE MUNICÍPIOS DIVERSOS INSERIDOS NA ÁREA DE ATUAÇÃO DA CODEVASF, NO ESTADO MARANHÃO
O2: SICRO: | P2: 2025-04-01
O3: SINAPI: | P3: 2025-05-01
O4: Data Base do Orçamento | P4: 2025-07-01
B5: PO TOTAL | O5: QT | P5: 15
O6: R$/m² | P6: =(P60/I10) -> 99.36371643
B7: =B1 -> EXECUÇÃO DE SERVIÇOS DE PAVIMENTAÇÃO COM TRATAMENTO SUPERFICIAL DUPLO EM VIAS DE MUNICÍPIOS DIVERSOS INSERIDOS NA ÁREA DE ATUAÇÃO DA CODEVASF, NO ESTADO MARANHÃO
B8: ITEM | C8: ORIGEM COMPOSIÇÃO | D8: CÓDIGO COMPOSIÇÃO | E8: DISCRIMINAÇÃO DOS SERVIÇOS | I8: BDI % = | J8: =CAPA!D14 -> 0.2339 | K8: BDI DIFERENCIADO % = | L8: =CAPA!D15 -> 0.15 | N8: PROPOSTA DA EMPRESA LICITANTE
I9: Total de m² | J9: Encargos Sociais: | K9: Horista % | L9: Mensalista % | M9: PREÇO UNITÁRIO COM BDI | N9: DESCONTO | O9: PREÇO UNITÁRIO COM BDI APÓS O DESCONTO | P9: PREÇO TOTAL COM BDI APÓS O DESCONTO
I10: =P5*'MODULO MINIMO'!I8 -> 210000 | K10: ='ENC. SOCIAIS'!$E$51 -> 112.73 | L10: ='ENC. SOCIAIS'!$F$51 -> 70.19
I11: UND | J11: QTDE. | K11: BDI | L11: PREÇO UNITÁRIO | AC11: TOTAL
E12: MOBILIZAÇÃO/DESMOBILIZAÇÃO
B13: 1 | C13: Codevasf | D13: Mob | E13: Mobilização | I13: R$/km | J13: =$P$5*'MODULO MINIMO'!J11 -> 3150 | K13: =$J$8 -> 0.2339 | L13: =Mob!B66 -> 188.6189183 | M13: ='MODULO MINIMO'!M11 -> 232.73 | N13: =CAPA!$D$13 -> 0 | O13: ='MODULO MINIMO'!O11 -> 232.73 | P13: =TRUNC(O13*J13,2) -> 733099.5 | Q13: =P13/$P$60 -> 0.0351330458 | R13: =TRUNC(1-O13/M13,4) -> 0 | AC13: 57163.47
B14: 2 | C14: Codevasf | D14: Mob | E14: Desmobilização | I14: R$/km | J14: =$P$5*'MODULO MINIMO'!J12 -> 3150 | K14: =$J$8 -> 0.2339 | L14: =Mob!B66 -> 188.6189183 | M14: ='MODULO MINIMO'!M12 -> 232.73 | N14: =CAPA!$D$13 -> 0 | O14: ='MODULO MINIMO'!O12 -> 232.73 | P14: =TRUNC(O14*J14,2) -> 733099.5 | Q14: =P14/$P$60 -> 0.0351330458 | R14: =TRUNC(1-O14/M14,4) -> 0 | AC14: 57163.47
E15: INSTALAÇÃO DE CANTEIRO
B16: 3 | C16: Codevasf | D16: Canteiro | E16: Canteiro de Obras e Almoxarifado | I16: und | J16: =$P$5*'MODULO MINIMO'!J14 -> 15 | K16: =$J$8 -> 0.2339 | L16: =' Canteiro'!F11 -> 20786.16 | M16: ='MODULO MINIMO'!M14 -> 25648.04 | N16: =CAPA!$D$13 -> 0 | O16: ='MODULO MINIMO'!O14 -> 25648.04 | P16: =TRUNC(O16*J16,2) -> 384720.6 | R16: 0 | AC16: 190291.53
B17: 4 | C17: SINAPI | D17: 103689 | E17: Fornecimento e instalação de placa de obra com chapa galvanizada e estrutura de madeira. af_03/2022_ps | I17: m² | J17: =$P$5*'MODULO MINIMO'!J15 -> 120 | K17: =$J$8 -> 0.2339 | L17: =VLOOKUP(D17,'COMP Sint. Sinapi'!B12:W9735,22,0) -> 468.31 | M17: ='MODULO MINIMO'!M15 -> 577.84 | N17: =CAPA!$D$13 -> 0 | O17: ='MODULO MINIMO'!O15 -> 577.84 | P17: =TRUNC(O17*J17,2) -> 69340.8 | R17: 0
E18: ADMINISTRAÇÃO LOCAL DA OBRA
B19: 5 | C19: Codevasf | D19: Adm Local | E19: Administração Local da Obra | I19: und | J19: =$P$5*'MODULO MINIMO'!J17 -> 15 | K19: =$J$8 -> 0.2339 | L19: ='Adm Local'!J248 -> 119469.4764 | M19: ='MODULO MINIMO'!M17 -> 147413.38 | N19: =CAPA!$D$13 -> 0 | O19: ='MODULO MINIMO'!O17 -> 147413.38 | P19: =TRUNC(O19*J19,2) -> 2211200.7 | Q19: =P19/P60 -> 0.1059695382 | R19: 0 | T19: pav | U19: =(P24+P25+P26+P27+P28+P29+P31+P32+P33+P34+P49)/P60 -> 0.4630881538
E20: TERRAPLANAGEM | T20: incc | U20: =(P13+P16+P17+P14+P38+P19+P39+P36+P44+P46+P37)/P60 -> 0.2494448911
B21: 6 | C21: SICRO | D21: 5502114 | E21: =VLOOKUP(D21,'SINTÉTICO SICRO'!$A$4:$D$1048576,2,0) -> Escavação, carga e transporte de material de 1ª categoria - DMT de 1.000 a 1.200 m - caminho de serviço em leito natural - com escavadeira e caminhão basculante de 14 m³ | I21: m³ | J21: =$P$5*'MODULO MINIMO'!J19 -> 68250 | K21: =$J$8 -> 0.2339 | L21: =ROUND(IF(C21="CODEVASF",VLOOKUP(D21,'CPU CODEVASF'!E:I,5,FALSE),VLOOKUP(D21,'SINTÉTICO SICRO'!A:D,4,FALSE)),6) -> 8.22 | M21: ='MODULO MINIMO'!M19 -> 10.14 | N21: =CAPA!$D$13 -> 0 | O21: ='MODULO MINIMO'!O19 -> 10.14 | P21: =TRUNC(O21*J21,2) -> 692055 | R21: 0 | T21: dren | U21: =(P41+P42)/P60 -> 0.2461893193 | AC21: 366912
B22: 7 | C22: SICRO | D22: 4413942 | E22: =VLOOKUP(D22,'SINTÉTICO SICRO'!$A$4:$D$1048576,2,0) -> Espalhamento de material em bota-fora | I22: m³ | J22: =$P$5*'MODULO MINIMO'!J20 -> 68250 | K22: =$J$8 -> 0.2339 | L22: =ROUND(IF(C22="CODEVASF",VLOOKUP(D22,'CPU CODEVASF'!E:I,5,FALSE),VLOOKUP(D22,'SINTÉTICO SICRO'!A:D,4,FALSE)),6) -> 2.01 | M22: ='MODULO MINIMO'!M20 -> 2.48 | N22: =CAPA!$D$13 -> 0 | O22: ='MODULO MINIMO'!O20 -> 2.48 | P22: =TRUNC(O22*J22,2) -> 169260 | R22: 0 | T22: terrap | U22: =(P21+P22)/P60 -> 0.04127764286 | AC22: 84084 | AH22: 1
E23: PAVIMENTAÇÃO
B24: 8 | C24: SICRO | D24: 4915637 | E24: =VLOOKUP(D24,'SINTÉTICO SICRO'!$A$4:$D$1048576,2,0) -> Capa selante - areia comercial | I24: m² | J24: =$P$5*'MODULO MINIMO'!J22 -> 210000 | K24: =$J$8 -> 0.2339 | L24: =ROUND(IF(C24="CODEVASF",VLOOKUP(D24,'CPU CODEVASF'!E:I,5,FALSE),VLOOKUP(D24,'SINTÉTICO SICRO'!A:D,4,FALSE)),6) -> 0.9 | M24: ='MODULO MINIMO'!M22 -> 1.11 | N24: =CAPA!$D$13 -> 0 | O24: ='MODULO MINIMO'!O22 -> 1.11 | P24: =TRUNC(O24*J24,2) -> 233100 | R24: 0 | AC24: 13037300.31
B25: 9 | C25: SICRO | D25: 4011370 | E25: =VLOOKUP(D25,'SINTÉTICO SICRO'!$A$4:$D$1048576,2,0) -> Tratamento superficial duplo com emulsão - brita comercial | I25: m² | J25: =$P$5*'MODULO MINIMO'!J23 -> 210000 | K25: 0.2339 | L25: =ROUND(IF(C25="CODEVASF",VLOOKUP(D25,'CPU CODEVASF'!E:I,5,FALSE),VLOOKUP(D25,'SINTÉTICO SICRO'!A:D,4,FALSE)),6) -> 6.08 | M25: ='MODULO MINIMO'!M23 -> 7.5 | N25: =CAPA!$D$13 -> 0 | O25: ='MODULO MINIMO'!O23 -> 7.5 | P25: =TRUNC(O25*J25,2) -> 1575000 | R25: 0 | AC25: 223860
B26: 10 | C26: SICRO | D26: 4011352 | E26: =VLOOKUP(D26,'SINTÉTICO SICRO'!$A$4:$D$1048576,2,0) -> Imprimação com emulsão asfáltica | I26: m² | J26: =$P$5*'MODULO MINIMO'!J24 -> 210000 | K26: 0.2339 | L26: =ROUND(IF(C26="CODEVASF",VLOOKUP(D26,'CPU CODEVASF'!E:I,5,FALSE),VLOOKUP(D26,'SINTÉTICO SICRO'!A:D,4,FALSE)),6) -> 0.42 | M26: ='MODULO MINIMO'!M24 -> 0.51 | N26: =CAPA!$D$13 -> 0 | O26: ='MODULO MINIMO'!O24 -> 0.51 | P26: 107100 | R26: 0 | AC26: 223860
B27: 11 | C27: SICRO | D27: 4011219 | E27: =VLOOKUP(D27,'SINTÉTICO SICRO'!$A$4:$D$1048576,2,0) -> Base de solo estabilizado granulometricamente sem mistura com material de jazida - 100% Proctor modificado | I27: m³ | J27: =$P$5*'MODULO MINIMO'!J25 -> 31500 | K27: 0.2339 | L27: =ROUND(IF(C27="CODEVASF",VLOOKUP(D27,'CPU CODEVASF'!E:I,5,FALSE),VLOOKUP(D27,'SINTÉTICO SICRO'!A:D,4,FALSE)),6) -> 14.79 | M27: ='MODULO MINIMO'!M25 -> 18.24 | N27: =CAPA!$D$13 -> 0 | O27: ='MODULO MINIMO'!O25 -> 18.24 | P27: 574560 | R27: 0 | AC27: 15919722
B28: 12 | C28: SICRO | D28: 4011227 | E28: =VLOOKUP(D28,'SINTÉTICO SICRO'!$A$4:$D$1048576,2,0) -> Sub-base de solo estabilizado granulometricamente sem mistura com material de jazida - 100% Proctor intermediário | I28: m³ | J28: =$P$5*'MODULO MINIMO'!J26 -> 31500 | K28: 0.2339 | L28: =ROUND(IF(C28="CODEVASF",VLOOKUP(D28,'CPU CODEVASF'!E:I,5,FALSE),VLOOKUP(D28,'SINTÉTICO SICRO'!A:D,4,FALSE)),6) -> 13.6 | M28: ='MODULO MINIMO'!M26 -> 16.78 | N28: =CAPA!$D$13 -> 0 | O28: ='MODULO MINIMO'!O26 -> 16.78 | P28: 528570 | R28: 0 | AC28: 2045862
B29: 13 | C29: SICRO | D29: 4011209 | E29: =VLOOKUP(D29,'SINTÉTICO SICRO'!$A$4:$D$1048576,2,0) -> Regularização do subleito - 100% Proctor intermediário | I29: m² | J29: =$P$5*'MODULO MINIMO'!J27 -> 210000 | K29: 0.2339 | L29: =ROUND(IF(C29="CODEVASF",VLOOKUP(D29,'CPU CODEVASF'!E:I,5,FALSE),VLOOKUP(D29,'SINTÉTICO SICRO'!A:D,4,FALSE)),6) -> 1.57 | M29: ='MODULO MINIMO'!M27 -> 1.93 | N29: =CAPA!$D$13 -> 0 | O29: ='MODULO MINIMO'!O27 -> 1.93 | P29: 405300 | R29: 0 | AC29: 540540
E30: AQUISIÇÃO E TRANSPORTE DO MATERIAL BETUMINOSO
B31: 14 | C31: CODEVASF | D31: CPU-14 | E31: AQUISIÇÃO DE EAI | I31: t | J31: =$P$5*'MODULO MINIMO'!J29 -> 252 | K31: =$L$8 -> 0.15 | L31: =ROUND(IF(C31="CODEVASF",VLOOKUP(D31,'CPU CODEVASF'!E:I,5,FALSE),VLOOKUP(D31,'SINTÉTICO SICRO'!A:D,4,FALSE)),6) -> 3094.890671 | M31: ='MODULO MINIMO'!M29 -> 3559.12 | N31: =CAPA!$D$13 -> 0 | O31: ='MODULO MINIMO'!O29 -> 3559.12 | P31: 896898.24 | R31: 0 | AC31: 3101079.07
B32: 15 | C32: CODEVASF | D32: CPU-18 | E32: TRANSPORTE DE EAI | I32: t | J32: =$P$5*'MODULO MINIMO'!J30 -> 252 | K32: =$L$8 -> 0.15 | L32: =ROUND(IF(C32="CODEVASF",VLOOKUP(D32,'CPU CODEVASF'!E:I,5,FALSE),VLOOKUP(D32,'SINTÉTICO SICRO'!A:D,4,FALSE)),6) -> 1254.512381 | M32: ='MODULO MINIMO'!M30 -> 1442.68 | N32: =CAPA!$D$13 -> 0 | O32: ='MODULO MINIMO'!O30 -> 1442.68 | P32: 363555.36 | R32: 0 | AC32: 1243849.15
B33: 16 | C33: CODEVASF | D33: CPU-15 | E33: AQUISIÇÃO DE EMULSÃO ASFÁLTICA RR-2C | I33: t | J33: =$P$5*'MODULO MINIMO'!J31 -> 630 | K33: 0.15 | L33: =ROUND(IF(C33="CODEVASF",VLOOKUP(D33,'CPU CODEVASF'!E:I,5,FALSE),VLOOKUP(D33,'SINTÉTICO SICRO'!A:D,4,FALSE)),6) -> 4036.352422 | M33: ='MODULO MINIMO'!M31 -> 4641.8 | N33: =CAPA!$D$13 -> 0 | O33: ='MODULO MINIMO'!O31 -> 4641.8 | P33: 2924334 | R33: 0 | AC33: 775269.77
B34: 17 | C34: CODEVASF | D34: CPU-19 | E34: TRANSPORTE RR-2C | I34: t | J34: =$P$5*'MODULO MINIMO'!J32 -> 630 | K34: 0.15 | L34: =ROUND(IF(C34="CODEVASF",VLOOKUP(D34,'CPU CODEVASF'!E:I,5,FALSE),VLOOKUP(D34,'SINTÉTICO SICRO'!A:D,4,FALSE)),6) -> 719.01 | M34: ='MODULO MINIMO'!M32 -> 826.86 | N34: =CAPA!$D$13 -> 0 | O34: ='MODULO MINIMO'!O32 -> 826.86 | P34: 520921.8 | R34: 0 | AC34: 310962.288
E35: SINALIZAÇÃO
B36: 18 | C36: SICRO | D36: 5213440 | E36: =VLOOKUP(D36,'SINTÉTICO SICRO'!$A$4:$D$1048576,2,0) -> Placa de regulamentação em aço D = 0,60 m - película retrorrefletiva tipo I + SI - fornecimento e implantação | I36: und | J36: =$P$5*'MODULO MINIMO'!J34 -> 90 | K36: =$J$8 -> 0.2339 | L36: =ROUND(IF(C36="CODEVASF",VLOOKUP(D36,'CPU CODEVASF'!E:I,5,FALSE),VLOOKUP(D36,'SINTÉTICO SICRO'!A:D,4,FALSE)),6) -> 282.19 | M36: ='MODULO MINIMO'!M34 -> 348.19 | N36: =CAPA!$D$13 -> 0 | O36: ='MODULO MINIMO'!O34 -> 348.19 | P36: 31337.1 | R36: 0 | AC36: 9985.95
B37: 19 | C37: SICRO | D37: 5213464 | E37: =VLOOKUP(D37,'SINTÉTICO SICRO'!$A$4:$D$1048576,2,0) -> Placa de advertência em aço, lado de 0,60 m - película retrorrefletiva tipo I + SI - fornecimento e implantação | I37: und | J37: =$P$5*'MODULO MINIMO'!J35 -> 90 | K37: =$J$8 -> 0.2339 | L37: =ROUND(IF(C37="CODEVASF",VLOOKUP(D37,'CPU CODEVASF'!E:I,5,FALSE),VLOOKUP(D37,'SINTÉTICO SICRO'!A:D,4,FALSE)),6) -> 282.23 | M37: ='MODULO MINIMO'!M35 -> 348.24 | N37: =CAPA!$D$13 -> 0 | O37: ='MODULO MINIMO'!O35 -> 348.24 | P37: 31341.6 | R37: 0 | T37: 0
B38: 20 | C38: SICRO | D38: 5213863 | E38: =VLOOKUP(D38,'SINTÉTICO SICRO'!$A$4:$D$1048576,2,0) -> Suporte metálico galvanizado para placa de advertência ou regulamentação - lado ou diâmetro de 0,60 m - fornecimento e implantação | I38: und | J38: =$P$5*'MODULO MINIMO'!J36 -> 180 | K38: =$J$8 -> 0.2339 | L38: =ROUND(IF(C38="CODEVASF",VLOOKUP(D38,'CPU CODEVASF'!E:I,5,FALSE),VLOOKUP(D38,'SINTÉTICO SICRO'!A:D,4,FALSE)),6) -> 460.16 | M38: ='MODULO MINIMO'!M36 -> 567.79 | N38: =CAPA!$D$13 -> 0 | O38: ='MODULO MINIMO'!O36 -> 567.79 | P38: =TRUNC(O38*J38,2) -> 102202.2 | R38: 0 | AC38: 13086.06
B39: 21 | C39: SICRO | D39: 5213400 | E39: =VLOOKUP(D39,'SINTÉTICO SICRO'!$A$4:$D$1048576,2,0) -> Pintura de faixa com tinta acrílica - espessura de 0,4 mm | I39: m² | J39: =$P$5*'MODULO MINIMO'!J37 -> 9000 | K39: =$J$8 -> 0.2339 | L39: =ROUND(IF(C39="CODEVASF",VLOOKUP(D39,'CPU CODEVASF'!E:I,5,FALSE),VLOOKUP(D39,'SINTÉTICO SICRO'!A:D,4,FALSE)),6) -> 21.22 | M39: ='MODULO MINIMO'!M37 -> 26.18 | N39: =CAPA!$D$13 -> 0 | O39: ='MODULO MINIMO'!O37 -> 26.18 | P39: 235620 | R39: 0
E40: DRENAGEM
B41: 22 | C41: SICRO | D41: 2003373 | E41: =VLOOKUP(D41,'SINTÉTICO SICRO'!$A$4:$D$1048576,2,0) -> Meio-fio de concreto - MFC 03 - areia e brita comerciais - fôrma de madeira | I41: m | J41: =$P$5*'MODULO MINIMO'!J39 -> 60000 | K41: =$J$8 -> 0.2339 | L41: =ROUND(IF(C41="CODEVASF",VLOOKUP(D41,'CPU CODEVASF'!E:I,5,FALSE),VLOOKUP(D41,'SINTÉTICO SICRO'!A:D,4,FALSE)),6) -> 69.16 | M41: ='MODULO MINIMO'!M39 -> 85.33 | N41: =CAPA!$D$13 -> 0 | O41: ='MODULO MINIMO'!O39 -> 85.33 | P41: 5119800 | R41: 0 | AC41: 4514640
B42: 23 | C42: SICRO | D42: 4915724 | E42: =VLOOKUP(D42,'SINTÉTICO SICRO'!$A$4:$D$1048576,2,0) -> Caiação mecanizada com fixador de cal | I42: m² | J42: =$P$5*'MODULO MINIMO'!J40 -> 7200 | K42: =$J$8 -> 0.2339 | L42: =ROUND(IF(C42="CODEVASF",VLOOKUP(D42,'CPU CODEVASF'!E:I,5,FALSE),VLOOKUP(D42,'SINTÉTICO SICRO'!A:D,4,FALSE)),6) -> 1.95 | M42: ='MODULO MINIMO'!M40 -> 2.4 | N42: =CAPA!$D$13 -> 0 | O42: ='MODULO MINIMO'!O40 -> 2.4 | P42: 17280 | R42: 0 | AA42: 4514640
E43: SERVIÇOS COMPLEMENTARES
B44: 24 | C44: Codevasf | D44: CPU-12 | E44: Conserto de quebra no ramal na rua sem pavimento com fornecimento de material hidráulico | I44: m | J44: =$P$5*'MODULO MINIMO'!J42 -> 3000 | K44: =$J$8 -> 0.2339 | L44: =ROUND(IF(C44="CODEVASF",VLOOKUP(D44,'CPU CODEVASF'!E:I,5,FALSE),VLOOKUP(D44,'SINTÉTICO SICRO'!A:D,4,FALSE)),6) -> 15.60155 | M44: ='MODULO MINIMO'!M42 -> 19.25 | N44: =CAPA!$D$13 -> 0 | O44: ='MODULO MINIMO'!O42 -> 19.25 | P44: 57750 | R44: 0 | AC44: 139854
E45: PROJETO EXECUTIVO
B46: 25 | C46: Codevasf | D46: Composição Própria | E46: Projeto Executivo | I46: m² | J46: =$P$5*'MODULO MINIMO'!J44 -> 210000 | K46: =$J$8 -> 0.2339 | L46: ='Projeto Executivo'!G26 -> 2.93 | M46: ='MODULO MINIMO'!M44 -> 2.93 | N46: =CAPA!$D$13 -> 0 | O46: ='MODULO MINIMO'!O44 -> 2.93 | P46: 615300 | Q46: =P46/P60 -> 0.02948762491 | R46: 0 | AC46: 763671.38
E47: MOMENTO DE TRANSPORTE
B48: 26 | C48: SICRO | D48: 5914359 | E48: =VLOOKUP(D48,'SINTÉTICO SICRO'!$A$4:$D$1048576,2,0) -> Transporte com caminhão basculante de 10 m³ - rodovia em leito natural | I48: tkm | J48: =$P$5*'MODULO MINIMO'!J46 -> 0 | K48: =$J$8 -> 0.2339 | L48: =ROUND(IF(C48="CODEVASF",VLOOKUP(D48,'CPU CODEVASF'!E:I,5,FALSE),VLOOKUP(D48,'SINTÉTICO SICRO'!A:D,4,FALSE)),6) -> 1.21 | M48: ='MODULO MINIMO'!M46 -> 1.49 | N48: =CAPA!$D$13 -> 0 | O48: ='MODULO MINIMO'!O46 -> 1.49 | P48: 0 | R48: 0
B49: 27 | C49: SICRO | D49: 5914374 | E49: =VLOOKUP(D49,'SINTÉTICO SICRO'!$A$4:$D$1048576,2,0) -> Transporte com caminhão basculante de 10 m³ - rodovia em revestimento primário | I49: tkm | J49: =$P$5*'MODULO MINIMO'!J47 -> 1299690 | K49: =$J$8 -> 0.2339 | L49: =ROUND(IF(C49="CODEVASF",VLOOKUP(D49,'CPU CODEVASF'!E:I,5,FALSE),VLOOKUP(D49,'SINTÉTICO SICRO'!A:D,4,FALSE)),6) -> 0.96 | M49: ='MODULO MINIMO'!M47 -> 1.18 | N49: =CAPA!$D$13 -> 0 | O49: ='MODULO MINIMO'!O47 -> 1.18 | P49: 1533634.2 | R49: =TRUNC(1-O49/M49,4) -> 0
B50: 28 | C50: SICRO | D50: 5914389 | E50: =VLOOKUP(D50,'SINTÉTICO SICRO'!$A$4:$D$1048576,2,0) -> Transporte com caminhão basculante de 10 m³ - rodovia pavimentada | I50: tkm | J50: =$P$5*'MODULO MINIMO'!J48 -> 0 | K50: =$J$8 -> 0.2339 | L50: =ROUND(IF(C50="CODEVASF",VLOOKUP(D50,'CPU CODEVASF'!E:I,5,FALSE),VLOOKUP(D50,'SINTÉTICO SICRO'!A:D,4,FALSE)),6) -> 0.78 | M50: ='MODULO MINIMO'!M48 -> 0.96 | N50: =CAPA!$D$13 -> 0 | O50: ='MODULO MINIMO'!O48 -> 0.96 | P50: 0 | R50: 0
B51: 29 | C51: SICRO | D51: ='SINTÉTICO SICRO'!A5864 -> 5906592 | E51: =VLOOKUP(D51,'SINTÉTICO SICRO'!$A$4:$D$1048576,2,0) -> Carga, manobra e descarga de blocos artificiais de concreto com 10 a 12 t para molhe em cavalo mecânico com semirreboque com capacidade de 32 t - carga e descarga com guindaste com pinça | I51: tkm | J51: =$P$5*'MODULO MINIMO'!J49 -> 0 | K51: =$J$8 -> 0.2339 | L51: =ROUND(IF(C51="CODEVASF",VLOOKUP(D51,'CPU CODEVASF'!E:I,5,FALSE),VLOOKUP(D51,'SINTÉTICO SICRO'!A:D,4,FALSE)),6) -> 34.85 | M51: ='MODULO MINIMO'!M49 -> 43 | N51: =CAPA!$D$13 -> 0 | O51: ='MODULO MINIMO'!O49 -> 43 | P51: 0 | R51: 0
B52: 30 | C52: SICRO | D52: ='SINTÉTICO SICRO'!A5865 -> 5906591 | E52: =VLOOKUP(D52,'SINTÉTICO SICRO'!$A$4:$D$1048576,2,0) -> Carga, manobra e descarga de blocos artificiais de concreto com 8 a 9 t para molhe em cavalo mecânico com semirreboque com capacidade de 32 t - carga e descarga com guindaste com pinça | I52: tkm | J52: =$P$5*'MODULO MINIMO'!J50 -> 0 | K52: =$J$8 -> 0.2339 | L52: =ROUND(IF(C52="CODEVASF",VLOOKUP(D52,'CPU CODEVASF'!E:I,5,FALSE),VLOOKUP(D52,'SINTÉTICO SICRO'!A:D,4,FALSE)),6) -> 33.05 | M52: ='MODULO MINIMO'!M50 -> 40.78 | N52: =CAPA!$D$13 -> 0 | O52: ='MODULO MINIMO'!O50 -> 40.78 | P52: 0 | R52: 0
B53: 31 | C53: SICRO | D53: ='SINTÉTICO SICRO'!A5866 -> 5914653 | E53: =VLOOKUP(D53,'SINTÉTICO SICRO'!$A$4:$D$1048576,2,0) -> Carga, manobra e descarga de blocos de rocha em caminhão basculante de 8 m³ - carga com carregadeira de 1,72 m³ (exclusa) e descarga livre | I53: tkm | J53: =$P$5*'MODULO MINIMO'!J51 -> 0 | K53: 0.2339 | L53: =ROUND(IF(C53="CODEVASF",VLOOKUP(D53,'CPU CODEVASF'!E:I,5,FALSE),VLOOKUP(D53,'SINTÉTICO SICRO'!A:D,4,FALSE)),6) -> 3.42 | M53: ='MODULO MINIMO'!M51 -> 4.21 | N53: =CAPA!$D$13 -> 0 | O53: ='MODULO MINIMO'!O51 -> 4.21 | P53: 0 | R53: 0
B54: 32 | C54: SICRO | D54: 5914449 | E54: =VLOOKUP(D54,'SINTÉTICO SICRO'!$A$4:$D$1048576,2,0) -> Transporte com caminhão carroceria de 15 t - rodovia em leito natural | I54: tkm | J54: =$P$5*'MODULO MINIMO'!J52 -> 0 | K54: 0.2339 | L54: =ROUND(IF(C54="CODEVASF",VLOOKUP(D54,'CPU CODEVASF'!E:I,5,FALSE),VLOOKUP(D54,'SINTÉTICO SICRO'!A:D,4,FALSE)),6) -> 1.07 | M54: ='MODULO MINIMO'!M52 -> 1.32 | N54: =CAPA!$D$13 -> 0 | O54: ='MODULO MINIMO'!O52 -> 1.32 | P54: 0 | R54: 0
B55: 33 | C55: SICRO | D55: 5914464 | E55: =VLOOKUP(D55,'SINTÉTICO SICRO'!$A$4:$D$1048576,2,0) -> Transporte com caminhão carroceria de 15 t - rodovia em revestimento primário | I55: tkm | J55: =$P$5*'MODULO MINIMO'!J53 -> 0 | K55: 0.2339 | L55: =ROUND(IF(C55="CODEVASF",VLOOKUP(D55,'CPU CODEVASF'!E:I,5,FALSE),VLOOKUP(D55,'SINTÉTICO SICRO'!A:D,4,FALSE)),6) -> 0.86 | M55: ='MODULO MINIMO'!M53 -> 1.06 | N55: =CAPA!$D$13 -> 0 | O55: ='MODULO MINIMO'!O53 -> 1.06 | P55: 0 | R55: 0
B56: 34 | C56: SICRO | D56: 5914479 | E56: =VLOOKUP(D56,'SINTÉTICO SICRO'!$A$4:$D$1048576,2,0) -> Transporte com caminhão carroceria de 15 t - rodovia pavimentada | I56: tkm | J56: =$P$5*'MODULO MINIMO'!J54 -> 0 | K56: 0.2339 | L56: =ROUND(IF(C56="CODEVASF",VLOOKUP(D56,'CPU CODEVASF'!E:I,5,FALSE),VLOOKUP(D56,'SINTÉTICO SICRO'!A:D,4,FALSE)),6) -> 0.69 | M56: ='MODULO MINIMO'!M54 -> 0.85 | N56: =CAPA!$D$13 -> 0 | O56: ='MODULO MINIMO'!O54 -> 0.85 | P56: 0 | R56: 0
B57: 35 | C57: SICRO | D57: 5914364 | E57: =VLOOKUP(D57,'SINTÉTICO SICRO'!$A$4:$D$1048576,2,0) -> Transporte de cimento ou cal hidratada a granel com caminhão silo de 30 m³ - rodovia em leito natural | I57: tkm | J57: =$P$5*'MODULO MINIMO'!J55 -> 0 | K57: =$J$8 -> 0.2339 | L57: =ROUND(IF(C57="CODEVASF",VLOOKUP(D57,'CPU CODEVASF'!E:I,5,FALSE),VLOOKUP(D57,'SINTÉTICO SICRO'!A:D,4,FALSE)),6) -> 0.9 | M57: ='MODULO MINIMO'!M55 -> 1.11 | N57: =CAPA!$D$13 -> 0 | O57: ='MODULO MINIMO'!O55 -> 1.11 | P57: 0 | R57: 0
B58: 36 | C58: SICRO | D58: 5914365 | E58: =VLOOKUP(D58,'SINTÉTICO SICRO'!$A$4:$D$1048576,2,0) -> Transporte de cimento ou cal hidratada a granel com caminhão silo de 30 m³ - rodovia em revestimento primário | I58: tkm | J58: =$P$5*'MODULO MINIMO'!J56 -> 0 | K58: 0.2339 | L58: =ROUND(IF(C58="CODEVASF",VLOOKUP(D58,'CPU CODEVASF'!E:I,5,FALSE),VLOOKUP(D58,'SINTÉTICO SICRO'!A:D,4,FALSE)),6) -> 0.72 | M58: ='MODULO MINIMO'!M56 -> 0.88 | N58: =CAPA!$D$13 -> 0 | O58: ='MODULO MINIMO'!O56 -> 0.88 | P58: 0 | R58: 0
B59: 37 | C59: SICRO | D59: 5914366 | E59: =VLOOKUP(D59,'SINTÉTICO SICRO'!$A$4:$D$1048576,2,0) -> Transporte de cimento ou cal hidratada a granel com caminhão silo de 30 m³ - rodovia pavimentada | I59: tkm | J59: =$P$5*'MODULO MINIMO'!J57 -> 0 | K59: 0.2339 | L59: =ROUND(IF(C59="CODEVASF",VLOOKUP(D59,'CPU CODEVASF'!E:I,5,FALSE),VLOOKUP(D59,'SINTÉTICO SICRO'!A:D,4,FALSE)),6) -> 0.62 | M59: ='MODULO MINIMO'!M57 -> 0.76 | N59: =CAPA!$D$13 -> 0 | O59: ='MODULO MINIMO'!O57 -> 0.76 | P59: =TRUNC(O59*J59,2) -> 0 | R59: 0
B60: VALOR TOTAL DO SRP | P60: =SUM(P12:P59)+R60 -> 20866380.45 | R60: =R62-SUM(P13:P59) -> -0.1499999985 | AC60: =SUM(AC20:AC46) -> 43314537.98
B62: VALOR DO MÓDULO MÍNIMO | P62: ='MODULO MINIMO'!P58 -> 1391092.03 | R62: =P62*P5 -> 20866380.45

Sheet MODULO MINIMO
B1: EXECUÇÃO DE SERVIÇOS DE PAVIMENTAÇÃO COM TRATAMENTO SUPERFICIAL DUPLO EM VIAS DE MUNICÍPIOS DIVERSOS INSERIDOS NA ÁREA DE ATUAÇÃO DA CODEVASF, NO ESTADO MARANHÃO
O2: SICRO: | P2: 2025-04-01
O3: SINAPI: | P3: 2025-05-01
O4: Data Base do Orçamento | P4: 2025-07-01
B5: EXECUÇÃO DE SERVIÇOS DE PAVIMENTAÇÃO COM TRATAMENTO SUPERFICIAL DUPLO EM VIAS DE MUNICÍPIOS DIVERSOS INSERIDOS NA ÁREA DE ATUAÇÃO DA CODEVASF, NO ESTADO MARANHÃO
B6: ITEM | C6: ORIGEM COMPOSIÇÃO | D6: CÓDIGO COMPOSIÇÃO | E6: DISCRIMINAÇÃO DOS SERVIÇOS | I6: BDI % = | J6: =CAPA!D14 -> 0.2339 | K6: BDI DIFERENCIADO % = | L6: =CAPA!D15 -> 0.15 | M6: R$/m² | N6: PROPOSTA DA EMPRESA LICITANTE
I7: Total de m² | J7: Encargos Sociais: | K7: Horista % | L7: Mensalista % | M7: PREÇO UNITÁRIO COM BDI | N7: DESCONTO | O7: PREÇO UNITÁRIO COM BDI APÓS O DESCONTO | P7: PREÇO TOTAL COM BDI APÓS O DESCONTO
I8: ='Memória de Cálculo'!G1*'Memória de Cálculo'!C1*'Memória de Cálculo'!C2 -> 14000 | K8: ='ENC. SOCIAIS'!$E$51 -> 112.73 | L8: ='ENC. SOCIAIS'!$F$51 -> 70.19
I9: UND | J9: QTDE. | K9: BDI | L9: PREÇO UNITÁRIO | AC9: TOTAL
E10: MOBILIZAÇÃO/DESMOBILIZAÇÃO
B11: 1 | C11: Codevasf | D11: Mob | E11: Mobilização | I11: R$/km | J11: 210 | K11: =$J$6 -> 0.2339 | L11: =Mob!B66 -> 188.6189183 | M11: =TRUNC((L11*(1+K11)),2) -> 232.73 | N11: =CAPA!$D$13 -> 0 | O11: =(M11-M11*N11) -> 232.73 | P11: =TRUNC(O11*J11,2) -> 48873.3 | Q11: =P11/$P$58 -> 0.0351330458 | S11: =1-(O11/M11) -> 0 | AC11: 57163.47
B12: 2 | C12: Codevasf | D12: Mob | E12: Desmobilização | I12: R$/km | J12: 210 | K12: =$J$6 -> 0.2339 | L12: =Mob!B66 -> 188.6189183 | M12: =TRUNC((L12*(1+K12)),2) -> 232.73 | N12: =CAPA!$D$13 -> 0 | O12: =(M12-M12*N12) -> 232.73 | P12: =TRUNC(O12*J12,2) -> 48873.3 | Q12: =P12/$P$58 -> 0.0351330458 | S12: =1-(O12/M12) -> 0 | AC12: 57163.47
E13: INSTALAÇÃO DE CANTEIRO
B14: 3 | C14: Codevasf | D14: Canteiro | E14: Canteiro de Obras e Almoxarifado | I14: und | J14: 1 | K14: =$J$6 -> 0.2339 | L14: =' Canteiro'!F11 -> 20786.16 | M14: =TRUNC((L14*(1+K14)),2) -> 25648.04 | N14: =CAPA!$D$13 -> 0 | O14: 25648.04 | P14: =TRUNC(O14*J14,2) -> 25648.04 | S14: 0 | AC14: 190291.53
B15: 4 | C15: SINAPI | D15: 103689 | E15: Fornecimento e instalação de placa de obra com chapa galvanizada e estrutura de madeira. af_03/2022_ps | I15: m² | J15: =TRUNC('Memória de Cálculo'!H25,2) -> 8 | K15: =$J$6 -> 0.2339 | L15: =VLOOKUP(D15,'COMP Sint. Sinapi'!B11:W9734,22,0) -> 468.31 | M15: =TRUNC((L15*(1+K15)),2) -> 577.84 | N15: =CAPA!$D$13 -> 0 | O15: 577.84 | P15: =TRUNC(O15*J15,2) -> 4622.72 | S15: 0
E16: ADMINISTRAÇÃO LOCAL DA OBRA
B17: 5 | C17: Codevasf | D17: Adm Local | E17: Administração Local da Obra | I17: und | J17: 1 | K17: =$J$6 -> 0.2339 | L17: ='Adm Local'!J248 -> 119469.4764 | M17: =TRUNC((L17*(1+K17)),2) -> 147413.38 | N17: =CAPA!$D$13 -> 0 | O17: 147413.38 | P17: =TRUNC(O17*J17,2) -> 147413.38 | Q17: =P17/P58 -> 0.1059695382 | S17: 0
E18: TERRAPLANAGEM
B19: 6 | C19: SICRO | D19: 5502114 | E19: =VLOOKUP(D19,'SINTÉTICO SICRO'!$A$4:$D$1048576,2,0) -> Escavação, carga e transporte de material de 1ª categoria - DMT de 1.000 a 1.200 m - caminho de serviço em leito natural - com escavadeira e caminhão basculante de 14 m³ | I19: m³ | J19: =TRUNC('Memória de Cálculo'!H37,2) -> 4550 | K19: =$J$6 -> 0.2339 | L19: =ROUND(IF(C19="CODEVASF",VLOOKUP(D19,'CPU CODEVASF'!E:I,5,FALSE),VLOOKUP(D19,'SINTÉTICO SICRO'!A:D,4,FALSE)),6) -> 8.22 | M19: =TRUNC((L19*(1+K19)),2) -> 10.14 | N19: =CAPA!$D$13 -> 0 | O19: 10.14 | P19: =TRUNC(O19*J19,2) -> 46137 | S19: 0 | AC19: 366912
B20: 7 | C20: SICRO | D20: 4413942 | E20: =VLOOKUP(D20,'SINTÉTICO SICRO'!$A$4:$D$1048576,2,0) -> Espalhamento de material em bota-fora | I20: m³ | J20: =TRUNC('Memória de Cálculo'!H44,2) -> 4550 | K20: =$J$6 -> 0.2339 | L20: =ROUND(IF(C20="CODEVASF",VLOOKUP(D20,'CPU CODEVASF'!E:I,5,FALSE),VLOOKUP(D20,'SINTÉTICO SICRO'!A:D,4,FALSE)),6) -> 2.01 | M20: =TRUNC((L20*(1+K20)),2) -> 2.48 | N20: =CAPA!$D$13 -> 0 | O20: 2.48 | P20: =TRUNC(O20*J20,2) -> 11284 | S20: 0 | AC20: 84084 | AH20: 1
E21: PAVIMENTAÇÃO
B22: 8 | C22: SICRO | D22: 4915637 | E22: =VLOOKUP(D22,'SINTÉTICO SICRO'!$A$4:$D$1048576,2,0) -> Capa selante - areia comercial | I22: m² | J22: =TRUNC('Memória de Cálculo'!H51,2) -> 14000 | K22: =$J$6 -> 0.2339 | L22: =ROUND(IF(C22="CODEVASF",VLOOKUP(D22,'CPU CODEVASF'!E:I,5,FALSE),VLOOKUP(D22,'SINTÉTICO SICRO'!A:D,4,FALSE)),6) -> 0.9 | M22: =TRUNC((L22*(1+K22)),2) -> 1.11 | N22: =CAPA!$D$13 -> 0 | O22: 1.11 | P22: =TRUNC(O22*J22,2) -> 15540 | S22: 0 | AC22: 13037300.31
B23: 9 | C23: SICRO | D23: 4011370 | E23: =VLOOKUP(D23,'SINTÉTICO SICRO'!$A$4:$D$1048576,2,0) -> Tratamento superficial duplo com emulsão - brita comercial | I23: m² | J23: =TRUNC('Memória de Cálculo'!H57,2) -> 14000 | K23: 0.2339 | L23: =ROUND(IF(C23="CODEVASF",VLOOKUP(D23,'CPU CODEVASF'!E:I,5,FALSE),VLOOKUP(D23,'SINTÉTICO SICRO'!A:D,4,FALSE)),6) -> 6.08 | M23: =TRUNC((L23*(1+K23)),2) -> 7.5 | N23: =CAPA!$D$13 -> 0 | O23: 7.5 | P23: =TRUNC(O23*J23,2) -> 105000 | S23: 0 | AC23: 223860
B24: 10 | C24: SICRO | D24: 4011352 | E24: =VLOOKUP(D24,'SINTÉTICO SICRO'!$A$4:$D$1048576,2,0) -> Imprimação com emulsão asfáltica | I24: m² | J24: =TRUNC('Memória de Cálculo'!H57,2) -> 14000 | K24: 0.2339 | L24: =ROUND(IF(C24="CODEVASF",VLOOKUP(D24,'CPU CODEVASF'!E:I,5,FALSE),VLOOKUP(D24,'SINTÉTICO SICRO'!A:D,4,FALSE)),6) -> 0.42 | M24: 0.51 | N24: =CAPA!$D$13 -> 0 | O24: 0.51 | P24: 7140 | S24: 0 | AC24: 223860
B25: 11 | C25: SICRO | D25: 4011219 | E25: =VLOOKUP(D25,'SINTÉTICO SICRO'!$A$4:$D$1048576,2,0) -> Base de solo estabilizado granulometricamente sem mistura com material de jazida - 100% Proctor modificado | I25: m³ | J25: =TRUNC('Memória de Cálculo'!H68,2) -> 2100 | K25: 0.2339 | L25: =ROUND(IF(C25="CODEVASF",VLOOKUP(D25,'CPU CODEVASF'!E:I,5,FALSE),VLOOKUP(D25,'SINTÉTICO SICRO'!A:D,4,FALSE)),6) -> 14.79 | M25: 18.24 | N25: =CAPA!$D$13 -> 0 | O25: 18.24 | P25: 38304 | S25: 0 | AC25: 15919722
B26: 12 | C26: SICRO | D26: 4011227 | E26: =VLOOKUP(D26,'SINTÉTICO SICRO'!$A$4:$D$1048576,2,0) -> Sub-base de solo estabilizado granulometricamente sem mistura com material de jazida - 100% Proctor intermediário | I26: m³ | J26: =TRUNC('Memória de Cálculo'!H74,2) -> 2100 | K26: 0.2339 | L26: =ROUND(IF(C26="CODEVASF",VLOOKUP(D26,'CPU CODEVASF'!E:I,5,FALSE),VLOOKUP(D26,'SINTÉTICO SICRO'!A:D,4,FALSE)),6) -> 13.6 | M26: 16.78 | N26: =CAPA!$D$13 -> 0 | O26: 16.78 | P26: 35238 | S26: 0 | AC26: 2045862
B27: 13 | C27: SICRO | D27: 4011209 | E27: =VLOOKUP(D27,'SINTÉTICO SICRO'!$A$4:$D$1048576,2,0) -> Regularização do subleito - 100% Proctor intermediário | I27: m² | J27: =TRUNC('Memória de Cálculo'!H80,2) -> 14000 | K27: 0.2339 | L27: =ROUND(IF(C27="CODEVASF",VLOOKUP(D27,'CPU CODEVASF'!E:I,5,FALSE),VLOOKUP(D27,'SINTÉTICO SICRO'!A:D,4,FALSE)),6) -> 1.57 | M27: 1.93 | N27: =CAPA!$D$13 -> 0 | O27: 1.93 | P27: 27020 | S27: 0 | AC27: 540540
E28: AQUISIÇÃO E TRANSPORTE DO MATERIAL BETUMINOSO
B29: 14 | C29: CODEVASF | D29: CPU-14 | E29: AQUISIÇÃO DE EAI | I29: t | J29: =TRUNC(' CONSUMO DE MAT. B TOTAL'!P9,2) -> 16.8 | K29: =$L$6 -> 0.15 | L29: =ROUND(IF(C29="CODEVASF",VLOOKUP(D29,'CPU CODEVASF'!E:I,5,FALSE),VLOOKUP(D29,'SINTÉTICO SICRO'!A:D,4,FALSE)),6) -> 3094.890671 | M29: 3559.12 | N29: =CAPA!$D$13 -> 0 | O29: 3559.12 | P29: =TRUNC(O29*J29,2) -> 59793.21 | S29: 0 | AC29: 3101079.07
B30: 15 | C30: CODEVASF | D30: CPU-18 | E30: TRANSPORTE DE EAI | I30: t | J30: =TRUNC(' CONSUMO DE MAT. B TOTAL'!P9,2) -> 16.8 | K30: =$L$6 -> 0.15 | L30: =ROUND(IF(C30="CODEVASF",VLOOKUP(D30,'CPU CODEVASF'!E:I,5,FALSE),VLOOKUP(D30,'SINTÉTICO SICRO'!A:D,4,FALSE)),6) -> 1254.512381 | M30: 1442.68 | N30: =CAPA!$D$13 -> 0 | O30: 1442.68 | P30: =TRUNC(O30*J30,2) -> 24237.02 | S30: 0 | AC30: 1243849.15
B31: 16 | C31: CODEVASF | D31: CPU-15 | E31: AQUISIÇÃO DE EMULSÃO ASFÁLTICA RR-2C | I31: t | J31: =TRUNC(' CONSUMO DE MAT. B TOTAL'!P11+' CONSUMO DE MAT. B TOTAL'!P13+' CONSUMO DE MAT. B TOTAL'!P15,2) -> 42 | K31: 0.15 | L31: =ROUND(IF(C31="CODEVASF",VLOOKUP(D31,'CPU CODEVASF'!E:I,5,FALSE),VLOOKUP(D31,'SINTÉTICO SICRO'!A:D,4,FALSE)),6) -> 4036.352422 | M31: 4641.8 | N31: =CAPA!$D$13 -> 0 | O31: 4641.8 | P31: 194955.6 | S31: 0 | AC31: 775269.77
B32: 17 | C32: CODEVASF | D32: CPU-19 | E32: TRANSPORTE RR-2C | I32: t | J32: =J31 -> 42 | K32: 0.15 | L32: =ROUND(IF(C32="CODEVASF",VLOOKUP(D32,'CPU CODEVASF'!E:I,5,FALSE),VLOOKUP(D32,'SINTÉTICO SICRO'!A:D,4,FALSE)),6) -> 719.01 | M32: 826.86 | N32: =CAPA!$D$13 -> 0 | O32: 826.86 | P32: 34728.12 | S32: 0 | AC32: 310962.288
E33: SINALIZAÇÃO
B34: 18 | C34: SICRO | D34: 5213440 | E34: =VLOOKUP(D34,'SINTÉTICO SICRO'!$A$4:$D$1048576,2,0) -> Placa de regulamentação em aço D = 0,60 m - película retrorrefletiva tipo I + SI - fornecimento e implantação | I34: und | J34: =TRUNC('Memória de Cálculo'!H87,2) -> 6 | K34: =$J$6 -> 0.2339 | L34: =ROUND(IF(C34="CODEVASF",VLOOKUP(D34,'CPU CODEVASF'!E:I,5,FALSE),VLOOKUP(D34,'SINTÉTICO SICRO'!A:D,4,FALSE)),6) -> 282.19 | M34: 348.19 | N34: =CAPA!$D$13 -> 0 | O34: 348.19 | P34: =TRUNC(O34*J34,2) -> 2089.14 | S34: 0 | AC34: 9985.95
B35: 19 | C35: SICRO | D35: 5213464 | E35: =VLOOKUP(D35,'SINTÉTICO SICRO'!$A$4:$D$1048576,2,0) -> Placa de advertência em aço, lado de 0,60 m - película retrorrefletiva tipo I + SI - fornecimento e implantação | I35: und | J35: =TRUNC('Memória de Cálculo'!H92,2) -> 6 | K35: =$J$6 -> 0.2339 | L35: =ROUND(IF(C35="CODEVASF",VLOOKUP(D35,'CPU CODEVASF'!E:I,5,FALSE),VLOOKUP(D35,'SINTÉTICO SICRO'!A:D,4,FALSE)),6) -> 282.23 | M35: 348.24 | N35: =CAPA!$D$13 -> 0 | O35: 348.24 | P35: 2089.44 | S35: 0
B36: 20 | C36: SICRO | D36: 5213863 | E36: =VLOOKUP(D36,'SINTÉTICO SICRO'!$A$4:$D$1048576,2,0) -> Suporte metálico galvanizado para placa de advertência ou regulamentação - lado ou diâmetro de 0,60 m - fornecimento e implantação | I36: und | J36: =TRUNC('Memória de Cálculo'!H98,2) -> 12 | K36: =$J$6 -> 0.2339 | L36: =ROUND(IF(C36="CODEVASF",VLOOKUP(D36,'CPU CODEVASF'!E:I,5,FALSE),VLOOKUP(D36,'SINTÉTICO SICRO'!A:D,4,FALSE)),6) -> 460.16 | M36: 567.79 | N36: =CAPA!$D$13 -> 0 | O36: 567.79 | P36: 6813.48 | S36: 0 | AC36: 13086.06
B37: 21 | C37: SICRO | D37: 5213400 | E37: =VLOOKUP(D37,'SINTÉTICO SICRO'!$A$4:$D$1048576,2,0) -> Pintura de faixa com tinta acrílica - espessura de 0,4 mm | I37: m² | J37: =TRUNC('Memória de Cálculo'!H103+'Memória de Cálculo'!H108,2) -> 600 | K37: =$J$6 -> 0.2339 | L37: =ROUND(IF(C37="CODEVASF",VLOOKUP(D37,'CPU CODEVASF'!E:I,5,FALSE),VLOOKUP(D37,'SINTÉTICO SICRO'!A:D,4,FALSE)),6) -> 21.22 | M37: 26.18 | N37: =CAPA!$D$13 -> 0 | O37: 26.18 | P37: 15708 | S37: 0
E38: DRENAGEM
B39: 22 | C39: SICRO | D39: 2003373 | E39: =VLOOKUP(D39,'SINTÉTICO SICRO'!$A$4:$D$1048576,2,0) -> Meio-fio de concreto - MFC 03 - areia e brita comerciais - fôrma de madeira | I39: m | J39: =TRUNC('Memória de Cálculo'!H132,2) -> 4000 | K39: =$J$6 -> 0.2339 | L39: =ROUND(IF(C39="CODEVASF",VLOOKUP(D39,'CPU CODEVASF'!E:I,5,FALSE),VLOOKUP(D39,'SINTÉTICO SICRO'!A:D,4,FALSE)),6) -> 69.16 | M39: 85.33 | N39: =CAPA!$D$13 -> 0 | O39: 85.33 | P39: =TRUNC(O39*J39,2) -> 341320 | S39: 0 | AC39: 4514640
B40: 23 | C40: SICRO | D40: 4915724 | E40: =VLOOKUP(D40,'SINTÉTICO SICRO'!$A$4:$D$1048576,2,0) -> Caiação mecanizada com fixador de cal | I40: m² | J40: =TRUNC('Memória de Cálculo'!H137,2) -> 480 | K40: =$J$6 -> 0.2339 | L40: =ROUND(IF(C40="CODEVASF",VLOOKUP(D40,'CPU CODEVASF'!E:I,5,FALSE),VLOOKUP(D40,'SINTÉTICO SICRO'!A:D,4,FALSE)),6) -> 1.95 | M40: 2.4 | N40: =CAPA!$D$13 -> 0 | O40: 2.4 | P40: 1152 | S40: 0 | AA40: 4514640
E41: SERVIÇOS COMPLEMENTARES
B42: 24 | C42: Codevasf | D42: CPU-12 | E42: Conserto de quebra no ramal na rua sem pavimento com fornecimento de material hidráulico | I42: m | J42: =TRUNC('Memória de Cálculo'!H144,2) -> 200 | K42: =$J$6 -> 0.2339 | L42: =ROUND(IF(C42="CODEVASF",VLOOKUP(D42,'CPU CODEVASF'!E:I,5,FALSE),VLOOKUP(D42,'SINTÉTICO SICRO'!A:D,4,FALSE)),6) -> 15.60155 | M42: 19.25 | N42: =CAPA!$D$13 -> 0 | O42: 19.25 | P42: =TRUNC(O42*J42,2) -> 3850 | S42: 0 | AC42: 139854
E43: PROJETO EXECUTIVO
B44: 25 | C44: Codevasf | D44: Composição Própria | E44: Projeto Executivo | I44: m² | J44: =TRUNC('Memória de Cálculo'!H151,2) -> 14000 | K44: =$J$6 -> 0.2339 | L44: =('Projeto Executivo'!G23/I8) -> 2.380931948 | M44: 2.93 | N44: =CAPA!$D$13 -> 0 | O44: 2.93 | P44: =TRUNC(O44*J44,2) -> 41020 | Q44: =P44/P58 -> 0.02948762491 | S44: 0 | AC44: 763671.38
E45: MOMENTO DE TRANSPORTE
B46: 26 | C46: SICRO | D46: 5914359 | E46: =VLOOKUP(D46,'SINTÉTICO SICRO'!$A$4:$D$1048576,2,0) -> Transporte com caminhão basculante de 10 m³ - rodovia em leito natural | I46: tkm | J46: =TRUNC(ROUND(SUMIF('MOMENTO DE TRANSPORTE - PRINC'!A:A,'MODULO MINIMO'!D46,'MOMENTO DE TRANSPORTE - PRINC'!K:K)+SUMIF('MOMENTO DE TRANSPORTE - AUX'!A:A,'MODULO MINIMO'!D46,'MOMENTO DE TRANSPORTE - AUX'!K:K),2),2) -> 0 | K46: =$J$6 -> 0.2339 | L46: =ROUND(IF(C46="CODEVASF",VLOOKUP(D46,'CPU CODEVASF'!E:I,5,FALSE),VLOOKUP(D46,'SINTÉTICO SICRO'!A:D,4,FALSE)),6) -> 1.21 | M46: 1.49 | N46: =CAPA!$D$13 -> 0 | O46: 1.49 | P46: =TRUNC(O46*J46,2) -> 0 | S46: 0
B47: 27 | C47: SICRO | D47: 5914374 | E47: =VLOOKUP(D47,'SINTÉTICO SICRO'!$A$4:$D$1048576,2,0) -> Transporte com caminhão basculante de 10 m³ - rodovia em revestimento primário | I47: tkm | J47: =TRUNC(ROUND(SUMIF('MOMENTO DE TRANSPORTE - PRINC'!A:A,'MODULO MINIMO'!D47,'MOMENTO DE TRANSPORTE - PRINC'!K:K)+SUMIF('MOMENTO DE TRANSPORTE - AUX'!A:A,'MODULO MINIMO'!D47,'MOMENTO DE TRANSPORTE - AUX'!K:K),2),2) -> 86646 | K47: =$J$6 -> 0.2339 | L47: =ROUND(IF(C47="CODEVASF",VLOOKUP(D47,'CPU CODEVASF'!E:I,5,FALSE),VLOOKUP(D47,'SINTÉTICO SICRO'!A:D,4,FALSE)),6) -> 0.96 | M47: 1.18 | N47: =CAPA!$D$13 -> 0 | O47: 1.18 | P47: =TRUNC(O47*J47,2) -> 102242.28 | S47: 0
B48: 28 | C48: SICRO | D48: 5914389 | E48: =VLOOKUP(D48,'SINTÉTICO SICRO'!$A$4:$D$1048576,2,0) -> Transporte com caminhão basculante de 10 m³ - rodovia pavimentada | I48: tkm | J48: =TRUNC(ROUND(SUMIF('MOMENTO DE TRANSPORTE - PRINC'!A:A,'MODULO MINIMO'!D48,'MOMENTO DE TRANSPORTE - PRINC'!K:K)+SUMIF('MOMENTO DE TRANSPORTE - AUX'!A:A,'MODULO MINIMO'!D48,'MOMENTO DE TRANSPORTE - AUX'!K:K),2),2) -> 0 | K48: =$J$6 -> 0.2339 | L48: =ROUND(IF(C48="CODEVASF",VLOOKUP(D48,'CPU CODEVASF'!E:I,5,FALSE),VLOOKUP(D48,'SINTÉTICO SICRO'!A:D,4,FALSE)),6) -> 0.78 | M48: 0.96 | N48: =CAPA!$D$13 -> 0 | O48: 0.96 | P48: =TRUNC(O48*J48,2) -> 0 | S48: 0
B49: 29 | C49: SICRO | D49: ='SINTÉTICO SICRO'!A5864 -> 5906592 | E49: =VLOOKUP(D49,'SINTÉTICO SICRO'!$A$4:$D$1048576,2,0) -> Carga, manobra e descarga de blocos artificiais de concreto com 10 a 12 t para molhe em cavalo mecânico com semirreboque com capacidade de 32 t - carga e descarga com guindaste com pinça | I49: tkm | J49: =TRUNC(ROUND(SUMIF('MOMENTO DE TRANSPORTE - PRINC'!A:A,'MODULO MINIMO'!D49,'MOMENTO DE TRANSPORTE - PRINC'!K:K)+SUMIF('MOMENTO DE TRANSPORTE - AUX'!A:A,'MODULO MINIMO'!D49,'MOMENTO DE TRANSPORTE - AUX'!K:K),2),2) -> 0 | K49: =$J$6 -> 0.2339 | L49: =ROUND(IF(C49="CODEVASF",VLOOKUP(D49,'CPU CODEVASF'!E:I,5,FALSE),VLOOKUP(D49,'SINTÉTICO SICRO'!A:D,4,FALSE)),6) -> 34.85 | M49: 43 | N49: =CAPA!$D$13 -> 0 | O49: 43 | P49: 0 | S49: 0
B50: 30 | C50: SICRO | D50: ='SINTÉTICO SICRO'!A5865 -> 5906591 | E50: =VLOOKUP(D50,'SINTÉTICO SICRO'!$A$4:$D$1048576,2,0) -> Carga, manobra e descarga de blocos artificiais de concreto com 8 a 9 t para molhe em cavalo mecânico com semirreboque com capacidade de 32 t - carga e descarga com guindaste com pinça | I50: tkm | J50: =TRUNC(ROUND(SUMIF('MOMENTO DE TRANSPORTE - PRINC'!A:A,'MODULO MINIMO'!D50,'MOMENTO DE TRANSPORTE - PRINC'!K:K)+SUMIF('MOMENTO DE TRANSPORTE - AUX'!A:A,'MODULO MINIMO'!D50,'MOMENTO DE TRANSPORTE - AUX'!K:K),2),2) -> 0 | K50: =$J$6 -> 0.2339 | L50: =ROUND(IF(C50="CODEVASF",VLOOKUP(D50,'CPU CODEVASF'!E:I,5,FALSE),VLOOKUP(D50,'SINTÉTICO SICRO'!A:D,4,FALSE)),6) -> 33.05 | M50: 40.78 | N50: =CAPA!$D$13 -> 0 | O50: 40.78 | P50: 0 | S50: 0
B51: 31 | C51: SICRO | D51: ='SINTÉTICO SICRO'!A5866 -> 5914653 | E51: =VLOOKUP(D51,'SINTÉTICO SICRO'!$A$4:$D$1048576,2,0) -> Carga, manobra e descarga de blocos de rocha em caminhão basculante de 8 m³ - carga com carregadeira de 1,72 m³ (exclusa) e descarga livre | I51: tkm | J51: =TRUNC(ROUND(SUMIF('MOMENTO DE TRANSPORTE - PRINC'!A:A,'MODULO MINIMO'!D51,'MOMENTO DE TRANSPORTE - PRINC'!K:K)+SUMIF('MOMENTO DE TRANSPORTE - AUX'!A:A,'MODULO MINIMO'!D51,'MOMENTO DE TRANSPORTE - AUX'!K:K),2),2) -> 0 | K51: 0.2339 | L51: =ROUND(IF(C51="CODEVASF",VLOOKUP(D51,'CPU CODEVASF'!E:I,5,FALSE),VLOOKUP(D51,'SINTÉTICO SICRO'!A:D,4,FALSE)),6) -> 3.42 | M51: 4.21 | N51: =CAPA!$D$13 -> 0 | O51: 4.21 | P51: 0 | S51: 0
B52: 32 | C52: SICRO | D52: 5914449 | E52: =VLOOKUP(D52,'SINTÉTICO SICRO'!$A$4:$D$1048576,2,0) -> Transporte com caminhão carroceria de 15 t - rodovia em leito natural | I52: tkm | J52: =TRUNC(ROUND(SUMIF('MOMENTO DE TRANSPORTE - PRINC'!A:A,'MODULO MINIMO'!D52,'MOMENTO DE TRANSPORTE - PRINC'!K:K)+SUMIF('MOMENTO DE TRANSPORTE - AUX'!A:A,'MODULO MINIMO'!D52,'MOMENTO DE TRANSPORTE - AUX'!K:K),2),2) -> 0 | K52: 0.2339 | L52: =ROUND(IF(C52="CODEVASF",VLOOKUP(D52,'CPU CODEVASF'!E:I,5,FALSE),VLOOKUP(D52,'SINTÉTICO SICRO'!A:D,4,FALSE)),6) -> 1.07 | M52: 1.32 | N52: =CAPA!$D$13 -> 0 | O52: 1.32 | P52: 0 | S52: 0
B53: 33 | C53: SICRO | D53: 5914464 | E53: =VLOOKUP(D53,'SINTÉTICO SICRO'!$A$4:$D$1048576,2,0) -> Transporte com caminhão carroceria de 15 t - rodovia em revestimento primário | I53: tkm | J53: =TRUNC(ROUND(SUMIF('MOMENTO DE TRANSPORTE - PRINC'!A:A,'MODULO MINIMO'!D53,'MOMENTO DE TRANSPORTE - PRINC'!K:K)+SUMIF('MOMENTO DE TRANSPORTE - AUX'!A:A,'MODULO MINIMO'!D53,'MOMENTO DE TRANSPORTE - AUX'!K:K),2),2) -> 0 | K53: 0.2339 | L53: =ROUND(IF(C53="CODEVASF",VLOOKUP(D53,'CPU CODEVASF'!E:I,5,FALSE),VLOOKUP(D53,'SINTÉTICO SICRO'!A:D,4,FALSE)),6) -> 0.86 | M53: 1.06 | N53: =CAPA!$D$13 -> 0 | O53: 1.06 | P53: 0 | S53: 0
B54: 34 | C54: SICRO | D54: 5914479 | E54: =VLOOKUP(D54,'SINTÉTICO SICRO'!$A$4:$D$1048576,2,0) -> Transporte com caminhão carroceria de 15 t - rodovia pavimentada | I54: tkm | J54: =TRUNC(ROUND(SUMIF('MOMENTO DE TRANSPORTE - PRINC'!A:A,'MODULO MINIMO'!D54,'MOMENTO DE TRANSPORTE - PRINC'!K:K)+SUMIF('MOMENTO DE TRANSPORTE - AUX'!A:A,'MODULO MINIMO'!D54,'MOMENTO DE TRANSPORTE - AUX'!K:K),2),2) -> 0 | K54: 0.2339 | L54: =ROUND(IF(C54="CODEVASF",VLOOKUP(D54,'CPU CODEVASF'!E:I,5,FALSE),VLOOKUP(D54,'SINTÉTICO SICRO'!A:D,4,FALSE)),6) -> 0.69 | M54: 0.85 | N54: =CAPA!$D$13 -> 0 | O54: 0.85 | P54: 0 | S54: 0
B55: 35 | C55: SICRO | D55: 5914364 | E55: =VLOOKUP(D55,'SINTÉTICO SICRO'!$A$4:$D$1048576,2,0) -> Transporte de cimento ou cal hidratada a granel com caminhão silo de 30 m³ - rodovia em leito natural | I55: tkm | J55: =TRUNC(ROUND(SUMIF('MOMENTO DE TRANSPORTE - PRINC'!A:A,'MODULO MINIMO'!D55,'MOMENTO DE TRANSPORTE - PRINC'!K:K)+SUMIF('MOMENTO DE TRANSPORTE - AUX'!A:A,'MODULO MINIMO'!D55,'MOMENTO DE TRANSPORTE - AUX'!K:K),2),2) -> 0 | K55: =$J$6 -> 0.2339 | L55: =ROUND(IF(C55="CODEVASF",VLOOKUP(D55,'CPU CODEVASF'!E:I,5,FALSE),VLOOKUP(D55,'SINTÉTICO SICRO'!A:D,4,FALSE)),6) -> 0.9 | M55: 1.11 | N55: =CAPA!$D$13 -> 0 | O55: 1.11 | P55: 0 | S55: 0
B56: 36 | C56: SICRO | D56: 5914365 | E56: =VLOOKUP(D56,'SINTÉTICO SICRO'!$A$4:$D$1048576,2,0) -> Transporte de cimento ou cal hidratada a granel com caminhão silo de 30 m³ - rodovia em revestimento primário | I56: tkm | J56: =TRUNC(ROUND(SUMIF('MOMENTO DE TRANSPORTE - PRINC'!A:A,'MODULO MINIMO'!D56,'MOMENTO DE TRANSPORTE - PRINC'!K:K)+SUMIF('MOMENTO DE TRANSPORTE - AUX'!A:A,'MODULO MINIMO'!D56,'MOMENTO DE TRANSPORTE - AUX'!K:K),2),2) -> 0 | K56: 0.2339 | L56: =ROUND(IF(C56="CODEVASF",VLOOKUP(D56,'CPU CODEVASF'!E:I,5,FALSE),VLOOKUP(D56,'SINTÉTICO SICRO'!A:D,4,FALSE)),6) -> 0.72 | M56: 0.88 | N56: =CAPA!$D$13 -> 0 | O56: 0.88 | P56: 0 | S56: 0
B57: 37 | C57: SICRO | D57: 5914366 | E57: =VLOOKUP(D57,'SINTÉTICO SICRO'!$A$4:$D$1048576,2,0) -> Transporte de cimento ou cal hidratada a granel com caminhão silo de 30 m³ - rodovia pavimentada | I57: tkm | J57: =TRUNC(ROUND(SUMIF('MOMENTO DE TRANSPORTE - PRINC'!A:A,'MODULO MINIMO'!D57,'MOMENTO DE TRANSPORTE - PRINC'!K:K)+SUMIF('MOMENTO DE TRANSPORTE - AUX'!A:A,'MODULO MINIMO'!D57,'MOMENTO DE TRANSPORTE - AUX'!K:K),2),2) -> 0 | K57: 0.2339 | L57: =ROUND(IF(C57="CODEVASF",VLOOKUP(D57,'CPU CODEVASF'!E:I,5,FALSE),VLOOKUP(D57,'SINTÉTICO SICRO'!A:D,4,FALSE)),6) -> 0.62 | M57: 0.76 | N57: =CAPA!$D$13 -> 0 | O57: 0.76 | P57: 0 | S57: 0
B58: VALOR TOTAL DO MODULO | P58: =SUM(P10:P57) -> 1391092.03 | AC58: =SUM(AC18:AC44) -> 43314537.98

Sheet CRONOGRAMA TOTAL
A2: ='MODULO MINIMO'!B1 -> EXECUÇÃO DE SERVIÇOS DE PAVIMENTAÇÃO COM TRATAMENTO SUPERFICIAL DUPLO EM VIAS DE MUNICÍPIOS DIVERSOS INSERIDOS NA ÁREA DE ATUAÇÃO DA CODEVASF, NO ESTADO MARANHÃO
A3: Cronograma Físico e Financeiro
A4: Item | B4: Descrição | C4: Total Por Etapa | D4: 30 DIAS | E4: 60 DIAS | F4: 90 DIAS | G4: 120 DIAS | H4: 150 DIAS | I4: 180 DIAS | J4: 210 DIAS | K4: 240 DIAS | L4: 270 DIAS | M4: 300 DIAS | N4: 330 DIAS | O4: 360 DIAS
B5: ='MODULO MINIMO'!E10 -> MOBILIZAÇÃO/DESMOBILIZAÇÃO | C5: =SUM(D5:O5) -> 1 | D5: 0.5 | O5: 0.5
C6: =SUM('MODULO MINIMO'!P11:P12) -> 97746.6 | D6: =$C$6*D5 -> 48873.3 | O6: =$C$6*O5 -> 48873.3 | P6: =SUM(D6:O6) -> 97746.6 | Q6: =IF(P6=C6,"OK","") -> OK
B7: ='MODULO MINIMO'!E13 -> INSTALAÇÃO DE CANTEIRO | C7: =SUM(D7:O7) -> 1 | D7: 0.1 | E7: 0.5 | F7: 0.4
C8: =SUM('MODULO MINIMO'!P14:P15) -> 30270.76 | D8: =$C$8*D7 -> 3027.076 | E8: =$C$8*E7 -> 15135.38 | F8: 12108.304 | G8: 0 | H8: 0 | I8: 0 | J8: 0 | K8: 0 | L8: 0 | M8: 0 | N8: 0 | O8: 0 | P8: =SUM(D8:O8) -> 30270.76 | Q8: =IF(P8=C8,"OK","") -> OK
B9: ='MODULO MINIMO'!E16 -> ADMINISTRAÇÃO LOCAL DA OBRA | C9: =SUM(D9:O9) -> 1 | D9: =(D6+D8+D12+D14+D16+D18+D20+D22+D24+D26)/($O$33-$C$10) -> 0.07471413616 | E9: 0.01216984789 | F9: 0.02949940646 | G9: 0.01976352814 | H9: 0.02131135563 | I9: =(I6+I8+I12+I14+I16+I18+I20+I22+I24+I26)/($O$33-$C$10) -> 0.02542183385 | J9: 0.1171630754 | K9: 0.1171630754 | L9: 0.1171630754 | M9: =(M6+M8+M12+M14+M16+M18+M20+M22+M24+M26)/($O$33-$C$10) -> 0.1171630754 | N9: 0.1459060409 | O9: =(O6+O8+O12+O14+O16+O18+O20+O22+O24+O26)/($O$33-$C$10) -> 0.2025615492
C10: =SUM('MODULO MINIMO'!P17) -> 147413.38 | D10: =$C$10*D9 -> 11013.86335 | E10: =$C$10*E9 -> 1793.998412 | F10: =$C$10*F9 -> 4348.607214 | G10: 2913.408484 | H10: 3141.578966 | I10: 3747.518453 | J10: 17271.40496 | K10: 17271.40496 | L10: 17271.40496 | M10: 17271.40496 | N10: 21508.50265 | O10: 29860.28262 | P10: =SUM(D10:O10) -> 147413.38 | Q10: =IF(P10=C10,"OK","") -> OK
B11: ='MODULO MINIMO'!E18 -> TERRAPLANAGEM | C11: =SUM(D11:O11) -> 1 | F11: =1/4 -> 0.25 | G11: =1/4 -> 0.25 | H11: =1/4 -> 0.25 | I11: =1/4 -> 0.25
C12: =SUM('MODULO MINIMO'!P19:P20) -> 57421 | D12: =$C$14*D11 -> 0 | E12: =$C$12*E11 -> 0 | F12: 14355.25 | G12: 14355.25 | H12: 14355.25 | I12: 14355.25 | J12: 0 | K12: 0 | L12: 0 | M12: 0 | N12: 0 | O12: 0 | P12: =SUM(D12:O12) -> 57421 | Q12: =IF(P12=C12,"OK","") -> OK
B13: ='MODULO MINIMO'!E21 -> PAVIMENTAÇÃO | C13: =SUM(D13:O13) -> 1 | J13: =1/4 -> 0.25 | K13: =1/4 -> 0.25 | L13: =1/4 -> 0.25 | M13: =1/4 -> 0.25
C14: =SUM('MODULO MINIMO'!P22:P27) -> 228242 | D14: =$C$14*D13 -> 0 | E14: =$C$14*E13 -> 0 | F14: 0 | G14: 0 | H14: 0 | J14: 57060.5 | K14: 57060.5 | L14: 57060.5 | M14: =$C$14*M13 -> 57060.5 | O14: 0 | P14: =SUM(D14:O14) -> 228242 | Q14: =IF(P14=C14,"OK","") -> OK
B15: ='MODULO MINIMO'!E28 -> AQUISIÇÃO E TRANSPORTE DO MATERIAL BETUMINOSO | C15: =SUM(D15:O15) -> 1 | J15: =1/4 -> 0.25 | K15: =1/4 -> 0.25 | L15: =1/4 -> 0.25 | M15: =1/4 -> 0.25
C16: =SUM('MODULO MINIMO'!P29:P32) -> 313713.95 | D16: =$C$16*D15 -> 0 | E16: =$C$16*E15 -> 0 | F16: 0 | G16: 0 | H16: 0 | J16: 78428.4875 | K16: 78428.4875 | L16: 78428.4875 | M16: =$C$16*M15 -> 78428.4875 | N16: 0 | O16: 0 | P16: =SUM(D16:O16) -> 313713.95 | Q16: =IF(P16=C16,"OK","") -> OK
B17: ='MODULO MINIMO'!E33 -> SINALIZAÇÃO | C17: =SUM(D17:O17) -> 1 | O17: 1
C18: =SUM('MODULO MINIMO'!P34:P37) -> 26700.06 | D18: =$C$18*D17 -> 0 | E18: =$C$18*E17 -> 0 | F18: 0 | G18: 0 | H18: 0 | I18: 0 | J18: 0 | K18: 0 | L18: 0 | M18: 0 | N18: 0 | O18: 26700.06 | P18: =SUM(D18:O18) -> 26700.06 | Q18: =IF(P18=C18,"OK","") -> OK
B19: ='MODULO MINIMO'!E38 -> DRENAGEM | C19: =SUM(D19:O19) -> 1 | N19: 0.5 | O19: 0.5
C20: =SUM('MODULO MINIMO'!P39:P40) -> 342472 | D20: =$C$20*D19 -> 0 | E20: =$C$20*E19 -> 0 | F20: 0 | G20: 0 | H20: 0 | I20: 0 | J20: 0 | K20: 0 | L20: 0 | M20: 0 | N20: 171236 | O20: 171236 | P20: =SUM(D20:O20) -> 342472 | Q20: =IF(P20=C20,"OK","") -> OK
B21: ='MODULO MINIMO'!E41 -> SERVIÇOS COMPLEMENTARES | C21: =SUM(D21:O21) -> 1 | H21: 0.5 | I21: 0.5
C22: =SUM('MODULO MINIMO'!P42) -> 3850 | D22: =$C$22*D21 -> 0 | E22: =$C$22*E21 -> 0 | F22: 0 | G22: 0 | H22: 1925 | I22: 1925 | J22: 0 | K22: 0 | L22: 0 | M22: 0 | N22: 0 | O22: 0 | P22: =SUM(D22:O22) -> 3850 | Q22: =IF(P22=C22,"OK","") -> OK
B23: ='MODULO MINIMO'!E43 -> PROJETO EXECUTIVO | C23: =SUM(D23:O23) -> 1 | D23: 1
C24: ='MODULO MINIMO'!P44 -> 41020 | D24: =$C$24*D23 -> 41020 | E24: =$C$24*E23 -> 0 | F24: 0 | G24: 0 | H24: 0 | I24: 0 | J24: 0 | K24: 0 | L24: 0 | M24: 0 | N24: 0 | O24: 0 | P24: =SUM(D24:O24) -> 41020 | Q24: =IF(P24=C24,"OK","") -> OK
B25: ='MODULO MINIMO'!E45 -> MOMENTO DE TRANSPORTE | C25: =SUM(D25:O25) -> 1 | F25: 0.1 | G25: 0.1 | H25: 0.1 | I25: 0.15 | J25: 0.1 | K25: 0.1 | L25: 0.1 | M25: 0.1 | N25: 0.1 | O25: 0.05
C26: =SUM('MODULO MINIMO'!P46:P57) -> 102242.28 | D26: =$C$26*D25 -> 0 | E26: =$C$26*E25 -> 0 | F26: 10224.228 | G26: 10224.228 | H26: 10224.228 | I26: 15336.342 | J26: 10224.228 | K26: 10224.228 | L26: 10224.228 | M26: 10224.228 | N26: 10224.228 | O26: 5112.114 | P26: =SUM(D26:O26) -> 102242.28 | Q26: =IF(P26=C26,"OK","") -> OK
A28: Porcentagem | D28: =SUM(D6+D8+D10+D12+D14+D16+D18+D20+D22+D24+D26)/$O$33 -> 0.07471413616 | E28: =SUM(E6+E8+E10+E12+E14+E16+E18+E20+E22+E24+E26)/$O$33 -> 0.01216984789 | F28: 0.02949940646 | G28: 0.01976352814 | H28: 0.02131135563 | I28: =SUM(I6+I8+I10+I12+I14+I16+I18+I20+I22+I24+I26)/$O$33 -> 0.02542183385 | J28: 0.1171630754 | K28: 0.1171630754 | L28: 0.1171630754 | M28: =SUM(M6+M8+M10+M12+M14+M16+M18+M20+M22+M24+M26)/$O$33 -> 0.1171630754 | N28: 0.1459060409 | O28: =SUM(O6+O8+O10+O12+O14+O16+O18+O20+O22+O24+O26)/$O$33 -> 0.2025615492
A29: Custo | D29: =$O$33*D28 -> 103934.2393 | E29: =$O$33*E28 -> 16929.37841 | F29: =$O$33*F28 -> 41036.38921 | G29: 27492.88648 | H29: 29646.05697 | I29: 35364.11045 | J29: 162984.6205 | K29: 162984.6205 | L29: 162984.6205 | M29: 162984.6205 | N29: 202968.7307 | O29: 281781.7566
A30: Porcentagem Acumulado | D30: =D28 -> 0.07471413616 | E30: =D30+E28 -> 0.08688398406 | F30: =E30+F28 -> 0.1163833905 | G30: 0.1361469187 | H30: 0.1574582743 | I30: 0.1828801081 | J30: 0.3000431836 | K30: 0.417206259 | L30: 0.5343693345 | M30: 0.6515324099 | N30: 0.7974384508 | O30: =N30+O28 -> 1
A31: Custo Acumulado | D31: =D29 -> 103934.2393 | E31: =D31+E29 -> 120863.6178 | F31: 161900.007 | G31: 189392.8935 | H31: 219038.9504 | I31: 254403.0609 | J31: 417387.6813 | K31: 580372.3018 | L31: 743356.9223 | M31: 906341.5427 | N31: 1109310.273 | O31: 1391092.03
D33: Total Geral | N33: R$ | O33: =C6+C8+C10+C12+C14+C16+C18+C20+C22+C24+C26 -> 1391092.03
O36: =O31-O33 -> 0

Sheet CPU CODEVASF
A4: ='MODULO MINIMO'!B1 -> EXECUÇÃO DE SERVIÇOS DE PAVIMENTAÇÃO COM TRATAMENTO SUPERFICIAL DUPLO EM VIAS DE MUNICÍPIOS DIVERSOS INSERIDOS NA ÁREA DE ATUAÇÃO DA CODEVASF, NO ESTADO MARANHÃO
F5: BDI %: | G5: =CAPA!D14 -> 0.2339
E6: Encargos Sociais: | G6: Horista | H6: Mensalista
G7: ='ENC. SOCIAIS'!E51/100 -> 1.1273 | H7: ='ENC. SOCIAIS'!F51/100 -> 0.7019
A8: COMPOSIÇÕES DE CUSTO UNITARIO
A9: CPU-12 | B9: CODEVASF | D9: Correção de vazamentos no ramal na rua sem pavimento com fornecimento do material hidráulico | E9: m | F9: COEF. | G9: PRECO UNITÁRIO (R$) | H9: TOTAL (R$)
A11: SICRO | B11: SICRO | C11: P9824 | D11: =VLOOKUP(C11,'Pessoal Sicro'!$A$5:$G$1048576,2,0) -> Servente | E11: H | F11: 0.2 | G11: =VLOOKUP(C11,'Pessoal Sicro'!$A$5:$G$1048576,6,0) -> 21.3406 | H11: =F11*G11 -> 4.26812
A12: SICRO | B12: SICRO | C12: P9807 | D12: =VLOOKUP(C12,'Pessoal Sicro'!$A$5:$G$1048576,2,0) -> Bombeiro hidráulico | E12: H | F12: 0.1 | G12: =VLOOKUP(C12,'Pessoal Sicro'!$A$5:$G$1048576,6,0) -> 31.3343 | H12: =F12*G12 -> 3.13343
A13: INS. SINAPI | B13: SINAPI | C13: 9867 | D13: TUBO PVC, SOLDAVEL, DN 20 MM, AGUA FRIA (NBR-5648) | E13: m | F13: 1 | G13: =IFERROR(VLOOKUP(C13,'INSUMOS SINAPI'!A:E,5,FALSE),VLOOKUP(C13,'COMP Sint. Sinapi'!G:K,5,FALSE)) -> 3.61 | H13: 3.61
A14: INSUMO | B14: ORSE | C14: 10585 | D14: Arco de serra | E14: un | F14: 0.1 | G14: 19.9 | H14: 1.99
A15: INS. SINAPI | B15: SINAPI | C15: 3859 | D15: LUVA SOLDAVEL COM ROSCA, PVC, 20 MM X 1/2", PARA AGUA FRIA PREDIAL | E15: un | F15: 2 | G15: =IFERROR(VLOOKUP(C15,'INSUMOS SINAPI'!A:E,5,FALSE),VLOOKUP(C15,'COMP Sint. Sinapi'!G:K,5,FALSE)) -> 1.3 | H15: 2.6
E16: Sub total: | H16: =SUM(H11:H15) -> 15.60155
F17: BDI | G17: =CAPA!$D$14 -> 0.2339 | H17: =H16*G17 -> 3.649202545
G18: Total Serviços: | H18: =TRUNC(H16+H17,2) -> 19.25
E19: =A9 -> CPU-12 | F19: PREÇO UNITÁRIO TOTAL: | H19: =H18 -> 19.25 | I19: =H16 -> 15.60155
F20: DESCONTO APLICADO: | H20: =CAPA!$D$13 -> 0
D21: PREÇO UNITÁRIO COM BDI APÓS O DESCONTO: | H21: =TRUNC((H19-H19*H20),2) -> 19.25
A23: CPU-14 | B23: CODEVASF | D23: AQUISIÇÃO DE EAI | E23: t | F23: COEF. | G23: PRECO UNITÁRIO (R$) | H23: TOTAL (R$)
D25: EAI | E25: t | F25: 1 | G25: =RESUMO_Transp!$V$17 -> 3094.890671 | H25: =F25*G25 -> 3094.890671
E26: Sub total: | H26: =SUM(H25) -> 3094.890671
F27: BDI | G27: =CAPA!$D$15 -> 0.15 | H27: =H26*G27 -> 464.2336007
G28: Total Serviços: | H28: =TRUNC(H26+H27,2) -> 3559.12
E29: =A23 -> CPU-14 | F29: PREÇO UNITÁRIO TOTAL: | H29: =H28 -> 3559.12 | I29: =H26 -> 3094.890671
F30: DESCONTO APLICADO: | H30: =CAPA!$D$13 -> 0
D31: PREÇO UNITÁRIO COM BDI APÓS O DESCONTO: | H31: =TRUNC((H29-H29*H30),2) -> 3559.12
A33: CPU-15 | B33: CODEVASF | D33: AQUISIÇÃO DE EMULSÃO ASFÁLTICA RR-2C | E33: t | F33: COEF. | G33: PRECO UNITÁRIO (R$) | H33: TOTAL (R$)
D35: EMULSÃO ASFÁLTICA RR-2C | E35: t | F35: 1 | G35: =RESUMO_Transp!$V$24 -> 4036.352422 | H35: =F35*G35 -> 4036.352422
E36: Sub total: | H36: =SUM(H35) -> 4036.352422
F37: BDI | G37: =CAPA!$D$15 -> 0.15 | H37: =H36*G37 -> 605.4528633
G38: Total Serviços: | H38: =TRUNC(H36+H37,2) -> 4641.8
E39: =A33 -> CPU-15 | F39: PREÇO UNITÁRIO TOTAL: | H39: =TRUNC(H38,2) -> 4641.8 | I39: =H36 -> 4036.352422
F40: DESCONTO APLICADO: | H40: =CAPA!$D$13 -> 0
D41: PREÇO UNITÁRIO COM BDI APÓS O DESCONTO: | H41: =TRUNC((H39-H39*H40),2) -> 4641.8
A43: CPU-18 | B43: CODEVASF | D43: TRANSPORTE DE EAI | E43: t | F43: COEF. | G43: PRECO UNITÁRIO (R$) | H43: TOTAL (R$)
D45: TRANSPORTE DE EAI | E45: t | F45: 1 | G45: =RESUMO_Transp!$U$17 -> 1254.512381 | H45: =F45*G45 -> 1254.512381
E46: Sub total: | H46: =SUM(H45) -> 1254.512381
F47: BDI | G47: =CAPA!$D$15 -> 0.15 | H47: =H46*G47 -> 188.1768571
G48: Total Serviços: | H48: =TRUNC(H46+H47,2) -> 1442.68
E49: =A43 -> CPU-18 | F49: PREÇO UNITÁRIO TOTAL: | H49: =TRUNC(H48,2) -> 1442.68 | I49: =H46 -> 1254.512381
F50: DESCONTO APLICADO: | H50: =CAPA!$D$13 -> 0
D51: PREÇO UNITÁRIO COM BDI APÓS O DESCONTO: | H51: =TRUNC((H49-H49*H50),2) -> 1442.68
A53: CPU-19 | B53: CODEVASF | D53: TRANSPORTE DE EMULSÃO ASFÁLTICA RR-2C | E53: t | F53: COEF. | G53: PRECO UNITÁRIO (R$) | H53: TOTAL (R$)
D55: TRANSPORTE DE EMULSÃO ASFÁLTICA RR-2C | E55: t | F55: 1 | G55: =RESUMO_Transp!$U$24 -> 719.01 | H55: =F55*G55 -> 719.01
E56: Sub total: | H56: =SUM(H55) -> 719.01
F57: BDI | G57: =CAPA!$D$15 -> 0.15 | H57: =H56*G57 -> 107.8515
G58: Total Serviços: | H58: =H56+H57 -> 826.8615
E59: =A53 -> CPU-19 | F59: PREÇO UNITÁRIO TOTAL: | H59: =H58 -> 826.8615 | I59: =H56 -> 719.01
F60: DESCONTO APLICADO: | H60: =CAPA!$D$13 -> 0
D61: PREÇO UNITÁRIO COM BDI APÓS O DESCONTO: | H61: =TRUNC((H59-H59*H60),2) -> 826.86
A63: CPU-20 | B63: CODEVASF | D63: CONTROLE TECNOLÓGICO - PROJETO | E63: m² | F63: COEF. | G63: PRECO UNITÁRIO (R$) | H63: TOTAL (R$)
A65: Insumo | B65: SICRO | C65: P9858 | D65: Laboratorista | E65: mês | F65: =0.15/14000 -> 1.071428571e-05 | G65: ='Pessoal Sicro'!F47 -> 7399.543 | H65: =F65*G65 -> 0.07928081786
A66: Composição | B66: SICRO | C66: P9833 | D66: Auxiliar de Laboratório | E66: mês | F66: =0.15/14000 -> 1.071428571e-05 | G66: ='Pessoal Sicro'!F29 -> 5646.9455 | H66: 0.0605029875
A67: Composição | B67: SICRO | C67: *B8957 | D67: Laboratório de Solos | E67: mês | F67: 1.071428571e-05 | G67: 3520.5 | H67: =F67*G67 -> 0.03771964286
A68: Composição | B68: SICRO | C68: *B8955 | D68: Laboratório de Asfalto | E68: mês | F68: 1.071428571e-05 | G68: 5952.38 | H68: =F68*G68 -> 0.0637755
B69: *Relatório de Custos Gerais do DNIT, página 1 | E69: Sub total: | H69: =SUM(H65:H68) -> 0.2412789482
F70: BDI | G70: =CAPA!$D$14 -> 0.2339 | H70: =H69*G70 -> 0.05643514599
E71: CPU-20 | F71: PREÇO UNITÁRIO TOTAL: | H71: =TRUNC(H69+H70,2) -> 0.29 | I71: =H69 -> 0.2412789482
F72: DESCONTO APLICADO: | H72: =CAPA!$D$13 -> 0
D73: PREÇO UNITÁRIO COM BDI APÓS O DESCONTO: | H73: =TRUNC((H71-H71*H72),2) -> 0.29

Sheet Mob
A4: ='MODULO MINIMO'!B1 -> EXECUÇÃO DE SERVIÇOS DE PAVIMENTAÇÃO COM TRATAMENTO SUPERFICIAL DUPLO EM VIAS DE MUNICÍPIOS DIVERSOS INSERIDOS NA ÁREA DE ATUAÇÃO DA CODEVASF, NO ESTADO MARANHÃO
A5: MOBILIZAÇÃO/DESMOBILIZAÇÃO (MOB)
F6: Distância da Capital ao Canteiro: | H6: ='MODULO MINIMO'!J11 -> 210 | I6: Fica a cargo de cada SR colocar a distancia adequada de acordo com o historico de mobilização
F8: Velocidade média de transporte (pavim.): | H8: 60
A11: CODIGO | B11: EQUIPAMENTO | C11: VEÍCULO TRANSPORTADOR | D11: QTDE | E11: K | F11: FU | G11: CUSTO DO TRANSPORTE
G12: (R$/h) | H12: (R$)/km
A13: E9524 | B13: =VLOOKUP(A13,Equipamentos!$A:$K,2,FALSE) -> Motoniveladora - 93 kW | C13: =IFERROR(INDEX('Tabelas 2 e 3 mob'!A:K,MATCH(A13,'Tabelas 2 e 3 mob'!A:A,0),9),"ERRO") -> E9665 | D13: 1 | E13: 2 | F13: 1 | G13: =IF(C13="Veículo(s) da própria frota.",0,INDEX(Equipamentos!B:K,MATCH(C13,Equipamentos!A:A,0),9)) -> 412.7818 | H13: =((D13*E13*F13)/$H$8)*G13 -> 13.75939333 | I13: E9509 | J13: =IF(G13=[204]Mob!G13,"ok","não ok") -> ok
A14: E9526 | B14: =VLOOKUP(A14,Equipamentos!$A:$K,2,FALSE) -> Retroescavadeira de pneus - capacidade da caçamba da pá-carregadeira de 0,76 m³ e da retroescavadeira de 0,29 m³ - 58 kW | C14: =IFERROR(INDEX('Tabelas 2 e 3 mob'!A:K,MATCH(A14,'Tabelas 2 e 3 mob'!A:A,0),9),"ERRO") -> E9665 | D14: 1 | E14: 2 | F14: 1 | G14: =IF(C14="Veículo(s) da própria frota.",0,INDEX(Equipamentos!B:K,MATCH(C14,Equipamentos!A:A,0),9)) -> 412.7818 | H14: =((D14*E14*F14)/$H$8)*G14 -> 13.75939333 | I14: E9583 | J14: =IF(G14=[204]Mob!G14,"ok","não ok") -> ok
A15: E9577 | B15: =VLOOKUP(A15,Equipamentos!$A:$K,2,FALSE) -> Trator agrícola sobre pneus - 77 kW | C15: =IFERROR(INDEX('Tabelas 2 e 3 mob'!A:K,MATCH(A15,'Tabelas 2 e 3 mob'!A:A,0),9),"ERRO") -> E9665 | D15: 1 | E15: 2 | F15: 0.5 | G15: =IF(C15="Veículo(s) da própria frota.",0,INDEX(Equipamentos!B:K,MATCH(C15,Equipamentos!A:A,0),9)) -> 412.7818 | H15: 6.879696667 | I15: E9762 | J15: =IF(G15=[204]Mob!G15,"ok","não ok") -> ok
A16: E9518 | B16: =VLOOKUP(A16,Equipamentos!$A:$K,2,FALSE) -> Grade de 24 discos rebocável de D = 60 cm (24") | C16: =IFERROR(INDEX('Tabelas 2 e 3 mob'!A:K,MATCH(A16,'Tabelas 2 e 3 mob'!A:A,0),9),"ERRO") -> Veículo(s) da própria frota. | D16: 1 | E16: 2 | F16: 0 | G16: =IF(C16="Veículo(s) da própria frota.",0,INDEX(Equipamentos!B:K,MATCH(C16,Equipamentos!A:A,0),9)) -> 0 | H16: 0 | I16: E9558 | J16: =IF(G16=[204]Mob!G16,"ok","não ok") -> ok
A17: E9615 | B17: =VLOOKUP(A17,Equipamentos!$A:$K,2,FALSE) -> Usina misturadora de solos com capacidade de 300 t/h - 44 kW | C17: =IFERROR(INDEX('Tabelas 2 e 3 mob'!A:K,MATCH(A17,'Tabelas 2 e 3 mob'!A:A,0),9),"ERRO") -> E9018 | D17: 0 | E17: 2 | F17: 2 | G17: =IF(C17="Veículo(s) da própria frota.",0,INDEX(Equipamentos!B:K,MATCH(C17,Equipamentos!A:A,0),9)) -> 541.9736 | H17: 0 | I17: E9509 | J17: =IF(G17=[204]Mob!G17,"ok","não ok") -> ok
A18: E9689 | B18: =VLOOKUP(A18,Equipamentos!$A:$K,2,FALSE) -> Usina de asfalto a quente gravimétrica com capacidade de 100/140 t/h - 260 kW | C18: =IFERROR(INDEX('Tabelas 2 e 3 mob'!A:K,MATCH(A18,'Tabelas 2 e 3 mob'!A:A,0),9),"ERRO") -> E9666 | D18: 0 | E18: 2 | F18: 3 | G18: =IF(C18="Veículo(s) da própria frota.",0,INDEX(Equipamentos!B:K,MATCH(C18,Equipamentos!A:A,0),9)) -> 455.859 | H18: 0 | I18: E9583 | J18: =IF(G18=[204]Mob!G18,"ok","não ok") -> ok
A19: E9530 | B19: =VLOOKUP(A19,Equipamentos!$A:$K,2,FALSE) -> Rolo compactador liso vibratório autopropelido por pneus de 11 t - 97 kW | C19: =IFERROR(INDEX('Tabelas 2 e 3 mob'!A:K,MATCH(A19,'Tabelas 2 e 3 mob'!A:A,0),9),"ERRO") -> E9666 | D19: 1 | E19: 2 | F19: 0.5 | G19: =IF(C19="Veículo(s) da própria frota.",0,INDEX(Equipamentos!B:K,MATCH(C19,Equipamentos!A:A,0),9)) -> 455.859 | H19: 7.59765 | I19: E9762 | J19: =IF(G19=[204]Mob!G19,"ok","não ok") -> ok
A20: E9558 | B20: =VLOOKUP(A20,Equipamentos!$A:$K,2,FALSE) -> Tanque de estocagem de asfalto com capacidade de 30.000 l | C20: =IFERROR(INDEX('Tabelas 2 e 3 mob'!A:K,MATCH(A20,'Tabelas 2 e 3 mob'!A:A,0),9),"ERRO") -> E9665 | D20: 0 | E20: 2 | F20: 1 | G20: =IF(C20="Veículo(s) da própria frota.",0,INDEX(Equipamentos!B:K,MATCH(C20,Equipamentos!A:A,0),9)) -> 412.7818 | H20: 0 | I20: E9558 | J20: =IF(G20=[204]Mob!G20,"ok","não ok") -> ok
A21: E9758 | B21: =VLOOKUP(A21,Equipamentos!$A:$K,2,FALSE) -> Vibroacabadora de asfalto sobre pneus - 97 kW | C21: =IFERROR(INDEX('Tabelas 2 e 3 mob'!A:K,MATCH(A21,'Tabelas 2 e 3 mob'!A:A,0),9),"ERRO") -> E9018 | D21: 0 | E21: 2 | F21: 0.5 | G21: =IF(C21="Veículo(s) da própria frota.",0,INDEX(Equipamentos!B:K,MATCH(C21,Equipamentos!A:A,0),9)) -> 541.9736 | H21: 0 | I21: E9509 | J21: =IF(G21=[204]Mob!G21,"ok","não ok") -> ok
A22: E9685 | B22: =VLOOKUP(A22,Equipamentos!$A:$K,2,FALSE) -> Rolo compactador pé de carneiro vibratório autopropelido por pneus de 11,6 t - 82 kW | C22: =IFERROR(INDEX('Tabelas 2 e 3 mob'!A:K,MATCH(A22,'Tabelas 2 e 3 mob'!A:A,0),9),"ERRO") -> E9666 | D22: 1 | E22: 2 | F22: 0.5 | G22: =IF(C22="Veículo(s) da própria frota.",0,INDEX(Equipamentos!B:K,MATCH(C22,Equipamentos!A:A,0),9)) -> 455.859 | H22: 7.59765 | I22: E9558 | J22: =IF(G22=[204]Mob!G22,"ok","não ok") -> ok
A23: E9583 | B23: =VLOOKUP(A23,Equipamentos!$A:$K,2,FALSE) -> Distribuidor de agregados rebocável com capacidade de 1,9 m³ | C23: =IFERROR(INDEX('Tabelas 2 e 3 mob'!A:K,MATCH(A23,'Tabelas 2 e 3 mob'!A:A,0),9),"ERRO") -> Veículo(s) da própria frota. | D23: 1 | E23: 2 | F23: 1 | G23: =IF(C23="Veículo(s) da própria frota.",0,INDEX(Equipamentos!B:K,MATCH(C23,Equipamentos!A:A,0),9)) -> 0 | H23: =((D23*E23*F23)/$H$8)*G23 -> 0 | I23: E9571
A24: E9605 | B24: =VLOOKUP(A24,Equipamentos!$A:$K,2,FALSE) -> Caminhão tanque com capacidade de 6.000 l - 136 kW | C24: =IFERROR(INDEX('Tabelas 2 e 3 mob'!A:K,MATCH(A24,'Tabelas 2 e 3 mob'!A:A,0),9),"ERRO") -> E9605 | D24: 1 | E24: 1 | F24: 1 | G24: =IF(C24="Veículo(s) da própria frota.",0,INDEX(Equipamentos!B:K,MATCH(C24,Equipamentos!A:A,0),9)) -> 250.8124 | H24: 4.180206667 | I24: E9514 | J24: =IF(G24=[204]Mob!G23,"ok","não ok") -> ok
A25: E9579 | B25: =VLOOKUP(A25,Equipamentos!$A:$K,2,FALSE) -> Caminhão basculante com capacidade de 10 m³ - 210 kW | C25: =IFERROR(INDEX('Tabelas 2 e 3 mob'!A:K,MATCH(A25,'Tabelas 2 e 3 mob'!A:A,0),9),"ERRO") -> E9579 | D25: 3 | E25: 1 | F25: 1 | G25: =IF(C25="Veículo(s) da própria frota.",0,INDEX(Equipamentos!B:K,MATCH(C25,Equipamentos!A:A,0),9)) -> 292.3428 | H25: 14.61714 | I25: E9762 | J25: =IF(G25=[204]Mob!G24,"ok","não ok") -> ok
A26: E9509 | B26: =VLOOKUP(A26,Equipamentos!$A:$K,2,FALSE) -> Caminhão tanque distribuidor de asfalto com capacidade de 6.000 l - 7 kW/136 kW | C26: =IFERROR(INDEX('Tabelas 2 e 3 mob'!A:K,MATCH(A26,'Tabelas 2 e 3 mob'!A:A,0),9),"ERRO") -> E9509 | D26: 1 | E26: 1 | F26: 1 | G26: =IF(C26="Veículo(s) da própria frota.",0,INDEX(Equipamentos!B:K,MATCH(C26,Equipamentos!A:A,0),9)) -> 265.145 | H26: 4.419083333 | I26: E9685 | J26: =IF(G26=[204]Mob!G25,"ok","não ok") -> ok
A27: E9762 | B27: =VLOOKUP(A27,Equipamentos!$A:$K,2,FALSE) -> Rolo compactador de pneus autopropelido de 27 t - 85 kW | C27: =IFERROR(INDEX('Tabelas 2 e 3 mob'!A:K,MATCH(A27,'Tabelas 2 e 3 mob'!A:A,0),9),"ERRO") -> E9666 | D27: 1 | E27: 2 | F27: 0.5 | G27: =IF(C27="Veículo(s) da própria frota.",0,INDEX(Equipamentos!B:K,MATCH(C27,Equipamentos!A:A,0),9)) -> 455.859 | H27: 7.59765 | I27: E9511 | J27: =IF(G27=[204]Mob!G26,"ok","não ok") -> ok
A28: E9681 | B28: =VLOOKUP(A28,Equipamentos!$A:$K,2,FALSE) -> Rolo compactador liso tandem vibratório autopropelido de 10,4 t - 82 kW | C28: =IFERROR(INDEX('Tabelas 2 e 3 mob'!A:K,MATCH(A28,'Tabelas 2 e 3 mob'!A:A,0),9),"ERRO") -> E9666 | D28: 1 | E28: 2 | F28: 0.5 | G28: =IF(C28="Veículo(s) da própria frota.",0,INDEX(Equipamentos!B:K,MATCH(C28,Equipamentos!A:A,0),9)) -> 455.859 | H28: 7.59765 | I28: E9779 | J28: =IF(G28=[204]Mob!G27,"ok","não ok") -> ok
A29: E9545 | B29: =VLOOKUP(A29,Equipamentos!$A:$K,2,FALSE) -> Vibroacabadora de asfalto sobre esteiras - 97 kW | C29: =IFERROR(INDEX('Tabelas 2 e 3 mob'!A:K,MATCH(A29,'Tabelas 2 e 3 mob'!A:A,0),9),"ERRO") -> E9018 | D29: 0 | E29: 2 | F29: 0.5 | G29: =IF(C29="Veículo(s) da própria frota.",0,INDEX(Equipamentos!B:K,MATCH(C29,Equipamentos!A:A,0),9)) -> 541.9736 | H29: 0 | I29: E9615 | J29: =IF(G29=[204]Mob!G28,"ok","não ok") -> ok
A30: E9571 | B30: =VLOOKUP(A30,Equipamentos!$A:$K,2,FALSE) -> Caminhão tanque com capacidade de 10.000 l - 188 kW | C30: =IFERROR(INDEX('Tabelas 2 e 3 mob'!A:K,MATCH(A30,'Tabelas 2 e 3 mob'!A:A,0),9),"ERRO") -> E9571 | D30: 0 | E30: 1 | F30: 1 | G30: =IF(C30="Veículo(s) da própria frota.",0,INDEX(Equipamentos!B:K,MATCH(C30,Equipamentos!A:A,0),9)) -> 330.4524 | H30: 0 | I30: E9571 | J30: =IF(G30=[204]Mob!G29,"ok","não ok") -> ok
A31: E9514 | B31: =VLOOKUP(A31,Equipamentos!$A:$K,2,FALSE) -> Distribuidor de agregados sobre pneus autopropelido - 130 kW | C31: =IFERROR(INDEX('Tabelas 2 e 3 mob'!A:K,MATCH(A31,'Tabelas 2 e 3 mob'!A:A,0),9),"ERRO") -> E9665 | D31: 0 | E31: 2 | F31: 0.5 | G31: =IF(C31="Veículo(s) da própria frota.",0,INDEX(Equipamentos!B:K,MATCH(C31,Equipamentos!A:A,0),9)) -> 412.7818 | H31: 0 | I31: E9514 | J31: =IF(G31=[204]Mob!G30,"ok","não ok") -> ok
A32: E9511 | B32: =VLOOKUP(A32,Equipamentos!$A:$K,2,FALSE) -> Carregadeira de pneus com capacidade de 3,40 m³ - 195 kW | C32: =IFERROR(INDEX('Tabelas 2 e 3 mob'!A:K,MATCH(A32,'Tabelas 2 e 3 mob'!A:A,0),9),"ERRO") -> E9665 | D32: 1 | E32: 2 | F32: 1 | G32: =IF(C32="Veículo(s) da própria frota.",0,INDEX(Equipamentos!B:K,MATCH(C32,Equipamentos!A:A,0),9)) -> 412.7818 | H32: 13.75939333 | I32: E9762 | J32: =IF(G32=[204]Mob!G31,"ok","não ok") -> ok
A33: E9779 | B33: =VLOOKUP(A33,Equipamentos!$A:$K,2,FALSE) -> Grupo gerador - 113 kVA | C33: =IFERROR(INDEX('Tabelas 2 e 3 mob'!A:K,MATCH(A33,'Tabelas 2 e 3 mob'!A:A,0),9),"ERRO") -> Veículo(s) da própria frota. | D33: 1 | E33: 2 | F33: 0 | G33: =IF(C33="Veículo(s) da própria frota.",0,INDEX(Equipamentos!B:K,MATCH(C33,Equipamentos!A:A,0),9)) -> 0 | H33: 0 | I33: E9685 | J33: =IF(G33=[204]Mob!G32,"ok","não ok") -> ok
A34: E9559 | B34: =VLOOKUP(A34,Equipamentos!$A:$K,2,FALSE) -> Aquecedor de fluido térmico - 12 kW | C34: =IFERROR(INDEX('Tabelas 2 e 3 mob'!A:K,MATCH(A34,'Tabelas 2 e 3 mob'!A:A,0),9),"ERRO") -> Veículo(s) da própria frota. | D34: 1 | E34: 2 | F34: 0 | G34: =IF(C34="Veículo(s) da própria frota.",0,INDEX(Equipamentos!B:K,MATCH(C34,Equipamentos!A:A,0),9)) -> 0 | H34: 0 | I34: E9511 | J34: =IF(G34=[204]Mob!G33,"ok","não ok") -> ok
A35: E9584 | B35: =VLOOKUP(A35,Equipamentos!$A:$K,2,FALSE) -> Carregadeira de pneus com capacidade de 1,72 m³ - 113 kW | C35: =IFERROR(INDEX('Tabelas 2 e 3 mob'!A:K,MATCH(A35,'Tabelas 2 e 3 mob'!A:A,0),9),"ERRO") -> E9665 | D35: 3 | E35: 2 | F35: 1 | G35: =IF(C35="Veículo(s) da própria frota.",0,INDEX(Equipamentos!B:K,MATCH(C35,Equipamentos!A:A,0),9)) -> 412.7818 | H35: 41.27818 | I35: E9779 | J35: =IF(G35=[204]Mob!G34,"ok","não ok") -> ok
A36: E9021 | B36: =VLOOKUP(A36,Equipamentos!$A:$K,2,FALSE) -> Grupo gerador - 456 kVA | C36: =IFERROR(INDEX('Tabelas 2 e 3 mob'!A:K,MATCH(A36,'Tabelas 2 e 3 mob'!A:A,0),9),"ERRO") -> E9508 | D36: 0 | E36: 2 | F36: 1 | G36: =IF(C36="Veículo(s) da própria frota.",0,INDEX(Equipamentos!B:K,MATCH(C36,Equipamentos!A:A,0),9)) -> 183.1405 | H36: 0 | I36: E9615 | J36: =IF(G36=[204]Mob!G35,"ok","não ok") -> ok
A37: E9687 | B37: =VLOOKUP(A37,Equipamentos!$A:$K,2,FALSE) -> Caminhão carroceria com capacidade de 5 t - 120 kW | C37: =IFERROR(INDEX('Tabelas 2 e 3 mob'!A:K,MATCH(A37,'Tabelas 2 e 3 mob'!A:A,0),9),"ERRO") -> E9687 | D37: 0 | E37: 1 | F37: 1 | G37: =IF(C37="Veículo(s) da própria frota.",0,INDEX(Equipamentos!B:K,MATCH(C37,Equipamentos!A:A,0),9)) -> 154.4616 | H37: 0 | I37: E9571 | J37: =IF(G37=[204]Mob!G36,"ok","não ok") -> ok
A38: E9667 | B38: =VLOOKUP(A38,Equipamentos!$A:$K,2,FALSE) -> Caminhão basculante com capacidade de 14 m³ - 210 kW | C38: =IFERROR(INDEX('Tabelas 2 e 3 mob'!A:K,MATCH(A38,'Tabelas 2 e 3 mob'!A:A,0),9),"ERRO") -> E9667 | D38: 0 | E38: 1 | F38: 1 | G38: =IF(C38="Veículo(s) da própria frota.",0,INDEX(Equipamentos!B:K,MATCH(C38,Equipamentos!A:A,0),9)) -> 311.681 | H38: 0 | I38: E9518 | J38: =IF(G38=[204]Mob!G37,"ok","não ok") -> ok
A39: E9644 | B39: =VLOOKUP(A39,Equipamentos!$A:$K,2,FALSE) -> Caminhão demarcador de faixas com sistema de pintura a frio - 28 kW/129 kW | C39: =IFERROR(INDEX('Tabelas 2 e 3 mob'!A:K,MATCH(A39,'Tabelas 2 e 3 mob'!A:A,0),9),"ERRO") -> E9644 | D39: 1 | E39: 1 | F39: 1 | G39: =IF(C39="Veículo(s) da própria frota.",0,INDEX(Equipamentos!B:K,MATCH(C39,Equipamentos!A:A,0),9)) -> 402.9388 | H39: 6.715646667 | I39: E9524 | J39: =IF(G39=[204]Mob!G38,"ok","não ok") -> ok
A40: E9592 | B40: =VLOOKUP(A40,Equipamentos!$A:$K,2,FALSE) -> Caminhão carroceria com capacidade de 15 t - 188 kW | C40: =IFERROR(INDEX('Tabelas 2 e 3 mob'!A:K,MATCH(A40,'Tabelas 2 e 3 mob'!A:A,0),9),"ERRO") -> E9592 | D40: 1 | E40: 1 | F40: 1 | G40: =IF(C40="Veículo(s) da própria frota.",0,INDEX(Equipamentos!B:K,MATCH(C40,Equipamentos!A:A,0),9)) -> 269.8329 | H40: 4.497215 | I40: E9762 | J40: =IF(G40=[204]Mob!G39,"ok","não ok") -> ok
A41: E9540 | B41: =VLOOKUP(A41,Equipamentos!$A:$K,2,FALSE) -> Trator sobre esteiras com lâmina - 127 kW | C41: =IFERROR(INDEX('Tabelas 2 e 3 mob'!A:K,MATCH(A41,'Tabelas 2 e 3 mob'!A:A,0),9),"ERRO") -> E9018 | D41: 1 | E41: 2 | F41: 0.5 | G41: =IF(C41="Veículo(s) da própria frota.",0,INDEX(Equipamentos!B:K,MATCH(C41,Equipamentos!A:A,0),9)) -> 541.9736 | H41: 9.032893333 | I41: E9685 | J41: =IF(G41=[204]Mob!G40,"ok","não ok") -> ok
A42: E9515 | B42: =VLOOKUP(A42,Equipamentos!$A:$K,2,FALSE) -> Escavadeira hidráulica sobre esteiras com caçamba com capacidade de 1,56 m³ - 118 kW | C42: =IFERROR(INDEX('Tabelas 2 e 3 mob'!A:K,MATCH(A42,'Tabelas 2 e 3 mob'!A:A,0),9),"ERRO") -> E9666 | D42: 1 | E42: 2 | F42: 1 | G42: =IF(C42="Veículo(s) da própria frota.",0,INDEX(Equipamentos!B:K,MATCH(C42,Equipamentos!A:A,0),9)) -> 455.859 | H42: 15.1953 | I42: E9577 | J42: =IF(G42=[204]Mob!G41,"ok","não ok") -> ok
A43: E9506 | B43: =VLOOKUP(A43,Equipamentos!$A:$K,2,FALSE) -> Caminhão basculante com capacidade de 6 m³ - 136 kW | C43: =IFERROR(INDEX('Tabelas 2 e 3 mob'!A:K,MATCH(A43,'Tabelas 2 e 3 mob'!A:A,0),9),"ERRO") -> E9506 | D43: 0 | E43: 1 | F43: 1 | G43: =IF(C43="Veículo(s) da própria frota.",0,INDEX(Equipamentos!B:K,MATCH(C43,Equipamentos!A:A,0),9)) -> 185.2131 | H43: 0 | I43: E9687 | J43: =IF(G43=[204]Mob!G42,"ok","não ok") -> ok
A44: E9256 | B44: =VLOOKUP(A44,Equipamentos!$A:$K,2,FALSE) -> Equipamento para pintura com cal rebocável com dois bicos aplicadores e capacidade de 2.200 l | C44: =IFERROR(INDEX('Tabelas 2 e 3 mob'!A:K,MATCH(A44,'Tabelas 2 e 3 mob'!A:A,0),9),"ERRO") -> Veículo(s) da própria frota. | D44: 1 | E44: 2 | F44: 0 | G44: =IF(C44="Veículo(s) da própria frota.",0,INDEX(Equipamentos!B:K,MATCH(C44,Equipamentos!A:A,0),9)) -> 0 | H44: 0 | I44: E9010 | J44: =IF(G44=[204]Mob!G43,"ok","não ok") -> ok
A45: E9156 | B45: =VLOOKUP(A45,Equipamentos!$A:$K,2,FALSE) -> Soprador de ar costal - 2,6 kW | C45: =IFERROR(INDEX('Tabelas 2 e 3 mob'!A:K,MATCH(A45,'Tabelas 2 e 3 mob'!A:A,0),9),"ERRO") -> Veículo(s) da própria frota. | D45: 1 | E45: 2 | F45: 0 | G45: =IF(C45="Veículo(s) da própria frota.",0,INDEX(Equipamentos!B:K,MATCH(C45,Equipamentos!A:A,0),9)) -> 0 | H45: 0 | I45: E9519 | J45: =IF(G45=[204]Mob!G44,"ok","não ok") -> ok
A46: E9146 | B46: =VLOOKUP(A46,Equipamentos!$A:$K,2,FALSE) -> Caminhão silo com capacidade de 30 m³ - 368 kW | C46: =IFERROR(INDEX('Tabelas 2 e 3 mob'!A:K,MATCH(A46,'Tabelas 2 e 3 mob'!A:A,0),9),"ERRO") -> E9146 | D46: 1 | E46: 1 | F46: 1 | G46: =IF(C46="Veículo(s) da própria frota.",0,INDEX(Equipamentos!B:K,MATCH(C46,Equipamentos!A:A,0),9)) -> 608.0866 | H46: 10.13477667 | I46: E9071 | J46: =IF(G46=[204]Mob!G45,"ok","não ok") -> ok
A47: E9010 | B47: =VLOOKUP(A47,Equipamentos!$A:$K,2,FALSE) -> Balança plataforma digital à bateria, com mesa de 75 x 75 cm e capacidade de 500 kg | C47: =IFERROR(INDEX('Tabelas 2 e 3 mob'!A:K,MATCH(A47,'Tabelas 2 e 3 mob'!A:A,0),9),"ERRO") -> Veículo(s) da própria frota. | D47: 1 | E47: 2 | F47: 0 | G47: =IF(C47="Veículo(s) da própria frota.",0,INDEX(Equipamentos!B:K,MATCH(C47,Equipamentos!A:A,0),9)) -> 0 | H47: 0 | I47: E9064 | J47: =IF(G47=[204]Mob!G46,"ok","não ok") -> ok
A48: E9519 | B48: =VLOOKUP(A48,Equipamentos!$A:$K,2,FALSE) -> Betoneira com motor a gasolina com capacidade de 600 l - 10 kW | C48: =IFERROR(INDEX('Tabelas 2 e 3 mob'!A:K,MATCH(A48,'Tabelas 2 e 3 mob'!A:A,0),9),"ERRO") -> Veículo(s) da própria frota. | D48: 1 | E48: 2 | F48: 0 | G48: =IF(C48="Veículo(s) da própria frota.",0,INDEX(Equipamentos!B:K,MATCH(C48,Equipamentos!A:A,0),9)) -> 0 | H48: 0 | I48: E9066 | J48: =IF(G48=[204]Mob!G47,"ok","não ok") -> ok
A49: E9071 | B49: =VLOOKUP(A49,Equipamentos!$A:$K,2,FALSE) -> Transportador manual carrinho de mão com capacidade de 80 l | C49: =IFERROR(INDEX('Tabelas 2 e 3 mob'!A:K,MATCH(A49,'Tabelas 2 e 3 mob'!A:A,0),9),"ERRO") -> Veículo(s) da própria frota. | D49: 1 | E49: 2 | F49: 0 | G49: =IF(C49="Veículo(s) da própria frota.",0,INDEX(Equipamentos!B:K,MATCH(C49,Equipamentos!A:A,0),9)) -> 0 | H49: 0 | I49: E9535 | J49: =IF(G49=[204]Mob!G48,"ok","não ok") -> ok
A50: E9064 | B50: =VLOOKUP(A50,Equipamentos!$A:$K,2,FALSE) -> Transportador manual gerica com capacidade de 180 l | C50: =IFERROR(INDEX('Tabelas 2 e 3 mob'!A:K,MATCH(A50,'Tabelas 2 e 3 mob'!A:A,0),9),"ERRO") -> Veículo(s) da própria frota. | D50: 1 | E50: 2 | F50: 0 | G50: =IF(C50="Veículo(s) da própria frota.",0,INDEX(Equipamentos!B:K,MATCH(C50,Equipamentos!A:A,0),9)) -> 0 | H50: 0 | J50: =IF(G50=[204]Mob!G49,"ok","não ok") -> ok
A51: E9066 | B51: =VLOOKUP(A51,Equipamentos!$A:$K,2,FALSE) -> Grupo gerador - 14 kVA | C51: =IFERROR(INDEX('Tabelas 2 e 3 mob'!A:K,MATCH(A51,'Tabelas 2 e 3 mob'!A:A,0),9),"ERRO") -> Veículo(s) da própria frota. | D51: 1 | E51: 2 | F51: 0 | G51: =IF(C51="Veículo(s) da própria frota.",0,INDEX(Equipamentos!B:K,MATCH(C51,Equipamentos!A:A,0),9)) -> 0 | H51: 0 | J51: =IF(G51=[204]Mob!G50,"ok","não ok") -> ok
A52: E9535 | B52: =VLOOKUP(A52,Equipamentos!$A:$K,2,FALSE) -> Serra circular com bancada - D = 30 cm - 4 kW | C52: =IFERROR(INDEX('Tabelas 2 e 3 mob'!A:K,MATCH(A52,'Tabelas 2 e 3 mob'!A:A,0),9),"ERRO") -> Veículo(s) da própria frota. | D52: 1 | E52: 2 | F52: 0 | G52: =IF(C52="Veículo(s) da própria frota.",0,INDEX(Equipamentos!B:K,MATCH(C52,Equipamentos!A:A,0),9)) -> 0 | H52: 0 | J52: =IF(G52=[204]Mob!G51,"ok","não ok") -> ok
A53: E9507 | B53: =VLOOKUP(A53,Equipamentos!$A:$K,2,FALSE) -> Plotadora de recorte com computador e programa computacional | C53: =IFERROR(INDEX('Tabelas 2 e 3 mob'!A:K,MATCH(A53,'Tabelas 2 e 3 mob'!A:A,0),9),"ERRO") -> Veículo(s) da própria frota. | D53: 1 | E53: 2 | F53: 0 | G53: =IF(C53="Veículo(s) da própria frota.",0,INDEX(Equipamentos!B:K,MATCH(C53,Equipamentos!A:A,0),9)) -> 0 | H53: 0 | J53: =IF(G53=[204]Mob!G52,"ok","não ok") -> ok
A54: E9568 | B54: =VLOOKUP(A54,Equipamentos!$A:$K,2,FALSE) -> Furadeira de impacto de 12,5 mm - 0,80 kW | C54: =IFERROR(INDEX('Tabelas 2 e 3 mob'!A:K,MATCH(A54,'Tabelas 2 e 3 mob'!A:A,0),9),"ERRO") -> Veículo(s) da própria frota. | D54: 1 | E54: 2 | F54: 0 | G54: =IF(C54="Veículo(s) da própria frota.",0,INDEX(Equipamentos!B:K,MATCH(C54,Equipamentos!A:A,0),9)) -> 0 | H54: 0 | J54: =IF(G54=[204]Mob!G53,"ok","não ok") -> ok
A55: E9753 | B55: =VLOOKUP(A55,Equipamentos!$A:$K,2,FALSE) -> Grupo gerador - 23 kVA | C55: =IFERROR(INDEX('Tabelas 2 e 3 mob'!A:K,MATCH(A55,'Tabelas 2 e 3 mob'!A:A,0),9),"ERRO") -> Veículo(s) da própria frota. | D55: 1 | E55: 2 | F55: 0 | G55: =IF(C55="Veículo(s) da própria frota.",0,INDEX(Equipamentos!B:K,MATCH(C55,Equipamentos!A:A,0),9)) -> 0 | H55: 0 | J55: =IF(G55=[204]Mob!G54,"ok","não ok") -> ok
A56: E9623 | B56: =VLOOKUP(A56,Equipamentos!$A:$K,2,FALSE) -> Máquina de bancada guilhotina - 4,00 kW | C56: =IFERROR(INDEX('Tabelas 2 e 3 mob'!A:K,MATCH(A56,'Tabelas 2 e 3 mob'!A:A,0),9),"ERRO") -> Veículo(s) da própria frota. | D56: 1 | E56: 2 | F56: 0 | G56: =IF(C56="Veículo(s) da própria frota.",0,INDEX(Equipamentos!B:K,MATCH(C56,Equipamentos!A:A,0),9)) -> 0 | H56: 0 | J56: =IF(G56=[204]Mob!G55,"ok","não ok") -> ok
A57: E9622 | B57: =VLOOKUP(A57,Equipamentos!$A:$K,2,FALSE) -> Máquina de bancada universal para corte de chapa - 1,50 kW | C57: =IFERROR(INDEX('Tabelas 2 e 3 mob'!A:K,MATCH(A57,'Tabelas 2 e 3 mob'!A:A,0),9),"ERRO") -> Veículo(s) da própria frota. | D57: 1 | E57: 2 | F57: 0 | G57: =IF(C57="Veículo(s) da própria frota.",0,INDEX(Equipamentos!B:K,MATCH(C57,Equipamentos!A:A,0),9)) -> 0 | H57: 0 | J57: =IF(G57=[204]Mob!G56,"ok","não ok") -> ok
A58: E9678 | B58: =VLOOKUP(A58,Equipamentos!$A:$K,2,FALSE) -> Fresadora a frio - 455 kW | C58: =IFERROR(INDEX('Tabelas 2 e 3 mob'!A:K,MATCH(A58,'Tabelas 2 e 3 mob'!A:A,0),9),"ERRO") -> E9666 | D58: 0 | E58: 2 | F58: 1 | G58: =IF(C58="Veículo(s) da própria frota.",0,INDEX(Equipamentos!B:K,MATCH(C58,Equipamentos!A:A,0),9)) -> 455.859 | H58: =((D58*E58*F58)/$H$8)*G58 -> 0 | J58: =IF(G58=[204]Mob!G57,"ok","não ok") -> ok
G59: TOTAL | H59: =SUM(H13:H58) -> 188.6189183
A64: CUSTO TOTAL MOBILIZAÇÃO E DESMOBILIZAÇÃO
A65: DESCRIÇÃO | B65: VALOR
A66: Custo Transporte (R$/km) | B66: =H59 -> 188.6189183
A67: BDI (%) | B67: =CAPA!$D$14 -> 0.2339
A68: Custo Transporte (R$/km) com BDI | B68: =TRUNC(B66+(B66*B67),2) -> 232.73
A69: Desconto aplicado | B69: =CAPA!D13 -> 0
A70: Custo Transporte (R$/km) com BDI após o desconto | B70: =TRUNC((B68-B68*B69),2) -> 232.73

Sheet Canteiro
A4: CANTEIRO DE OBRAS
A5: Descrição dos serviços | B5: Tipo de container | C5: Unidade | D5: Quantidade | E5: Preço unitário (R$) | F5: Total (R$)
A6: Escritório e seção técnica (Área = 29,72 m2)
A7: =VLOOKUP(B7,'INSUMOS SINAPI'!A:E,2,0) -> LOCACAO DE CONTAINER 2,30 X 6,00 M, ALT. 2,50 M, PARA ESCRITORIO, SEM DIVISORIAS INTERNAS E SEM SANITARIO (NAO INCLUI MOBILIZACAO/DESMOBILIZACAO) | B7: 10776 | C7: und | D7: 1 | E7: =VLOOKUP(B7,'INSUMOS SINAPI'!A:E,5,0) -> 706.05 | F7: =TRUNC(D7*E7,2) -> 706.05
A8: Banheiro e vestiário (Área = 14,77m²)
A9: =VLOOKUP(B9,'INSUMOS SINAPI'!A:E,2,0) -> LOCACAO DE CONTAINER 2,30 X 4,30 M, ALT. 2,50 M, PARA SANITARIO, COM 3 BACIAS, 4 CHUVEIROS, 1 LAVATORIO E 1 MICTORIO (NAO INCLUI MOBILIZACAO/DESMOBILIZACAO) | B9: 10777 | C9: und | D9: 1 | E9: =VLOOKUP(B9,'INSUMOS SINAPI'!A:E,5,0) -> 1026.13 | F9: =TRUNC(D9*E9,2) -> 1026.13
D10: Subtotal de estruturas | F10: =SUM(F7:F9) -> 1732.18
D11: DURAÇÃO (MESES) | E11: 12 | F11: =F10*E11 -> 20786.16
D12: BDI | F12: =CAPA!$D$14 -> 0.2339
D13: TOTAL DO CANTEIRO (com BDI) | F13: =TRUNC((F11+(F11*F12)),2) -> 25648.04
D14: DESCONTO | F14: =CAPA!D13 -> 0
D15: TOTAL DO CANTEIRO APÓS O DESCONTO (com BDI) | F15: =TRUNC((F13-F13*F14),2) -> 25648.04

Sheet DEMAIS COMPOSIÇÕES DE CUSTO
E1: Composições Analíticas com Preço Unitário | G1: Bancos | I1: B.D.I. | K1: Encargos Sociais
E2: Pavimentação 2025 - TSD | G2: SINAPI - 05/2025 - Maranhão SICRO3 - 04/2025 - Maranhão | I2: =CAPA!D14 -> 0.2339 | K2: Não Desonerado: embutido nos preços unitário dos insumos de mão de obra, de acordo com as bases.
C3: Composições Analíticas com Preço Unitário
C4: Composições Principais
C5: 1 | D5: Código | E5: Banco | F5: Descrição | G5: Tipo | I5: Und | J5: Quant. | K5: Valor Unit | L5: Total
C6: Composição | D6: 103689 | E6: SINAPI | F6: FORNECIMENTO E INSTALAÇÃO DE PLACA DE OBRA COM CHAPA GALVANIZADA E ESTRUTURA DE MADEIRA. AF_03/2022_PS | G6: PAVI - PAVIMENTAÇÃO | I6: m² | J6: 1 | K6: 468.31 | L6: 468.31
C7: Composição Auxiliar | D7: 88262 | E7: SINAPI | F7: CARPINTEIRO DE FORMAS COM ENCARGOS COMPLEMENTARES | G7: SEDI - SERVIÇOS DIVERSOS | I7: H | J7: 0.3729 | K7: 28.47 | L7: 10.61
C8: Composição Auxiliar | D8: 88316 | E8: SINAPI | F8: SERVENTE COM ENCARGOS COMPLEMENTARES | G8: SEDI - SERVIÇOS DIVERSOS | I8: H | J8: 1.1186 | K8: 23.32 | L8: 26.08
C9: Composição Auxiliar | D9: 102234 | E9: SINAPI | F9: PINTURA IMUNIZANTE PARA MADEIRA, 2 DEMÃOS. AF_01/2021 | G9: PINT - PINTURAS | I9: m² | J9: 0.5 | K9: 24.61 | L9: 12.3
C10: Insumo | D10: 00004509 | E10: SINAPI | F10: SARRAFO *2,5 X 10* CM EM PINUS, MISTA OU EQUIVALENTE DA REGIAO - BRUTA | G10: Material | I10: M | J10: 3.2083 | K10: 5.81 | L10: 18.64
C11: Insumo | D11: 00005065 | E11: SINAPI | F11: PREGO DE ACO POLIDO COM CABECA 10 X 10 (7/8 X 17) | G11: Material | I11: KG | J11: 0.0113 | K11: 37.44 | L11: 0.42
C12: Insumo | D12: 00004813 | E12: SINAPI | F12: PLACA DE OBRA (PARA CONSTRUCAO CIVIL) EM CHAPA GALVANIZADA *N. 22*, ADESIVADA, DE *2,4 X 1,2* M (SEM POSTES PARA FIXACAO) | G12: Material | I12: M² | J12: 1 | K12: 400 | L12: 400
C13: Insumo | D13: 00005069 | E13: SINAPI | F13: PREGO DE ACO POLIDO COM CABECA 17 X 27 (2 1/2 X 11) | G13: Material | I13: KG | J13: 0.0132 | K13: 20.06 | L13: 0.26
G14: MO sem LS => | H14: 29.31 | I14: LS => | J14: 0 | K14: MO com LS => | L14: 29.31
G15: Valor do BDI => | H15: =TRUNC(CAPA!$D$14*L6,2) -> 109.53 | J15: Valor com BDI => | L15: =TRUNC(L6+H15,2) -> 577.84
I16: Desconto aplicado: | L16: =L15*CAPA!$D$13 -> 0
I17: Valor unitário com BDI após o desconto: | L17: =(L15-L16) -> 577.84
C21: 2 | D21: Código | E21: Banco | F21: Descrição | G21: Tipo | I21: Und | J21: Quant. | K21: Valor Unit | L21: Total
C22: Composição | D22: 5502114 | E22: SICRO3 | F22: Escavação, carga e transporte de material de 1ª categoria - DMT de 1.000 a 1.200 m - caminho de serviço em leito natural - com escavadeira e caminhão basculante de 14 m³ | I22: m³ | J22: 1 | K22: 8.22 | L22: 8.22
C23: A | D23: Código | E23: Banco | F23: Equipamentos | G23: Quantidade | H23: Utilização | J23: Custo Horário | L23: Custo Horário Total
H24: Operativa | I24: Improdutiva | J24: Operativa | K24: Improdutiva
C25: Insumo | D25: E9667 | E25: SICRO3 | F25: Caminhão basculante com capacidade de 14 m³ - 210 kW | G25: 5 | H25: 0.96 | I25: 0.04 | J25: 311.681 | K25: 91.6646 | L25: 1514.4017
C26: Insumo | D26: E9515 | E26: SICRO3 | F26: Escavadeira hidráulica sobre esteiras com caçamba com capacidade de 1,56 m³ - 118 kW | G26: 1 | H26: 1 | I26: 0 | J26: 307.8856 | K26: 139.5115 | L26: 307.8856
H27: Custo horário total de equipamentos | L27: 1822.2873
C28: B | D28: Código | E28: Banco | F28: Mão de Obra | G28: Quantidade | H28: Custo Horário | L28: Custo Horário Total
C29: Insumo | D29: P9824 | E29: SICRO3 | F29: Servente | G29: 1 | K29: 21.3406 | L29: 21.3406
H30: Adicional de Mão de obra (%) | L30: 0
H31: Custo horário total de mão de obra | L31: 21.3406
H32: Custo horário total de execução | L32: 1843.6279
H33: Produção de equipe | L33: 230.19
H34: Custo unitário de execução | L34: 8.0092
H35: Custo do FIC | L35: 0.2133
H36: Custo do FIT | L36: 0
G37: MO sem LS => | H37: 0 | I37: LS => | J37: 0.09 | K37: MO com LS => | L37: 0.092708632
G38: Valor do BDI => | H38: =TRUNC(CAPA!$D$14*L22,2) -> 1.92 | J38: Valor com BDI => | L38: =TRUNC(L22+H38,2) -> 10.14
I39: Desconto aplicado: | L39: =L38*CAPA!$D$13 -> 0
I40: Valor unitário com BDI após o desconto: | L40: =(L38-L39) -> 10.14
C47: 3 | D47: Código | E47: Banco | F47: Descrição | G47: Tipo | I47: Und | J47: Quant. | K47: Valor Unit | L47: Total
C48: Composição | D48: 4413942 | E48: SICRO3 | F48: Espalhamento de material em bota-fora | I48: m³ | J48: 1 | K48: 2.01 | L48: 2.01
C49: A | D49: Código | E49: Banco | F49: Equipamentos | G49: Quantidade | H49: Utilização | J49: Custo Horário | L49: Custo Horário Total
H50: Operativa | I50: Improdutiva | J50: Operativa | K50: Improdutiva
C51: Insumo | D51: E9540 | E51: SICRO3 | F51: Trator sobre esteiras com lâmina - 127 kW | G51: 1 | H51: 1 | I51: 0 | J51: 324.5285 | K51: 130.4257 | L51: 324.5285
H52: Custo horário total de equipamentos | L52: 324.5285
C53: B | D53: Código | E53: Banco | F53: Mão de Obra | G53: Quantidade | H53: Custo Horário | L53: Custo Horário Total
C54: Insumo | D54: P9824 | E54: SICRO3 | F54: Servente | G54: 1 | K54: 21.3406 | L54: 21.3406
H55: Adicional de Mão de obra (%) | L55: 0
H56: Custo horário total de mão de obra | L56: 21.3406
H57: Custo horário total de execução | L57: 345.8691
H58: Produção de equipe | L58: 176.81
H59: 23 | L59: 1.9562
H60: Custo do FIC | L60: 0.0521
H61: Custo do FIT | L61: 0
G62: MO sem LS => | H62: 0 | I62: LS => | J62: 0.12 | K62: MO com LS => | L62: 0.1206979243
G63: Valor do BDI => | H63: =TRUNC(CAPA!$D$14*L48,2) -> 0.47 | J63: Valor com BDI => | L63: =TRUNC(L48+H63,2) -> 2.48
I64: Desconto aplicado: | L64: =L63*CAPA!$D$13 -> 0
I65: Valor unitário com BDI após o desconto: | L65: =(L63-L64) -> 2.48
C69: 4 | D69: Código | E69: Banco | F69: Descrição | G69: Tipo | I69: Und | J69: Quant. | K69: Valor Unit | L69: Total
C70: Composição | D70: 4915637 | E70: SICRO3 | F70: Capa selante - areia comercial | I70: m² | J70: 1 | K70: 0.9 | L70: 0.9
C71: A | D71: Código | E71: Banco | F71: Equipamentos | G71: Quantidade | H71: Utilização | J71: Custo Horário | L71: Custo Horário Total
H72: Operativa | I72: Improdutiva | J72: Operativa | K72: Improdutiva
C73: Insumo | D73: E9509 | E73: SICRO3 | F73: Caminhão tanque distribuidor de asfalto com capacidade de 6.000 l - 7 kW/136 kW | G73: 1 | H73: 1 | I73: 0 | J73: 265.145 | K73: 74.9692 | L73: 265.145
C74: Insumo | D74: E9762 | E74: SICRO3 | F74: Rolo compactador de pneus autopropelido de 27 t - 85 kW | G74: 1 | H74: 0.78 | I74: 0.22 | J74: 257.8857 | K74: 124.9429 | L74: 228.6383
C75: Insumo | D75: E9583 | E75: SICRO3 | F75: Distribuidor de agregados rebocável com capacidade de 1,9 m³ | G75: 1 | H75: 0.26 | I75: 0.74 | J75: 15.818 | K75: 10.1858 | L75: 11.6502
C76: Insumo | D76: E9558 | E76: SICRO3 | F76: Tanque de estocagem de asfalto com capacidade de 30.000 l | G76: 2 | H76: 1 | I76: 0 | J76: 61.4744 | K76: 41.9915 | L76: 122.9488
H77: Custo horário total de equipamentos | L77: 628.3823
C78: B | D78: Código | E78: Banco | F78: Mão de Obra | G78: Quantidade | H78: Custo Horário | L78: Custo Horário Total
C79: Insumo | D79: P9824 | E79: SICRO3 | F79: Servente | G79: 8 | K79: 21,3406 | L79: 170,7248
H80: Adicional de Mão de obra (%) | L80: 0
H81: Custo horário total de mão de obra | L81: 170.7248
H82: Custo horário total de execução | L82: 799.1071
H83: Produção de equipe | L83: 1350
H84: Custo unitário de execução | L84: 0.5919
H85: Custo do FIC | L85: 0.0026
H86: Custo do FIT | L86: 0
C87: C | D87: Código | E87: Banco | F87: MATERIAL | G87: Quantidade | H87: Unidade | I87: Preço Unitário | L87: Custo Horário
C88: Insumo | D88: M0028 | E88: SICRO3 | F88: Areia média | G88: 0.0029 | H88: m³ | I88: 97,3514 | L88: 0,2823
C89: Insumo | D89: M2097 | E89: SICRO3 | F89: Emulsão asfáltica - RR-2C | G89: 0.0005 | H89: t | I89: 0,0000 | L89: 0,0000
H90: Custo unitário total de material | L90: 0.2823
C91: E | D91: Tempo Fixo | E91: Banco | F91: Descrição | G91: Carga | H91: Quantidade | I91: Unidade | J91: Preço Unitário | L91: Custo Horário
C92: Composição | D92: 5914642 | E92: SICRO3 | F92: Carga, manobra e descarga de agregados ou solos em caminhão basculante de 6 m³ - carga com carregadeira de 1,72 m³ (exclusa) e descarga em distribuidor rebocável | G92: M0028 | H92: 0.00435 | I92: t | J92: 5.57 | L92: 0.0242
H93: Custo Total dos Tempos Fixos | L93: 0.0242
C94: F | D94: Momento de Transporte | E94: Banco | F94: Descrição | G94: Quantidade | H94: Distância Média de Transporte (DMT) | L94: Custo Horário
H95: LN | I95: RP | J95: P | K95: FE
C96: Insumo | D96: M0028 | E96: SICRO3 | F96: Areia média | G96: 0.00435 | H96: 5914314 0,00 1,27 0,0000 | I96: 5914329 0,00 1,02 0,0000 | J96: 5914344 0,00 0,83 0,0000 | K96: -- | L96: 0
H97: Custo total de transporte | L97: 0
G98: MO sem LS => | H98: 0 | I98: LS => | J98: 0.13 | K98: MO com LS => | L98: 0.1264628148
G99: Valor do BDI => | H99: =TRUNC(CAPA!$D$14*L70,2) -> 0.21 | J99: Valor com BDI => | L99: =TRUNC(L70+H99,2) -> 1.11
I100: Desconto aplicado: | L100: =L99*CAPA!$D$13 -> 0
I101: Valor unitário com BDI após o desconto: | L101: =(L99-L100) -> 1.11
C104: 5 | D104: Código | E104: Banco | F104: Descrição | G104: Tipo | I104: Und | J104: Quant. | K104: Valor Unit | L104: Total
C105: Composição | D105: 4011370 | E105: SICRO3 | F105: Tratamento superficial duplo com emulsão - brita comercial | I105: m² | J105: 1 | K105: 6.08 | L105: 6.08
C106: A | D106: Código | E106: Banco | F106: Equipamentos | G106: Quantidade | H106: Utilização | J106: Custo Horário | L106: Custo Horário Total
H107: Operativa | I107: Improdutiva | J107: Operativa | K107: Improdutiva
C108: Insumo | D108: E9762 | E108: SICRO3 | F108: Rolo compactador de pneus autopropelido de 27 t - 85 kW | G108: 1 | H108: 0.31 | I108: 0.69 | J108: 257.8857 | K108: 124.9429 | L108: 166.1552
C109: Insumo | D109: E9558 | E109: SICRO3 | F109: Tanque de estocagem de asfalto com capacidade de 30.000 l | G109: 2 | H109: 1 | I109: 0 | J109: 61.4744 | K109: 41.9915 | L109: 122.9488
C110: Insumo | D110: E9509 | E110: SICRO3 | F110: Caminhão tanque distribuidor de asfalto com capacidade de 6.000 l - 7 kW/136 kW | G110: 1 | H110: 1 | I110: 0 | J110: 265.145 | K110: 74.9692 | L110: 265.145
C111: Insumo | D111: E9583 | E111: SICRO3 | F111: Distribuidor de agregados rebocável com capacidade de 1,9 m³ | G111: 1 | H111: 0.28 | I111: 0.72 | J111: 15.818 | K111: 10.1858 | L111: 11.7628
H112: Custo horário total de equipamentos | L112: 566.0118
C113: B | D113: Código | E113: Banco | F113: Mão de Obra | G113: Quantidade | H113: Custo Horário | L113: Custo Horário Total
C114: Insumo | D114: P9824 | E114: SICRO3 | F114: Servente | G114: 8 | K114: 21,3406 | L114: 170,7248
H115: Adicional de Mão de obra (%) | L115: 0
H116: Custo horário total de mão de obra | L116: 170.7248
H117: Custo horário total de execução | L117: 736.7366
H118: Produção de equipe | L118: 361.93
H119: Custo unitário de execução | L119: 2.0356
H120: Custo do FIC | L120: 0.009
H121: Custo do FIT | L121: 0
C122: C | D122: Código | E122: Banco | F122: MATERIAL | G122: Quantidade | H122: Unidade | I122: Preço Unitário | L122: Custo Horário
C123: Insumo | D123: M0191 | E123: SICRO3 | F123: Brita 1 | G123: 0.015 | H123: m³ | I123: 164.0601 | L123: 2.4609
C124: Insumo | D124: M0005 | E124: SICRO3 | F124: Brita 0 | G124: 0.00733 | H124: m³ | I124: 180.3717 | L124: 1.3221
C125: Insumo | D125: M2097 | E125: SICRO3 | F125: Emulsão asfáltica - RR-2C | G125: 0.00373 | H125: t | I125: 0 | L125: 0
H126: Custo unitário total de material | L126: 3.783
C127: E | D127: Tempo Fixo | E127: Banco | F127: Descrição | G127: Carga | H127: Quantidade | I127: Unidade | J127: Preço Unitário | L127: Custo Horário
C128: Composição | D128: 5914648 | E128: SICRO3 | F128: Carga, manobra e descarga de agregados ou solos em caminhão basculante de 10 m³ - carga com carregadeira de 3,40 m³ (exclusa) e descarga em distribuidor rebocável | G128: M0005 | H128: 0.011 | I128: t | J128: 7.51 | L128: 0.0826
C129: Composição | D129: 5914648 | E129: SICRO3 | F129: Carga, manobra e descarga de agregados ou solos em caminhão basculante de 10 m³ - carga com carregadeira de 3,40 m³ (exclusa) e descarga em distribuidor rebocável | G129: M0191 | H129: 0.0225 | I129: t | J129: 7.51 | L129: 0.169
H130: Custo Total dos Tempos Fixos | L130: 0.2516
C131: F | D131: Momento de Transporte | E131: Banco | F131: Descrição | G131: Quantidade | H131: Distância Média de Transporte (DMT) | L131: Custo Horário
H132: LN | I132: RP | J132: P | K132: FE
C133: Insumo | D133: M0005 | E133: SICRO3 | F133: Brita 0 | G133: 0.011 | H133: 5914359 0,00 1,21 0,0000 | I133: 5914374 0,00 0,96 0,0000 | J133: 5914389 0,00 0,78 0,0000 | K133: -- | L133: 0
C134: Insumo | D134: M0191 | E134: SICRO3 | F134: Brita 1 | G134: 0.0225 | H134: 5914359 0,00 1,21 0,0000 | I134: 5914374 0,00 0,96 0,0000 | J134: 5914389 0,00 0,78 0,0000 | K134: -- | L134: 0
H135: Custo total de transporte | L135: 0
G136: MO sem LS => | H136: 0 | I136: LS => | J136: 0.47 | K136: MO com LS => | L136: 0.4717066836
G137: Valor do BDI => | H137: =TRUNC(CAPA!$D$14*L105,2) -> 1.42 | J137: Valor com BDI => | L137: =TRUNC(L105+H137,2) -> 7.5
I138: Desconto aplicado: | L138: =L137*CAPA!$D$13 -> 0
I139: Valor unitário com BDI após o desconto: | L139: =(L137-L138) -> 7.5
C146: 6 | D146: Código | E146: Banco | F146: Descrição | G146: Tipo | I146: Und | J146: Quant. | K146: Valor Unit | L146: Total
C147: Composição | D147: 4011352 | E147: SICRO3 | F147: Imprimação com emulsão asfáltica | I147: m² | J147: 1 | K147: 0.42 | L147: 0.42
C148: A | D148: Código | E148: Banco | F148: Equipamentos | G148: Quantidade | H148: Utilização | J148: Custo Horário | L148: Custo Horário Total
H149: Operativa | I149: Improdutiva | J149: Operativa | K149: Improdutiva
C150: Insumo | D150: E9558 | E150: SICRO3 | F150: Tanque de estocagem de asfalto com capacidade de 30.000 l | G150: 2 | H150: 1 | I150: 0 | J150: 61.4744 | K150: 41.9915 | L150: 122.9488
C151: Insumo | D151: E9509 | E151: SICRO3 | F151: Caminhão tanque distribuidor de asfalto com capacidade de 6.000 l - 7 kW/136 kW | G151: 1 | H151: 1 | I151: 0 | J151: 265.145 | K151: 74.9692 | L151: 265.145
H152: Custo horário total de equipamentos | L152: 388.0938
C153: B | D153: Código | E153: Banco | F153: Mão de Obra | G153: Quantidade | H153: Custo Horário | L153: Custo Horário Total
C154: Insumo | D154: P9824 | E154: SICRO3 | F154: Servente | G154: 2 | K154: 21,3406 | L154: 42,6812
H155: Adicional de Mão de obra (%) | L155: 0
H156: Custo horário total de mão de obra | L156: 42.6812
H157: Custo horário total de execução | L157: 430.775
H158: Produção de equipe | L158: 1038.46
H159: Custo unitário de execução | L159: 0.4148
H160: Custo do FIC | L160: 0.0018
H161: Custo do FIT | L161: 0
C162: C | D162: Código | E162: Banco | F162: MATERIAL | G162: Quantidade | H162: Unidade | I162: Preço Unitário | L162: Custo Horário
C163: Insumo | D163: M2092 | E163: SICRO3 | F163: Emulsão asfáltica para imprimação | G163: 0.0013 | H163: t | I163: 0,0000 | L163: 0,0000
H164: Custo unitário total de material | L164: 0
G165: MO sem LS => | H165: 0 | I165: LS => | J165: 0.04 | K165: MO com LS => | L165: 0.0411004757
G166: Valor do BDI => | H166: =TRUNC(CAPA!$D$14*L147,2) -> 0.09 | J166: Valor com BDI => | L166: =TRUNC(L147+H166,2) -> 0.51
I167: Desconto aplicado: | L167: =L166*CAPA!$D$13 -> 0
I168: Valor unitário com BDI após o desconto: | L168: =(L166-L167) -> 0.51
C172: 7 | D172: Código | E172: Banco | F172: Descrição | G172: Tipo | I172: Und | J172: Quant. | K172: Valor Unit | L172: Total
C173: Composição | D173: 4011353 | E173: SICRO3 | F173: Pintura de ligação | I173: m² | J173: 1 | K173: 0.29 | L173: 0.29
C174: A | D174: Código | E174: Banco | F174: Equipamentos | G174: Quantidade | H174: Utilização | J174: Custo Horário | L174: Custo Horário Total
H175: Operativa | I175: Improdutiva | J175: Operativa | K175: Improdutiva
C176: Insumo | D176: E9558 | E176: SICRO3 | F176: Tanque de estocagem de asfalto com capacidade de 30.000 l | G176: 2 | H176: 1 | I176: 0 | J176: 61.4744 | K176: 41.9915 | L176: 122.9488
C177: Insumo | D177: E9509 | E177: SICRO3 | F177: Caminhão tanque distribuidor de asfalto com capacidade de 6.000 l - 7 kW/136 kW | G177: 1 | H177: 1 | I177: 0 | J177: 265.145 | K177: 74.9692 | L177: 265.145
H178: Custo horário total de equipamentos | L178: 388.0938
C179: B | D179: Código | E179: Banco | F179: Mão de Obra | G179: Quantidade | H179: Custo Horário | L179: Custo Horário Total
C180: Insumo | D180: P9824 | E180: SICRO3 | F180: Servente | G180: 2 | K180: 21,3406 | L180: 42,6812
H181: Adicional de Mão de obra (%) | L181: 0
H182: Custo horário total de mão de obra | L182: 42.6812
H183: Custo horário total de execução | L183: 430.775
H184: Produção de equipe | L184: 1500
H185: Custo unitário de execução | L185: 0.2872
H186: Custo do FIC | L186: 0.0013
H187: Custo do FIT | L187: 0
C188: C | D188: Código | E188: Banco | F188: MATERIAL | G188: Quantidade | H188: Unidade | I188: Preço Unitário | L188: Custo Horário
C189: Insumo | D189: M1946 | E189: SICRO3 | F189: Emulsão asfáltica - RR-1C | G189: 0.00045 | H189: t | I189: 0,0000 | L189: 0,0000
H190: Custo unitário total de material | L190: 0
G191: MO sem LS => | H191: 0 | I191: LS => | J191: 0.03 | K191: MO com LS => | L191: 0.02845413333
G192: Valor do BDI => | H192: =TRUNC(CAPA!$D$14*L173,2) -> 0.06 | J192: Valor com BDI => | L192: =TRUNC(L173+H192,2) -> 0.35
I193: Desconto aplicado: | L193: =L192*CAPA!D190 -> 0
I194: Valor unitário com BDI após o desconto: | L194: =(L192-L193) -> 0.35
C198: 8 | D198: Código | E198: Banco | F198: Descrição | G198: Tipo | I198: Und | J198: Quant. | K198: Valor Unit | L198: Total
C199: Composição | D199: 4011219 | E199: SICRO3 | F199: Base de solo estabilizado granulometricamente sem mistura com material de jazida - 100% Proctor modificado | I199: m³ | J199: 1 | K199: 14.79 | L199: 14.79
C200: A | D200: Código | E200: Banco | F200: Equipamentos | G200: Quantidade | H200: Utilização | J200: Custo Horário | L200: Custo Horário Total
H201: Operativa | I201: Improdutiva | J201: Operativa | K201: Improdutiva
C202: Insumo | D202: E9685 | E202: SICRO3 | F202: Rolo compactador pé de carneiro vibratório autopropelido por pneus de 11,6 t - 82 kW | G202: 1 | H202: 1 | I202: 0 | J202: 225.3601 | K202: 100.3767 | L202: 225.3601
C203: Insumo | D203: E9762 | E203: SICRO3 | F203: Rolo compactador de pneus autopropelido de 27 t - 85 kW | G203: 1 | H203: 0.96 | I203: 0.04 | J203: 257.8857 | K203: 124.9429 | L203: 252.568
C204: Insumo | D204: E9518 | E204: SICRO3 | F204: Grade de 24 discos rebocável de D = 60 cm (24") | G204: 1 | H204: 0.34 | I204: 0.66 | J204: 5.0871 | K204: 3.5426 | L204: 4.0677
C205: Insumo | D205: E9524 | E205: SICRO3 | F205: Motoniveladora - 93 kW | G205: 1 | H205: 0.5 | I205: 0.5 | J205: 282.1718 | K205: 121.5518 | L205: 201.8618
C206: Insumo | D206: E9571 | E206: SICRO3 | F206: Caminhão tanque com capacidade de 10.000 l - 188 kW | G206: 1 | H206: 0.62 | I206: 0.38 | J206: 330.4524 | K206: 84.0285 | L206: 236.8113
C207: Insumo | D207: E9577 | E207: SICRO3 | F207: Trator agrícola sobre pneus - 77 kW | G207: 1 | H207: 0.34 | I207: 0.66 | J207: 155.6701 | K207: 58.2583 | L207: 91.3783
H208: Custo horário total de equipamentos | L208: 1012.0472
C209: B | D209: Código | E209: Banco | F209: Mão de Obra | G209: Quantidade | H209: Custo Horário | L209: Custo Horário Total
C210: Insumo | D210: P9824 | E210: SICRO3 | F210: Servente | G210: 1 | K210: 21,3406 | L210: 21,3406
H211: Adicional de Mão de obra (%) | L211: 0
H212: Custo horário total de mão de obra | L212: 21.3406
H213: Custo horário total de execução | L213: 1033.3878
H214: Produção de equipe | L214: 112.13
H215: Custo unitário de execução | L215: 9.216
H216: Custo do FIC | L216: 0.2454
H217: Custo do FIT | L217: 0
C218: D | D218: Código | E218: Banco | F218: ATIVIDADES AUXILIARES | G218: Quantidade | H218: Unidade | I218: Preço Unitário | L218: Custo Horário
C219: Composição | D219: 4016096 | E219: SICRO3 | F219: Escavação e carga de material de jazida com escavadeira hidráulica de 1,56 m³ | G219: 1.10027 | H219: m³ | I219: 1,4700 | L219: 1,6174
H220: Custo total de atividades auxiliares | L220: 1.6174
C221: E | D221: Tempo Fixo | E221: Banco | F221: Descrição | G221: Carga | H221: Quantidade | I221: Unidade | J221: Preço Unitário | L221: Custo Horário
C222: Composição | D222: 5914354 | E222: SICRO3 | F222: Carga, manobra e descarga de agregados ou solos em caminhão basculante de 10 m³ - carga com escavadeira de 1,56 m³ (exclusa) e descarga livre | G222: 4016096 | H222: 2.06301 | I222: t | J222: 1.8 | L222: 3.7134
H223: Custo Total dos Tempos Fixos | L223: 3.7134
C224: F | D224: Momento de Transporte | E224: Banco | F224: Descrição | G224: Quantidade | H224: Distância Média de Transporte (DMT) | L224: Custo Horário
H225: LN | I225: RP | J225: P | K225: FE
C226: Composição | D226: 4016096 | E226: SICRO3 | F226: Escavação e carga de material de jazida com escavadeira hidráulica de 1,56 m³ | G226: 2.06301 | H226: 5914359 0,00 1,21 0,0000 | I226: 5914374 0,00 0,96 0,0000 | J226: 5914389 0,00 0,78 0,0000 | K226: -- | L226: 0
... 808 more rows

Sheet Adm Local
A1: parcela fixa da administração local (mão de obra)
A2: Código | B2: Discriminação | C2: Unidade | D2: Quantidade | F2: Custo Unitário (R$) | H2: Custo Total (R$)
B3: Mão de Obra
B4: Gerência Técnica
B5: Geral
A6: P9955 | B6: =VLOOKUP(A6,'Pessoal Sicro'!$A$6:$F$106,2,FALSE) -> Engenheiro chefe | C6: mês | D6: 0.25 | F6: =VLOOKUP(A6,'Pessoal Sicro'!$A$6:$G$106,6,0) -> 31577.9207 | H6: =F6*D6 -> 7894.480175
A7: P9840 | B7: =VLOOKUP(A7,'Pessoal Sicro'!$A$6:$F$106,2,FALSE) -> Encarregado geral | C7: mês | D7: 0.25 | F7: =VLOOKUP(A7,'Pessoal Sicro'!$A$6:$G$106,6,0) -> 11656.0318 | H7: =F7*D7 -> 2914.00795
A8: P9897 | B8: =VLOOKUP(A8,'Pessoal Sicro'!$A$6:$F$106,2,FALSE) -> Técnico de meio ambiente | C8: mês | D8: 0 | F8: =VLOOKUP(A8,'Pessoal Sicro'!$A$6:$G$106,6,0) -> 7881.727 | H8: =F8*D8 -> 0
A9: P9948 | B9: =VLOOKUP(A9,'Pessoal Sicro'!$A$6:$F$106,2,FALSE) -> Motorista de veículo leve - mensalista | C9: mês | D9: 0 | F9: =VLOOKUP(A9,'Pessoal Sicro'!$A$6:$G$106,6,0) -> 5614.879 | H9: =F9*D9 -> 0
A10: P9878 | B10: =VLOOKUP(A10,'Pessoal Sicro'!$A$6:$F$106,2,FALSE) -> Secretária | C10: mês | D10: 0 | F10: =VLOOKUP(A10,'Pessoal Sicro'!$A$6:$G$106,6,0) -> 6718.4541 | H10: =F10*D10 -> 0
F11: Subtotal do Item 1.1 | H11: =SUM(H6:I10) -> 10808.48812
B12: Auxiliar
A13: P9946 | B13: =VLOOKUP(A13,'Pessoal Sicro'!$A$6:$F$106,2,FALSE) -> Engenheiro auxiliar | C13: mês | D13: 0.5 | F13: =VLOOKUP(A13,'Pessoal Sicro'!$A$6:$G$106,6,0) -> 23592.8645 | H13: =D13*F13 -> 11796.43225
A14: P9903 | B14: =VLOOKUP(A14,'Pessoal Sicro'!$A$6:$F$106,2,FALSE) -> Auxiliar técnico | C14: mês | D14: 0 | F14: =VLOOKUP(A14,'Pessoal Sicro'!$A$6:$G$106,6,0) -> 4684.6961 | H14: =D14*F14 -> 0
F15: Subtotal do Item 1.2 | H15: =SUM(H13:I14) -> 11796.43225
B16: Gerência Administrativa
B17: Geral
A18: P9883 | B18: =VLOOKUP(A18,'Pessoal Sicro'!$A$6:$F$106,2,FALSE) -> Chefe do setor administrativo | C18: mês | D18: 0.5 | F18: =VLOOKUP(A18,'Pessoal Sicro'!$A$6:$G$106,6,0) -> 7575.8406 | H18: =F18*D18 -> 3787.9203
A19: P9809 | B19: =VLOOKUP(A19,'Pessoal Sicro'!$A$6:$F$106,2,FALSE) -> Encarregado administrativo | C19: mês | D19: 0 | F19: =VLOOKUP(A19,'Pessoal Sicro'!$A$6:$G$106,6,0) -> 7575.7263 | H19: =F19*D19 -> 0
A20: P9896 | B20: =VLOOKUP(A20,'Pessoal Sicro'!$A$6:$F$106,2,FALSE) -> Porteiro | C20: mês | D20: 0 | F20: =VLOOKUP(A20,'Pessoal Sicro'!$A$6:$G$106,6,0) -> 4026.1953 | H20: =F20*D20 -> 0
A21: P9827 | B21: =VLOOKUP(A21,'Pessoal Sicro'!$A$6:$F$106,2,FALSE) -> Vigia | C21: mês | D21: 0 | F21: =VLOOKUP(A21,'Pessoal Sicro'!$A$6:$G$106,6,0) -> 4725.5765 | H21: =F21*D21 -> 0
A22: P9948 | B22: =VLOOKUP(A22,'Pessoal Sicro'!$A$6:$F$106,2,FALSE) -> Motorista de veículo leve - mensalista | C22: mês | D22: 0 | F22: =VLOOKUP(A22,'Pessoal Sicro'!$A$6:$G$106,6,0) -> 5614.879 | H22: =F22*D22 -> 0
F23: Subtotal do Item 1.3 | H23: =SUM(H18:I22) -> 3787.9203
B24: Auxiliar
A25: P9806 | B25: =VLOOKUP(A25,'Pessoal Sicro'!$A$6:$F$106,2,FALSE) -> Auxiliar administrativo | C25: mês | D25: 1 | F25: =VLOOKUP(A25,'Pessoal Sicro'!$A$6:$G$106,6,0) -> 5069.9099 | H25: =F25*D25 -> 5069.9099
A26: P9842 | B26: =VLOOKUP(A26,'Pessoal Sicro'!$A$6:$F$106,2,FALSE) -> Faxineiro | C26: mês | D26: 0 | F26: =VLOOKUP(A26,'Pessoal Sicro'!$A$6:$G$106,6,0) -> 4033.4643 | H26: =F26*D26 -> 0
F27: Subtotal do Item 1.4 | H27: =SUM(H25:I26) -> 5069.9099
H28: Total da Mão de Obra da Parcela Fixa | I28: =H27+H23+H15+H11 -> 31462.75058
A30: parcela fixa da administração local (veículos)
A31: Código | B31: Discriminação | C31: Unidade | D31: Quantidade | E31: Utilização Produtiva | F31: Utilização Improdutiva | G31: Custo Horário Produtivo (R$) | H31: Custo Horário Improdutivo (R$) | I31: Custo Total (R$)
A32: 2 | B32: Veículos
B33: Gerência Técnica
A34: 2.1 | B34: Geral
A35: E9093 | B35: Veículo Leve 53 kw | C35: mês | D35: 1 | E35: 44 | F35: 176 | G35: =VLOOKUP(A35,Equipamentos!$A:$K,10,FALSE) -> 36.806 | H35: =VLOOKUP(A35,Equipamentos!$A:$K,11,FALSE) -> 6.6541 | I35: =((E35*G35)+(F35*H35))*D35 -> 2790.5856
A36: E9560 | B36: =VLOOKUP(A36,Equipamentos!$A:$K,2,FALSE) -> Ônibus com capacidade para 80 passageiros - 175 kW | C36: mês | D36: 0 | E36: 44 | F36: 176 | G36: =VLOOKUP(A36,Equipamentos!$A:$K,10,FALSE) -> 351.8554 | H36: =VLOOKUP(A36,Equipamentos!$A:$K,11,FALSE) -> 101.2075 | I36: =((E36*G36)+(F36*H36))*D36 -> 0
H37: Subtotal do Item 2 | I37: =SUM(I35:I36) -> 2790.5856
A38: 2.2 | B38: Auxiliar
A39: E9093 | B39: Veículo Leve 53 kw | C39: mês | D39: 0 | E39: 44 | F39: 176 | G39: =VLOOKUP(A39,Equipamentos!$A:$K,10,FALSE) -> 36.806 | H39: =VLOOKUP(A39,Equipamentos!$A:$K,11,FALSE) -> 6.6541 | I39: =((E39*G39)+(F39*H39))*D39 -> 0
H40: Subtotal do Item 2 | I40: =SUM(I39) -> 0
A41: 2.3 | B41: Gerência Administrativa
A42: E9093 | B42: Veículo Leve 53 kw | C42: mês | D42: 0 | E42: 44 | F42: 176 | G42: =VLOOKUP(A42,Equipamentos!$A:$K,10,FALSE) -> 36.806 | H42: =VLOOKUP(A42,Equipamentos!$A:$K,11,FALSE) -> 6.6541 | I42: =((E42*G42)+(F42*H42))*D42 -> 0
H43: Subtotal do Item 2 | I43: =I42 -> 0
H44: Total dos Veículos da Parcela Fixa | I44: =I43+I40+I37 -> 2790.5856
A46: Composição de custo da equipe de produção de terraplenagem
A47: Código | B47: Discriminação | C47: Unidade | D47: Quantidade | F47: Custo Unitário (R$) | H47: Custo Total (R$)
B48: Equipe de Produção de Terraplenagem
A49: 3.1 | B49: Mão de Obra
A50: P9884 | B50: =VLOOKUP(A50,'Pessoal Sicro'!$A$6:$F$106,2,FALSE) -> Encarregado de terraplenagem | C50: mês | D50: 1 | F50: =VLOOKUP(A50,'Pessoal Sicro'!$A$6:$G$106,6,0) -> 8270.9705 | H50: =F50*D50 -> 8270.9705
F51: Subtotal do Item 3.1 | H51: =SUM(H50:H50) -> 8270.9705
A52: Código | B52: Discriminação | C52: Unidade | D52: Quantidade | E52: Utilização Produtiva | F52: Utilização Improdutiva | G52: Custo Horário Produtivo (R$) | H52: Custo Horário Improdutivo (R$) | I52: Custo Total (R$)
A53: 3.2 | B53: Veículos
B54: Veículo Leve 53 kw | C54: mês | D54: 1 | E54: 44 | F54: 176 | G54: =G35 -> 36.806 | H54: =H35 -> 6.6541 | I54: =((E54*G54)+(F54*H54))*D54 -> 2790.5856
H55: Subtotal do Item 3.2 | I55: =SUM(I54:I54) -> 2790.5856
H56: Total da Equipe de Produção de Terraplenagem | I56: =I55+H51 -> 11061.5561
A58: Composição de custo da equipe de produção de pavimentação
A59: Código | B59: Discriminação | C59: Unidade | D59: Quantidade | F59: Custo Unitário (R$) | H59: Custo Total (R$)
B60: Equipe de Produção de Pavimentação
A61: 3.1 | B61: Mão de Obra
A62: P9893 | B62: =VLOOKUP(A62,'Pessoal Sicro'!$A$6:$F$106,2,FALSE) -> Encarregado de pavimentação | C62: mês | D62: 1 | F62: =VLOOKUP(A62,'Pessoal Sicro'!$A$6:$G$106,6,0) -> 8270.9705 | H62: =F62*D62 -> 8270.9705
F63: Subtotal do Item 3.1 | H63: =SUM(H62:H62) -> 8270.9705
A64: Código | B64: Discriminação | C64: Unidade | D64: Quantidade | E64: Utilização Produtiva | F64: Utilização Improdutiva | G64: Custo Horário Produtivo (R$) | H64: Custo Horário Improdutivo (R$) | I64: Custo Total (R$)
A65: 3.2 | B65: Veículos
B66: Veículo Leve 53 kw | C66: mês | D66: 1 | E66: 44 | F66: 176 | G66: =$G$35 -> 36.806 | H66: =$H$35 -> 6.6541 | I66: =((E66*G66)+(F66*H66))*D66 -> 2790.5856
H67: Subtotal do Item 3.2 | I67: =SUM(I66:I66) -> 2790.5856
H68: Total da Equipe de Produção de Pavimentação | I68: =I67+H63 -> 11061.5561
A70: Composição de custo da equipe de produção de drenagem
A71: Código | B71: Discriminação | C71: Unidade | D71: Quantidade | F71: Custo Unitário (R$) | H71: Custo Total (R$)
B72: Equipe de Produção de Pavimentação
A73: 3.1 | B73: Mão de Obra
A74: P9811 | B74: =VLOOKUP(A74,'Pessoal Sicro'!$A$6:$F$106,2,FALSE) -> Encarregado especializado | C74: mês | D74: 0.5 | F74: =VLOOKUP(A74,'Pessoal Sicro'!$A$6:$G$106,6,0) -> 8270.9705 | H74: =F74*D74 -> 4135.48525
F75: Subtotal do Item 3.1 | H75: =SUM(H74:H74) -> 4135.48525
A76: Código | B76: Discriminação | C76: Unidade | D76: Quantidade | E76: Utilização Produtiva | F76: Utilização Improdutiva | G76: Custo Horário Produtivo (R$) | H76: Custo Horário Improdutivo (R$) | I76: Custo Total (R$)
A77: 3.2 | B77: Veículos
B78: Veículo Leve 53 kw | C78: mês | D78: 0.5 | E78: 44 | F78: 176 | G78: =$G$35 -> 36.806 | H78: =$H$35 -> 6.6541 | I78: =((E78*G78)+(F78*H78))*D78 -> 1395.2928
H79: Subtotal do Item 3.2 | I79: =SUM(I78:I78) -> 1395.2928
H80: Total da Equipe de Produção de Pavimentação | I80: =I79+H75 -> 5530.77805
A82: Composição de custo da equipe de produção de sinalização
A83: Código | B83: Discriminação | C83: Unidade | D83: Quantidade | F83: Custo Unitário (R$) | H83: Custo Total (R$)
B84: Equipe de Produção de Pavimentação
A85: 3.1 | B85: Mão de Obra
A86: P9811 | B86: =VLOOKUP(A86,'Pessoal Sicro'!$A$6:$F$106,2,FALSE) -> Encarregado especializado | C86: mês | D86: 0.5 | F86: =VLOOKUP(A86,'Pessoal Sicro'!$A$6:$G$106,6,0) -> 8270.9705 | H86: =F86*D86 -> 4135.48525
F87: Subtotal do Item 3.1 | H87: =SUM(H86:H86) -> 4135.48525
A88: Código | B88: Discriminação | C88: Unidade | D88: Quantidade | E88: Utilização Produtiva | F88: Utilização Improdutiva | G88: Custo Horário Produtivo (R$) | H88: Custo Horário Improdutivo (R$) | I88: Custo Total (R$)
A89: 3.2 | B89: Veículos
B90: Veículo Leve 53 kw | C90: mês | D90: 0.5 | E90: 44 | F90: 176 | G90: =$G$35 -> 36.806 | H90: =$H$35 -> 6.6541 | I90: =((E90*G90)+(F90*H90))*D90 -> 1395.2928
H91: Subtotal do Item 3.2 | I91: =SUM(I90:I90) -> 1395.2928
H92: Total da Equipe de Produção de Pavimentação | I92: =I91+H87 -> 5530.77805
A94: Composição de custo da equipe topografia
A95: Código | B95: Discriminação | C95: Unidade | D95: Quantidade | F95: Custo Unitário (R$) | H95: Custo Total (R$)
B96: Equipe de Topografia
A97: 3.1 | B97: Mão de Obra
A98: P9949 | B98: =VLOOKUP(A98,'Pessoal Sicro'!$A$6:$F$106,2,FALSE) -> Topógrafo | C98: mês | D98: 1 | F98: =VLOOKUP(A98,'Pessoal Sicro'!$A$6:$G$106,6,0) -> 8757.2734 | H98: =F98*D98 -> 8757.2734
A99: P9950 | B99: =VLOOKUP(A99,'Pessoal Sicro'!$A$6:$F$106,2,FALSE) -> Auxiliar de topografia | C99: mês | D99: 1 | F99: =VLOOKUP(A99,'Pessoal Sicro'!$A$6:$G$106,6,0) -> 5667.1287 | H99: =F99*D99 -> 5667.1287
F100: Subtotal do Item 3.1 | H100: =SUM(H98:I99) -> 14424.4021
A101: Código | B101: Discriminação | C101: Unidade | D101: Quantidade | E101: Utilização Produtiva | F101: Utilização Improdutiva | G101: Custo Horário Produtivo (R$) | H101: Custo Horário Improdutivo (R$) | I101: Custo Total (R$)
A102: 3.2 | B102: Veículos
B103: Veículo Leve 53 kw | C103: mês | D103: 1 | E103: 44 | F103: 176 | G103: =G35 -> 36.806 | H103: =H35 -> 6.6541 | I103: =((E103*G103)+(F103*H103))*D103 -> 2790.5856
H104: Subtotal do Item 3.2 | I104: =SUM(I103:I103) -> 2790.5856
H105: Total da Equipe de Produção de Topografia | I105: =I104+H100 -> 17214.9877
A107: Composição de custo do setor de medicina e segurança do trabalho
A108: Código | B108: Discriminação | C108: Unidade | D108: Quantidade | F108: Custo Unitário (R$) | H108: Custo Total (R$)
A109: 4 | B109: Setor de Medicina e Segurança do Trabalho
A110: P9876 | B110: =VLOOKUP(A110,'Pessoal Sicro'!$A$6:$F$106,2,FALSE) -> Técnico de segurança do trabalho | C110: mês | D110: 1 | F110: =VLOOKUP(A110,'Pessoal Sicro'!$A$6:$G$106,6,0) -> 7298.4723 | H110: =F110*D110 -> 7298.4723
A111: P9864 | B111: =VLOOKUP(A111,'Pessoal Sicro'!$A$6:$F$106,2,FALSE) -> Engenheiro de segurança do trabalho | C111: mês | D111: 0 | F111: =VLOOKUP(A111,'Pessoal Sicro'!$A$6:$G$106,6,0) -> 24420.804 | H111: =F111*D111 -> 0
A112: P9851 | B112: =VLOOKUP(A112,'Pessoal Sicro'!$A$6:$F$106,2,FALSE) -> Médico do trabalho | C112: mês | D112: 0 | F112: =VLOOKUP(A112,'Pessoal Sicro'!$A$6:$G$106,6,0) -> 18575.8219 | H112: =F112*D112 -> 0
A113: P9951 | B113: =VLOOKUP(A113,'Pessoal Sicro'!$A$6:$F$106,2,FALSE) -> Médico de câmara hiperbárica | C113: mês | D113: 0 | F113: =VLOOKUP(A113,'Pessoal Sicro'!$A$6:$G$106,6,0) -> 21148.057 | H113: =F113*D113 -> 0
F114: Subtotal do Item 4 | H114: =SUM(H110:I113) -> 7298.4723
A116: Parcela Variável - Composição de custo da equipe de frente de serviço
A117: Código | B117: Discriminação | C117: Unidade | D117: Quantidade | F117: Custo Unitário (R$) | H117: Custo Total (R$)
A118: 5 | B118: Equipe de Frente de Serviço | C118: equipexmês
A119: P9875 | B119: =VLOOKUP(A119,'Pessoal Sicro'!$A$6:$F$106,2,FALSE) -> Encarregado de turma | C119: mês | D119: 1 | F119: =VLOOKUP(A119,'Pessoal Sicro'!$A$6:$G$106,6,0) -> 5828.315 | H119: =F119*D119 -> 5828.315
A120: P9804 | B120: =VLOOKUP(A120,'Pessoal Sicro'!$A$6:$F$106,2,FALSE) -> Apontador | C120: mês | D120: 0.5 | F120: =VLOOKUP(A120,'Pessoal Sicro'!$A$6:$G$106,6,0) -> 5108.5086 | H120: =F120*D120 -> 2554.2543
F121: Subtotal do Item 5 | H121: =SUM(H119:I120) -> 8382.5693
A123: Parcela Variável - Composição de custo da equipe de frente de serviço (Terraplenagem) - Somente Compactação
A124: Código | B124: Discriminação | C124: Unidade | D124: Quantidade | F124: Produção Horária (und/h) | H124: Efs
A125: 5.1 | B125: Equipe de Frente de Serviço | C125: equipexmês
C126: mês | H126: =(D126)/(F126*182.49) -> 
C127: mês | H127: =(D127)/(F127*182.49) -> 
C128: mês | H128: =(D128)/(F128*182.49) -> 
E129: Total de Equipes para Terraplenagem | H129: =SUM(H128:I128) -> 
A131: Parcela Variável - Composição de custo da acompanhamento das frentes de serviço de pavimentação
A132: Código | B132: Discriminação | C132: Unidade | D132: Quantidade | F132: Produção Horária (und/h) | H132: Efs
A133: 5.2 | B133: Equipe de Frente de Serviço | C133: equipe x mês
A134: 4915637 | B134: Capa selante - areia comercial | C134: m² | D134: ='MODULO MINIMO'!J22 -> 14000 | F134: 1350 | H134: =(D134)/(F134*182.49) -> 0.05682706105
A135: 4011370 | B135: Tratamento superficial duplo com emulsão - brita comercial | C135: m² | D135: ='MODULO MINIMO'!J23 -> 14000 | F135: 361.93 | H135: =(D135)/(F135*182.49) -> 0.2119651104
A136: 4011352 | B136: Imprimação com emulsão asfáltica | C136: m² | D136: ='MODULO MINIMO'!J24 -> 14000 | F136: 1038.46 | H136: 0.07387528881
A137: 4011219 | B137: Base de solo estabilizado granulometricamente sem mistura com material de jazida - 100% Proctor modificado | C137: m³ | D137: ='MODULO MINIMO'!J25 -> 2100 | F137: 112.13 | H137: 0.1026262362
A138: 4011227 | B138: Sub-base de solo estabilizado granulometricamente sem mistura com material de jazida - 100% Proctor intermediário | C138: m³ | D138: ='MODULO MINIMO'!J26 -> 2100 | F138: 134.56 | H138: 0.08551932121
A139: 4011209 | B139: Regularização do subleito - 100% Proctor intermediário | C139: m² | D139: ='MODULO MINIMO'!J27 -> 14000 | F139: 672.8 | H139: 0.1140257616
E140: Total de Equipes para Pavimentação | H140: =SUM(H134:I139) -> 0.6448387793
A142: Parcela Variável - Composição de custo da acompanhamento das frentes de serviço de drenagem
A143: Código | B143: Discriminação | C143: Unidade | D143: Quantidade | F143: Efsdu | H143: Efs
A144: 5.3 | B144: Frentes de Serviço para Drenagem | C144: equipe x mês
A145: ='MODULO MINIMO'!D39 -> 2003373 | B145: Meio-fio de concreto - MFC 03 - areia e brita comerciais - fôrma de madeira | C145: m | D145: ='MODULO MINIMO'!J39 -> 4000 | F145: 0.00021 | H145: =D145*F145 -> 0.84
F146: Total de Equipes para Drenagem | H146: =H145 -> 0.84
A148: Parcela Variável - Composição de custo da acompanhamento das frentes de serviço de sinalização
A149: Código | B149: Discriminação | C149: Unidade | D149: Quantidade | F149: Produção Horária (und/h) | H149: Efs
A150: 5.4 | B150: Frentes de Serviço para Sinalização | C150: equipe x mês
A151: 5213440 | B151: =VLOOKUP(A151,'SINTÉTICO SICRO'!A4:D6492,2,TRUE) -> Barreira de sinalização tipo III de direcionamento ou bloqueio - utilização de 150 ciclos - fornecimento, 01 implantação e 01 retirada diária | C151: ='MODULO MINIMO'!I34 -> und | D151: ='MODULO MINIMO'!J34 -> 6 | F151: 3 | H151: =0.2*((D151)/(F151*182.49)) -> 0.002191900926
A152: 5213464 | B152: =VLOOKUP(A152,'SINTÉTICO SICRO'!$A$4:$D$6373,2,0) -> Placa de advertência em aço, lado de 0,60 m - película retrorrefletiva tipo I + SI - fornecimento e implantação | C152: ='MODULO MINIMO'!I35 -> und | D152: ='MODULO MINIMO'!J35 -> 6 | F152: 4.1 | H152: =0.2*((D152)/(F152*182.49)) -> 0.001603829946
A153: 5213863 | B153: =VLOOKUP(A153,'SINTÉTICO SICRO'!$A$4:$D$6373,2,0) -> Suporte metálico galvanizado para placa de advertência ou regulamentação - lado ou diâmetro de 0,60 m - fornecimento e implantação | C153: ='MODULO MINIMO'!I36 -> und | D153: ='MODULO MINIMO'!J36 -> 12 | F153: 4.1 | H153: =0.2*((D153)/(F153*182.49)) -> 0.003207659892
A154: 5213400 | B154: =VLOOKUP(A154,'SINTÉTICO SICRO'!$A$4:$D$6373,2,0) -> Pintura de faixa com tinta acrílica - espessura de 0,4 mm | C154: ='MODULO MINIMO'!I37 -> m² | D154: ='MODULO MINIMO'!J37 -> 600 | F154: 177.07 | H154: 0.003713617653
F155: Total de Equipes para Sinalização | H155: =SUM(H151:I154) -> 0.01071700842 | J155: =H155+H146 -> 0.8507170084
A157: 3. PARCELA VARIÁVEL - EQUIPE DE CONTROLE TECNOLÓGICO
A158: LABORATÓRIO DE SOLOS
A159: Item | B159: Discriminação | F159: Unidade | G159: Quantidade | H159: Custo Unitário (R$) | I159: Custo Total (R$)
B160: Laboratório de Solos (equipe x mês)
B161: Mão de Obra
A162: P9858 | B162: =VLOOKUP(A162,'Pessoal Sicro'!$A$6:$F$106,2,FALSE) -> Laboratorista | F162: func./mês | G162: 1 | H162: =VLOOKUP(A162,'Pessoal Sicro'!$A$6:$G$106,6,0) -> 7399.543 | I162: =TRUNC(G162*H162,2) -> 7399.54
A163: P9833 | B163: =VLOOKUP(A163,'Pessoal Sicro'!$A$6:$F$106,2,FALSE) -> Auxiliar de laboratório | F163: func./mês | G163: 1 | H163: =VLOOKUP(A163,'Pessoal Sicro'!$A$6:$G$106,6,0) -> 5646.9455 | I163: =TRUNC(G163*H163,2) -> 5646.94
H164: Subtotal do Item | I164: =SUM(I162:I163) -> 13046.48
A165: Item | B165: Discriminação | C165: Und | D165: Quant | E165: Utilização Produtiva | F165: Utilização Improdutiva | G165: Horário Produtivo (R$) | H165: Horário Improdutivo (R$) | I165: Total (R$)
B166: Equipe de Controle Tecnológico
B167: Veículos
A168: E9125 | B168: =VLOOKUP(A168,Equipamentos!$A:$K,2,FALSE) -> Veículo tipo van furgão com capacidade de 1,38 t - 100 kW | C168: veic./mês | D168: 0.5 | E168: 44 | F168: 176 | G168: =VLOOKUP(A168,Equipamentos!$A$4:$K$533,10,0) -> 86.9558 | H168: =VLOOKUP(A168,Equipamentos!$A$4:$K$533,11,0) -> 47.8666 | I168: =D168*((E168*G168)+(F168*H168)) -> 6125.2884
H169: Subtotal do Item | I169: =SUM(I168:I168) -> 6125.2884
H170: Total da Equipe do Laboratório de Solos | I170: =I164+I169 -> 19171.7684
A172: 3. PARCELA VARIÁVEL - EQUIPE DE CONTROLE TECNOLÓGICO
A173: LABORATÓRIO DE ASFALTOS
A174: Item | B174: Discriminação | F174: Unidade | G174: Quantidade | H174: Custo Unitário (R$) | I174: Custo Total (R$)
B175: Laboratório de Solos (equipe x mês)
B176: Mão de Obra
A177: P9858 | B177: =VLOOKUP(A177,'Pessoal Sicro'!$A$6:$F$106,2,FALSE) -> Laboratorista | F177: func./mês | G177: 0.5 | H177: =VLOOKUP(A177,'Pessoal Sicro'!$A$6:$G$106,6,0) -> 7399.543 | I177: =TRUNC(G177*H177,2) -> 3699.77
A178: P9833 | B178: =VLOOKUP(A178,'Pessoal Sicro'!$A$6:$F$106,2,FALSE) -> Auxiliar de laboratório | F178: func./mês | G178: 0.5 | H178: =VLOOKUP(A178,'Pessoal Sicro'!$A$6:$G$106,6,0) -> 5646.9455 | I178: =TRUNC(G178*H178,2) -> 2823.47
H179: Subtotal do Item | I179: =SUM(I177:I178) -> 6523.24
A180: Item | B180: Discriminação | C180: Und | D180: Quant | E180: Utilização Produtiva | F180: Utilização Improdutiva | G180: Horário Produtivo (R$) | H180: Horário Improdutivo (R$) | I180: Total (R$)
B181: Equipe de Controle Tecnológico
B182: Veículos
A183: E9125 | B183: =VLOOKUP(A183,Equipamentos!$A:$K,2,FALSE) -> Veículo tipo van furgão com capacidade de 1,38 t - 100 kW | C183: veic./mês | D183: 0.25 | E183: 44 | F183: 176 | G183: =VLOOKUP(A183,Equipamentos!$A:$K,10,FALSE) -> 86.9558 | H183: =VLOOKUP(A183,Equipamentos!$A:$K,11,FALSE) -> 47.8666 | I183: =D183*((E183*G183)+(F183*H183)) -> 3062.6442
H184: Subtotal do Item | I184: =SUM(I183:I183) -> 3062.6442
H185: Total da Equipe do Laboratório de Asfaltos | I185: =I179+I184 -> 9585.8842
A187: Equipes de laboratório de solos para pavimentação
A188: Item | B188: Discriminação | F188: Und | G188: Quant | H188: QE | I188: Els
A189: 4011221 | B189: =VLOOKUP(A189,'SINTÉTICO SICRO'!A:D,2,0) -> Base estabilizada granulometricamente com mistura de solos na pista com material de jazida - 100% Proctor modificado | F189: =VLOOKUP(A189,'SINTÉTICO SICRO'!A:D,3,0) -> m³ | G189: ='MODULO MINIMO'!J25 -> 2100 | H189: 21900 | I189: =G189/H189 -> 0.09589041096
A190: 4011227 | B190: =VLOOKUP(A190,'SINTÉTICO SICRO'!A:D,2,0) -> Sub-base de solo estabilizado granulometricamente sem mistura com material de jazida - 100% Proctor intermediário | F190: =VLOOKUP(A190,'SINTÉTICO SICRO'!A:D,3,0) -> m³ | G190: ='MODULO MINIMO'!J26 -> 2100 | H190: 21900 | I190: =G190/H190 -> 0.09589041096
H191: Total de equipes de Laboratório de Solos para Pavimentação | I191: =SUM(I189:I190) -> 0.1917808219
A193: Equipes de laboratório de Asfalto
A194: Item | B194: Discriminação | F194: Und | G194: Quant | H194: QE | I194: Ela
A195: ='MODULO MINIMO'!D23 -> 4011370 | B195: =VLOOKUP(A195,'SINTÉTICO SICRO'!A:D,2,0) -> Tratamento superficial duplo com emulsão - brita comercial | F195: =VLOOKUP(A195,'SINTÉTICO SICRO'!A:D,3,0) -> m² | G195: ='MODULO MINIMO'!J23 -> 14000 | H195: 1610000 | I195: =G195/H195 -> 0.008695652174
A196: ='MODULO MINIMO'!D24 -> 4011352 | B196: =VLOOKUP(A196,'SINTÉTICO SICRO'!A:D,2,0) -> Imprimação com emulsão asfáltica | F196: =VLOOKUP(A196,'SINTÉTICO SICRO'!A:D,3,0) -> m² | G196: ='MODULO MINIMO'!J24 -> 14000 | H196: 3610000 | I196: =G196/H196 -> 0.003878116343
H197: Total de equipes de Laboratório de Asfaltos | I197: =SUM(I195:I196) -> 0.01257376852
A199: manutenção do canteiro de obras e acampamentos
A200: Código | B200: Discriminação | C200: Unidade | D200: Quantidade | F200: Custo Unitário (R$) | H200: Custo Total (R$)
B201: Manutenção do Canteiro de Obras e Acampamentos
A202: 6.1 | B202: Mão de Obra
A203: P9952 | B203: Pedreiro | C203: mês | D203: 0 | F203: =VLOOKUP(A203,'Pessoal Sicro'!$A$6:$G$106,6,0) -> 5108.1604 | H203: =F203*D203 -> 0
A204: P9954 | B204: Servente | C204: mês | D204: 0 | F204: =VLOOKUP(A204,'Pessoal Sicro'!$A$6:$G$106,6,0) -> 3953.259 | H204: =F204*D204 -> 0
A205: P9953 | B205: Eletricista | C205: mês | D205: 0 | F205: =VLOOKUP(A205,'Pessoal Sicro'!$A$6:$G$106,6,0) -> 5593.9461 | H205: =F205*D205 -> 0
F206: Subtotal do Item 6.1 | H206: =SUM(H203:I205) -> 0
A208: Código | B208: Discriminação | C208: Unidade | D208: Quantidade | F208: Custo Produtivo (R$) | H208: Custo Total (R$)
A209: 6.2 | B209: Equipamentos
B210: Caminhão guindauto de 6 toneladas | C210: h/mês | D210: 0 | H210: =F210*D210 -> 0
B211: Caminhão tanque de 8.000 litros | C211: h/mês | D211: 0 | H211: =F211*D211 -> 0
A212: E9524 | B212: Motoniveladora | C212: h/mês | D212: 0 | F212: =VLOOKUP(A212,Equipamentos!$A:$K,10,FALSE) -> 282.1718 | H212: =F212*D212 -> 0
F213: Subtotal do Item 6.2 | H213: =SUM(H210:I212) -> 0
G214: Total da Manutenção do Canteiro de Obras e Acampamentos | H214: =H213+H206 -> 0
A218: Resumo das parcelas de administração local
A219: Código | B219: Discriminação | C219: Unidade | D219: Quantidade | F219: Custo Unitário (R$) | H219: Custo Total (R$)
B220: Parcela Fixa
B221: Mão de Obra | C221: mês | D221: 4 | F221: =H11+H15+H23+H27 -> 31462.75058 | H221: =F221*D221 -> 125851.0023
... 31 more rows

Sheet Projeto Executivo
A1: COMPOSIÇAO PREÇO PROJETO EXECUTIVO
A3: DISCRIMINAÇAO | F3: Pr. Unit. | G3: Pr. Total
A5: A· EOUIPE TECNICA | G5: =G6+G9 -> 19551.3601
B6: A. 1 - Pessoal de Nível Superior | C6: Unidade | D6: Quantitativo | E6: SICRO e Rel.Custos Gerais | G6: =G7+G8 -> 16963.4039
B7: Engenheiro | C7: mês | D7: 0.5 | E7: P9812 | F7: =VLOOKUP(E7,'Pessoal Sicro'!A:G,6,0) -> 25169.5344 | G7: =F7*D7 -> 12584.7672
B8: Topógrafo | C8: mês | D8: 0.5 | E8: P9949 | F8: =VLOOKUP(E8,'Pessoal Sicro'!A:G,6,0) -> 8757.2734 | G8: =F8*D8 -> 4378.6367
B9: A.2 - Pessoal de Nível Técnico e Aux. | G9: =G10+G11 -> 2587.9562
B10: Auxiliar de topógrafo | C10: mês | D10: 0.25 | E10: P9950 | F10: =VLOOKUP(E10,'Pessoal Sicro'!A:G,6,0) -> 5667.1287 | G10: =F10*D10 -> 1416.782175
B11: Auxiliar Técnico/Assistente de Engenharia | C11: mês | D11: 0.25 | E11: P9903 | F11: =VLOOKUP(E11,'Pessoal Sicro'!A:G,6,0) -> 4684.6961 | G11: =F11*D11 -> 1171.174025
A12: B - ENCARGOS SOCIAIS | G12: =G13 -> 0
B13: =CONCATENATE("Taxas ",'ENC. SOCIAIS'!E51,"%") -> Taxas 112,73% | C13: JÁ INCLUSAS EM "A"
A14: C - DESPESAS GERAIS | G14: =G15+G17+G16 -> 5421.834303
B15: C.1 - MATERIAIS DE CONSUMO | C15: Estimativa % como referência de equipe técnica com encargos sociais | D15: 0.03 | F15: =G5+G13 -> 19551.3601 | G15: =F15*D15 -> 586.540803
B16: C.2 - VEÍCULOS (Veículo leve picape 4 x 4 com capacidade de 1,10 t - 147 kW) | C16: h | D16: 40 | E16: E9684 | F16: =VLOOKUP(E16,Equipamentos!A:K,10,0) -> 110.1583 | G16: =F16*D16 -> 4406.332
B17: C.3 - Estação total eletrônica com alcance máximo de 3.000 m | C17: h | D17: 55 | E17: E9553 | F17: =VLOOKUP(E17,Equipamentos!A:K,10,0) -> 7.7993 | G17: =F17*D17 -> 428.9615
A18: D - ENSAIOS | G18: =SUM(G19:G22) -> 8359.852875
B19: Laboratorista | C19: mês | D19: 0.5 | E19: P9858 | F19: =VLOOKUP(E19,'Pessoal Sicro'!A:G,6,0) -> 7399.543 | G19: =F19*D19 -> 3699.7715
B20: Auxiliar de Laboratório | C20: mês | D20: 0.25 | E20: P9833 | F20: =VLOOKUP(E20,'Pessoal Sicro'!A:G,6,0) -> 5646.9455 | G20: =F20*D20 -> 1411.736375
B21: Laboratório de solos | C21: mês | D21: 0.5 | E21: B8957 | F21: =VLOOKUP(E21,'Tabelas 1 e 2'!C16:G25,5,0) -> 3520.5 | G21: =F21*D21 -> 1760.25
B22: Laboratório de asfalto | C22: mês | D22: 0.25 | E22: B8955 | F22: =VLOOKUP(E22,'Tabelas 1 e 2'!C17:G27,5,0) -> 5952.38 | G22: =F22*D22 -> 1488.095
A23: I - SOMA (A+B+C+D) | G23: =G5+G12+G14+G18 -> 33333.04728
A24: II - CUSTOS ADMINISTRATIVOS | D24: ='MODULO MINIMO'!J6 -> 0.2339 | G24: =D24*G23 -> 7796.599758
A25: TOTAL | G25: =G23+G24 -> 41129.64704
F26: Por m²: | G26: =TRUNC(G25/('MODULO MINIMO'!I8),2) -> 2.93
E28: Desconto aplicado: | G28: =CAPA!D13 -> 0
E29: Valor m² após desconto | G29: =TRUNC(G26-G26*G28,2) -> 2.93
E30: Valor total com BDI após o desconto truncado: | G30: =G29*'MODULO MINIMO'!J44 -> 41020

Sheet Pessoal Sicro (hidden)
A1: CGCIT | B1: SISTEMA DE CUSTOS REFERENCIAIS DE OBRAS - SICRO | G1: DNIT | H1: CGCIT
A3: Maranhão - Abril/2025
A4: Sem desoneração
A5: Código | B5: Descrição | C5: Unidade | D5: Salário (R$) | E5: Encargos Totais | F5: Custo (R$) | G5: Periculosidade/ Insalubridade | H5: Código
A6: P9801 | B6: Ajudante | C6: h | F6: 21.7228 | G6: 0 | H6: P9801
A7: P9802 | B7: Ajudante especializado | C7: h | F7: 25.3245 | G7: 0 | H7: P9802
A8: P9803 | B8: Almoxarife | C8: mês | F8: 6228.5397 | G8: 0 | H8: P9803
A9: P9804 | B9: Apontador | C9: mês | F9: 5108.5086 | G9: 0 | H9: P9804
A10: P9805 | B10: Armador | C10: h | F10: 30.785 | G10: 0 | H10: P9805
A11: P9806 | B11: Auxiliar administrativo | C11: mês | F11: 5069.9099 | G11: 0 | H11: P9806
A12: P9807 | B12: Bombeiro hidráulico | C12: h | F12: 31.3343 | G12: 0 | H12: P9807
A13: P9808 | B13: Carpinteiro | C13: h | F13: 27.9922 | G13: 0 | H13: P9808
A14: P9809 | B14: Encarregado administrativo | C14: mês | F14: 7575.7263 | G14: 0 | H14: P9809
A15: P9810 | B15: Eletricista | C15: h | F15: 30.3606 | G15: 0 | H15: P9810
A16: P9811 | B16: Encarregado especializado | C16: mês | F16: 8270.9705 | G16: 0 | H16: P9811
A17: P9812 | B17: Engenheiro | C17: mês | F17: 25169.5344 | G17: 0 | H17: P9812
A18: P9814 | B18: Operacional | C18: mês | F18: 4222.9112 | G18: 0 | H18: P9814
A19: P9815 | B19: Jardineiro | C19: h | F19: 28.795 | G19: 0 | H19: P9815
A20: P9819 | B20: Engenheiro supervisor | C20: mês | F20: 25169.5344 | G20: 0 | H20: P9819
A21: P9821 | B21: Pedreiro | C21: h | F21: 27.6343 | G21: 0 | H21: P9821
A22: P9822 | B22: Pintor | C22: h | F22: 30.7634 | G22: 0 | H22: P9822
A23: P9823 | B23: Serralheiro | C23: h | F23: 28.7245 | G23: 0 | H23: P9823
A24: P9824 | B24: Servente | C24: h | F24: 21.3406 | G24: 0 | H24: P9824
A25: P9825 | B25: Soldador | C25: h | F25: 35.2942 | G25: 0 | H25: P9825
A26: P9826 | B26: Chefe setor de finanças | C26: mês | F26: 26212.9097 | G26: 0 | H26: P9826
A27: P9827 | B27: Vigia | C27: mês | F27: 4725.5765 | G27: 0.3 | H27: P9827
A28: P9830 | B28: Montador | C28: h | F28: 31.6184 | G28: 0 | H28: P9830
A29: P9833 | B29: Auxiliar de laboratório | C29: mês | F29: 5646.9455 | G29: 0 | H29: P9833
A30: P9837 | B30: Oceanógrafo | C30: mês | F30: 12409.2716 | G30: 0 | H30: P9837
A31: P9840 | B31: Encarregado geral | C31: mês | F31: 11656.0318 | G31: 0 | H31: P9840
A32: P9842 | B32: Faxineiro | C32: mês | F32: 4033.4643 | G32: 0 | H32: P9842
A33: P9843 | B33: Operador de equipamento leve | C33: h | F33: 27.5159 | G33: 0 | H33: P9843
A34: P9845 | B34: Operador de equipamento pesado | C34: h | F34: 33.2943 | G34: 0 | H34: P9845
A35: P9846 | B35: Operador de equipamento especial | C35: h | F35: 43.1549 | G35: 0 | H35: P9846
A36: P9847 | B36: Perfurador de tubulão | C36: h | F36: 21.7025 | G36: 0 | H36: P9847
A37: P9848 | B37: Desenhista | C37: mês | F37: 7930.9573 | G37: 0 | H37: P9848
A38: P9849 | B38: Condutor maquinista fluvial | C38: mês | F38: 5793.809 | G38: 0 | H38: P9849
A39: P9850 | B39: Copeiro | C39: mês | F39: 4284.9434 | G39: 0 | H39: P9850
A40: P9851 | B40: Médico do trabalho | C40: mês | F40: 18575.8219 | G40: 0 | H40: P9851
A41: P9852 | B41: Blaster | C41: h | F41: 40.9803 | G41: 0.3 | H41: P9852
A42: P9853 | B42: Pré-marcador | C42: h | F42: 21.5855 | G42: 0 | H42: P9853
A43: P9854 | B43: Recepcionista | C43: mês | F43: 4153.6593 | G43: 0 | H43: P9854
A44: P9855 | B44: Marinheiro de máquinas | C44: mês | F44: 5392.5519 | G44: 0 | H44: P9855
A45: P9856 | B45: Marinheiro de convés | C45: h | F45: 29.1508 | G45: 0 | H45: P9856
A46: P9857 | B46: Marinheiro de convés - mensalista | C46: mês | F46: 5362.8194 | G46: 0 | H46: P9857
A47: P9858 | B47: Laboratorista | C47: mês | F47: 7399.543 | G47: 0 | H47: P9858
A48: P9859 | B48: Trabalhador de via | C48: h | F48: 21.3643 | G48: 0 | H48: P9859
A49: P9861 | B49: Selecionador de material pétreo | C49: h | F49: 21.6317 | G49: 0 | H49: P9861
A50: P9864 | B50: Engenheiro de segurança do trabalho | C50: mês | F50: 24420.804 | G50: 0 | H50: P9864
A51: P9866 | B51: Motorista de caminhão | C51: h | F51: 29.9105 | G51: 0 | H51: P9866
A52: P9867 | B52: Técnico especializado - mensalista | C52: mês | F52: 7095.1766 | G52: 0 | H52: P9867
A53: P9869 | B53: Encarregado de obras de artes especiais | C53: mês | F53: 8270.9705 | G53: 0 | H53: P9869
A54: P9870 | B54: Motorista de veículo leve | C54: h | F54: 30.4162 | G54: 0 | H54: P9870
A55: P9871 | B55: Motorista de veículo especial | C55: h | F55: 35.0256 | G55: 0 | H55: P9871
A56: P9875 | B56: Encarregado de turma | C56: mês | F56: 5828.315 | G56: 0 | H56: P9875
A57: P9876 | B57: Técnico de segurança do trabalho | C57: mês | F57: 7298.4723 | G57: 0 | H57: P9876
A58: P9878 | B58: Secretária | C58: mês | F58: 6718.4541 | G58: 0 | H58: P9878
A59: P9880 | B59: Piloto fluvial | C59: mês | F59: 7681.1978 | G59: 0 | H59: P9880
A60: P9882 | B60: Técnico especializado | C60: h | F60: 38.3928 | G60: 0 | H60: P9882
A61: P9883 | B61: Chefe do setor administrativo | C61: mês | F61: 7575.8406 | G61: 0 | H61: P9883
A62: P9884 | B62: Encarregado de terraplenagem | C62: mês | F62: 8270.9705 | G62: 0 | H62: P9884
A63: P9885 | B63: Frentista de túnel | C63: h | F63: 22.0907 | G63: 0 | H63: P9885
A64: P9889 | B64: Técnico da qualidade | C64: mês | F64: 7897.1986 | G64: 0 | H64: P9889
A65: P9892 | B65: Auxiliar de blaster | C65: h | F65: 35.9167 | G65: 0.3 | H65: P9892
A66: P9893 | B66: Encarregado de pavimentação | C66: mês | F66: 8270.9705 | G66: 0 | H66: P9893
A67: P9896 | B67: Porteiro | C67: mês | F67: 4026.1953 | G67: 0 | H67: P9896
A68: P9897 | B68: Técnico de meio ambiente | C68: mês | F68: 7881.727 | G68: 0 | H68: P9897
A69: P9900 | B69: Comprador | C69: mês | F69: 7397.8048 | G69: 0 | H69: P9900
A70: P9901 | B70: Encarregado de superestrutura ferroviária | C70: mês | F70: 8270.9705 | G70: 0 | H70: P9901
A71: P9903 | B71: Auxiliar técnico | C71: mês | F71: 4684.6961 | G71: 0 | H71: P9903
A72: P9907 | B72: Comandante de longo curso | C72: mês | F72: 20406.5748 | G72: 0 | H72: P9907
A73: P9908 | B73: Imediato | C73: mês | F73: 16496.0338 | G73: 0 | H73: P9908
A74: P9909 | B74: Oficial de náutica | C74: mês | F74: 6710.0394 | G74: 0 | H74: P9909
A75: P9910 | B75: Oficial de máquinas | C75: mês | F75: 6537.6874 | G75: 0 | H75: P9910
A76: P9913 | B76: Draguista | C76: mês | F76: 6517.2139 | G76: 0 | H76: P9913
A77: P9915 | B77: Maquinista | C77: h | F77: 34.2553 | G77: 0 | H77: P9915
A78: P9916 | B78: Encarregado de conservação rodoviária | C78: mês | F78: 8270.9705 | G78: 0 | H78: P9916
A79: P9920 | B79: Mestre fluvial | C79: mês | F79: 8583.8884 | G79: 0 | H79: P9920
A80: P9921 | B80: Mergulhador raso autônomo de emergência | C80: h | F80: 38.9431 | G80: 0.2587 | H80: P9921
A81: P9922 | B81: Mergulhador raso dependente de emergência | C81: h | F81: 40.5121 | G81: 0.3 | H81: P9922
A82: P9924 | B82: Mergulhador raso dependente | C82: h | F82: 52.6832 | G82: 0.3 | H82: P9924
A83: P9925 | B83: Mergulhador raso autônomo | C83: h | F83: 48.9012 | G83: 0.2587 | H83: P9925
A84: P9926 | B84: Mergulhador raso auxiliar de superfície | C84: h | F84: 36.8397 | G84: 0.2587 | H84: P9926
A85: P9927 | B85: Frentista de túnel com periculosidade | C85: h | F85: 26.5408 | G85: 0.3 | H85: P9927
A86: P9930 | B86: Eletricista com periculosidade | C86: h | F86: 37.2762 | G86: 0.3 | H86: P9930
A87: P9931 | B87: Operador de equipamento de mergulho | C87: h | F87: 58.7273 | G87: 0.1425 | H87: P9931
A88: P9932 | B88: Operador de equipamento pesado com periculosidade | C88: h | F88: 41.2443 | G88: 0.3 | H88: P9932
A89: P9933 | B89: Supervisor de mergulho raso | C89: mês | F89: 10832.5565 | G89: 0.1425 | H89: P9933
A90: P9934 | B90: Motorista de veículo especial com periculosidade | C90: h | F90: 43.5266 | G90: 0.3 | H90: P9934
A91: P9938 | B91: Operador de equipamento leve com periculosidade | C91: h | F91: 33.7279 | G91: 0.3 | H91: P9938
A92: P9939 | B92: Operador de equipamento leve com insalubridade | C92: h | F92: 35.339 | G92: 0.2596 | H92: P9939
A93: P9942 | B93: Marinheiro de convés com periculosidade | C93: h | F93: 35.9468 | G93: 0.3 | H93: P9942
A94: P9944 | B94: Operador de equipamento especial com periculosidade | C94: h | F94: 54.0892 | G94: 0.3 | H94: P9944
A95: P9946 | B95: Engenheiro auxiliar | C95: mês | F95: 23592.8645 | G95: 0 | H95: P9946
A96: P9947 | B96: Técnico florestal | C96: mês | F96: 7881.727 | G96: 0 | H96: P9947
A97: P9948 | B97: Motorista de veículo leve - mensalista | C97: mês | F97: 5614.879 | G97: 0 | H97: P9948
A98: P9949 | B98: Topógrafo | C98: mês | F98: 8757.2734 | G98: 0 | H98: P9949
A99: P9950 | B99: Auxiliar de topografia | C99: mês | F99: 5667.1287 | G99: 0 | H99: P9950
A100: P9951 | B100: Médico de câmara hiperbárica | C100: mês | F100: 21148.057 | G100: 0.0583 | H100: P9951
A101: P9952 | B101: Pedreiro - mensalista | C101: mês | F101: 5108.1604 | G101: 0 | H101: P9952
A102: P9953 | B102: Eletricista - mensalista | C102: mês | F102: 5593.9461 | G102: 0 | H102: P9953
A103: P9954 | B103: Servente - mensalista | C103: mês | F103: 3953.259 | G103: 0 | H103: P9954
A104: P9955 | B104: Engenheiro chefe | C104: mês | F104: 31577.9207 | G104: 0 | H104: P9955
A105: P9956 | B105: Motorista de caminhão com periculosidade | C105: h | F105: 36.8769 | G105: 0.3 | H105: P9956
A106: P9972 | B106: Técnico de batimetria | C106: mês | F106: 6696.4841 | G106: 0 | H106: P9972

Sheet Tabela 1 (hidden)
B1: Código | C1: Categoria | D1: Unid. | E1: Salário | F1: Encargos Sociais | H1: Encargos Complementares | R1: Encargos Adicionais | X1: Encargos Totais | Z1: Valor Total
H2: Alimentação | J2: EPI | L2: Ferramenta | N2: Transporte | P2: Exame Ocupacional | R2: Cesta Básica | T2: Assistência Médica | V2: Seguro de Vida
E3: R$ | F3: % | G3: R$ | H3: % | I3: R$ | J3: % | K3: R$ | L3: % | M3: R$ | N3: % | O3: R$ | P3: % | Q3: R$ | R3: % | S3: R$ | T3: % | U3: R$ | V3: % | W3: R$ | X3: % | Y3: R$ | Z3: R$
B4: P8001 | C4: Advogado júnior | D4: mês | E4: 4939.72 | F4: 79.39 | G4: 3921.65 | H4: 14.91 | I4: 736.74 | J4: 0.55 | K4: 27.13 | L4: 0 | M4: 0 | N4: 0 | O4: 0 | P4: 0.06 | Q4: 3.02 | R4: 0 | S4: 0 | T4: 6.36 | U4: 314.2 | V4: 0.2 | W4: 9.98 | X4: 101.48 | Y4: 5012.72 | Z4: 9952.44
B5: P8002 | C5: Advogado pleno | D5: mês | E5: 6586.3 | F5: 79.39 | G5: 5228.86 | H5: 11.19 | I5: 736.74 | J5: 0.41 | K5: 27.13 | L5: 0 | M5: 0 | N5: 0 | O5: 0 | P5: 0.05 | Q5: 3.02 | R5: 0 | S5: 0 | T5: 4.77 | U5: 314.2 | V5: 0.15 | W5: 9.98 | X5: 95.96 | Y5: 6319.94 | Z5: 12906.23
B6: P8003 | C6: Advogado sênior | D6: mês | E6: 12088.9 | F6: 79.39 | G6: 9597.38 | H6: 6.09 | I6: 736.74 | J6: 0.22 | K6: 27.13 | L6: 0 | M6: 0 | N6: 0 | O6: 0 | P6: 0.02 | Q6: 3.02 | R6: 0 | S6: 0 | T6: 2.6 | U6: 314.2 | V6: 0.08 | W6: 9.98 | X6: 88.42 | Y6: 10688.45 | Z6: 22777.35
B7: P8007 | C7: Analista de desenvolvimento de sistemas júnior | D7: mês | E7: 4251.21 | F7: 79.59 | G7: 3383.54 | H7: 17.33 | I7: 736.74 | J7: 0 | K7: 0 | L7: 0 | M7: 0 | N7: 0 | O7: 0 | P7: 0.08 | Q7: 3.27 | R7: 0 | S7: 0 | T7: 7.39 | U7: 314.2 | V7: 0.23 | W7: 9.98 | X7: 104.62 | Y7: 4447.73 | Z7: 8698.95
B8: P8008 | C8: Analista de desenvolvimento de sistemas pleno | D8: mês | E8: 5668.29 | F8: 79.59 | G8: 4511.39 | H8: 13 | I8: 736.74 | J8: 0 | K8: 0 | L8: 0 | M8: 0 | N8: 0 | O8: 0 | P8: 0.06 | Q8: 3.27 | R8: 0 | S8: 0 | T8: 5.54 | U8: 314.2 | V8: 0.18 | W8: 9.98 | X8: 98.36 | Y8: 5575.58 | Z8: 11243.87
B9: P8009 | C9: Analista de desenvolvimento de sistemas sênior | D9: mês | E9: 10092 | F9: 79.59 | G9: 8032.22 | H9: 7.3 | I9: 736.74 | J9: 0 | K9: 0 | L9: 0 | M9: 0 | N9: 0 | O9: 0 | P9: 0.03 | Q9: 3.27 | R9: 0 | S9: 0 | T9: 3.11 | U9: 314.2 | V9: 0.1 | W9: 9.98 | X9: 90.13 | Y9: 9096.41 | Z9: 19188.41
B10: P8013 | C10: Arquiteto júnior | D10: mês | E10: 12903 | F10: 79.43 | G10: 10248.85 | H10: 5.71 | I10: 736.74 | J10: 0.21 | K10: 27.13 | L10: 0 | M10: 0 | N10: 0 | O10: 0 | P10: 0.02 | Q10: 2.8 | R10: 0 | S10: 0 | T10: 2.44 | U10: 314.2 | V10: 0.08 | W10: 9.98 | X10: 87.88 | Y10: 11339.71 | Z10: 24242.71
B11: P8014 | C11: Arquiteto pleno | D11: mês | E11: 14712.81 | F11: 79.43 | G11: 11686.39 | H11: 5.01 | I11: 736.74 | J11: 0.18 | K11: 27.13 | L11: 0 | M11: 0 | N11: 0 | O11: 0 | P11: 0.02 | Q11: 2.8 | R11: 0 | S11: 0 | T11: 2.14 | U11: 314.2 | V11: 0.07 | W11: 9.98 | X11: 86.84 | Y11: 12777.24 | Z11: 27490.05
B12: P8015 | C12: Arquiteto sênior | D12: mês | E12: 16522.62 | F12: 79.43 | G12: 13123.92 | H12: 4.46 | I12: 736.74 | J12: 0.16 | K12: 27.13 | L12: 0 | M12: 0 | N12: 0 | O12: 0 | P12: 0.02 | Q12: 2.8 | R12: 0 | S12: 0 | T12: 1.9 | U12: 314.2 | V12: 0.06 | W12: 9.98 | X12: 86.03 | Y12: 14214.77 | Z12: 30737.39
B13: P8019 | C13: Assistente social júnior | D13: mês | E13: 3362.83 | F13: 80.12 | G13: 2694.3 | H13: 21.91 | I13: 736.74 | J13: 0.81 | K13: 27.13 | L13: 0 | M13: 0 | N13: 1.4 | O13: 47.13 | P13: 0.13 | Q13: 4.22 | R13: 0 | S13: 0 | T13: 9.34 | U13: 314.2 | V13: 0.3 | W13: 9.98 | X13: 114 | Y13: 3833.7 | Z13: 7196.53
B14: P8020 | C14: Assistente social pleno | D14: mês | E14: 4483.77 | F14: 80.12 | G14: 3592.4 | H14: 16.43 | I14: 736.74 | J14: 0.61 | K14: 27.13 | L14: 0 | M14: 0 | N14: 0 | O14: 0 | P14: 0.09 | Q14: 4.22 | R14: 0 | S14: 0 | T14: 7.01 | U14: 314.2 | V14: 0.22 | W14: 9.98 | X14: 104.48 | Y14: 4684.67 | Z14: 9168.44
B15: P8021 | C15: Assistente social sênior | D15: mês | E15: 7579.69 | F15: 80.12 | G15: 6072.85 | H15: 9.72 | I15: 736.74 | J15: 0.36 | K15: 27.13 | L15: 0 | M15: 0 | N15: 0 | O15: 0 | P15: 0.06 | Q15: 4.22 | R15: 0 | S15: 0 | T15: 4.15 | U15: 314.2 | V15: 0.13 | W15: 9.98 | X15: 94.53 | Y15: 7165.12 | Z15: 14744.81
B16: P8025 | C16: Auxiliar | D16: mês | E16: 1665.28 | F16: 81.72 | G16: 1360.86 | H16: 44.24 | I16: 736.74 | J16: 1.98 | K16: 33.03 | L16: 0.1 | M16: 1.69 | N16: 8.95 | O16: 148.98 | P16: 0.34 | Q16: 5.64 | R16: 0 | S16: 0 | T16: 18.87 | U16: 314.2 | V16: 0.6 | W16: 9.98 | X16: 156.8 | Y16: 2611.13 | Z16: 4276.41
B17: P8026 | C17: Auxiliar administrativo | D17: mês | E17: 1931.52 | F17: 80.33 | G17: 1551.59 | H17: 38.14 | I17: 736.74 | J17: 0 | K17: 0 | L17: 0 | M17: 0 | N17: 6.89 | O17: 133.01 | P17: 0.24 | Q17: 4.65 | R17: 0 | S17: 0 | T17: 16.27 | U17: 314.2 | V17: 0.52 | W17: 9.98 | X17: 142.38 | Y17: 2750.17 | Z17: 4681.69
B18: P8027 | C18: Auxiliar de laboratório | D18: mês | E18: 1836.99 | F18: 80.41 | G18: 1477.12 | H18: 40.11 | I18: 736.74 | J18: 1.8 | K18: 33.03 | L18: 0.19 | M18: 3.49 | N18: 7.55 | O18: 138.68 | P18: 0.21 | Q18: 3.86 | R18: 0 | S18: 0 | T18: 17.1 | U18: 314.2 | V18: 0.54 | W18: 9.98 | X18: 147.91 | Y18: 2717.1 | Z18: 4554.09
B19: P8028 | C19: Auxiliar de topografia | D19: mês | E19: 1665.28 | F19: 80.6 | G19: 1342.21 | H19: 44.24 | I19: 736.74 | J19: 1.98 | K19: 33.03 | L19: 0.09 | M19: 1.47 | N19: 8.95 | O19: 148.98 | P19: 0.24 | Q19: 4.06 | R19: 0 | S19: 0 | T19: 18.87 | U19: 314.2 | V19: 0.6 | W19: 9.98 | X19: 155.57 | Y19: 2590.68 | Z19: 4255.96
B20: P8032 | C20: Biólogo júnior | D20: mês | E20: 3225.03 | F20: 79.75 | G20: 2571.96 | H20: 22.84 | I20: 736.74 | J20: 0.84 | K20: 27.13 | L20: 0 | M20: 0 | N20: 1.72 | O20: 55.4 | P20: 0.11 | Q20: 3.47 | R20: 0 | S20: 0 | T20: 9.74 | U20: 314.2 | V20: 0.31 | W20: 9.98 | X20: 115.31 | Y20: 3718.88 | Z20: 6943.91
B21: P8033 | C21: Biólogo pleno | D21: mês | E21: 4300.04 | F21: 79.75 | G21: 3429.28 | H21: 17.13 | I21: 736.74 | J21: 0.63 | K21: 27.13 | L21: 0 | M21: 0 | N21: 0 | O21: 0 | P21: 0.08 | Q21: 3.47 | R21: 0 | S21: 0 | T21: 7.31 | U21: 314.2 | V21: 0.23 | W21: 9.98 | X21: 105.13 | Y21: 4520.81 | Z21: 8820.85
B22: P8034 | C22: Biólogo sênior | D22: mês | E22: 7780.45 | F22: 79.75 | G22: 6204.91 | H22: 9.47 | I22: 736.74 | J22: 0.35 | K22: 27.13 | L22: 0 | M22: 0 | N22: 0 | O22: 0 | P22: 0.04 | Q22: 3.47 | R22: 0 | S22: 0 | T22: 4.04 | U22: 314.2 | V22: 0.13 | W22: 9.98 | X22: 93.78 | Y22: 7296.43 | Z22: 15076.89
B23: P8038 | C23: Chefe de escritório | D23: mês | E23: 3574.77 | F23: 79.5 | G23: 2841.94 | H23: 20.61 | I23: 736.74 | J23: 0 | K23: 0 | L23: 0 | M23: 0 | N23: 0.96 | O23: 34.41 | P23: 0.07 | Q23: 2.55 | R23: 0 | S23: 0 | T23: 8.79 | U23: 314.2 | V23: 0.28 | W23: 9.98 | X23: 110.21 | Y23: 3939.83 | Z23: 7514.6
B24: P8040 | C24: Contador júnior | D24: mês | E24: 4357.59 | F24: 79.5 | G24: 3464.28 | H24: 16.91 | I24: 736.74 | J24: 0 | K24: 0 | L24: 0 | M24: 0 | N24: 0 | O24: 0 | P24: 0.06 | Q24: 2.6 | R24: 0 | S24: 0 | T24: 7.21 | U24: 314.2 | V24: 0.23 | W24: 9.98 | X24: 103.91 | Y24: 4527.8 | Z24: 8885.39
B25: P8041 | C25: Contador pleno | D25: mês | E25: 5810.11 | F25: 79.5 | G25: 4619.04 | H25: 12.68 | I25: 736.74 | J25: 0 | K25: 0 | L25: 0 | M25: 0 | N25: 0 | O25: 0 | P25: 0.04 | Q25: 2.6 | R25: 0 | S25: 0 | T25: 5.41 | U25: 314.2 | V25: 0.17 | W25: 9.98 | X25: 97.8 | Y25: 5682.56 | Z25: 11492.68
B26: P8042 | C26: Contador sênior | D26: mês | E26: 11135.61 | F26: 79.5 | G26: 8852.81 | H26: 6.62 | I26: 736.74 | J26: 0 | K26: 0 | L26: 0 | M26: 0 | N26: 0 | O26: 0 | P26: 0.02 | Q26: 2.6 | R26: 0 | S26: 0 | T26: 2.82 | U26: 314.2 | V26: 0.09 | W26: 9.98 | X26: 89.05 | Y26: 9916.34 | Z26: 21051.95
B27: P8044 | C27: Coordenador ambiental | D27: mês | E27: 18152.96 | F27: 79.92 | G27: 14507.85 | H27: 4.06 | I27: 736.74 | J27: 0.14 | K27: 24.78 | L27: 0 | M27: 0 | N27: 0 | O27: 0 | P27: 0.02 | Q27: 4.08 | R27: 0 | S27: 0 | T27: 1.73 | U27: 314.2 | V27: 0.05 | W27: 9.98 | X27: 85.92 | Y27: 15597.62 | Z27: 33750.59
B28: P8045 | C28: Economista júnior | D28: mês | E28: 4833.48 | F28: 78.7 | G28: 3803.95 | H28: 15.24 | I28: 736.74 | J28: 0 | K28: 0 | L28: 0 | M28: 0 | N28: 0 | O28: 0 | P28: 0.04 | Q28: 1.84 | R28: 0 | S28: 0 | T28: 6.5 | U28: 314.2 | V28: 0.21 | W28: 9.98 | X28: 100.69 | Y28: 4866.71 | Z28: 9700.18
B29: P8046 | C29: Economista pleno | D29: mês | E29: 6444.64 | F29: 78.7 | G29: 5071.93 | H29: 11.43 | I29: 736.74 | J29: 0 | K29: 0 | L29: 0 | M29: 0 | N29: 0 | O29: 0 | P29: 0.03 | Q29: 1.84 | R29: 0 | S29: 0 | T29: 4.88 | U29: 314.2 | V29: 0.15 | W29: 9.98 | X29: 95.19 | Y29: 6134.69 | Z29: 12579.32
B30: P8047 | C30: Economista sênior | D30: mês | E30: 9829.99 | F30: 78.7 | G30: 7736.2 | H30: 7.49 | I30: 736.74 | J30: 0 | K30: 0 | L30: 0 | M30: 0 | N30: 0 | O30: 0 | P30: 0.02 | Q30: 1.84 | R30: 0 | S30: 0 | T30: 3.2 | U30: 314.2 | V30: 0.1 | W30: 9.98 | X30: 89.51 | Y30: 8798.96 | Z30: 18628.95
B31: P8054 | C31: Engenheiro agrônomo júnior | D31: mês | E31: 12903 | F31: 79.36 | G31: 10239.82 | H31: 5.71 | I31: 736.74 | J31: 0.21 | K31: 27.13 | L31: 0 | M31: 0 | N31: 0 | O31: 0 | P31: 0.02 | Q31: 3.02 | R31: 0 | S31: 0 | T31: 2.44 | U31: 314.2 | V31: 0.08 | W31: 9.98 | X31: 87.82 | Y31: 11330.9 | Z31: 24233.9
B32: P8055 | C32: Engenheiro agrônomo pleno | D32: mês | E32: 13740.95 | F32: 79.36 | G32: 10904.81 | H32: 5.36 | I32: 736.74 | J32: 0.2 | K32: 27.13 | L32: 0 | M32: 0 | N32: 0 | O32: 0 | P32: 0.02 | Q32: 3.02 | R32: 0 | S32: 0 | T32: 2.29 | U32: 314.2 | V32: 0.07 | W32: 9.98 | X32: 87.3 | Y32: 11995.89 | Z32: 25736.84
B33: P8056 | C33: Engenheiro agrônomo sênior | D33: mês | E33: 14578.89 | F33: 79.36 | G33: 11569.81 | H33: 5.05 | I33: 736.74 | J33: 0.19 | K33: 27.13 | L33: 0 | M33: 0 | N33: 0 | O33: 0 | P33: 0.02 | Q33: 3.02 | R33: 0 | S33: 0 | T33: 2.16 | U33: 314.2 | V33: 0.07 | W33: 9.98 | X33: 86.84 | Y33: 12660.88 | Z33: 27239.78
B34: P8057 | C34: Engenheiro ambiental júnior | D34: mês | E34: 12903 | F34: 80.28 | G34: 10358.53 | H34: 5.71 | I34: 736.74 | J34: 0.21 | K34: 27.13 | L34: 0 | M34: 0 | N34: 0 | O34: 0 | P34: 0.04 | Q34: 4.63 | R34: 0 | S34: 0 | T34: 2.44 | U34: 314.2 | V34: 0.08 | W34: 9.98 | X34: 88.75 | Y34: 11451.21 | Z34: 24354.21
B35: P8058 | C35: Engenheiro ambiental pleno | D35: mês | E35: 14125.9 | F35: 80.28 | G35: 11340.28 | H35: 5.22 | I35: 736.74 | J35: 0.19 | K35: 27.13 | L35: 0 | M35: 0 | N35: 0 | O35: 0 | P35: 0.03 | Q35: 4.63 | R35: 0 | S35: 0 | T35: 2.22 | U35: 314.2 | V35: 0.07 | W35: 9.98 | X35: 88.02 | Y35: 12432.96 | Z35: 26558.86
B36: P8059 | C36: Engenheiro ambiental sênior | D36: mês | E36: 15348.81 | F36: 80.28 | G36: 12322.02 | H36: 4.8 | I36: 736.74 | J36: 0.18 | K36: 27.13 | L36: 0 | M36: 0 | N36: 0 | O36: 0 | P36: 0.03 | Q36: 4.63 | R36: 0 | S36: 0 | T36: 2.05 | U36: 314.2 | V36: 0.07 | W36: 9.98 | X36: 87.4 | Y36: 13414.7 | Z36: 28763.51
B37: P8060 | C37: Engenheiro consultor especial | D37: mês | E37: 22750.26 | F37: 79.78 | G37: 18150.16 | H37: 3.24 | I37: 736.74 | J37: 0.11 | K37: 24.78 | L37: 0 | M37: 0 | N37: 0 | O37: 0 | P37: 0.02 | Q37: 3.75 | R37: 0 | S37: 0 | T37: 1.38 | U37: 314.2 | V37: 0.04 | W37: 9.98 | X37: 84.57 | Y37: 19239.61 | Z37: 41989.87
B38: P8061 | C38: Engenheiro coordenador | D38: mês | E38: 18958.55 | F38: 79.78 | G38: 15125.13 | H38: 3.89 | I38: 736.74 | J38: 0.13 | K38: 24.78 | L38: 0 | M38: 0 | N38: 0 | O38: 0 | P38: 0.02 | Q38: 3.75 | R38: 0 | S38: 0 | T38: 1.66 | U38: 314.2 | V38: 0.05 | W38: 9.98 | X38: 85.53 | Y38: 16214.58 | Z38: 35173.13
B39: P8062 | C39: Engenheiro de pesca júnior | D39: mês | E39: 12903 | F39: 80.15 | G39: 10341.75 | H39: 5.71 | I39: 736.74 | J39: 0.21 | K39: 27.13 | L39: 0 | M39: 0 | N39: 0 | O39: 0 | P39: 0.03 | Q39: 3.5 | R39: 0 | S39: 0 | T39: 2.44 | U39: 314.2 | V39: 0.08 | W39: 9.98 | X39: 88.61 | Y39: 11433.3 | Z39: 24336.3
B40: P8063 | C40: Engenheiro de pesca pleno | D40: mês | E40: 13978.87 | F40: 80.15 | G40: 11204.06 | H40: 5.27 | I40: 736.74 | J40: 0.19 | K40: 27.13 | L40: 0 | M40: 0 | N40: 0 | O40: 0 | P40: 0.03 | Q40: 3.5 | R40: 0 | S40: 0 | T40: 2.25 | U40: 314.2 | V40: 0.07 | W40: 9.98 | X40: 87.96 | Y40: 12295.61 | Z40: 26274.48
B41: P8064 | C41: Engenheiro de pesca sênior | D41: mês | E41: 15054.74 | F41: 80.15 | G41: 12066.37 | H41: 4.89 | I41: 736.74 | J41: 0.18 | K41: 27.13 | L41: 0 | M41: 0 | N41: 0 | O41: 0 | P41: 0.02 | Q41: 3.5 | R41: 0 | S41: 0 | T41: 2.09 | U41: 314.2 | V41: 0.07 | W41: 9.98 | X41: 87.4 | Y41: 13157.92 | Z41: 28212.66
B42: P8065 | C42: Engenheiro de projetos júnior | D42: mês | E42: 12903 | F42: 79.78 | G42: 10294.01 | H42: 5.71 | I42: 736.74 | J42: 0.21 | K42: 27.13 | L42: 0 | M42: 0 | N42: 0 | O42: 0 | P42: 0.03 | Q42: 3.75 | R42: 0 | S42: 0 | T42: 2.44 | U42: 314.2 | V42: 0.08 | W42: 9.98 | X42: 88.24 | Y42: 11385.81 | Z42: 24288.81
B43: P8066 | C43: Engenheiro de projetos pleno | D43: mês | E43: 14740.22 | F43: 79.78 | G43: 11759.75 | H43: 5 | I43: 736.74 | J43: 0.18 | K43: 27.13 | L43: 0 | M43: 0 | N43: 0 | O43: 0 | P43: 0.03 | Q43: 3.75 | R43: 0 | S43: 0 | T43: 2.13 | U43: 314.2 | V43: 0.07 | W43: 9.98 | X43: 87.19 | Y43: 12851.55 | Z43: 27591.76
B44: P8067 | C44: Engenheiro de projetos sênior | D44: mês | E44: 16577.43 | F44: 79.78 | G44: 13225.48 | H44: 4.44 | I44: 736.74 | J44: 0.16 | K44: 27.13 | L44: 0 | M44: 0 | N44: 0 | O44: 0 | P44: 0.02 | Q44: 3.75 | R44: 0 | S44: 0 | T44: 1.9 | U44: 314.2 | V44: 0.06 | W44: 9.98 | X44: 86.37 | Y44: 14317.28 | Z44: 30894.71
B45: P8068 | C45: Engenheiro florestal júnior | D45: mês | E45: 12903 | F45: 80.15 | G45: 10341.75 | H45: 5.71 | I45: 736.74 | J45: 0.21 | K45: 27.13 | L45: 0 | M45: 0 | N45: 0 | O45: 0 | P45: 0.03 | Q45: 3.5 | R45: 0 | S45: 0 | T45: 2.44 | U45: 314.2 | V45: 0.08 | W45: 9.98 | X45: 88.61 | Y45: 11433.3 | Z45: 24336.3
B46: P8069 | C46: Engenheiro florestal pleno | D46: mês | E46: 13978.87 | F46: 80.15 | G46: 11204.06 | H46: 5.27 | I46: 736.74 | J46: 0.19 | K46: 27.13 | L46: 0 | M46: 0 | N46: 0 | O46: 0 | P46: 0.03 | Q46: 3.5 | R46: 0 | S46: 0 | T46: 2.25 | U46: 314.2 | V46: 0.07 | W46: 9.98 | X46: 87.96 | Y46: 12295.61 | Z46: 26274.48
B47: P8070 | C47: Engenheiro florestal sênior | D47: mês | E47: 15054.74 | F47: 80.15 | G47: 12066.37 | H47: 4.89 | I47: 736.74 | J47: 0.18 | K47: 27.13 | L47: 0 | M47: 0 | N47: 0 | O47: 0 | P47: 0.02 | Q47: 3.5 | R47: 0 | S47: 0 | T47: 2.09 | U47: 314.2 | V47: 0.07 | W47: 9.98 | X47: 87.4 | Y47: 13157.92 | Z47: 28212.66
B48: P8080 | C48: Geólogo júnior | D48: mês | E48: 12903 | F48: 80.24 | G48: 10353.37 | H48: 5.5 | I48: 709.66 | J48: 0.21 | K48: 27.13 | L48: 0 | M48: 0 | N48: 0 | O48: 0 | P48: 0.03 | Q48: 3.76 | R48: 0 | S48: 0 | T48: 2.44 | U48: 314.2 | V48: 0.08 | W48: 9.98 | X48: 88.49 | Y48: 11418.09 | Z48: 24321.09
B49: P8081 | C49: Geólogo pleno | D49: mês | E49: 13712.52 | F49: 80.24 | G49: 11002.93 | H49: 5.18 | I49: 709.66 | J49: 0.2 | K49: 27.13 | L49: 0 | M49: 0 | N49: 0 | O49: 0 | P49: 0.03 | Q49: 3.76 | R49: 0 | S49: 0 | T49: 2.29 | U49: 314.2 | V49: 0.07 | W49: 9.98 | X49: 88 | Y49: 12067.66 | Z49: 25780.18
B50: P8082 | C50: Geólogo sênior | D50: mês | E50: 14522.05 | F50: 80.24 | G50: 11652.49 | H50: 4.89 | I50: 709.66 | J50: 0.19 | K50: 27.13 | L50: 0 | M50: 0 | N50: 0 | O50: 0 | P50: 0.03 | Q50: 3.76 | R50: 0 | S50: 0 | T50: 2.16 | U50: 314.2 | V50: 0.07 | W50: 9.98 | X50: 87.57 | Y50: 12717.22 | Z50: 27239.27
B51: P8092 | C51: Jornalista júnior | D51: mês | E51: 3280.26 | F51: 79.6 | G51: 2611.09 | H51: 22.46 | I51: 736.74 | J51: 0.83 | K51: 27.13 | L51: 0 | M51: 0 | N51: 1.59 | O51: 52.08 | P51: 0.08 | Q51: 2.49 | R51: 0 | S51: 0 | T51: 9.58 | U51: 314.2 | V51: 0.3 | W51: 9.98 | X51: 114.43 | Y51: 3753.72 | Z51: 7033.98
B52: P8093 | C52: Jornalista pleno | D52: mês | E52: 4373.69 | F52: 79.6 | G52: 3481.45 | H52: 16.84 | I52: 736.74 | J52: 0.62 | K52: 27.13 | L52: 0 | M52: 0 | N52: 0 | O52: 0 | P52: 0.06 | Q52: 2.49 | R52: 0 | S52: 0 | T52: 7.18 | U52: 314.2 | V52: 0.23 | W52: 9.98 | X52: 104.53 | Y52: 4572 | Z52: 8945.68
B53: P8094 | C53: Jornalista sênior | D53: mês | E53: 8312.62 | F53: 79.6 | G53: 6616.84 | H53: 8.86 | I53: 736.74 | J53: 0.33 | K53: 27.13 | L53: 0 | M53: 0 | N53: 0 | O53: 0 | P53: 0.03 | Q53: 2.49 | R53: 0 | S53: 0 | T53: 3.78 | U53: 314.2 | V53: 0.12 | W53: 9.98 | X53: 92.72 | Y53: 7707.39 | Z53: 16020
B54: P8098 | C54: Laboratorista | D54: mês | E54: 2449.31 | F54: 80.41 | G54: 1969.49 | H54: 30.08 | I54: 736.74 | J54: 1.24 | K54: 30.41 | L54: 0 | M54: 0 | N54: 4.16 | O54: 101.94 | P54: 0.16 | Q54: 3.86 | R54: 0 | S54: 0 | T54: 12.83 | U54: 314.2 | V54: 0.41 | W54: 9.98 | X54: 129.29 | Y54: 3166.63 | Z54: 5615.95
B55: P8102 | C55: Médico veterinário | D55: mês | E55: 12903 | F55: 79.12 | G55: 10208.85 | H55: 5.71 | I55: 736.74 | J55: 0.21 | K55: 27.13 | L55: 0 | M55: 0 | N55: 0 | O55: 0 | P55: 0.02 | Q55: 2.68 | R55: 0 | S55: 0 | T55: 2.44 | U55: 314.2 | V55: 0.08 | W55: 9.98 | X55: 87.57 | Y55: 11299.58 | Z55: 24202.58
B56: P8106 | C56: Meteorologista júnior | D56: mês | E56: 5337.05 | F56: 79.75 | G56: 4256.3 | H56: 13.8 | I56: 736.74 | J56: 0.51 | K56: 27.13 | L56: 0 | M56: 0 | N56: 0 | O56: 0 | P56: 0.05 | Q56: 2.68 | R56: 0 | S56: 0 | T56: 5.89 | U56: 314.2 | V56: 0.19 | W56: 9.98 | X56: 100.19 | Y56: 5347.03 | Z56: 10684.08
B57: P8107 | C57: Meteorologista pleno | D57: mês | E57: 7116.07 | F57: 79.75 | G57: 5675.07 | H57: 10.35 | I57: 736.74 | J57: 0.38 | K57: 27.13 | L57: 0 | M57: 0 | N57: 0 | O57: 0 | P57: 0.04 | Q57: 2.68 | R57: 0 | S57: 0 | T57: 4.42 | U57: 314.2 | V57: 0.14 | W57: 9.98 | X57: 95.08 | Y57: 6765.8 | Z57: 13881.87
B58: P8108 | C58: Meteorologista sênior | D58: mês | E58: 11704.98 | F58: 79.75 | G58: 9334.72 | H58: 6.29 | I58: 736.74 | J58: 0.23 | K58: 27.13 | L58: 0 | M58: 0 | N58: 0 | O58: 0 | P58: 0.02 | Q58: 2.68 | R58: 0 | S58: 0 | T58: 2.68 | U58: 314.2 | V58: 0.09 | W58: 9.98 | X58: 89.07 | Y58: 10425.45 | Z58: 22130.43
B59: P8112 | C59: Motorista de caminhão | D59: mês | E59: 2472.47 | F59: 80.57 | G59: 1992.07 | H59: 29.8 | I59: 736.74 | J59: 1.34 | K59: 33.03 | L59: 0 | M59: 0 | N59: 4.07 | O59: 100.55 | P59: 0.16 | Q59: 3.97 | R59: 0 | S59: 0 | T59: 12.71 | U59: 314.2 | V59: 0.4 | W59: 9.98 | X59: 129.04 | Y59: 3190.54 | Z59: 5663
B60: P8113 | C60: Motorista de veículo leve | D60: mês | E60: 2160.31 | F60: 80.11 | G60: 1730.63 | H60: 34.1 | I60: 736.74 | J60: 1.53 | K60: 33.03 | L60: 0 | M60: 0 | N60: 5.52 | O60: 119.28 | P60: 0.16 | Q60: 3.48 | R60: 0 | S60: 0 | T60: 14.54 | U60: 314.2 | V60: 0.46 | W60: 9.98 | X60: 136.43 | Y60: 2947.34 | Z60: 5107.65
B61: P8117 | C61: Oceanógrafo júnior | D61: mês | E61: 4764.92 | F61: 82.55 | G61: 3933.44 | H61: 15.46 | I61: 736.74 | J61: 0.57 | K61: 27.13 | L61: 0 | M61: 0 | N61: 0 | O61: 0 | P61: 0.12 | Q61: 5.7 | R61: 0 | S61: 0 | T61: 6.59 | U61: 314.2 | V61: 0.21 | W61: 9.98 | X61: 105.5 | Y61: 5027.19 | Z61: 9792.12
B62: P8118 | C62: Oceanógrafo pleno | D62: mês | E62: 6353.23 | F62: 82.55 | G62: 5244.59 | H62: 11.6 | I62: 736.74 | J62: 0.43 | K62: 27.13 | L62: 0 | M62: 0 | N62: 0 | O62: 0 | P62: 0.09 | Q62: 5.7 | R62: 0 | S62: 0 | T62: 4.95 | U62: 314.2 | V62: 0.16 | W62: 9.98 | X62: 99.77 | Y62: 6338.34 | Z62: 12691.57
B63: P8119 | C63: Oceanógrafo sênior | D63: mês | E63: 11634.21 | F63: 82.55 | G63: 9604.04 | H63: 6.33 | I63: 736.74 | J63: 0.23 | K63: 27.13 | L63: 0 | M63: 0 | N63: 0 | O63: 0 | P63: 0.05 | Q63: 5.7 | R63: 0 | S63: 0 | T63: 2.7 | U63: 314.2 | V63: 0.09 | W63: 9.98 | X63: 91.95 | Y63: 10697.79 | Z63: 22332
B64: P8129 | C64: Pedagogo júnior | D64: mês | E64: 2518.27 | F64: 97.74 | G64: 2461.35 | H64: 29.26 | I64: 736.74 | J64: 1.08 | K64: 27.13 | L64: 0 | M64: 0 | N64: 3.88 | O64: 97.8 | P64: 0.16 | Q64: 4.14 | R64: 0 | S64: 0 | T64: 12.48 | U64: 314.2 | V64: 0.4 | W64: 9.98 | X64: 144.99 | Y64: 3651.35 | Z64: 6169.62
B65: P8130 | C65: Pedagogo pleno | D65: mês | E65: 3357.69 | F65: 97.74 | G65: 3281.81 | H65: 21.94 | I65: 736.74 | J65: 0.81 | K65: 27.13 | L65: 0 | M65: 0 | N65: 1.41 | O65: 47.44 | P65: 0.12 | Q65: 4.14 | R65: 0 | S65: 0 | T65: 9.36 | U65: 314.2 | V65: 0.3 | W65: 9.98 | X65: 131.68 | Y65: 4421.44 | Z65: 7779.13
B66: P8131 | C66: Pedagogo sênior | D66: mês | E66: 4447.62 | F66: 97.74 | G66: 4347.11 | H66: 16.56 | I66: 736.74 | J66: 0.61 | K66: 27.13 | L66: 0 | M66: 0 | N66: 0 | O66: 0 | P66: 0.09 | Q66: 4.14 | R66: 0 | S66: 0 | T66: 7.06 | U66: 314.2 | V66: 0.22 | W66: 9.98 | X66: 122.3 | Y66: 5439.3 | Z66: 9886.92
B67: P8135 | C67: Secretária | D67: mês | E67: 2841.65 | F67: 80.43 | G67: 2285.54 | H67: 25.93 | I67: 736.74 | J67: 0 | K67: 0 | L67: 0 | M67: 0 | N67: 2.76 | O67: 78.4 | P67: 0.16 | Q67: 4.47 | R67: 0 | S67: 0 | T67: 11.06 | U67: 314.2 | V67: 0.35 | W67: 9.98 | X67: 120.68 | Y67: 3429.33 | Z67: 6270.98
B68: P8139 | C68: Sondador | D68: mês | E68: 2149.64 | F68: 80.12 | G68: 1722.29 | H68: 34.27 | I68: 736.74 | J68: 1.41 | K68: 30.41 | L68: 0 | M68: 0 | N68: 5.58 | O68: 119.92 | P68: 0.21 | Q68: 4.58 | R68: 0 | S68: 0 | T68: 14.62 | U68: 314.2 | V68: 0.46 | W68: 9.98 | X68: 136.68 | Y68: 2938.13 | Z68: 5087.77
B69: P8143 | C69: Técnico ambiental | D69: mês | E69: 2987.19 | F69: 80.75 | G69: 2412.15 | H69: 24.66 | I69: 736.74 | J69: 1.02 | K69: 30.41 | L69: 0 | M69: 0 | N69: 2.33 | O69: 69.67 | P69: 0.16 | Q69: 4.7 | R69: 0 | S69: 0 | T69: 10.52 | U69: 314.2 | V69: 0.33 | W69: 9.98 | X69: 119.77 | Y69: 3577.85 | Z69: 6565.04
B70: P8147 | C70: Técnico de obras | D70: mês | E70: 3268.63 | F70: 80.27 | G70: 2623.73 | H70: 22.54 | I70: 736.74 | J70: 0.93 | K70: 30.41 | L70: 0 | M70: 0 | N70: 1.61 | O70: 52.78 | P70: 0.11 | Q70: 3.67 | R70: 0 | S70: 0 | T70: 9.61 | U70: 314.2 | V70: 0.31 | W70: 9.98 | X70: 115.39 | Y70: 3771.51 | Z70: 7040.14
B71: P8151 | C71: Técnico de segurança do trabalho | D71: mês | E71: 4601.83 | F71: 80.95 | G71: 3725.18 | H71: 16.01 | I71: 736.74 | J71: 0.66 | K71: 30.41 | L71: 0 | M71: 0 | N71: 0 | O71: 0 | P71: 0.1 | Q71: 4.4 | R71: 0 | S71: 0 | T71: 6.83 | U71: 314.2 | V71: 0.22 | W71: 9.98 | X71: 104.76 | Y71: 4820.92 | Z71: 9422.75
B72: P8155 | C72: Técnico em geoprocessamento | D72: mês | E72: 2908.72 | F72: 79.52 | G72: 2313.01 | H72: 25.33 | I72: 736.74 | J72: 1.05 | K72: 30.41 | L72: 0 | M72: 0 | N72: 2.56 | O72: 74.38 | P72: 0.11 | Q72: 3.2 | R72: 0 | S72: 0 | T72: 10.8 | U72: 314.2 | V72: 0.34 | W72: 9.98 | X72: 119.71 | Y72: 3481.93 | Z72: 6390.65
B73: P8163 | C73: Topógrafo | D73: mês | E73: 2558.11 | F73: 80.6 | G73: 2061.84 | H73: 28.8 | I73: 736.74 | J73: 1.19 | K73: 30.41 | L73: 0 | M73: 0 | N73: 3.73 | O73: 95.41 | P73: 0.16 | Q73: 4.06 | R73: 0 | S73: 0 | T73: 12.28 | U73: 314.2 | V73: 0.39 | W73: 9.98 | X73: 127.15 | Y73: 3252.65 | Z73: 5810.76
B74: P8167 | C74: Arquivista júnior | D74: mês | E74: 2646.43 | F74: 80.13 | G74: 2120.58 | H74: 27.84 | I74: 736.74 | J74: 0 | K74: 0 | L74: 0 | M74: 0 | N74: 3.41 | O74: 90.11 | P74: 0.15 | Q74: 4.01 | R74: 0 | S74: 0 | T74: 11.87 | U74: 314.2 | V74: 0.38 | W74: 9.98 | X74: 123.78 | Y74: 3275.63 | Z74: 5922.06
B75: P8168 | C75: Arquivista pleno | D75: mês | E75: 3528.57 | F75: 80.13 | G75: 2827.44 | H75: 20.88 | I75: 736.74 | J75: 0 | K75: 0 | L75: 0 | M75: 0 | N75: 1.05 | O75: 37.19 | P75: 0.11 | Q75: 4.01 | R75: 0 | S75: 0 | T75: 8.9 | U75: 314.2 | V75: 0.28 | W75: 9.98 | X75: 111.36 | Y75: 3929.57 | Z75: 7458.14
B76: P8169 | C76: Arquivista sênior | D76: mês | E76: 5691.23 | F76: 80.13 | G76: 4560.39 | H76: 12.95 | I76: 736.74 | J76: 0 | K76: 0 | L76: 0 | M76: 0 | N76: 0 | O76: 0 | P76: 0.07 | Q76: 4.01 | R76: 0 | S76: 0 | T76: 5.52 | U76: 314.2 | V76: 0.18 | W76: 9.98 | X76: 98.84 | Y76: 5625.33 | Z76: 11316.56
B77: P8173 | C77: Administrador júnior | D77: mês | E77: 3537.16 | F77: 79.7 | G77: 2819.12 | H77: 20.83 | I77: 736.74 | J77: 0 | K77: 0 | L77: 0 | M77: 0 | N77: 1.04 | O77: 36.67 | P77: 0.1 | Q77: 3.42 | R77: 0 | S77: 0 | T77: 8.88 | U77: 314.2 | V77: 0.28 | W77: 9.98 | X77: 110.83 | Y77: 3920.13 | Z77: 7457.29
B78: P8174 | C78: Administrador pleno | D78: mês | E78: 4716.22 | F78: 79.7 | G78: 3758.82 | H78: 15.62 | I78: 736.74 | J78: 0 | K78: 0 | L78: 0 | M78: 0 | N78: 0 | O78: 0 | P78: 0.07 | Q78: 3.42 | R78: 0 | S78: 0 | T78: 6.66 | U78: 314.2 | V78: 0.21 | W78: 9.98 | X78: 102.27 | Y78: 4823.17 | Z78: 9539.38
B79: P8175 | C79: Administrador sênior | D79: mês | E79: 8501.66 | F79: 79.7 | G79: 6775.82 | H79: 8.67 | I79: 736.74 | J79: 0 | K79: 0 | L79: 0 | M79: 0 | N79: 0 | O79: 0 | P79: 0.04 | Q79: 3.42 | R79: 0 | S79: 0 | T79: 3.7 | U79: 314.2 | V79: 0.12 | W79: 9.98 | X79: 92.22 | Y79: 7840.17 | Z79: 16341.82
B80: P8180 | C80: Engenheiro agrimensor júnior | D80: mês | E80: 12903 | F80: 80.06 | G80: 10330.14 | H80: 5.71 | I80: 736.74 | J80: 0.21 | K80: 27.13 | L80: 0 | M80: 0 | N80: 0 | O80: 0 | P80: 0.04 | Q80: 4.83 | R80: 0 | S80: 0 | T80: 2.44 | U80: 314.2 | V80: 0.08 | W80: 9.98 | X80: 88.53 | Y80: 11423.03 | Z80: 24326.03
B81: P8181 | C81: Engenheiro agrimensor pleno | D81: mês | E81: 13824.31 | F81: 80.06 | G81: 11067.74 | H81: 5.33 | I81: 736.74 | J81: 0.2 | K81: 27.13 | L81: 0 | M81: 0 | N81: 0 | O81: 0 | P81: 0.03 | Q81: 4.83 | R81: 0 | S81: 0 | T81: 2.27 | U81: 314.2 | V81: 0.07 | W81: 9.98 | X81: 87.97 | Y81: 12160.63 | Z81: 25984.93
B82: P8182 | C82: Engenheiro agrimensor sênior | D82: mês | E82: 14745.61 | F82: 80.06 | G82: 11805.34 | H82: 5 | I82: 736.74 | J82: 0.18 | K82: 27.13 | L82: 0 | M82: 0 | N82: 0 | O82: 0 | P82: 0.03 | Q82: 4.83 | R82: 0 | S82: 0 | T82: 2.13 | U82: 314.2 | V82: 0.07 | W82: 9.98 | X82: 87.47 | Y82: 12898.22 | Z82: 27643.84
B83: P8183 | C83: Geógrafo júnior | D83: mês | E83: 4048.9 | F83: 79.76 | G83: 3229.4 | H83: 18.2 | I83: 736.74 | J83: 0.67 | K83: 27.13 | L83: 0 | M83: 0 | N83: 0.15 | O83: 5.97 | P83: 0.09 | Q83: 3.52 | R83: 0 | S83: 0 | T83: 7.76 | U83: 314.2 | V83: 0.25 | W83: 9.98 | X83: 106.87 | Y83: 4326.94 | Z83: 8375.83
B84: P8184 | C84: Geógrafo pleno | D84: mês | E84: 5398.53 | F84: 79.76 | G84: 4305.87 | H84: 13.65 | I84: 736.74 | J84: 0.5 | K84: 27.13 | L84: 0 | M84: 0 | N84: 0 | O84: 0 | P84: 0.07 | Q84: 3.52 | R84: 0 | S84: 0 | T84: 5.82 | U84: 314.2 | V84: 0.18 | W84: 9.98 | X84: 99.98 | Y84: 5397.44 | Z84: 10795.97
B85: P8185 | C85: Geógrafo sênior | D85: mês | E85: 10648.45 | F85: 79.76 | G85: 8493.21 | H85: 6.92 | I85: 736.74 | J85: 0.25 | K85: 27.13 | L85: 0 | M85: 0 | N85: 0 | O85: 0 | P85: 0.03 | Q85: 3.52 | R85: 0 | S85: 0 | T85: 2.95 | U85: 314.2 | V85: 0.09 | W85: 9.98 | X85: 90.01 | Y85: 9584.78 | Z85: 20233.23
B86: P8186 | C86: Antropólogo júnior | D86: mês | E86: 3475.42 | F86: 86.23 | G86: 2996.85 | H86: 21.2 | I86: 736.74 | J86: 0.78 | K86: 27.13 | L86: 0 | M86: 0 | N86: 1.16 | O86: 40.37 | P86: 0.27 | Q86: 9.4 | R86: 0 | S86: 0 | T86: 9.04 | U86: 314.2 | V86: 0.29 | W86: 9.98 | X86: 118.97 | Y86: 4134.68 | Z86: 7610.1
B87: P8187 | C87: Antropólogo pleno | D87: mês | E87: 4633.89 | F87: 86.23 | G87: 3995.8 | H87: 15.9 | I87: 736.74 | J87: 0.59 | K87: 27.13 | L87: 0 | M87: 0 | N87: 0 | O87: 0 | P87: 0.2 | Q87: 9.4 | R87: 0 | S87: 0 | T87: 6.78 | U87: 314.2 | V87: 0.22 | W87: 9.98 | X87: 109.91 | Y87: 5093.26 | Z87: 9727.15
B88: P8188 | C88: Antropólogo sênior | D88: mês | E88: 7387.64 | F88: 86.23 | G88: 6370.36 | H88: 9.97 | I88: 736.74 | J88: 0.37 | K88: 27.13 | L88: 0 | M88: 0 | N88: 0 | O88: 0 | P88: 0.13 | Q88: 9.4 | R88: 0 | S88: 0 | T88: 4.25 | U88: 314.2 | V88: 0.14 | W88: 9.98 | X88: 101.09 | Y88: 7467.81 | Z88: 14855.45
B89: P8189 | C89: Arqueólogo júnior | D89: mês | E89: 2929.4 | F89: 84.6 | G89: 2478.27 | H89: 25.15 | I89: 736.74 | J89: 0.93 | K89: 27.13 | L89: 0 | M89: 0 | N89: 2.5 | O89: 73.14 | P89: 0.28 | Q89: 8.16 | R89: 0 | S89: 0 | T89: 10.73 | U89: 314.2 | V89: 0.34 | W89: 9.98 | X89: 124.52 | Y89: 3647.61 | Z89: 6577.01
B90: P8190 | C90: Arqueólogo pleno | D90: mês | E90: 3905.86 | F90: 84.6 | G90: 3304.36 | H90: 18.86 | I90: 736.74 | J90: 0.69 | K90: 27.13 | L90: 0 | M90: 0 | N90: 0.37 | O90: 14.55 | P90: 0.21 | Q90: 8.16 | R90: 0 | S90: 0 | T90: 8.04 | U90: 314.2 | V90: 0.26 | W90: 9.98 | X90: 113.04 | Y90: 4415.12 | Z90: 8320.98
B91: P8191 | C91: Arqueólogo sênior | D91: mês | E91: 5849.34 | F91: 84.6 | G91: 4948.54 | H91: 12.6 | I91: 736.74 | J91: 0.46 | K91: 27.13 | L91: 0 | M91: 0 | N91: 0 | O91: 0 | P91: 0.14 | Q91: 8.16 | R91: 0 | S91: 0 | T91: 5.37 | U91: 314.2 | V91: 0.17 | W91: 9.98 | X91: 103.34 | Y91: 6044.75 | Z91: 11894.09
B92: P8192 | C92: Historiador júnior | D92: mês | E92: 4159.21 | F92: 81.91 | G92: 3406.81 | H92: 17.71 | I92: 736.74 | J92: 0.65 | K92: 27.13 | L92: 0 | M92: 0 | N92: 0 | O92: 0 | P92: 0.17 | Q92: 7.01 | R92: 0 | S92: 0 | T92: 7.55 | U92: 314.2 | V92: 0.24 | W92: 9.98 | X92: 108.24 | Y92: 4501.87 | Z92: 8661.08
B93: P8193 | C93: Historiador pleno | D93: mês | E93: 5545.62 | F93: 81.91 | G93: 4542.41 | H93: 13.29 | I93: 736.74 | J93: 0.49 | K93: 27.13 | L93: 0 | M93: 0 | N93: 0 | O93: 0 | P93: 0.13 | Q93: 7.01 | R93: 0 | S93: 0 | T93: 5.67 | U93: 314.2 | V93: 0.18 | W93: 9.98 | X93: 101.66 | Y93: 5637.47 | Z93: 11183.09
B94: P8194 | C94: Historiador sênior | D94: mês | E94: 8859.16 | F94: 81.91 | G94: 7256.54 | H94: 8.32 | I94: 736.74 | J94: 0.31 | K94: 27.13 | L94: 0 | M94: 0 | N94: 0 | O94: 0 | P94: 0.08 | Q94: 7.01 | R94: 0 | S94: 0 | T94: 3.55 | U94: 314.2 | V94: 0.11 | W94: 9.98 | X94: 94.27 | Y94: 8351.59 | Z94: 17210.75
B95: P8195 | C95: Paleontólogo júnior | D95: mês | E95: 3475.42 | F95: 86.23 | G95: 2996.85 | H95: 21.2 | I95: 736.74 | J95: 0.78 | K95: 27.13 | L95: 0 | M95: 0 | N95: 1.16 | O95: 40.37 | P95: 0.27 | Q95: 9.4 | R95: 0 | S95: 0 | T95: 9.04 | U95: 314.2 | V95: 0.29 | W95: 9.98 | X95: 118.97 | Y95: 4134.68 | Z95: 7610.1
B96: P8196 | C96: Paleontólogo pleno | D96: mês | E96: 4633.89 | F96: 86.23 | G96: 3995.8 | H96: 15.9 | I96: 736.74 | J96: 0.59 | K96: 27.13 | L96: 0 | M96: 0 | N96: 0 | O96: 0 | P96: 0.2 | Q96: 9.4 | R96: 0 | S96: 0 | T96: 6.78 | U96: 314.2 | V96: 0.22 | W96: 9.98 | X96: 109.91 | Y96: 5093.26 | Z96: 9727.15
B97: P8197 | C97: Paleontólogo sênior | D97: mês | E97: 7387.64 | F97: 86.23 | G97: 6370.36 | H97: 9.97 | I97: 736.74 | J97: 0.37 | K97: 27.13 | L97: 0 | M97: 0 | N97: 0 | O97: 0 | P97: 0.13 | Q97: 9.4 | R97: 0 | S97: 0 | T97: 4.25 | U97: 314.2 | V97: 0.14 | W97: 9.98 | X97: 101.09 | Y97: 7467.81 | Z97: 14855.45
B98: P8198 | C98: Sociólogo júnior | D98: mês | E98: 4336.84 | F98: 81.89 | G98: 3551.44 | H98: 16.99 | I98: 736.74 | J98: 0.63 | K98: 27.13 | L98: 0 | M98: 0 | N98: 0 | O98: 0 | P98: 0.16 | Q98: 7.01 | R98: 0 | S98: 0 | T98: 7.24 | U98: 314.2 | V98: 0.23 | W98: 9.98 | X98: 107.14 | Y98: 4646.49 | Z98: 8983.33
B99: P8199 | C99: Sociólogo pleno | D99: mês | E99: 5782.45 | F99: 81.89 | G99: 4735.25 | H99: 12.74 | I99: 736.74 | J99: 0.47 | K99: 27.13 | L99: 0 | M99: 0 | N99: 0 | O99: 0 | P99: 0.12 | Q99: 7.01 | R99: 0 | S99: 0 | T99: 5.43 | U99: 314.2 | V99: 0.17 | W99: 9.98 | X99: 100.83 | Y99: 5830.31 | Z99: 11612.76
B100: P8200 | C100: Sociólogo sênior | D100: mês | E100: 8917.47 | F100: 81.89 | G100: 7302.52 | H100: 8.26 | I100: 736.74 | J100: 0.3 | K100: 27.13 | L100: 0 | M100: 0 | N100: 0 | O100: 0 | P100: 0.08 | Q100: 7.01 | R100: 0 | S100: 0 | T100: 3.52 | U100: 314.2 | V100: 0.11 | W100: 9.98 | X100: 94.17 | Y100: 8397.57 | Z100: 17315.04
B101: P8264 | C101: Motorista de veículo leve - horista | D101: h | E101: 9.82 | F101: 113.26 | G101: 11.12 | H101: 41.11 | I101: 4.04 | J101: 1.84 | K101: 0.18 | L101: 0 | M101: 0 | N101: 6.66 | O101: 0.65 | P101: 0.19 | Q101: 0.02 | R101: 0 | S101: 0 | T101: 17.53 | U101: 1.72 | V101: 0.56 | W101: 0.05 | X101: 181.16 | Y101: 17.79 | Z101: 27.61
B102: Fonte: FGV IBRE

Sheet Tabelas 1 e 2 (hidden)
B4: Item | C4: Código | D4: Tipo | F4: Custo Produtivo (R$/h) | G4: Custo Improdutivo (R$/h) | H4: S
B6: Veículos | C6: E8889 | D6: Veículo leve - 53 kW (sem motorista) | F6: 36.69 | G6: 6.57
C7: E8890 | D7: Veículo leve - 53 kW (com motorista) | F7: 64.3 | G7: 34.18
C8: E8891 | D8: Veículo leve picape 4 x 4 com capacidade de 1,10 t - 147 kW (sem motorista) | F8: 79.6 | G8: 22.89
C9: E8888 | D9: Veículo tipo van furgão com capacidade de 1,38 t - 100 kW (sem motorista) | F9: 56.35 | G9: 17.21
C10: E8887 | D10: Veículo tipo van furgão com capacidade de 1,38 t - 100 kW (com motorista) | F10: 83.96 | G10: 44.82
B11: Fonte: FGV IBRE
B13: Tabela 2 - Custos de imóveis, mobiliário, cestas de instalações e custos diversos
B14: ="Tabela de Preços de Consultoria - mês de referência: "&TEXT(B1,"MMMM")&" de "&TEXT(B1,"AAAA") -> Tabela de Preços de Consultoria - mês de referência: janeiro de 1900
B15: Item | C15: Código | D15: Tipo | F15: Unidade | G15: Custo unitário (R$/un)
B16: Imóveis | C16: B8951 | D16: Comercial (2,55% do CMCC - SINAPI) | F16: m² x mês | G16: 49.4
C17: B8952 | D17: Residencial (2,45% do CMCC - SINAPI) | F17: m² x mês | G17: 47.46
B18: Mobiliário | C18: B8953 | D18: Escritório | F18: ocupante x mês | G18: 467.45
C19: B8954 | D19: Residência | F19: ocupante x mês | G19: 42.11
B20: Cesta das Instalações | C20: B8955 | D20: Laboratório de asfalto | F20: mês | G20: 5952.38
C21: B8956 | D21: Laboratório de concreto | F21: mês | G21: 4642.56
C22: B8957 | D22: Laboratório de solos | F22: mês | G22: 3520.5
C23: B8958 | D23: Topografia | F23: mês | G23: 5150.27
C24: B8961 | D24: Topografia por VANT | F24: mês | G24: 866.31
B25: Custos Diversos | C25: B8959 | D25: Escritório | F25: ocupante x mês | G25: 137.55
C26: B8960 | D26: Residência | F26: ocupante x mês | G26: 204.08
B27: Fonte: FGV IBRE

Sheet Tabelas 2 e 3 mob (hidden)
A1: Tabela 2 - Fatores de utilização de equipamentos de grande porte | N1: Tabela 1 - Velocidades médias de transporte por tipo e condição da via
A2: Código SICRO | B2: Discriminação dos Equipamentos | C2: T. Rodoviário | E2: T. Aquaviário | G2: T. Ferroviário | I2: Veículo Transportador | K2: Tipo de transporte | L2: Peso do equipamento de Pequeno Porte | M2: Grande Porte Autopropelido Pequeno Porte | N2: Velocidade
C3: Código | D3: FU | E3: Código | F3: FU | G3: Código | H3: FU | I3: Código | J3: FU
A5: E9009 | B5: Embarcação rebocadora - 268 kW | E5: E9009 | F5: 1 | I5: =IF(C5<>"",C5,IF(G5<>"",G5,E5)) -> E9009 | J5: 1 | K5: Hidroviário | M5: =IF(A5=I5,"Autopropelido","Grande Porte") -> Autopropelido | N5: 12.69
A6: E9013 | B6: Caminhão tanque de asfalto com capacidade de 31.000 l - 265 kW | C6: E9013 | D6: 1 | I6: E9013 | J6: 1 | K6: Rodoviário | M6: Autopropelido
A7: E9014 | B7: Deflectômetro de impacto (FWD) instalado em picape com reboque e faixa de carga de 7 a 120 kN - 147 kW | C7: E9014 | D7: 1 | I7: E9014 | J7: 1 | K7: Rodoviário | M7: Autopropelido
A8: E9016 | B8: Usina misturadora móvel de reciclagem a frio com sistema de espuma de asfalto - 129 kW | C8: E9016 | D8: 1 | I8: E9016 | J8: 1 | K8: Rodoviário | M8: Autopropelido
A9: E9017 | B9: Escavadeira hidráulica sobre esteira com capacidade de 0,4 m³ - 64 kW | C9: E9665 | D9: 1 | I9: E9665 | J9: 1 | K9: Rodoviário | M9: Grande Porte
A10: E9018 | B10: Cavalo mecânico com dolly intermediário e semirreboque de 4 eixos com capacidade de 53 t - 323 kW | C10: E9018 | D10: 1 | I10: E9018 | J10: 1 | K10: Rodoviário | M10: Autopropelido
A11: E9020 | B11: Recicladora a frio - 455 kW | C11: E9666 | D11: 1 | I11: E9666 | J11: 1 | K11: Rodoviário | M11: Grande Porte
A12: E9021 | B12: Grupo gerador - 456 kVA | C12: E9508 | D12: 1 | I12: E9508 | J12: 1 | K12: Rodoviário | M12: Grande Porte
A13: E9022 | B13: Pórtico metálico rolante com capacidade de 25 t - 30 kW | C13: E9666 | D13: 2 | I13: E9666 | J13: 2 | K13: Rodoviário | M13: Grande Porte
A14: E9023 | B14: Guindaste móvel sobre esteiras com dragline com capacidade de 1,9 a 2,3 m³ - 270 kW | C14: E9018 | D14: 1 | I14: E9018 | J14: 1 | K14: Rodoviário | M14: Grande Porte
A15: E9027 | B15: Caminhão distribuidor de cimento e cal com capacidade de 17 m³ - 210 kW | C15: E9027 | D15: 1 | I15: E9027 | J15: 1 | K15: Rodoviário | M15: Autopropelido
A16: E9031 | B16: Elevador de cremalheira com cabine simples, com capacidade de 1.500 kg e altura de até 100 m - 15 kW | C16: E9686 | D16: 2 | I16: E9686 | J16: 2 | K16: Rodoviário | M16: Grande Porte
A17: E9036 | B17: Grua fixa para alturas de 60 a 102 m, com alcance de 60 m com capacidade de 1.500 kg na ponta da lança - 37 kW | C17: E9665 | D17: 3 | I17: E9665 | J17: 3 | K17: Rodoviário | M17: Grande Porte
A18: E9037 | B18: Plataforma de inspeção sob pontes montada em caminhão com capacidade de 500 kg e alcance de 15 m - 188 kW | C18: E9037 | D18: 1 | I18: E9037 | J18: 1 | K18: Rodoviário | M18: Autopropelido
A19: E9041 | B19: Caminhão carroceria com guindauto com capacidade de 45 t.m - 188 kW | C19: E9041 | D19: 1 | I19: E9041 | J19: 1 | K19: Rodoviário | M19: Autopropelido
A20: E9042 | B20: Trator sobre esteiras com lâmina - 97 kW | C20: E9666 | D20: 0.5 | I20: E9666 | J20: 0.5 | K20: Rodoviário | M20: Grande Porte
A21: E9043 | B21: Embarcação de alumínio com comprimento de 6 m e motor de popa - 18,60 kW | C21: E9508 | D21: 1 | E21: E9043 | F21: 1 | I21: =C21 -> E9508 | J21: =IF(D21<>"",D21,IF(H21<>"",H21,F21)) -> 1 | K21: Rodoviário | M21: Grande Porte | N21: 12.69
A22: E9044 | B22: Central de concreto com capacidade de 150 m³/h - dosadora e misturadora | C22: E9018 | D22: 3 | I22: =IF(C22<>"",C22,IF(G22<>"",G22,E22)) -> E9018 | J22: 3 | K22: Rodoviário | M22: Grande Porte
A23: E9049 | B23: Bomba de alta pressão para hidrojateamento com capacidade de 250 MPa - 72 kW | C23: E9686 | D23: 1 | I23: E9686 | J23: 1 | K23: Rodoviário | M23: Grande Porte
A24: E9050 | B24: Guindaste móvel sobre pneus com 2 eixos com capacidade de 18 t - 97 kW | C24: E9050 | D24: 1 | I24: E9050 | J24: 1 | K24: Rodoviário | M24: Autopropelido
A25: E9051 | B25: Máquina levantadora e posicionadora de via - 7,40 kW | C25: E9686 | D25: 0.5 | I25: E9686 | J25: 0.5 | K25: Rodoviário | M25: Grande Porte
A26: E9052 | B26: Empilhadeira a diesel com capacidade de 10 t - 82 kW | C26: E9666 | D26: 0.5 | I26: E9666 | J26: 0.5 | K26: Rodoviário | M26: Grande Porte
A27: E9053 | B27: Perfuratriz hidráulica montada em flutuante - 32 kW | C27: E9665 | D27: 1 | I27: E9665 | J27: 1 | K27: Rodoviário | M27: Grande Porte
A28: E9054 | B28: Equipamento sobre forma-trilho para execução e acabamento de pavimento de concreto - 13,40 kW | C28: E9665 | D28: 1 | I28: E9665 | J28: 1 | K28: Rodoviário | M28: Grande Porte
A29: E9056 | B29: Plataforma autoelevatória de 12 x 24 m com capacidade de 150 t | E29: E9009 | F29: 1 | I29: E9009 | J29: 1 | K29: Hidroviário | M29: Grande Porte | N29: 10.29
A30: E9057 | B30: Batelão sem propulsão com capacidade de 66 m³ | E30: E9009 | F30: 1 | I30: E9009 | J30: 1 | K30: Hidroviário | M30: Grande Porte | N30: 10.29
A31: E9058 | B31: Plataforma flutuante de 12 x 24 x 1,8 m com capacidade de 150 t | E31: E9009 | F31: 1 | I31: E9009 | J31: 1 | K31: Hidroviário | M31: Grande Porte | N31: 10.29
A32: E9059 | B32: Plataforma autoelevatória de 12 x 24 m montada na obra com capacidade de 150 t | C32: E9018 | D32: 2 | I32: E9018 | J32: 2 | K32: Rodoviário | M32: Grande Porte
A33: E9063 | B33: Equipamento de estabilização dinâmica da via - 300 kW | G33: E9063 | H33: 1 | I33: E9063 | J33: 1 | K33: Ferroviário | M33: Autopropelido | N33: 24
A34: E9065 | B34: Carro controle ferroviário - 186 kW | G34: E9065 | H34: 1 | I34: E9065 | J34: 1 | K34: Ferroviário | M34: Autopropelido | N34: 24
A35: E9067 | B35: Veículo ferroviário para capina química com capacidade de 12.000 l - 115 kW | G35: E9067 | H35: 1 | I35: E9067 | J35: 1 | K35: Ferroviário | M35: Autopropelido | N35: 24
A36: E9068 | B36: Perfuratriz hidráulica rotopercussiva para CCPH - 123 kW | C36: E9666 | D36: 1 | I36: E9666 | J36: 1 | K36: Rodoviário | M36: Grande Porte
A37: E9070 | B37: Ponte rolante com capacidade de 5 t e vão de até 15 m - 10 kW | C37: E9665 | D37: 2 | I37: E9665 | J37: 2 | K37: Rodoviário | M37: Grande Porte
A38: E9072 | B38: Martelo hidráulico vibratório com unidade hidráulica - 486 kW | C38: E9665 | D38: 0.5 | I38: E9665 | J38: 0.5 | K38: Rodoviário | M38: Grande Porte
A39: E9074 | B39: Tanque de estocagem de asfalto com agitadores de 60.000 l | C39: E9100 | D39: 1 | I39: E9100 | J39: 1 | K39: Rodoviário | M39: Grande Porte
A40: E9076 | B40: Equipamento para pintura eletrostática com cabine dupla de 7,00 kW e estufa de 80.000 kCal | C40: E9665 | D40: 1 | I40: E9665 | J40: 1 | K40: Rodoviário | M40: Grande Porte
A41: E9077 | B41: Perfuratriz de circulação reversa tipo Wirth ou similar com unidade hidráulica (Power Pack) - 273 kW | C41: E9018 | D41: 2 | I41: E9018 | J41: 2 | K41: Rodoviário | M41: Grande Porte
A42: E9078 | B42: Treliça lançadeira com capacidade de carga de 100 a 120 t e vão máximo de 45 m - 110 kW | C42: E9666 | D42: 9 | I42: E9666 | J42: 9 | K42: Rodoviário | M42: Grande Porte
A43: E9080 | B43: Carrelone com capacidade máxima de 70 t | C43: E9665 | D43: 0.5 | I43: E9665 | J43: 0.5 | K43: Rodoviário | M43: Grande Porte
A44: E9082 | B44: Bate-estaca hidráulico para defensas montado em caminhão guindauto com capacidade de 20 t.m e carroceria de 4 t - 136 kW | C44: E9082 | D44: 1 | I44: E9082 | J44: 1 | K44: Rodoviário | M44: Autopropelido
A45: E9083 | B45: Vagão fechado FLT com capacidade de 99 t | G45: E9158 | H45: 0.1 | I45: E9158 | J45: 0.1 | K45: Ferroviário | M45: Grande Porte | N45: 24
A46: E9084 | B46: Vagão tanque convencional TCT com capacidade de 97 t e 103.000 l | G46: E9158 | H46: 0.1 | I46: E9158 | J46: 0.1 | K46: Ferroviário | M46: Grande Porte | N46: 24
A47: E9085 | B47: Vagão gôndola GDE com capacidade de 93,5 t / 29 m³ | G47: E9157 | H47: 0.1 | I47: E9157 | J47: 0.1 | K47: Ferroviário | M47: Grande Porte | N47: 24
A48: E9091 | B48: Embarcação empurradora fluvial - 372 kW | E48: E9091 | F48: 1 | I48: E9091 | J48: 1 | K48: Hidroviário | M48: Autopropelido | N48: 12.69
A49: E9093 | B49: Veículo leve - 53 kW (sem motorista) | C49: E9512 | D49: 1 | I49: E9512 | J49: 1 | K49: Rodoviário | M49: Grande Porte
A50: E9094 | B50: Guindaste móvel sobre pneus com 6 eixos com capacidade máxima de 350 t - 450 kW | C50: E9094 | D50: 1 | I50: E9094 | J50: 1 | K50: Rodoviário | M50: Autopropelido
A51: E9095 | B51: Guindaste móvel sobre pneus com 8 eixos com capacidade máxima de 500 t - 500 kW | C51: E9095 | D51: 1 | I51: E9095 | J51: 1 | K51: Rodoviário | M51: Autopropelido
A52: E9096 | B52: Minicarregadeira de pneus - 45,50 kW | C52: E9665 | D52: 0.33 | I52: E9665 | J52: 0.33 | K52: Rodoviário | M52: Grande Porte
A53: E9097 | B53: Caminhão de resgate de veículos leves com plataforma com capacidade de 4 t - 115 kW | C53: E9097 | D53: 1 | I53: E9097 | J53: 1 | K53: Rodoviário | M53: Autopropelido
A54: E9098 | B54: Caminhão de resgate de veículos de porte médio com capacidade do guincho de 20 t - 136 kW | C54: E9098 | D54: 1 | I54: E9098 | J54: 1 | K54: Rodoviário | M54: Autopropelido
A55: E9099 | B55: Caminhão de resgate de veículos pesados com dois guinchos com capacidade de 35 t - 240 kW | C55: E9099 | D55: 1 | I55: E9099 | J55: 1 | K55: Rodoviário | M55: Autopropelido
A56: E9100 | B56: Cavalo mecânico sem reboque - 210 kW | C56: E9100 | D56: 1 | I56: E9100 | J56: 1 | K56: Rodoviário | M56: Autopropelido
A57: E9105 | B57: Embarcação empurradora multipropósito - 2 x 186 kW | E57: E9105 | F57: 1 | I57: E9105 | J57: 1 | K57: Hidroviário | M57: Autopropelido | N57: 12.69
A58: E9106 | B58: Balsa de convés com capacidade de 200 t | E58: E9606 | F58: 0.25 | I58: E9606 | J58: 0.25 | K58: Hidroviário | M58: Grande Porte | N58: 10.29
A59: E9108 | B59: Soldadora de trilho por caldeamento na via - 400 kW | G59: E9108 | H59: 1 | I59: E9108 | J59: 1 | K59: Ferroviário | M59: Autopropelido | N59: 24
A60: E9110 | B60: Escavadeira hidráulica sobre esteiras para rocha com caçamba com capacidade de 1,56 m³ - 118 kW | C60: E9666 | D60: 1 | I60: E9666 | J60: 1 | K60: Rodoviário | M60: Grande Porte
A61: E9117 | B61: Carregadeira de pneus para rocha com capacidade de 2,50 m³ - 105 kW | C61: E9665 | D61: 1 | I61: E9665 | J61: 1 | K61: Rodoviário | M61: Grande Porte
A62: E9119 | B62: Minicarregadeira sobre pneus com valetadeira - 55,40 kW | C62: E9665 | D62: 0.5 | I62: E9665 | J62: 0.5 | K62: Rodoviário | M62: Grande Porte
A63: E9120 | B63: Equipamento de cravação sobre esteira para geodreno com haste para profundidade de até 20 m - 258 kW | C63: E9018 | D63: 1 | I63: E9018 | J63: 1 | K63: Rodoviário | M63: Grande Porte
A64: E9122 | B64: Perfuratriz tipo Bottom Feed para coluna de brita - 194 kW | C64: E9666 | D64: 2 | I64: E9666 | J64: 2 | K64: Rodoviário | M64: Grande Porte
A65: E9125 | B65: Veículo tipo van furgão com capacidade de 1,54 t - 93 kW | C65: E9125 | D65: 1 | I65: E9125 | J65: 1 | K65: Rodoviário | M65: Autopropelido
A66: E9126 | B66: Draga backhoe com capacidade de 7 m³ - 1.000 kW | E66: E9603 | F66: 1 | I66: E9603 | J66: 1 | K66: Hidroviário | M66: Grande Porte | N66: 10.29
A67: E9127 | B67: Escavadeira hidráulica com martelo hidráulico de 520 kg - 75 kW | C67: E9665 | D67: 1 | I67: E9665 | J67: 1 | K67: Rodoviário | M67: Grande Porte
A68: E9134 | B68: Miniônibus com capacidade para 30 passageiros - 111 kW | C68: E9134 | D68: 1 | I68: E9134 | J68: 1 | K68: Rodoviário | M68: Autopropelido
A69: E9144 | B69: Pórtico metálico rolante com talha com capacidade de 5 t - 10 kW | C69: E9666 | D69: 2 | I69: E9666 | J69: 2 | K69: Rodoviário | M69: =IF(A69=I69,"Autopropelido","Grande Porte") -> Grande Porte
A70: E9145 | B70: Caminhão basculante para concreto com capacidade de 7 m³ - 188 kW | C70: E9145 | D70: 1 | I70: E9145 | J70: 1 | K70: Rodoviário | M70: Autopropelido
A71: E9146 | B71: Caminhão silo com capacidade de 30 m³ - 265 kW | C71: E9146 | D71: 1 | I71: E9146 | J71: 1 | K71: Rodoviário | M71: Autopropelido
A72: E9151 | B72: Britador de mandíbulas móvel sobre esteiras, sem peneira, com capacidade de 140 m³/h - 170 kW | C72: E9018 | D72: 1 | I72: E9018 | J72: 1 | K72: Rodoviário | M72: Grande Porte
A73: E9157 | B73: Locomotiva diesel-elétrica CC - bitola métrica - 2.237 kW | G73: E9157 | H73: 1 | I73: E9157 | J73: 1 | K73: Ferroviário | M73: Autopropelido | N73: 24
A74: E9158 | B74: Locomotiva diesel-elétrica CC - bitola larga - 2.237 kW | G74: E9158 | H74: 1 | I74: E9158 | J74: 1 | K74: Ferroviário | M74: Autopropelido | N74: 24
A75: E9159 | B75: Vagão plataforma PNE com capacidade de 82 t - bitola métrica | G75: E9157 | H75: 0.1 | I75: E9157 | J75: 0.1 | K75: Ferroviário | M75: Grande Porte | N75: 24
A76: E9160 | B76: Vagão plataforma PNT com capacidade de 98 t - bitola larga | G76: E9158 | H76: 0.1 | I76: E9158 | J76: 0.1 | K76: Ferroviário | M76: Grande Porte | N76: 24
A77: E9161 | B77: Vagão fechado com porta para carga e descarga de paletes FLD com capacidade de 64 t - bitola métrica | G77: E9157 | H77: 0.1 | I77: E9157 | J77: 0.1 | K77: Ferroviário | M77: Grande Porte | N77: 24
A78: E9162 | B78: Vagão fechado com porta para carga e descarga de paletes FLT com capacidade de 99 t - bitola larga | G78: E9158 | H78: 0.1 | I78: E9158 | J78: 0.1 | K78: Ferroviário | M78: Grande Porte | N78: 24
A79: E9163 | B79: Vagão hopper aberto com descarga automática HNE com capacidade de 45 m³ - bitola métrica | G79: E9157 | H79: 0.1 | I79: E9157 | J79: 0.1 | K79: Ferroviário | M79: Grande Porte | N79: 24
A80: E9164 | B80: Vagão hopper aberto com descarga automática HNT com capacidade de 63 m³ - bitola larga | G80: E9158 | H80: 0.1 | I80: E9158 | J80: 0.1 | K80: Ferroviário | M80: Grande Porte | N80: 24
A81: E9167 | B81: Equipamento para carga e descarga de TLS de até 250 m - 90 kW | G81: E9167 | H81: 1 | I81: E9167 | J81: 1 | K81: Ferroviário | M81: Autopropelido | N81: 24
A82: E9168 | B82: Carregadeira de pneus com implemento de garfo - 195 kW | C82: E9665 | D82: 1 | I82: E9665 | J82: 1 | K82: Rodoviário | M82: Grande Porte
A83: E9169 | B83: Cavalo mecânico com dolly pneumático de 4 eixos e mesas de giro com capacidade de 57 t - 323 kW | C83: E9169 | D83: 1 | I83: E9169 | J83: 1 | K83: Rodoviário | M83: Autopropelido
A84: E9170 | B84: Cavalo mecânico com dois dollys pneumáticos de 3 e 4 eixos e mesas de giro com capacidade de 77 t - 323 kW | C84: E9170 | D84: 1 | I84: E9170 | J84: 1 | K84: Rodoviário | M84: Autopropelido
A85: E9171 | B85: Cavalo mecânico com dois dollys pneumáticos de 4 e 5 eixos e mesas de giro com capacidade de 111 t - 440 kW | C85: E9171 | D85: 1 | I85: E9171 | J85: 1 | K85: Rodoviário | M85: Autopropelido
A86: E9199 | B86: Caminhão com sistema de hidrojateamento de alta pressão e vácuo para limpeza e desobstrução de bueiros com capacidade total de 15.600 l - 188 kW | C86: E9199 | D86: 1 | I86: =IF(C86<>"",C86,IF(G86<>"",G86,E86)) -> E9199 | J86: 1 | K86: Rodoviário | M86: Autopropelido
A87: E9200 | B87: Carregadeira de pneus para rocha com capacidade de 2,50 m³ - 105 kW com periculosidade | C87: E9665 | D87: 1 | I87: E9665 | J87: 1 | K87: Rodoviário | M87: Grande Porte
A88: E9201 | B88: Caminhão basculante para rocha com capacidade de 12 m³ - 188 kW com periculosidade | C88: E9201 | D88: 1 | I88: E9201 | J88: 1 | K88: Rodoviário | M88: Autopropelido
A89: E9202 | B89: Plataforma pantográfica montada em caminhão - 115 kW com periculosidade | C89: E9202 | D89: 1 | I89: E9202 | J89: 1 | K89: Rodoviário | M89: Autopropelido
A90: E9203 | B90: Escavadeira hidráulica com martelo hidráulico de 1.700 kg - 103 kW com periculosidade | C90: E9666 | D90: 1 | I90: E9666 | J90: 1 | K90: Rodoviário | M90: Grande Porte
A91: E9204 | B91: Perfuratriz sobre esteiras - 145 kW com periculosidade | C91: E9665 | D91: 1 | I91: E9665 | J91: 1 | K91: Rodoviário | M91: Grande Porte
A92: E9205 | B92: Equipamento de corte a plasma CNC - 12.000 x 5.500 mm - 19,5 kW | C92: E9508 | D92: 2 | I92: E9508 | J92: 2 | K92: Rodoviário | M92: Grande Porte
A93: E9213 | B93: Jumbo eletro-hidráulico com 3 braços - 155 kW/237 kW com periculosidade | C93: E9666 | D93: 2 | I93: E9666 | J93: 2 | K93: Rodoviário | M93: Grande Porte
A94: E9502 | B94: Bate-estaca de gravidade para 6 t - 119 kW | C94: E9665 | D94: 2 | I94: E9665 | J94: 2 | K94: Rodoviário | M94: Grande Porte
A95: E9503 | B95: Guilhotina hidráulica 16 x 6.100 mm - 30 kW | C95: E9018 | D95: 1 | I95: E9018 | J95: 1 | K95: Rodoviário | M95: Grande Porte
A96: E9505 | B96: Prensa dobradeira capacidade 320 t - comprimento até 3.100 mm - 30 kW | C96: E9018 | D96: 0.5 | I96: E9018 | J96: 0.5 | K96: Rodoviário | M96: Grande Porte
A97: E9506 | B97: Caminhão basculante com capacidade de 6 m³ - 136 kW | C97: E9506 | D97: 1 | I97: E9506 | J97: 1 | K97: Rodoviário | M97: Autopropelido
A98: E9508 | B98: Caminhão carroceria com capacidade de 9 t - 136 kW | C98: E9508 | D98: 1 | I98: E9508 | J98: 1 | K98: Rodoviário | M98: Autopropelido
A99: E9509 | B99: Caminhão tanque distribuidor de asfalto com capacidade de 6.000 l - 7 kW/136 kW | C99: E9509 | D99: 1 | I99: E9509 | J99: 1 | K99: Rodoviário | M99: Autopropelido
A100: E9511 | B100: Carregadeira de pneus com capacidade de 3,40 m³ - 195 kW | C100: E9665 | D100: 1 | I100: E9665 | J100: 1 | K100: Rodoviário | M100: Grande Porte
A101: E9512 | B101: Veículo leve - 53 kW | C101: E9512 | D101: 1 | I101: E9512 | J101: 1 | K101: Rodoviário | M101: Autopropelido
A102: E9514 | B102: Distribuidor de agregados sobre pneus autopropelido - 130 kW | C102: E9665 | D102: 0.5 | I102: E9665 | J102: 0.5 | K102: Rodoviário | M102: Grande Porte
A103: E9515 | B103: Escavadeira hidráulica sobre esteiras com caçamba com capacidade de 1,56 m³ - 118 kW | C103: E9666 | D103: 1 | I103: E9666 | J103: 1 | K103: Rodoviário | M103: Grande Porte
A104: E9516 | B104: Perfuratriz hidráulica sobre esteiras - 283 kW | C104: E9018 | D104: 2 | I104: E9018 | J104: 2 | K104: Rodoviário | M104: Grande Porte
A105: E9520 | B105: Caminhão com caçamba térmica com capacidade de 6 m³ - 188 kW | C105: E9520 | D105: 1 | I105: E9520 | J105: 1 | K105: Rodoviário | M105: Autopropelido
A106: E9523 | B106: Motoscraper - 304 kW | C106: E9665 | D106: 2 | I106: E9665 | J106: 2 | K106: Rodoviário | M106: Grande Porte
A107: E9524 | B107: Motoniveladora - 93 kW | C107: E9665 | D107: 1 | I107: E9665 | J107: 1 | K107: Rodoviário | M107: Grande Porte
A108: E9525 | B108: Ponte rolante com capacidade de 15 t e vão de até 15 m - 20 kW | C108: E9665 | D108: 2 | I108: E9665 | J108: 2 | K108: Rodoviário | M108: Grande Porte
A109: E9526 | B109: Retroescavadeira de pneus com capacidade de 0,76 m³ - 58 kW | C109: E9665 | D109: 1 | I109: E9665 | J109: 1 | K109: Rodoviário | M109: Grande Porte
A110: E9528 | B110: Empilhadeira a diesel com capacidade de 4 t - 60 kW | C110: E9666 | D110: 0.5 | I110: E9666 | J110: 0.5 | K110: Rodoviário | M110: Grande Porte
A111: E9529 | B111: Jateador para estruturas metálicas com transportador a roletes - 22 kW | C111: E9666 | D111: 2 | I111: E9666 | J111: 2 | K111: Rodoviário | M111: Grande Porte
A112: E9530 | B112: Rolo compactador liso vibratório autopropelido por pneus de 11 t - 97 kW | C112: E9666 | D112: 0.5 | I112: E9666 | J112: 0.5 | K112: Rodoviário | M112: Grande Porte
A113: E9536 | B113: Embarcação de transporte de pessoal e apoio logístico - 30 kW | C113: E9508 | D113: 1 | E113: E9536 | F113: 1 | I113: =C113 -> E9508 | J113: =IF(D113<>"",D113,IF(H113<>"",H113,F113)) -> 1 | K113: Rodoviário | M113: Grande Porte | N113: 12.69
A114: E9540 | B114: Trator sobre esteiras com lâmina - 127 kW | C114: E9018 | D114: 0.5 | I114: =IF(C114<>"",C114,IF(G114<>"",G114,E114)) -> E9018 | J114: 0.5 | K114: Rodoviário | M114: Grande Porte
A115: E9541 | B115: Trator sobre esteiras com lâmina - 259 kW | C115: E9018 | D115: 1 | I115: E9018 | J115: 1 | K115: Rodoviário | M115: Grande Porte
A116: E9545 | B116: Vibroacabadora de asfalto sobre esteiras - 82 kW | C116: E9018 | D116: 0.5 | I116: E9018 | J116: 0.5 | K116: Rodoviário | M116: Grande Porte
A117: E9558 | B117: Tanque de estocagem de asfalto com capacidade de 30.000 l | C117: E9665 | D117: 1 | I117: E9665 | J117: 1 | K117: Rodoviário | M117: Grande Porte
A118: E9560 | B118: Ônibus com capacidade para 80 passageiros - 175 kW | C118: E9560 | D118: 1 | I118: E9560 | J118: 1 | K118: Rodoviário | M118: Autopropelido
A119: E9563 | B119: Perfuratriz hidráulica sobre esteiras com clamshell - 220 kW | C119: E9018 | D119: 1 | I119: E9018 | J119: 1 | K119: Rodoviário | M119: Grande Porte
A120: E9565 | B120: Trator sobre esteiras com lâmina e escarificador - 259 kW | C120: E9018 | D120: 1 | I120: E9018 | J120: 1 | K120: Rodoviário | M120: Grande Porte
A121: E9566 | B121: Guindaste móvel sobre esteiras com clamshell de 1,9 m³ - 220 kW | C121: E9018 | D121: 1 | I121: E9018 | J121: 1 | K121: Rodoviário | M121: Grande Porte
A122: E9569 | B122: Guindaste móvel sobre esteiras com clamshell de 4,6 m³ - 403 kW | C122: E9018 | D122: 2 | I122: E9018 | J122: 2 | K122: Rodoviário | M122: Grande Porte
A123: E9571 | B123: Caminhão tanque com capacidade de 10.000 l - 188 kW | C123: E9571 | D123: 1 | I123: E9571 | J123: 1 | K123: Rodoviário | M123: Autopropelido
A124: E9574 | B124: Perfuratriz sobre esteiras - 145 kW | C124: E9665 | D124: 1 | I124: E9665 | J124: 1 | K124: Rodoviário | M124: Grande Porte
A125: E9575 | B125: Caminhão basculante com caçamba estanque com capacidade de 14 m³ - 188 kW | C125: E9575 | D125: 1 | I125: E9575 | J125: 1 | K125: Rodoviário | M125: Autopropelido
A126: E9576 | B126: Escavadeira hidráulica de longo alcance sobre esteiras - 103 kW | C126: E9666 | D126: 1 | I126: E9666 | J126: 1 | K126: Rodoviário | M126: Grande Porte
A127: E9577 | B127: Trator agrícola sobre pneus - 77 kW | C127: E9665 | D127: 0.5 | I127: E9665 | J127: 0.5 | K127: Rodoviário | M127: Grande Porte
A128: E9579 | B128: Caminhão basculante com capacidade de 10 m³ - 188 kW | C128: E9579 | D128: 1 | I128: E9579 | J128: 1 | K128: Rodoviário | M128: Autopropelido
A129: E9580 | B129: Fresadora e distribuidora com controle de greide - 287 kW | C129: E9666 | D129: 1 | I129: E9666 | J129: 1 | K129: Rodoviário | M129: Grande Porte
A130: E9581 | B130: Carregadeira de pneus para rocha com capacidade de 1,72 m³ - 113 kW | C130: E9665 | D130: 1 | I130: E9665 | J130: 1 | K130: Rodoviário | M130: Grande Porte
A131: E9584 | B131: Carregadeira de pneus com capacidade de 1,72 m³ - 113 kW | C131: E9665 | D131: 1 | I131: E9665 | J131: 1 | K131: Rodoviário | M131: Grande Porte
A132: E9588 | B132: Vibroacabadora de concreto sobre esteiras com fôrmas deslizantes - 205 kW | C132: E9018 | D132: 0.5 | I132: E9018 | J132: 0.5 | K132: Rodoviário | M132: Grande Porte
A133: E9589 | B133: Máquina texturizadora e aplicadora de cura química em pavimento de concreto - 44,80 kW | C133: E9665 | D133: 1 | I133: E9665 | J133: 1 | K133: Rodoviário | M133: =IF(A133=I133,"Autopropelido","Grande Porte") -> Grande Porte
A134: E9590 | B134: Central de concreto com capacidade de 40 m³/h - dosadora fixa | C134: E9665 | D134: 2 | I134: E9665 | J134: 2 | K134: Rodoviário | M134: Grande Porte
A135: E9592 | B135: Caminhão carroceria com capacidade de 15 t - 188 kW | C135: E9592 | D135: 1 | I135: E9592 | J135: 1 | K135: Rodoviário | M135: Autopropelido
A136: E9593 | B136: Draga hopper com capacidade de 750 m³ | E136: E9593 | F136: 1 | I136: E9593 | J136: 1 | K136: Hidroviário | M136: Autopropelido | N136: 15.48
A137: E9594 | B137: Draga hopper com capacidade de 1.000 m³ | E137: E9594 | F137: 1 | I137: E9594 | J137: 1 | K137: Hidroviário | M137: Autopropelido | N137: 18.49
A138: E9595 | B138: Draga hopper com capacidade de 2.000 m³ | E138: E9595 | F138: 1 | I138: E9595 | J138: 1 | K138: Hidroviário | M138: Autopropelido | N138: 20.95
A139: E9596 | B139: Draga hopper com capacidade de 3.000 m³ | E139: E9596 | F139: 1 | I139: E9596 | J139: 1 | K139: Hidroviário | M139: Autopropelido | N139: 22.49
A140: E9597 | B140: Draga hopper com capacidade de 4.000 m³ | E140: E9597 | F140: 1 | I140: E9597 | J140: 1 | K140: Hidroviário | M140: Autopropelido | N140: 23.49
A141: E9598 | B141: Draga hopper com capacidade de 5.000 m³ | E141: E9598 | F141: 1 | I141: E9598 | J141: 1 | K141: Hidroviário | M141: Autopropelido | N141: 24.96
A142: E9599 | B142: Central de concreto com capacidade de 30 m³/h - dosadora RS | C142: E9018 | D142: 1 | I142: E9018 | J142: 1 | K142: Rodoviário | M142: Grande Porte
A143: E9600 | B143: Caminhão betoneira com capacidade de 8 m³ - 188 kW | C143: E9600 | D143: 1 | I143: E9600 | J143: 1 | K143: Rodoviário | M143: Autopropelido
A144: E9601 | B144: Embarcação de transporte de pessoal e apoio logístico - 130 kW | C144: E9592 | D144: 1 | E144: E9601 | F144: 1 | I144: =C144 -> E9592 | J144: 1 | K144: Rodoviário | M144: Grande Porte | N144: 12.69
A145: E9603 | B145: Embarcação empurradora multipropósito com guindaste hidráulico de 74 kN.m - 165 kW | E145: E9603 | F145: 1 | I145: =IF(C145<>"",C145,IF(G145<>"",G145,E145)) -> E9603 | J145: 1 | K145: Hidroviário | M145: Autopropelido | N145: 12.69
A146: E9604 | B146: Caminhão basculante para rocha com capacidade de 8 m³ - 210 kW | C146: E9604 | D146: 1 | I146: E9604 | J146: 1 | K146: Rodoviário | M146: Autopropelido
A147: E9605 | B147: Caminhão tanque com capacidade de 6.000 l - 136 kW | C147: E9605 | D147: 1 | I147: E9605 | J147: 1 | K147: Rodoviário | M147: Autopropelido
A148: E9606 | B148: Embarcação rebocadora - 2 x 268 kW | E148: E9606 | F148: 1 | I148: E9606 | J148: 1 | K148: Hidroviário | M148: Autopropelido | N148: 12.69
A149: E9607 | B149: Conjunto de britagem para rachão com capacidade de 80 m³/h - 224 kW | C149: E9666 | D149: 2 | I149: E9666 | J149: 2 | K149: Rodoviário | M149: Grande Porte
A150: E9609 | B150: Draga de sucção para extração de areia com tubo de descarga de 150 mm - 100 kW | E150: E9603 | F150: 1 | I150: E9603 | J150: 1 | K150: Hidroviário | M150: Grande Porte | N150: 10.29
A151: E9611 | B151: Conjunto de britagem com capacidade de 80 m³/h - 313 kW | C151: E9018 | D151: 2 | I151: E9018 | J151: 2 | K151: Rodoviário | M151: Grande Porte
A152: E9612 | B152: Plataforma flutuante montada na obra de 12 x 24 x 1,8 m com capacidade de 150 t | C152: E9018 | D152: 2 | I152: E9018 | J152: 2 | K152: Rodoviário | M152: Grande Porte
A153: E9613 | B153: Guindaste móvel sobre esteiras com pinça com capacidade de 40 t - 186 kW | C153: E9018 | D153: 1 | I153: E9018 | J153: 1 | K153: Rodoviário | M153: Grande Porte
A154: E9615 | B154: Usina misturadora de solos com capacidade de 300 t/h - 44 kW | C154: E9018 | D154: 2 | I154: E9018 | J154: 2 | K154: Rodoviário | M154: Grande Porte
A155: E9617 | B155: Usina misturadora de pré-misturado a frio com capacidade de 60 t/h - 23,50 kW | C155: E9665 | D155: 1 | I155: E9665 | J155: 1 | K155: Rodoviário | M155: Grande Porte
A156: E9618 | B156: Batelão autopropelido com capacidade de 300 m³ - 224 kW | E156: E9618 | F156: 1 | I156: E9618 | J156: 1 | K156: Hidroviário | M156: Autopropelido | N156: 12.69
A157: E9619 | B157: Batelão autopropelido com capacidade de 500 m³ - 373 kW | E157: E9619 | F157: 1 | I157: E9619 | J157: 1 | K157: Hidroviário | M157: Autopropelido | N157: 12.69
A158: E9620 | B158: Pontão flutuante de 15 x 30 x 1,8 m com capacidade de 500 t | E158: E9606 | F158: 1 | I158: E9606 | J158: 1 | K158: Hidroviário | M158: Grande Porte | N158: 10.29
A159: E9624 | B159: Draga hopper com capacidade de 10.000 m³ | E159: E9624 | F159: 1 | I159: E9624 | J159: 1 | K159: Hidroviário | M159: Autopropelido | N159: 28.97
A160: E9625 | B160: Draga hopper com capacidade de 15.000 m³ | E160: E9625 | F160: 1 | I160: E9625 | J160: 1 | K160: Hidroviário | M160: Autopropelido | N160: 28.97
A161: E9626 | B161: Draga hopper com capacidade de 20.000 m³ | E161: E9626 | F161: 1 | I161: E9626 | J161: 1 | K161: Hidroviário | M161: Autopropelido | N161: 28.97
A162: E9627 | B162: Embarcação hotel com capacidade para 15 pessoas - 199 kW | E162: E9627 | F162: 1 | I162: E9627 | J162: 1 | K162: Hidroviário | M162: Autopropelido | N162: 12.69
A163: E9635 | B163: Draga de sucção e recalque com potência da bomba de 294 kW e cortador de 30 kW | E163: E9603 | F163: 1 | I163: E9603 | J163: 1 | K163: Hidroviário | M163: Grande Porte | N163: 10.29
A164: E9636 | B164: Draga de sucção e recalque com potência da bomba de 483 kW e cortador de 55 kW | E164: E9603 | F164: 1 | I164: E9603 | J164: 1 | K164: Hidroviário | M164: Grande Porte | N164: 10.29
A165: E9637 | B165: Draga de sucção e recalque com potência da bomba de 746 kW e cortador de 110 kW | E165: E9603 | F165: 1 | I165: E9603 | J165: 1 | K165: Hidroviário | M165: Grande Porte | N165: 10.29
A166: E9638 | B166: Draga de sucção e recalque com potência da bomba de 1.350 kW e cortador de 170 kW | E166: E9603 | F166: 1 | I166: E9603 | J166: 1 | K166: Hidroviário | M166: Grande Porte | N166: 10.29
A167: E9639 | B167: Embarcação hotel com capacidade para 30 pessoas - 2 x 112 kW | E167: E9639 | F167: 1 | I167: E9639 | J167: 1 | K167: Hidroviário | M167: Autopropelido | N167: 12.69
A168: E9642 | B168: Perfuratriz hidráulica sobre esteiras para estaca raiz - 56 kW | C168: E9665 | D168: 1 | I168: E9665 | J168: 1 | K168: Rodoviário | M168: Grande Porte
A169: E9644 | B169: Caminhão demarcador de faixas com sistema de pintura a frio - 28 kW/115 kW | C169: E9644 | D169: 1 | I169: E9644 | J169: 1 | K169: Rodoviário | M169: Autopropelido
A170: E9645 | B170: Caminhão demarcador de faixas com sistema de pintura a quente - 5 kW/30,10 kW/136 kW | C170: E9645 | D170: 1 | I170: E9645 | J170: 1 | K170: Rodoviário | M170: Autopropelido
A171: E9651 | B171: Guindaste móvel sobre esteiras com Hammer Grab - 186 kW | C171: E9018 | D171: 1 | I171: E9018 | J171: 1 | K171: Rodoviário | M171: Grande Porte
A172: E9652 | B172: Compressor de ar portátil de 540,85 l/s (1.146 PCM) - 331,10 kW | C172: E9508 | D172: 1 | I172: E9508 | J172: 1 | K172: Rodoviário | M172: Grande Porte
A173: E9653 | B173: Guindaste móvel sobre esteiras com trado para escavação em solos - 186 kW | C173: E9018 | D173: 1 | I173: E9018 | J173: 1 | K173: Rodoviário | M173: Grande Porte
A174: E9654 | B174: Guindaste móvel sobre esteiras com trado com bits escavação em rocha - 186 kW | C174: E9018 | D174: 1 | I174: E9018 | J174: 1 | K174: Rodoviário | M174: Grande Porte
A175: E9656 | B175: Guindaste móvel sobre esteiras com caçamba para escavação em solos - 186 kW | C175: E9018 | D175: 1 | I175: E9018 | J175: 1 | K175: Rodoviário | M175: Grande Porte
A176: E9657 | B176: Guindaste móvel sobre esteiras com caçamba para escavação em rocha - 186 kW | C176: E9018 | D176: 1 | I176: E9018 | J176: 1 | K176: Rodoviário | M176: Grande Porte
A177: E9660 | B177: Guindaste móvel sobre esteiras com capacidade de 40 t - 186 kW | C177: E9018 | D177: 1 | I177: E9018 | J177: 1 | K177: Rodoviário | M177: Grande Porte
A178: E9663 | B178: Caminhão basculante com capacidade de 4 m³ - 136 kW | C178: E9663 | D178: 1 | I178: E9663 | J178: 1 | K178: Rodoviário | M178: Autopropelido
A179: E9664 | B179: Guindaste móvel sobre esteiras com capacidade de 80 t - 212 kW | C179: E9018 | D179: 1 | I179: E9018 | J179: 1 | K179: Rodoviário | M179: Grande Porte
A180: E9665 | B180: Cavalo mecânico com semirreboque com capacidade de 22 t - 240 kW | C180: E9665 | D180: 1 | I180: E9665 | J180: 1 | K180: Rodoviário | M180: Autopropelido
A181: E9666 | B181: Cavalo mecânico com semirreboque com capacidade de 30 t - 265 kW | C181: E9666 | D181: 1 | I181: E9666 | J181: 1 | K181: Rodoviário | M181: Autopropelido
A182: E9667 | B182: Caminhão basculante com capacidade de 14 m³ - 188 kW | C182: E9667 | D182: 1 | I182: E9667 | J182: 1 | K182: Rodoviário | M182: Autopropelido
A183: E9669 | B183: Caminhão tanque com capacidade de 8.000 l - 136 kW | C183: E9669 | D183: 1 | I183: E9669 | J183: 1 | K183: Rodoviário | M183: Autopropelido
A184: E9670 | B184: Usina móvel de lama asfáltica ou microrrevestimento com cavalo mecânico com capacidade de 12 m³ - 95,6 kW/240 kW | C184: E9670 | D184: 1 | I184: E9670 | J184: 1 | K184: Rodoviário | M184: Autopropelido
A185: E9672 | B185: Caminhão basculante para rocha com capacidade de 12 m³ - 188 kW | C185: E9672 | D185: 1 | I185: E9672 | J185: 1 | K185: Rodoviário | M185: Autopropelido
A186: E9676 | B186: Embarcação de transporte de pessoal e apoio logístico - 90 kW | C186: E9592 | D186: 1 | E186: E9676 | F186: 1 | I186: =C186 -> E9592 | J186: =IF(D186<>"",D186,IF(H186<>"",H186,F186)) -> 1 | K186: Rodoviário | M186: Grande Porte | N186: 12.69
A187: E9678 | B187: Fresadora a frio - 410 kW | C187: E9666 | D187: 1 | I187: =IF(C187<>"",C187,IF(G187<>"",G187,E187)) -> E9666 | J187: 1 | K187: Rodoviário | M187: Grande Porte
A188: E9679 | B188: Cavalo mecânico com dois reboques hidropneumáticos de 5 e 4 eixos e mesas de giro com capacidade de 130 t - 440 kW | C188: E9679 | D188: 1 | I188: E9679 | J188: 1 | K188: Rodoviário | M188: Autopropelido
A189: E9680 | B189: Caminhão tanque com capacidade de 13.000 l - 188 kW | C189: E9680 | D189: 1 | I189: E9680 | J189: 1 | K189: Rodoviário | M189: Autopropelido
A190: E9681 | B190: Rolo compactador liso tandem vibratório autopropelido de 10,4 t - 82 kW | C190: E9666 | D190: 0.5 | I190: E9666 | J190: 0.5 | K190: Rodoviário | M190: Grande Porte
A191: E9682 | B191: Rolo compactador liso tandem vibratório autopropelido de 1,6 t - 18 kW | C191: E9666 | D191: 0.2 | I191: E9666 | J191: 0.2 | K191: Rodoviário | M191: Grande Porte
A192: E9684 | B192: Veículo leve picape 4 x 4 com capacidade de 1,10 t - 147 kW | C192: E9684 | D192: 1 | I192: E9684 | J192: 1 | K192: Rodoviário | M192: Autopropelido
A193: E9685 | B193: Rolo compactador pé de carneiro vibratório autopropelido por pneus de 11,6 t - 82 kW | C193: E9666 | D193: 0.5 | I193: E9666 | J193: 0.5 | K193: Rodoviário | M193: Grande Porte
A194: E9686 | B194: Caminhão carroceria com guindauto com capacidade de 20 t.m - 136 kW | C194: E9686 | D194: 1 | I194: E9686 | J194: 1 | K194: Rodoviário | M194: Autopropelido
A195: E9687 | B195: Caminhão carroceria com capacidade de 5 t - 115 kW | C195: E9687 | D195: 1 | I195: E9687 | J195: 1 | K195: Rodoviário | M195: Autopropelido
A196: E9689 | B196: Usina de asfalto a quente gravimétrica com capacidade de 100/140 t/h - 260 kW | C196: E9666 | D196: 3 | I196: E9666 | J196: 3 | K196: Rodoviário | M196: Grande Porte
A197: E9690 | B197: Caminhão carroceria com guindauto e cesto aéreo com capacidade de 10 t.m - 136 kW | C197: E9690 | D197: 1 | I197: E9690 | J197: 1 | K197: Rodoviário | M197: =IF(A197=I197,"Autopropelido","Grande Porte") -> Autopropelido
A198: E9693 | B198: Caminhão demarcador de faixas com sistema de pintura Spray - 115 kW | C198: E9693 | D198: 1 | I198: E9693 | J198: 1 | K198: Rodoviário | M198: Autopropelido
A199: E9697 | B199: Minicarregadeira de pneus com vassoura de 1,8 m - 45,50 kW | C199: E9665 | D199: 0.33 | I199: E9665 | J199: 0.33 | K199: Rodoviário | M199: Grande Porte
A200: E9700 | B200: Fresadora a frio - 155 kW | C200: E9666 | D200: 0.5 | I200: E9666 | J200: 0.5 | K200: Rodoviário | M200: Grande Porte
A201: E9704 | B201: Batelão sem propulsão montado na obra com capacidade de 66 m³ | E201: E9606 | F201: 1 | I201: E9606 | J201: 1 | K201: Hidroviário | M201: Grande Porte | N201: 10.29
... 240 more rows

Sheet SINTÉTICO SICRO (hidden)
A1: CGCIT | B1: SISTEMA DE CUSTOS REFERENCIAIS DE OBRAS - SICRO | D1: DNIT
B2: Maranhão - Abril/2025
A3: Código | B3: Descrição do Serviço | C3: Unidade | D3: Custo Unitário (R$)
A4: 307731 | B4: Aparelho de apoio de neoprene fretado para estruturas moldadas no local - fornecimento e instalação | C4: dm³ | D4: 144.67
A5: 307732 | B5: Aparelho de apoio de neoprene fretado para estruturas pré-moldadas - fornecimento e instalação | C5: dm³ | D5: 119.32
A6: 308308 | B6: Aparelho de apoio metálico elastomérico fixo com capacidade de 1.500 kN - fornecimento e instalação | C6: un | D6: 5439.44
A7: 308313 | B7: Aparelho de apoio metálico elastomérico fixo com capacidade de 10.000 kN - fornecimento e instalação | C7: un | D7: 33653.53
A8: 308309 | B8: Aparelho de apoio metálico elastomérico fixo com capacidade de 2.500 kN - fornecimento e instalação | C8: un | D8: 8981.91
A9: 308310 | B9: Aparelho de apoio metálico elastomérico fixo com capacidade de 4.000 kN - fornecimento e instalação | C9: un | D9: 12215.66
A10: 308311 | B10: Aparelho de apoio metálico elastomérico fixo com capacidade de 5.500 kN - fornecimento e instalação | C10: un | D10: 17236.75
A11: 308312 | B11: Aparelho de apoio metálico elastomérico fixo com capacidade de 7.500 kN - fornecimento e instalação | C11: un | D11: 24032.69
A12: 308307 | B12: Aparelho de apoio metálico elastomérico fixo com capacidade de 700 kN - fornecimento e instalação | C12: un | D12: 3302.89
A13: 308322 | B13: Aparelho de apoio metálico elastomérico multidirecional com capacidade de 1.500 kN - fornecimento e instalação | C13: un | D13: 4960
A14: 308327 | B14: Aparelho de apoio metálico elastomérico multidirecional com capacidade de 10.000 kN - fornecimento e instalação | C14: un | D14: 29987.78
A15: 308323 | B15: Aparelho de apoio metálico elastomérico multidirecional com capacidade de 2.500 kN - fornecimento e instalação | C15: un | D15: 7693.57
A16: 308324 | B16: Aparelho de apoio metálico elastomérico multidirecional com capacidade de 4.000 kN - fornecimento e instalação | C16: un | D16: 11378.13
A17: 308325 | B17: Aparelho de apoio metálico elastomérico multidirecional com capacidade de 5.500 kN - fornecimento e instalação | C17: un | D17: 16043.05
A18: 308326 | B18: Aparelho de apoio metálico elastomérico multidirecional com capacidade de 7.500 kN - fornecimento e instalação | C18: un | D18: 22241.75
A19: 308321 | B19: Aparelho de apoio metálico elastomérico multidirecional com capacidade de 700 kN - fornecimento e instalação | C19: un | D19: 4674.85
A20: 308315 | B20: Aparelho de apoio metálico elastomérico unidirecional com capacidade de 1.500 kN - fornecimento e instalação | C20: un | D20: 6400.69
A21: 308320 | B21: Aparelho de apoio metálico elastomérico unidirecional com capacidade de 10.000 kN - fornecimento e instalação | C21: un | D21: 45421.25
A22: 308316 | B22: Aparelho de apoio metálico elastomérico unidirecional com capacidade de 2.500 kN - fornecimento e instalação | C22: un | D22: 9189.56
A23: 308317 | B23: Aparelho de apoio metálico elastomérico unidirecional com capacidade de 4.000 kN - fornecimento e instalação | C23: un | D23: 17730.75
A24: 308318 | B24: Aparelho de apoio metálico elastomérico unidirecional com capacidade de 5.500 kN - fornecimento e instalação | C24: un | D24: 23328.73
A25: 308319 | B25: Aparelho de apoio metálico elastomérico unidirecional com capacidade de 7.500 kN - fornecimento e instalação | C25: un | D25: 25784.43
A26: 308314 | B26: Aparelho de apoio metálico elastomérico unidirecional com capacidade de 700 kN - fornecimento e instalação | C26: un | D26: 4699.34
A27: 308250 | B27: Aparelho de apoio metálico esférico fixo com capacidade de 1.000 kN - fornecimento e instalação | C27: un | D27: 7404.4
A28: 308251 | B28: Aparelho de apoio metálico esférico fixo com capacidade de 1.500 kN - fornecimento e instalação | C28: un | D28: 11522.12
A29: 308268 | B29: Aparelho de apoio metálico esférico fixo com capacidade de 10.000 kN - fornecimento e instalação | C29: un | D29: 75527.52
A30: 308252 | B30: Aparelho de apoio metálico esférico fixo com capacidade de 2.000 kN - fornecimento e instalação | C30: un | D30: 13371.22
A31: 308253 | B31: Aparelho de apoio metálico esférico fixo com capacidade de 2.500 kN - fornecimento e instalação | C31: un | D31: 16196.23
A32: 308254 | B32: Aparelho de apoio metálico esférico fixo com capacidade de 3.000 kN - fornecimento e instalação | C32: un | D32: 19063.91
A33: 308255 | B33: Aparelho de apoio metálico esférico fixo com capacidade de 3.500 kN - fornecimento e instalação | C33: un | D33: 22328.15
A34: 308256 | B34: Aparelho de apoio metálico esférico fixo com capacidade de 4.000 kN - fornecimento e instalação | C34: un | D34: 29978.21
A35: 308257 | B35: Aparelho de apoio metálico esférico fixo com capacidade de 4.500 kN - fornecimento e instalação | C35: un | D35: 32350.6
A36: 308258 | B36: Aparelho de apoio metálico esférico fixo com capacidade de 5.000 kN - fornecimento e instalação | C36: un | D36: 36124.74
A37: 308259 | B37: Aparelho de apoio metálico esférico fixo com capacidade de 5.500 kN - fornecimento e instalação | C37: un | D37: 38184.64
A38: 308260 | B38: Aparelho de apoio metálico esférico fixo com capacidade de 6.000 kN - fornecimento e instalação | C38: un | D38: 42973.94
A39: 308261 | B39: Aparelho de apoio metálico esférico fixo com capacidade de 6.500 kN - fornecimento e instalação | C39: un | D39: 46400.88
A40: 308262 | B40: Aparelho de apoio metálico esférico fixo com capacidade de 7.000 kN - fornecimento e instalação | C40: un | D40: 54990.04
A41: 308263 | B41: Aparelho de apoio metálico esférico fixo com capacidade de 7.500 kN - fornecimento e instalação | C41: un | D41: 55045.13
A42: 308264 | B42: Aparelho de apoio metálico esférico fixo com capacidade de 8.000 kN - fornecimento e instalação | C42: un | D42: 57441.7
A43: 308265 | B43: Aparelho de apoio metálico esférico fixo com capacidade de 8.500 kN - fornecimento e instalação | C43: un | D43: 58998.32
A44: 308266 | B44: Aparelho de apoio metálico esférico fixo com capacidade de 9.000 kN - fornecimento e instalação | C44: un | D44: 67797.01
A45: 308267 | B45: Aparelho de apoio metálico esférico fixo com capacidade de 9.500 kN - fornecimento e instalação | C45: un | D45: 71921.32
A46: 308288 | B46: Aparelho de apoio metálico esférico multidirecional com capacidade de 1.000 kN - fornecimento e instalação | C46: un | D46: 8316.6
A47: 308289 | B47: Aparelho de apoio metálico esférico multidirecional com capacidade de 1.500 kN - fornecimento e instalação | C47: un | D47: 11521.46
A48: 308306 | B48: Aparelho de apoio metálico esférico multidirecional com capacidade de 10.000 kN - fornecimento e instalação | C48: un | D48: 74486.44
A49: 308290 | B49: Aparelho de apoio metálico esférico multidirecional com capacidade de 2.000 kN - fornecimento e instalação | C49: un | D49: 15094.65
A50: 308291 | B50: Aparelho de apoio metálico esférico multidirecional com capacidade de 2.500 kN - fornecimento e instalação | C50: un | D50: 18052.14
A51: 308292 | B51: Aparelho de apoio metálico esférico multidirecional com capacidade de 3.000 kN - fornecimento e instalação | C51: un | D51: 20843.08
A52: 308293 | B52: Aparelho de apoio metálico esférico multidirecional com capacidade de 3.500 kN - fornecimento e instalação | C52: un | D52: 23566.01
A53: 308294 | B53: Aparelho de apoio metálico esférico multidirecional com capacidade de 4.000 kN - fornecimento e instalação | C53: un | D53: 26714.16
A54: 308295 | B54: Aparelho de apoio metálico esférico multidirecional com capacidade de 4.500 kN - fornecimento e instalação | C54: un | D54: 30827.5
A55: 308296 | B55: Aparelho de apoio metálico esférico multidirecional com capacidade de 5.000 kN - fornecimento e instalação | C55: un | D55: 34324.97
A56: 308297 | B56: Aparelho de apoio metálico esférico multidirecional com capacidade de 5.500 kN - fornecimento e instalação | C56: un | D56: 37162.67
A57: 308298 | B57: Aparelho de apoio metálico esférico multidirecional com capacidade de 6.000 kN - fornecimento e instalação | C57: un | D57: 43054.53
A58: 308299 | B58: Aparelho de apoio metálico esférico multidirecional com capacidade de 6.500 kN - fornecimento e instalação | C58: un | D58: 46497.98
A59: 308300 | B59: Aparelho de apoio metálico esférico multidirecional com capacidade de 7.000 kN - fornecimento e instalação | C59: un | D59: 50030.47
A60: 308301 | B60: Aparelho de apoio metálico esférico multidirecional com capacidade de 7.500 kN - fornecimento e instalação | C60: un | D60: 53959.06
A61: 308302 | B61: Aparelho de apoio metálico esférico multidirecional com capacidade de 8.000 kN - fornecimento e instalação | C61: un | D61: 58051.93
A62: 308303 | B62: Aparelho de apoio metálico esférico multidirecional com capacidade de 8.500 kN - fornecimento e instalação | C62: un | D62: 63299.66
A63: 308304 | B63: Aparelho de apoio metálico esférico multidirecional com capacidade de 9.000 kN - fornecimento e instalação | C63: un | D63: 66877.65
A64: 308305 | B64: Aparelho de apoio metálico esférico multidirecional com capacidade de 9.500 kN - fornecimento e instalação | C64: un | D64: 70948.44
A65: 308269 | B65: Aparelho de apoio metálico esférico unidirecional com capacidade de 1.000 kN - fornecimento e instalação | C65: un | D65: 11068.65
A66: 308270 | B66: Aparelho de apoio metálico esférico unidirecional com capacidade de 1.500 kN - fornecimento e instalação | C66: un | D66: 14983.79
A67: 308287 | B67: Aparelho de apoio metálico esférico unidirecional com capacidade de 10.000 kN - fornecimento e instalação | C67: un | D67: 82204.69
A68: 308271 | B68: Aparelho de apoio metálico esférico unidirecional com capacidade de 2.000 kN - fornecimento e instalação | C68: un | D68: 18262.42
A69: 308272 | B69: Aparelho de apoio metálico esférico unidirecional com capacidade de 2.500 kN - fornecimento e instalação | C69: un | D69: 21677.79
A70: 308273 | B70: Aparelho de apoio metálico esférico unidirecional com capacidade de 3.000 kN - fornecimento e instalação | C70: un | D70: 24786.51
A71: 308274 | B71: Aparelho de apoio metálico esférico unidirecional com capacidade de 3.500 kN - fornecimento e instalação | C71: un | D71: 28732.63
A72: 308275 | B72: Aparelho de apoio metálico esférico unidirecional com capacidade de 4.000 kN - fornecimento e instalação | C72: un | D72: 32131.67
A73: 308276 | B73: Aparelho de apoio metálico esférico unidirecional com capacidade de 4.500 kN - fornecimento e instalação | C73: un | D73: 36857.74
A74: 308277 | B74: Aparelho de apoio metálico esférico unidirecional com capacidade de 5.000 kN - fornecimento e instalação | C74: un | D74: 41619.11
A75: 308278 | B75: Aparelho de apoio metálico esférico unidirecional com capacidade de 5.500 kN - fornecimento e instalação | C75: un | D75: 44111.35
A76: 308279 | B76: Aparelho de apoio metálico esférico unidirecional com capacidade de 6.000 kN - fornecimento e instalação | C76: un | D76: 49326.86
A77: 308280 | B77: Aparelho de apoio metálico esférico unidirecional com capacidade de 6.500 kN - fornecimento e instalação | C77: un | D77: 52820.66
A78: 308281 | B78: Aparelho de apoio metálico esférico unidirecional com capacidade de 7.000 kN - fornecimento e instalação | C78: un | D78: 56740.81
A79: 308282 | B79: Aparelho de apoio metálico esférico unidirecional com capacidade de 7.500 kN - fornecimento e instalação | C79: un | D79: 60879.54
A80: 308283 | B80: Aparelho de apoio metálico esférico unidirecional com capacidade de 8.000 kN - fornecimento e instalação | C80: un | D80: 64721.27
A81: 308284 | B81: Aparelho de apoio metálico esférico unidirecional com capacidade de 8.500 kN - fornecimento e instalação | C81: un | D81: 69722.1
A82: 308285 | B82: Aparelho de apoio metálico esférico unidirecional com capacidade de 9.000 kN - fornecimento e instalação | C82: un | D82: 73815.39
A83: 308286 | B83: Aparelho de apoio metálico esférico unidirecional com capacidade de 9.500 kN - fornecimento e instalação | C83: un | D83: 78059.56
A84: 307733 | B84: Junta de dilatação em elastômero e perfil VV - L = 20 mm e H = 40 mm - fornecimento e instalação | C84: m | D84: 271.1
A85: 307734 | B85: Junta de dilatação em elastômero e perfil VV - L = 25 mm e H = 50 mm - fornecimento e instalação | C85: m | D85: 319.83
A86: 307735 | B86: Junta de dilatação em elastômero e perfil VV - L = 35 mm e H = 60 mm - fornecimento e instalação | C86: m | D86: 419.5
A87: 307736 | B87: Junta de dilatação em elastômero e perfil VV - L = 40 mm e H = 70 mm - fornecimento e instalação | C87: m | D87: 559.46
A88: 307737 | B88: Junta de dilatação em elastômero e perfil VV - L = 50 mm e H = 80 mm - fornecimento e instalação | C88: m | D88: 589.68
A89: 307730 | B89: Junta de dilatação em perfil extrudado de borracha vulcanizada | C89: m | D89: 0
A90: 307084 | B90: Lábios poliméricos em junta de pavimento de concreto - L = 20 mm e H = 30 mm - confecção e assentamento | C90: m | D90: 35.32
A91: 407818 | B91: Armação em aço CA-25 - fornecimento, preparo e colocação | C91: kg | D91: 11.86
A92: 407819 | B92: Armação em aço CA-50 - fornecimento, preparo e colocação | C92: kg | D92: 12.18
A93: 407820 | B93: Armação em aço CA-60 - fornecimento, preparo e colocação | C93: kg | D93: 13.46
A94: 407740 | B94: Chumbador tipo espera em aço CA-25 para fixação de estrutura metálica em concreto - fornecimento e instalação | C94: kg | D94: 14.86
A95: 408037 | B95: Luva de emenda com rosca cônica para aço CA-50 - D = 12,5 mm - fornecimento e instalação | C95: un | D95: 19.93
A96: 408038 | B96: Luva de emenda com rosca cônica para aço CA-50 - D = 16 mm - fornecimento e instalação | C96: un | D96: 30.74
A97: 408039 | B97: Luva de emenda com rosca cônica para aço CA-50 - D = 20 mm - fornecimento e instalação | C97: un | D97: 42.4
A98: 408041 | B98: Luva de emenda com rosca cônica para aço CA-50 - D = 25 mm - fornecimento e instalação | C98: un | D98: 54.37
A99: 408042 | B99: Luva de emenda com rosca cônica para aço CA-50 - D = 32 mm - fornecimento e instalação | C99: un | D99: 78.64
A100: 408031 | B100: Luva de emenda prensada para aço CA-50 - D = 12,5 mm - fornecimento e instalação | C100: un | D100: 21.85
A101: 408032 | B101: Luva de emenda prensada para aço CA-50 - D = 16 mm - fornecimento e instalação | C101: un | D101: 29.76
A102: 408033 | B102: Luva de emenda prensada para aço CA-50 - D = 20 mm - fornecimento e instalação | C102: un | D102: 40.69
A103: 408035 | B103: Luva de emenda prensada para aço CA-50 - D = 25 mm - fornecimento e instalação | C103: un | D103: 69.28
A104: 408036 | B104: Luva de emenda prensada para aço CA-50 - D = 32 mm - fornecimento e instalação | C104: un | D104: 154.12
A105: 408067 | B105: Tela de aço eletrossoldada - fornecimento, preparo e colocação | C105: kg | D105: 10.9
A106: 407743 | B106: Treliça nervurada três barras longitudinais interligadas por duas diagonais sinusoidal - fornecimento e instalação | C106: kg | D106: 11.54
A107: 607137 | B107: Arco metálico galvanizado tipo MP 152S - arco alto - vão = 10,08 m e altura = 6,12 m - aterro rodoviário mínimo = 0,90 m e máximo = 5,00 m - areia e brita comerciais | C107: m | D107: 55592.11
A108: 606785 | B108: Arco metálico galvanizado tipo MP 152S - arco alto - vão = 10,08 m e altura = 6,12 m - aterro rodoviário mínimo = 0,90 m e máximo = 5,00 m - areia extraída e brita produzida | C108: m | D108: 54952.82
A109: 607139 | B109: Arco metálico galvanizado tipo MP 152S - arco alto - vão = 10,31 m e altura = 6,17 m - aterro rodoviário mínimo = 0,90 m e máximo = 4,90 m - areia e brita comerciais | C109: m | D109: 56354.82
A110: 606787 | B110: Arco metálico galvanizado tipo MP 152S - arco alto - vão = 10,31 m e altura = 6,17 m - aterro rodoviário mínimo = 0,90 m e máximo = 4,90 m - areia extraída e brita produzida | C110: m | D110: 55393.39
A111: 607140 | B111: Arco metálico galvanizado tipo MP 152S - arco alto - vão = 10,36 m e altura = 5,38 m - aterro rodoviário mínimo = 1,20 m e máximo = 3,60 m - areia e brita comerciais | C111: m | D111: 51403.85
A112: 606788 | B112: Arco metálico galvanizado tipo MP 152S - arco alto - vão = 10,36 m e altura = 5,38 m - aterro rodoviário mínimo = 1,20 m e máximo = 3,60 m - areia extraída e brita produzida | C112: m | D112: 51149.42
A113: 607141 | B113: Arco metálico galvanizado tipo MP 152S - arco alto - vão = 10,54 m e altura = 6,05 m - aterro rodoviário mínimo = 1,20 m e máximo = 4,20 m - areia e brita comerciais | C113: m | D113: 57383.24
A114: 606789 | B114: Arco metálico galvanizado tipo MP 152S - arco alto - vão = 10,54 m e altura = 6,05 m - aterro rodoviário mínimo = 1,20 m e máximo = 4,20 m - areia extraída e brita produzida | C114: m | D114: 56718.84
A115: 607144 | B115: Arco metálico galvanizado tipo MP 152S - arco alto - vão = 10,57 m e altura = 5,41 m - aterro rodoviário mínimo = 1,20 m e máximo = 4,10 m - areia e brita comerciais | C115: m | D115: 66444.88
A116: 606792 | B116: Arco metálico galvanizado tipo MP 152S - arco alto - vão = 10,57 m e altura = 5,41 m - aterro rodoviário mínimo = 1,20 m e máximo = 4,10 m - areia extraída e brita produzida | C116: m | D116: 65838.03
A117: 607142 | B117: Arco metálico galvanizado tipo MP 152S - arco alto - vão = 10,74 m e altura = 6,48 m - aterro rodoviário mínimo = 1,20 m e máximo = 4,70 m - areia e brita comerciais | C117: m | D117: 60229.31
A118: 606790 | B118: Arco metálico galvanizado tipo MP 152S - arco alto - vão = 10,74 m e altura = 6,48 m - aterro rodoviário mínimo = 1,20 m e máximo = 4,70 m - areia extraída e brita produzida | C118: m | D118: 59514.68
A119: 607145 | B119: Arco metálico galvanizado tipo MP 152S - arco alto - vão = 10,77 m e altura = 6,10 m - aterro rodoviário mínimo = 1,20 m e máximo = 4,70 m - areia e brita comerciais | C119: m | D119: 73453.45
A120: 606793 | B120: Arco metálico galvanizado tipo MP 152S - arco alto - vão = 10,77 m e altura = 6,10 m - aterro rodoviário mínimo = 1,20 m e máximo = 4,70 m - areia extraída e brita produzida | C120: m | D120: 72774.74
A121: 607146 | B121: Arco metálico galvanizado tipo MP 152S - arco alto - vão = 10,97 m e altura = 6,53 m - aterro rodoviário mínimo = 1,20 m e máximo = 4,70 m - areia e brita comerciais | C121: m | D121: 76653.45
A122: 606794 | B122: Arco metálico galvanizado tipo MP 152S - arco alto - vão = 10,97 m e altura = 6,53 m - aterro rodoviário mínimo = 1,20 m e máximo = 4,70 m - areia extraída e brita produzida | C122: m | D122: 75916.8
A123: 607143 | B123: Arco metálico galvanizado tipo MP 152S - arco alto - vão = 11,35 m e altura = 7,12 m - aterro rodoviário mínimo = 1,20 m e máximo = 4,70 m - areia e brita comerciais | C123: m | D123: 65088.45
A124: 606791 | B124: Arco metálico galvanizado tipo MP 152S - arco alto - vão = 11,35 m e altura = 7,12 m - aterro rodoviário mínimo = 1,20 m e máximo = 4,70 m - areia extraída e brita produzida | C124: m | D124: 64265.71
A125: 607147 | B125: Arco metálico galvanizado tipo MP 152S - arco alto - vão = 11,58 m e altura = 7,16 m - aterro rodoviário mínimo = 1,20 m e máximo = 6,40 m - areia e brita comerciais | C125: m | D125: 82739.22
A126: 606795 | B126: Arco metálico galvanizado tipo MP 152S - arco alto - vão = 11,58 m e altura = 7,16 m - aterro rodoviário mínimo = 1,20 m e máximo = 6,40 m - areia extraída e brita produzida | C126: m | D126: 81890.38
A127: 607112 | B127: Arco metálico galvanizado tipo MP 152S - arco alto - vão = 6,12 m e altura = 2,77 m - aterro rodoviário mínimo = 0,75 m e máximo = 5,40 m - areia e brita comerciais | C127: m | D127: 27032.9
A128: 606760 | B128: Arco metálico galvanizado tipo MP 152S - arco alto - vão = 6,12 m e altura = 2,77 m - aterro rodoviário mínimo = 0,75 m e máximo = 5,40 m - areia extraída e brita produzida | C128: m | D128: 26810.39
A129: 607113 | B129: Arco metálico galvanizado tipo MP 152S - arco alto - vão = 6,30 m e altura = 3,68 m - aterro rodoviário mínimo = 0,75 m e máximo = 7,50 m - areia e brita comerciais | C129: m | D129: 31793.91
A130: 606761 | B130: Arco metálico galvanizado tipo MP 152S - arco alto - vão = 6,30 m e altura = 3,68 m - aterro rodoviário mínimo = 0,75 m e máximo = 7,50 m - areia extraída e brita produzida | C130: m | D130: 31538.14
A131: 606762 | B131: Arco metálico galvanizado tipo MP 152S - arco alto - vão = 6,55 m e altura = 3,56 m - aterro rodoviário mínimo = 0,75 m e máximo = 4,9 m - areia extraída e brita produzida | C131: m | D131: 31893.14
A132: 607114 | B132: Arco metálico galvanizado tipo MP 152S - arco alto - vão = 6,55 m e altura = 3,56 m - aterro rodoviário mínimo = 0,75 m e máximo = 4,90 m - areia e brita comerciais | C132: m | D132: 32153.74
A133: 607116 | B133: Arco metálico galvanizado tipo MP 152S - arco alto - vão = 6,78 m e altura = 3,61 m - aterro rodoviário mínimo = 0,75 m e máximo = 4,80 m - areia e brita comerciais | C133: m | D133: 33305.1
A134: 606764 | B134: Arco metálico galvanizado tipo MP 152S - arco alto - vão = 6,78 m e altura = 3,61 m - aterro rodoviário mínimo = 0,75 m e máximo = 4,80 m - areia extraída e brita produzida | C134: m | D134: 33033.52
A135: 607115 | B135: Arco metálico galvanizado tipo MP 152S - arco alto - vão = 6,96 m e altura = 4,42 m - aterro rodoviário mínimo = 0,75 m e máximo = 8,10 m - areia e brita comerciais | C135: m | D135: 37830.76
A136: 606763 | B136: Arco metálico galvanizado tipo MP 152S - arco alto - vão = 6,96 m e altura = 4,42 m - aterro rodoviário mínimo = 0,75 m e máximo = 8,10 m - areia extraída e brita produzida | C136: m | D136: 37504.04
A137: 607117 | B137: Arco metálico galvanizado tipo MP 152S - arco alto - vão = 6,99 m e altura = 4,27 m - aterro rodoviário mínimo = 0,75 m e máximo = 5,70 m - areia e brita comerciais | C137: m | D137: 37825.27
A138: 606765 | B138: Arco metálico galvanizado tipo MP 152S - arco alto - vão = 6,99 m e altura = 4,27 m - aterro rodoviário mínimo = 0,75 m e máximo = 5,70 m - areia extraída e brita produzida | C138: m | D138: 37507.52
A139: 607118 | B139: Arco metálico galvanizado tipo MP 152S - arco alto - vão = 7,01 m e altura = 3,63 m - aterro rodoviário mínimo = 0,75 m e máximo = 4,60 m - areia e brita comerciais | C139: m | D139: 33892.05
A140: 606766 | B140: Arco metálico galvanizado tipo MP 152S - arco alto - vão = 7,01 m e altura = 3,63 m - aterro rodoviário mínimo = 0,75 m e máximo = 4,60 m - areia extraída e brita produzida | C140: m | D140: 33611.68
A141: 607120 | B141: Arco metálico galvanizado tipo MP 152S - arco alto - vão = 7,24 m e altura = 3,68 m - aterro rodoviário mínimo = 0,90 m e máximo = 4,4 m - areia e brita comerciais | C141: m | D141: 34521.15
A142: 606768 | B142: Arco metálico galvanizado tipo MP 152S - arco alto - vão = 7,24 m e altura = 3,68 m - aterro rodoviário mínimo = 0,90 m e máximo = 4,40 m - areia extraída e brita produzida | C142: m | D142: 34225.91
A143: 607119 | B143: Arco metálico galvanizado tipo MP 152S - arco alto - vão = 7,42 m e altura = 4,52 m - aterro rodoviário mínimo = 0,90 m e máximo = 6,40 m - areia e brita comerciais | C143: m | D143: 39707.24
A144: 606767 | B144: Arco metálico galvanizado tipo MP 152S - arco alto - vão = 7,42 m e altura = 4,52 m - aterro rodoviário mínimo = 0,90 m e máximo = 6,40 m - areia extraída e brita produzida | C144: m | D144: 39347.19
A145: 607121 | B145: Arco metálico galvanizado tipo MP 152S - arco alto - vão = 7,47 m e altura = 4,19 m - aterro rodoviário mínimo = 0,90 m e máximo = 4,30 m - areia e brita comerciais | C145: m | D145: 37389.95
A146: 606769 | B146: Arco metálico galvanizado tipo MP 152S - arco alto - vão = 7,47 m e altura = 4,19 m - aterro rodoviário mínimo = 0,90 m e máximo = 4,30 m - areia extraída e brita produzida | C146: m | D146: 37053.35
A147: 607123 | B147: Arco metálico galvanizado tipo MP 152S - arco alto - vão = 7,67 m e altura = 3,99 m - aterro rodoviário mínimo = 0,90 m e máximo = 4,10 m - areia e brita comerciais | C147: m | D147: 36899.76
A148: 606771 | B148: Arco metálico galvanizado tipo MP 152S - arco alto - vão = 7,67 m e altura = 3,99 m - aterro rodoviário mínimo = 0,90 m e máximo = 4,10 m - areia extraída e brita produzida | C148: m | D148: 36564.41
A149: 607122 | B149: Arco metálico galvanizado tipo MP 152S - arco alto - vão = 7,85 m e altura = 4,60 m - aterro rodoviário mínimo = 0,90 m e máximo = 6,00 m - areia e brita comerciais | C149: m | D149: 40957.62
A150: 606770 | B150: Arco metálico galvanizado tipo MP 152S - arco alto - vão = 7,85 m e altura = 4,60 m - aterro rodoviário mínimo = 0,90 m e máximo = 6,00 m - areia extraída e brita produzida | C150: m | D150: 40570.87
A151: 607125 | B151: Arco metálico galvanizado tipo MP 152S - arco alto - vão = 7,90 m e altura = 4,04 m - aterro rodoviário mínimo = 0,90 m e máximo = 4,00 m - areia e brita comerciais | C151: m | D151: 38161.74
A152: 606773 | B152: Arco metálico galvanizado tipo MP 152S - arco alto - vão = 7,90 m e altura = 4,04 m - aterro rodoviário mínimo = 0,90 m e máximo = 4,00 m - areia extraída e brita produzida | C152: m | D152: 37808.9
A153: 607124 | B153: Arco metálico galvanizado tipo MP 152S - arco alto - vão = 8,08 m e altura = 4,65 m - aterro rodoviário mínimo = 0,90 m e máximo = 5,80 m - areia e brita comerciais | C153: m | D153: 41579.33
A154: 606772 | B154: Arco metálico galvanizado tipo MP 152S - arco alto - vão = 8,08 m e altura = 4,65 m - aterro rodoviário mínimo = 0,90 m e máximo = 5,80 m - areia extraída e brita produzida | C154: m | D154: 41180.2
A155: 607126 | B155: Arco metálico galvanizado tipo MP 152S - arco alto - vão = 8,31 m e altura = 4,70 m - aterro rodoviário mínimo = 0,90 m e máximo = 5,60 m - areia e brita comerciais | C155: m | D155: 42745.16
A156: 606774 | B156: Arco metálico galvanizado tipo MP 152S - arco alto - vão = 8,31 m e altura = 4,70 m - aterro rodoviário mínimo = 0,90 m e máximo = 5,60 m - areia extraída e brita produzida | C156: m | D156: 42326.8
A157: 607127 | B157: Arco metálico galvanizado tipo MP 152S - arco alto - vão = 8,36 m e altura = 4,11 m - aterro rodoviário mínimo = 0,90 m e máximo = 3,70 m - areia e brita comerciais | C157: m | D157: 39346.6
A158: 606775 | B158: Arco metálico galvanizado tipo MP 152S - arco alto - vão = 8,36 m e altura = 4,11 m - aterro rodoviário mínimo = 0,90 m e máximo = 3,70 m - areia extraída e brita produzida | C158: m | D158: 38972.55
A159: 607129 | B159: Arco metálico galvanizado tipo MP 152S - arco alto - vão = 8,59 m e altura = 4,39 m - aterro rodoviário mínimo = 0,90 m e máximo = 3,60 m - areia e brita comerciais | C159: m | D159: 41189.03
A160: 606777 | B160: Arco metálico galvanizado tipo MP 152S - arco alto - vão = 8,59 m e altura = 4,39 m - aterro rodoviário mínimo = 0,90 m e máximo = 3,60 m - areia extraída e brita produzida | C160: m | D160: 40779.39
A161: 607128 | B161: Arco metálico galvanizado tipo MP 152S - arco alto - vão = 8,97 m e altura = 5,00 m - aterro rodoviário mínimo = 0,90 m e máximo = 5,80 m - areia e brita comerciais | C161: m | D161: 45334.09
A162: 606776 | B162: Arco metálico galvanizado tipo MP 152S - arco alto - vão = 8,97 m e altura = 5,00 m - aterro rodoviário mínimo = 0,90 m e máximo = 5,80 m - areia extraída e brita produzida | C162: m | D162: 44855.46
A163: 607130 | B163: Arco metálico galvanizado tipo MP 152S - arco alto - vão = 9,17 m e altura = 5,49 m - aterro rodoviário mínimo = 0,90 m e máximo = 5,60 m - areia e brita comerciais | C163: m | D163: 48332.35
A164: 606778 | B164: Arco metálico galvanizado tipo MP 152S - arco alto - vão = 9,17 m e altura = 5,49 m - aterro rodoviário mínimo = 0,90 m e máximo = 5,60 m - areia extraída e brita produzida | C164: m | D164: 47806.26
A165: 607131 | B165: Arco metálico galvanizado tipo MP 152S - arco alto - vão = 9,22 m e altura = 4,70 m - aterro rodoviário mínimo = 0,90 m e máximo = 4,10 m - areia e brita comerciais | C165: m | D165: 45344.39
A166: 606779 | B166: Arco metálico galvanizado tipo MP 152S - arco alto - vão = 9,22 m e altura = 4,70 m - aterro rodoviário mínimo = 0,90 m e máximo = 4,10 m - areia extraída e brita produzida | C166: m | D166: 44878.96
A167: 607133 | B167: Arco metálico galvanizado tipo MP 152S - arco alto - vão = 9,45 m e altura = 4,75 m - aterro rodoviário mínimo = 0,90 m e máximo = 4,00 m - areia e brita comerciais | C167: m | D167: 46036.5
A168: 606781 | B168: Arco metálico galvanizado tipo MP 152S - arco alto - vão = 9,45 m e altura = 4,75 m - aterro rodoviário mínimo = 0,90 m e máximo = 4,00 m - areia extraída e brita produzida | C168: m | D168: 45557.09
A169: 607132 | B169: Arco metálico galvanizado tipo MP 152S - arco alto - vão = 9,63 m e altura = 5,59 m - aterro rodoviário mínimo = 0,90 m e máximo = 5,30 m - areia e brita comerciais | C169: m | D169: 50222.3
A170: 606780 | B170: Arco metálico galvanizado tipo MP 152S - arco alto - vão = 9,63 m e altura = 5,59 m - aterro rodoviário mínimo = 0,90 m e máximo = 5,30 m - areia extraída e brita produzida | C170: m | D170: 49659.32
A171: 607134 | B171: Arco metálico galvanizado tipo MP 152S - arco alto - vão = 9,65 m e altura = 5,41 m - aterro rodoviário mínimo = 0,90 m e máximo = 4,70 m - areia e brita comerciais | C171: m | D171: 49732.32
A172: 606782 | B172: Arco metálico galvanizado tipo MP 152S - arco alto - vão = 9,65 m e altura = 5,41 m - aterro rodoviário mínimo = 0,90 m e máximo = 4,70 m - areia extraída e brita produzida | C172: m | D172: 49182.21
A173: 607136 | B173: Arco metálico galvanizado tipo MP 152S - arco alto - vão = 9,68 m e altura = 5,23 m - aterro rodoviário mínimo = 0,90 m e máximo = 3,90 m - areia e brita comerciais | C173: m | D173: 49055.59
A174: 606784 | B174: Arco metálico galvanizado tipo MP 152S - arco alto - vão = 9,68 m e altura = 5,23 m - aterro rodoviário mínimo = 0,90 m e máximo = 3,90 m - areia extraída e brita produzida | C174: m | D174: 48523.06
A175: 607135 | B175: Arco metálico galvanizado tipo MP 152S - arco alto - vão = 9,86 m e altura = 6,07 m - aterro rodoviário mínimo = 0,90 m e máximo = 5,20 m - areia e brita comerciais | C175: m | D175: 54783.15
A176: 606783 | B176: Arco metálico galvanizado tipo MP 152S - arco alto - vão = 9,86 m e altura = 6,07 m - aterro rodoviário mínimo = 0,90 m e máximo = 5,20 m - areia extraída e brita produzida | C176: m | D176: 54165.81
A177: 607138 | B177: Arco metálico galvanizado tipo MP 152S - arco alto - vão = 9,91 m e altura = 5,28 m - aterro rodoviário mínimo = 0,90 m e máximo = 3,80 m - areia e brita comerciais | C177: m | D177: 49930.1
A178: 606786 | B178: Arco metálico galvanizado tipo MP 152S - arco alto - vão = 9,91 m e altura = 5,28 m - aterro rodoviário mínimo = 0,90 m e máximo = 3,80 m - areia extraída e brita produzida | C178: m | D178: 49362.8
A179: 606842 | B179: Arco metálico galvanizado tipo MP 152S - ovoide - vão = 7,21 m e altura = 7,82 m - aterro rodoviário mínimo = 0,75 m e máximo = 6,70 m - areia e brita comerciais | C179: m | D179: 61579.16
A180: 606832 | B180: Arco metálico galvanizado tipo MP 152S - ovoide - vão = 7,21 m e altura = 7,82 m - aterro rodoviário mínimo = 0,75 m e máximo = 6,70 m - areia extraída e brita produzida | C180: m | D180: 61176.9
A181: 606843 | B181: Arco metálico galvanizado tipo MP 152S - ovoide - vão = 7,31 m e altura = 7,87 m - aterro rodoviário mínimo = 0,90 m e máximo = 6,80 m - areia e brita comerciais | C181: m | D181: 63991.07
A182: 606833 | B182: Arco metálico galvanizado tipo MP 152S - ovoide - vão = 7,31 m e altura = 7,87 m - aterro rodoviário mínimo = 0,90 m e máximo = 6,80 m - areia extraída e brita produzida | C182: m | D182: 63571.59
A183: 606845 | B183: Arco metálico galvanizado tipo MP 152S - ovoide - vão = 7,57 m e altura = 8,44 m - aterro rodoviário mínimo = 0,90 m e máximo = 5,60 m - areia e brita comerciais | C183: m | D183: 66342.47
A184: 606835 | B184: Arco metálico galvanizado tipo MP 152S - ovoide - vão = 7,57 m e altura = 8,44 m - aterro rodoviário mínimo = 0,90 m e máximo = 5,60 m - areia extraída e brita produzida | C184: m | D184: 65921.68
A185: 606844 | B185: Arco metálico galvanizado tipo MP 152S - ovoide - vão = 7,77 m e altura = 7,90 m - aterro rodoviário mínimo = 0,90 m e máximo = 6,80 m - areia e brita comerciais | C185: m | D185: 64973.18
A186: 606834 | B186: Arco metálico galvanizado tipo MP 152S - ovoide - vão = 7,77 m e altura = 7,90 m - aterro rodoviário mínimo = 0,90 m e máximo = 6,80 m - areia extraída e brita produzida | C186: m | D186: 64540.66
A187: 606847 | B187: Arco metálico galvanizado tipo MP 152S - ovoide - vão = 8,13 m e altura = 8,01 m - aterro rodoviário mínimo = 0,90 m e máximo = 3,50 m - areia e brita comerciais | C187: m | D187: 69381.87
A188: 606837 | B188: Arco metálico galvanizado tipo MP 152S - ovoide - vão = 8,13 m e altura = 8,01 m - aterro rodoviário mínimo = 0,90 m e máximo = 3,50 m - areia extraída e brita produzida | C188: m | D188: 68913.78
A189: 606846 | B189: Arco metálico galvanizado tipo MP 152S - ovoide - vão = 8,36 m e altura = 8,23 m - aterro rodoviário mínimo = 0,90 m e máximo = 4,30 m - areia e brita comerciais | C189: m | D189: 71087.94
A190: 606836 | B190: Arco metálico galvanizado tipo MP 152S - ovoide - vão = 8,36 m e altura = 8,23 m - aterro rodoviário mínimo = 0,90 m e máximo = 4,30 m - areia extraída e brita produzida | C190: m | D190: 70613.56
A191: 606848 | B191: Arco metálico galvanizado tipo MP 152S - ovoide - vão = 8,56 m e altura = 8,48 m - aterro rodoviário mínimo = 0,90 m e máximo = 5,30 m - areia e brita comerciais | C191: m | D191: 74052.37
A192: 606838 | B192: Arco metálico galvanizado tipo MP 152S - ovoide - vão = 8,56 m e altura = 8,48 m - aterro rodoviário mínimo = 0,90 m e máximo = 5,30 m - areia extraída e brita produzida | C192: m | D192: 73560.79
A193: 606849 | B193: Arco metálico galvanizado tipo MP 152S - ovoide - vão = 8,71 m e altura = 9,32 m - aterro rodoviário mínimo = 0,90 m e máximo = 6,00 m - areia e brita comerciais | C193: m | D193: 75777.98
A194: 606839 | B194: Arco metálico galvanizado tipo MP 152S - ovoide - vão = 8,71 m e altura = 9,32 m - aterro rodoviário mínimo = 0,90 m e máximo = 6,00 m - areia extraída e brita produzida | C194: m | D194: 75294.79
A195: 606850 | B195: Arco metálico galvanizado tipo MP 152S - ovoide - vão = 9,15 m e altura = 9,04 m - aterro rodoviário mínimo = 0,90 m e máximo = 4,70 m - areia e brita comerciais | C195: m | D195: 76427.95
A196: 606840 | B196: Arco metálico galvanizado tipo MP 152S - ovoide - vão = 9,15 m e altura = 9,04 m - aterro rodoviário mínimo = 0,90 m e máximo = 4,70 m - areia extraída e brita produzida | C196: m | D196: 75904.35
A197: 606851 | B197: Arco metálico galvanizado tipo MP 152S - ovoide - vão = 9,15 m e altura = 9,50 m - aterro rodoviário mínimo = 0,90 m e máximo = 5,70 m - areia e brita comerciais | C197: m | D197: 78642.62
A198: 606841 | B198: Arco metálico galvanizado tipo MP 152S - ovoide - vão = 9,15 m e altura = 9,50 m - aterro rodoviário mínimo = 0,90 m e máximo = 5,70 m - areia extraída e brita produzida | C198: m | D198: 78137.14
A199: 605604 | B199: Argamassa de solo-cimento com 10% de cimento e material de jazida - preparo e injeção em tunnel liner | C199: m³ | D199: 326
A200: 605695 | B200: Bueiro metálico com chapas múltiplas MP 100 com revestimento em epóxi - D = 0,60 m - brita comercial | C200: m | D200: 1473.27
... 6292 more rows

Sheet CONSUMO DE MAT. B TOTAL
B3: CONSUMO DO MATERIAL BETUMINOSO TOTAL
B5: TRECHO | D5: QUANTIDADES | M5: MAT. BETUMINOSO
B6: Inicio (km) | C6: Fim (km) | D6: Extensão (m) | E6: Largura (m) | F6: Espess. (m) | G6: Área (m2) | H6: Volume (m3) | I6: Densidade (t/m3) | J6: Massa (t) | K6: Unid | L6: Quant. | M6: Tipo | N6: Consumo Taxa de Aplicação | O6: Unid. | P6: Quant.
B7: IMPRIMAÇÃO
F9: 1 | G9: ='Memória de Cálculo'!H63 -> 14000 | H9: =G9*F9 -> 14000 | M9: CM-30 | N9: 1,2 l/m2 | O9: t | P9: =ROUND((G9*1.2)/1000,2) -> 16.8
B10: CAPA SELANTE
F11: 1 | G11: ='Memória de Cálculo'!H51 -> 14000 | H11: =G11*F11 -> 14000 | M11: RR-2C | N11: 0,5 l/m2 | O11: t | P11: =ROUND((G11*0.5)/1000,2) -> 7
B12: TRATAMENTO SUPERFICIAL DUPLO - 1ª CAMADA
F13: 1 | G13: ='Memória de Cálculo'!H57 -> 14000 | H13: =G13*F13 -> 14000 | M13: RR-2C | N13: 1,5 l/m² | O13: t | P13: =ROUND((G13*1.5)/1000,2) -> 21
B14: TRATAMENTO SUPERFICIAL DUPLO - 2ª CAMADA
F15: 1 | G15: ='Memória de Cálculo'!H57 -> 14000 | H15: =G15*F15 -> 14000 | M15: RR-2C | N15: 1,0 l/m² | O15: t | P15: =ROUND((G15*1)/1000,2) -> 14
H17: =G17*F17 -> 0

Sheet ENC. SOCIAIS
A6: NOME DA CONCORRENTE:
A7: EDITAL:
A8: FOLHA:
A9: ='MODULO MINIMO'!B1 -> EXECUÇÃO DE SERVIÇOS DE PAVIMENTAÇÃO COM TRATAMENTO SUPERFICIAL DUPLO EM VIAS DE MUNICÍPIOS DIVERSOS INSERIDOS NA ÁREA DE ATUAÇÃO DA CODEVASF, NO ESTADO MARANHÃO
A11: DETALHAMENTO DOS ENCARGOS SOCIAIS (%)
A12: VIGÊNCIA A PARTIR DE 01/2025 | C12: COM DESONERAÇÃO | E12: SEM DESONERAÇÃO
C14: HORISTA | D14: MENSALISTA | E14: HORISTA | F14: MENSALISTA
A16: GRUPO A
A17: A1 | B17: INSS | C17: 0 | D17: 0 | E17: 20 | F17: 20
A18: A2 | B18: SESI | C18: 1.5 | D18: 1.5 | E18: 1.5 | F18: 1.5
A19: A3 | B19: SENAI | C19: 1 | D19: 1 | E19: 1 | F19: 1
A20: A4 | B20: INCRA | C20: 0.2 | D20: 0.2 | E20: 0.2 | F20: 0.2
A21: A5 | B21: SEBRAE | C21: 0.6 | D21: 0.6 | E21: 0.6 | F21: 0.6
A22: A6 | B22: Salário Educação | C22: 2.5 | D22: 2.5 | E22: 2.5 | F22: 2.5
A23: A7 | B23: Seguro Contra Acidentes de Trabalho | C23: 3 | D23: 3 | E23: 3 | F23: 3
A24: A8 | B24: FGTS | C24: 8 | D24: 8 | E24: 8 | F24: 8
A25: A9 | B25: SECONCI | C25: 1 | D25: 1 | E25: 0 | F25: 0
A26: A | B26: Total | C26: =SUM(C17:C25) -> 17.8 | D26: =SUM(D17:D25) -> 17.8 | E26: =SUM(E17:E25) -> 36.8 | F26: =SUM(F17:F25) -> 36.8
A27: GRUPO B
A28: B1 | B28: Repouso Semanal Remunerado | C28: 17.88 | D28: - | E28: 17.88 | F28: -
A29: B2 | B29: Feriados | C29: 3.94 | D29: - | E29: 3.95 | F29: -
A30: B3 | B30: Auxílio-enfermidade | C30: 0.91 | D30: 0.69 | E30: 0.86 | F30: 0.65
A31: B4 | B31: 13° salário | C31: 10.98 | D31: 8.33 | E31: 10.97 | F31: 8.33
A32: B5 | B32: Licença-paternidade | C32: 0.07 | D32: 0.06 | E32: 0.07 | F32: 0.05
A33: B6 | B33: Faltas Justificadas | C33: 0.73 | D33: 0.56 | E33: 0.73 | F33: 0.56
A34: B7 | B34: Dias de chuva | C34: 1.45 | D34: - | E34: 1.56 | F34: -
A35: B8 | B35: Auxílio Acidente de Trabalho | C35: 0.11 | D35: 0.09 | E35: 0.1 | F35: 0.07
A36: B9 | B36: Férias Gozadas | C36: 11.35 | D36: 8.62 | E36: 11.16 | F36: 8.48
A37: B10 | B37: Salário Maternidade | C37: 0.03 | D37: 0.03 | E37: 0.03 | F37: 0.03
A38: B | B38: Total | C38: =SUM(C28:C37) -> 47.45 | D38: =SUM(D28:D37) -> 18.38 | E38: =SUM(E28:E37) -> 47.31 | F38: =SUM(F28:F37) -> 18.17
A39: GRUPO C
A40: C1 | B40: Aviso Prévio Indenizado | C40: 6.76 | D40: 5.14 | E40: 4.55 | F40: 3.46
A41: C2 | B41: Aviso Prévio Trabalhado | C41: 0.16 | D41: 0.12 | E41: 0.11 | F41: 0.08
A42: C3 | B42: Férias Indenizadas | C42: 2.28 | D42: 1.73 | E42: 3.17 | F42: 2.41
A43: C4 | B43: Depósito Rescisão Sem Justa Causa | C43: 3.81 | D43: 2.89 | E43: 2.6 | F43: 1.98
A44: C5 | B44: Indenização Adicional | C44: 0.57 | D44: 0.43 | E44: 0.38 | F44: 0.29
A45: C | B45: Total | C45: =SUM(C40:C44) -> 13.58 | D45: =SUM(D40:D44) -> 10.31 | E45: =SUM(E40:E44) -> 10.81 | F45: =SUM(F40:F44) -> 8.22
A46: GRUPO D
A47: D1 | B47: Reincidência de A sobre B | C47: 8.45 | D47: 3.27 | E47: 17.41 | F47: 6.69
A48: D2 | B48: Reincidência de Grupo A sobre Aviso Prévio Trabalhado e Reincidência do FGTS sobre Aviso Prévio Indenizado | C48: 0.57 | D48: 0.43 | E48: 0.4 | F48: 0.31
A49: D | B49: Total | C49: =SUM(C47:C48) -> 9.02 | D49: =SUM(D47:D48) -> 3.7 | E49: =SUM(E47:E48) -> 17.81 | F49: =SUM(F47:F48) -> 7
A51: T O T A L (%) | C51: =C26+C38+C45+C49 -> 87.85 | D51: =D26+D38+D45+D49 -> 50.19 | E51: =E26+E38+E45+E49 -> 112.73 | F51: =F26+F38+F45+F49 -> 70.19
H56: Fonte: Sinapi Cálculos e Parâmetros 5ª Edição - Atualizada em Agosto 2023

Sheet Transporte EAI
C2: MEMÓRIA DE CÁLCULO
C7: REAJUSTE | F7: TIPOLOGIA DO MATERIAL | I7: EMULSÃO ASFÁLTICA PARA SERVIÇO DE IMPRIMAÇÃO | M7: IMPOSTOS | N7: COFINS | O7: 0.0065 | P7: 0.0065
G8: ÍNDICE DE PAVIMENTAÇÃO DNIT | H8: 2014-07-01 | I8: ÍNDICE INICIAL | J8: 270.237 | N8: PIS | O8: 0.03 | P8: 0.03 | T8: LEGENDA | AC8: As empresas tributadas pelo Lucro Presumido pagam 0,65% de PIS e 3% de COFINS
H9: 2025-05-01 | I9: ÍNDICE FINAL | J9: 587.552 | N9: ICMS | O9: 0.23 | P9: 0.23 | Q9: =1-(O9/1) -> 0.77 | R9: =1-(P9/1) -> 0.77 | S9: =1-(Q9/1) -> 0.23 | T9: ENTRADA DE DADOS | AC9: As empresas tributadas pelo Lucro Real pagam 1,65% de PIS e 7,60% de COFINS
G10: Data ANP | H10: 2025-05-01
C11: DATA-BASE | D11: PRODUTOS | E11: LOCALIDADES | J11: CUSTO ANP (R$/Kg) | L11: CUSTO ANP | M11: IMPOSTOS DO PRODUTO | N11: CUSTO DO PRODUTO COM IMPOSTOS | O11: DMT's | P11: DMT'S FLUVIAL | Q11: CUSTO DO TRANSPORTE RODOVIA PAVIMENTADA | R11: CUSTO DO TRANSPORTE FLUVIAL | S11: CUSTO DO TRANSPORTE TOTAL | T11: ICMS | U11: ATUALIZAÇÃO DO CUSTO DE TRANSPORTE | V11: CUSTO DO TRANSPORTE RODOVIA PAVIMENTADA COM IMPOSTOS E ATUALIZAÇÃO MONETÁRIA | W11: PEDÁGIO | Y11: TOTAL TRANSPORTE | Z11: AQUISIÇÃO DO PRODUTO | AA11: TOTAL GERAL ( TRANSP + AQUISIÇÃO) | AC11: 1 | AD11: 2 | AE11: 3
C12: =H9 -> 2025-05-01 | E12: REFINARIAS | F12: ENDEREÇO | G12: ESTADO | H12: CIDADE | I12: DESTINO | J12: ESTADO | K12: REGIÃO | L12: R$/t | M12: R$/t | N12: R$/t | O12: KM | P12: KM | Q12: R$/t | R12: R$/t | S12: R$/t | T12: R$/t | U12: R$/t | V12: R$/t | W12: CUSTO | X12: R$/t | Y12: R$/t | Z12: R$/t | AA12: R$/t | AC12: TOTAL GERAL ( TRANSP + AQUISIÇÃO) | AD12: TOTAL TRANSPORTE | AE12: AQUISIÇÃO DO PRODUTO
B13: =AA13 -> 4824.505228 | C13: 1 | D13: =I7 -> EMULSÃO ASFÁLTICA PARA SERVIÇO DE IMPRIMAÇÃO | E13: 'CENTRO OESTE ASFALTOS LTDA. | F13: SETOR DE INFLAMÁVEIS, S/N TRECHO 02 - LOTE 1.100 - GUARÁ - CEP:71225-000 | G13: Distrito Federal | H13: BRASÍLIA - DF | I13: Presidente Dutra - MA | J13: =VLOOKUP(G13,OFFSET('ANP ESTADO'!$A$1,MATCH($I$7,'ANP ESTADO'!B:B,0)+MATCH($H$10,OFFSET('ANP ESTADO'!$A$1,MATCH($I$7,'ANP ESTADO'!B:B,0),0,100000,1),0),2,100000,2),2,FALSE) -> - | K13: =VLOOKUP($H$10,OFFSET('ANP REGIÃO'!$A$9,MATCH('Transporte EAI'!$I$7,'ANP REGIÃO'!A:A,0),1,10000,10000),MATCH('Transporte EAI'!AH13,'ANP REGIÃO'!$B$8:$G$8,0),FALSE) -> 2.586745228 | L13: =IF(AND(J13="-",K13="-"),"",IF(AND(J13<>0,K13="-"),J13*1000,IF(AND(J13="-",K13<>0),K13*1000,IF(AND(J13<>0,K13<>0),J13*1000,"")))) -> 2586.745228 | M13: =ROUND(((L13/(1-$O$7-$O$8-$O$9))-L13),2) -> 939.83 | N13: =L13+M13 -> 3526.575228 | O13: 1688 | Q13: =ROUND((26.939+0.253*O13),2) -> 454 | S13: =ROUND((26.939+0.253*Q13),2) -> 141.8 | T13: =TRUNC(Q13*($O$9/(1-$O$9)),2) -> 135.61 | U13: =TRUNC(IF($J$8="","",(($J$9-$J$8)/$J$8)*(Q13+T13)),2) -> 692.32 | V13: =Q13+T13+U13 -> 1281.93 | W13: 140 | X13: =EVEN((' CONSUMO DE MAT. B TOTAL'!$P$13+' CONSUMO DE MAT. B TOTAL'!P15)*2/28)*W13/(' CONSUMO DE MAT. B TOTAL'!$P$13+' CONSUMO DE MAT. B TOTAL'!P15) -> 16 | Y13: =IF(AND(Q13="",T13=""),"",V13+X13) -> 1297.93 | Z13: =IF(OR(L13="",M13=""),"",L13+M13) -> 3526.575228 | AA13: =IF(OR(Y13="",Z13=""),"",Y13+Z13) -> 4824.505228 | AC13: =AA13 -> 4824.505228 | AD13: =Y13 -> 1297.93 | AE13: =Z13 -> 3526.575228 | AH13: =IF(OR(G13=$D$58,G13=$D$59,G13=$D$61,G13=$D$67,G13=$D$51,G13=$D$47,G13=$D$43,G13=$D$56,G13=$D$46),"NORDESTE",IF(OR(G13=$D$42,G13=$D$44,G13=$D$45,G13=$D$55,G13=$D$63,G13=$D$64,G13=$D$68),"NORTE",IF(OR(G13=$D$48,G13=$D$50,G13=$D$52,G13=$D$53),"CENTRO-OESTE",IF(OR(G13=$D$66,G13=$D$60,G13=$D$54,G13=$D$49),"SUDESTE",IF(OR(G13=$D$65,G13=$D$57,G13=$D$62),"SUL",""))))) -> CENTRO-OESTE
B14: =AA14 -> 4349.403052 | C14: 2 | E14: STRATURA ASFALTOS S/A | F14: AVENIDA PRESIDENTE WILSON, 08 - JUNDIAÍ - CEP:75115-100 | G14: Goiás | H14: ANÁPOLIS - GO | I14: Presidente Dutra - MA | J14: =VLOOKUP(G14,OFFSET('ANP ESTADO'!$A$1,MATCH($I$7,'ANP ESTADO'!B:B,0)+MATCH($H$10,OFFSET('ANP ESTADO'!$A$1,MATCH($I$7,'ANP ESTADO'!B:B,0),0,100000,1),0),2,100000,2),2,FALSE) -> 2.270100671 | K14: =VLOOKUP($H$10,OFFSET('ANP REGIÃO'!$A$9,MATCH('Transporte EAI'!$I$7,'ANP REGIÃO'!A:A,0),1,10000,10000),MATCH('Transporte EAI'!AH14,'ANP REGIÃO'!$B$8:$G$8,0),FALSE) -> 2.586745228 | L14: =IF(AND(J14="-",K14="-"),"",IF(AND(J14<>0,K14="-"),J14*1000,IF(AND(J14="-",K14<>0),K14*1000,IF(AND(J14<>0,K14<>0),J14*1000,"")))) -> 2270.100671 | M14: =ROUND(((L14/(1-$O$7-$O$8-$O$9))-L14),2) -> 824.79 | N14: =L14+M14 -> 3094.890671 | O14: 1627 | Q14: =ROUND((26.939+0.253*O14),2) -> 438.57 | S14: 137.9 | T14: =TRUNC(Q14*($O$9/(1-$O$9)),2) -> 131 | U14: =TRUNC(IF($J$8="","",(($J$9-$J$8)/$J$8)*(Q14+T14)),2) -> 668.79 | V14: =Q14+T14+U14 -> 1238.36 | W14: 169.6 | X14: =EVEN((' CONSUMO DE MAT. B TOTAL'!$P$13+' CONSUMO DE MAT. B TOTAL'!P17)*2/28)*W14/(' CONSUMO DE MAT. B TOTAL'!$P$13+' CONSUMO DE MAT. B TOTAL'!P17) -> 16.15238095 | Y14: 1254.512381 | Z14: =IF(OR(L14="",M14=""),"",L14+M14) -> 3094.890671 | AA14: =IF(OR(Y14="",Z14=""),"",Y14+Z14) -> 4349.403052 | AC14: =AA14 -> 4349.403052 | AD14: =Y14 -> 1254.512381 | AE14: 3094.890671 | AH14: =IF(OR(G14=$D$58,G14=$D$59,G14=$D$61,G14=$D$67,G14=$D$51,G14=$D$47,G14=$D$43,G14=$D$56,G14=$D$46),"NORDESTE",IF(OR(G14=$D$42,G14=$D$44,G14=$D$45,G14=$D$55,G14=$D$63,G14=$D$64,G14=$D$68),"NORTE",IF(OR(G14=$D$48,G14=$D$50,G14=$D$52,G14=$D$53),"CENTRO-OESTE",IF(OR(G14=$D$66,G14=$D$60,G14=$D$54,G14=$D$49),"SUDESTE",IF(OR(G14=$D$65,G14=$D$57,G14=$D$62),"SUL",""))))) -> CENTRO-OESTE
B15: 4378.001624 | C15: 3 | E15: DISTRIBUIDORA BRASILEIRA DE ASFALTO SA - DISBRAL | F15: VIA PRIMARIA 8, S/N QD-18, MODS. 24/47 - DAIAG - CEP:74980-970 | G15: Goiás | H15: APARECIDA DE GOIANIA - GO | I15: Presidente Dutra - MA | J15: =VLOOKUP(G15,OFFSET('ANP ESTADO'!$A$1,MATCH($I$7,'ANP ESTADO'!B:B,0)+MATCH($H$10,OFFSET('ANP ESTADO'!$A$1,MATCH($I$7,'ANP ESTADO'!B:B,0),0,100000,1),0),2,100000,2),2,FALSE) -> 2.270100671 | K15: =VLOOKUP($H$10,OFFSET('ANP REGIÃO'!$A$9,MATCH('Transporte EAI'!$I$7,'ANP REGIÃO'!A:A,0),1,10000,10000),MATCH('Transporte EAI'!AH15,'ANP REGIÃO'!$B$8:$G$8,0),FALSE) -> 2.586745228 | L15: =IF(AND(J15="-",K15="-"),"",IF(AND(J15<>0,K15="-"),J15*1000,IF(AND(J15="-",K15<>0),K15*1000,IF(AND(J15<>0,K15<>0),J15*1000,"")))) -> 2270.100671 | M15: 824.79 | N15: 3094.890671 | O15: 1667 | Q15: 448.69 | S15: 140.46 | T15: 134.02 | U15: 684.22 | V15: 1266.93 | W15: 169.9 | X15: =EVEN((' CONSUMO DE MAT. B TOTAL'!$P$13+' CONSUMO DE MAT. B TOTAL'!P18)*2/28)*W15/(' CONSUMO DE MAT. B TOTAL'!$P$13+' CONSUMO DE MAT. B TOTAL'!P18) -> 16.18095238 | Y15: 1283.110952 | Z15: 3094.890671 | AA15: 4378.001624 | AC15: 4378.001624 | AD15: 1283.110952 | AE15: 3094.890671 | AH15: CENTRO-OESTE
A16: 2403 | B16: 4365.151624 | C16: 4 | E16: INDÚSTRIA NACIONAL DE ASFALTOS LTDA. | F16: VIA PRIMEIRA E SEGUNDA 3, S/N.º LOTES 01 A 10 - DISTRITO AGROINDUSTRIAL - CEP:75370-000 | G16: Goiás | H16: GOIANIRA - GO | I16: Presidente Dutra - MA | J16: =VLOOKUP(G16,OFFSET('ANP ESTADO'!$A$1,MATCH($I$7,'ANP ESTADO'!B:B,0)+MATCH($H$10,OFFSET('ANP ESTADO'!$A$1,MATCH($I$7,'ANP ESTADO'!B:B,0),0,100000,1),0),2,100000,2),2,FALSE) -> 2.270100671 | K16: =VLOOKUP($H$10,OFFSET('ANP REGIÃO'!$A$9,MATCH('Transporte EAI'!$I$7,'ANP REGIÃO'!A:A,0),1,10000,10000),MATCH('Transporte EAI'!AH16,'ANP REGIÃO'!$B$8:$G$8,0),FALSE) -> 2.586745228 | L16: 2270.100671 | M16: 824.79 | N16: 3094.890671 | O16: 1649 | Q16: 444.14 | S16: 139.31 | T16: 132.66 | U16: 677.28 | V16: 1254.08 | W16: 169.9 | X16: =EVEN((' CONSUMO DE MAT. B TOTAL'!$P$13+' CONSUMO DE MAT. B TOTAL'!P19)*2/28)*W16/(' CONSUMO DE MAT. B TOTAL'!$P$13+' CONSUMO DE MAT. B TOTAL'!P19) -> 16.18095238 | Y16: 1270.260952 | Z16: 3094.890671 | AA16: 4365.151624 | AC16: 4365.151624 | AD16: 1270.260952 | AE16: 3094.890671 | AH16: CENTRO-OESTE
B17: 4524.472972 | C17: 5 | E17: STRATURA ASFALTOS S/A | F17: RUA VICTOR RODRIGUES RESENDE, 333 - DISTRITO IND. DE UBERLÂNDIA - CEP:38405-440 | G17: Minas Gerais | H17: UBERLANDIA - MG | I17: Presidente Dutra - MA | J17: =VLOOKUP(G17,OFFSET('ANP ESTADO'!$A$1,MATCH($I$7,'ANP ESTADO'!B:B,0)+MATCH($H$10,OFFSET('ANP ESTADO'!$A$1,MATCH($I$7,'ANP ESTADO'!B:B,0),0,100000,1),0),2,100000,2),2,FALSE) -> 2.202845353 | K17: =VLOOKUP($H$10,OFFSET('ANP REGIÃO'!$A$9,MATCH('Transporte EAI'!$I$7,'ANP REGIÃO'!A:A,0),1,10000,10000),MATCH('Transporte EAI'!AH17,'ANP REGIÃO'!$B$8:$G$8,0),FALSE) -> 2.380082902 | L17: 2202.845353 | M17: 800.35 | N17: 3003.195353 | O17: 1993 | Q17: 531.17 | S17: 161.33 | T17: 158.66 | U17: 810 | V17: 1499.83 | W17: 225.2 | X17: =EVEN((' CONSUMO DE MAT. B TOTAL'!$P$13+' CONSUMO DE MAT. B TOTAL'!P20)*2/28)*W17/(' CONSUMO DE MAT. B TOTAL'!$P$13+' CONSUMO DE MAT. B TOTAL'!P20) -> 21.44761905 | Y17: 1521.277619 | Z17: 3003.195353 | AA17: 4524.472972 | AC17: 4524.472972 | AD17: 1521.277619 | AE17: 3003.195353 | AH17: SUDESTE
B18: 4524.472972 | C18: 6 | E18: BETUNEL INDÚSTRIA E COMÉRCIO LTDA. | F18: RUA VICTOR RODRIGUES DE REZENDE, 185 - DISTRITO INDUSTRIAL - CEP:38402-334 | G18: Minas Gerais | H18: UBERLANDIA - MG | I18: Presidente Dutra - MA | J18: =VLOOKUP(G18,OFFSET('ANP ESTADO'!$A$1,MATCH($I$7,'ANP ESTADO'!B:B,0)+MATCH($H$10,OFFSET('ANP ESTADO'!$A$1,MATCH($I$7,'ANP ESTADO'!B:B,0),0,100000,1),0),2,100000,2),2,FALSE) -> 2.202845353 | K18: =VLOOKUP($H$10,OFFSET('ANP REGIÃO'!$A$9,MATCH('Transporte EAI'!$I$7,'ANP REGIÃO'!A:A,0),1,10000,10000),MATCH('Transporte EAI'!AH18,'ANP REGIÃO'!$B$8:$G$8,0),FALSE) -> 2.380082902 | L18: 2202.845353 | M18: 800.35 | N18: 3003.195353 | O18: 1993 | Q18: 531.17 | S18: 161.33 | T18: 158.66 | U18: 810 | V18: 1499.83 | W18: 225.2 | X18: =EVEN((' CONSUMO DE MAT. B TOTAL'!$P$13+' CONSUMO DE MAT. B TOTAL'!P21)*2/28)*W18/(' CONSUMO DE MAT. B TOTAL'!$P$13+' CONSUMO DE MAT. B TOTAL'!P21) -> 21.44761905 | Y18: 1521.277619 | Z18: 3003.195353 | AA18: 4524.472972 | AC18: 4524.472972 | AD18: 1521.277619 | AE18: 3003.195353 | AH18: SUDESTE
B19: 5349.341919 | C19: 7 | E19: ARAPETRO DISTRIBUIDORA DE PETRÓLEO LTDA. | F19: RUA 04, S/N° LOTES 17 A 20. - DISTRITO INDUSTRIAL 1/8 - CEP:78600-000 | G19: Mato grosso | H19: BARRA DO GARCAS - MT | I19: Presidente Dutra - MA | J19: =VLOOKUP(G19,OFFSET('ANP ESTADO'!$A$1,MATCH($I$7,'ANP ESTADO'!B:B,0)+MATCH($H$10,OFFSET('ANP ESTADO'!$A$1,MATCH($I$7,'ANP ESTADO'!B:B,0),0,100000,1),0),2,100000,2),2,FALSE) -> 2.771006204 | K19: =VLOOKUP($H$10,OFFSET('ANP REGIÃO'!$A$9,MATCH('Transporte EAI'!$I$7,'ANP REGIÃO'!A:A,0),1,10000,10000),MATCH('Transporte EAI'!AH19,'ANP REGIÃO'!$B$8:$G$8,0),FALSE) -> 2.586745228 | L19: =IF(AND(J19="-",K19="-"),"",IF(AND(J19<>0,K19="-"),J19*1000,IF(AND(J19="-",K19<>0),K19*1000,IF(AND(J19<>0,K19<>0),J19*1000,"")))) -> 2771.006204 | M19: =ROUND(((L19/(1-$O$7-$O$8-$O$9))-L19),2) -> 1006.78 | N19: 3777.786204 | O19: 2088 | Q19: 555.2 | S19: 167.4 | T19: 165.83 | U19: 846.64 | V19: 1567.67 | W19: 40.8 | X19: =EVEN((' CONSUMO DE MAT. B TOTAL'!$P$13+' CONSUMO DE MAT. B TOTAL'!P22)*2/28)*W19/(' CONSUMO DE MAT. B TOTAL'!$P$13+' CONSUMO DE MAT. B TOTAL'!P22) -> 3.885714286 | Y19: 1571.555714 | Z19: 3777.786204 | AA19: 5349.341919 | AH19: CENTRO-OESTE
B20: 4743.737257 | C20: 8 | E20: DISTRIBUIDORA BRASILEIRA DE ASFALTO SA - DISBRAL | F20: SÃO JUDAS TADEU, 288 - DISTRITO INDUSTRIAL - CEP:32450-000 | G20: Minas Gerais | H20: SARZEDO - MG | I20: Presidente Dutra - MA | J20: =VLOOKUP(G20,OFFSET('ANP ESTADO'!$A$1,MATCH($I$7,'ANP ESTADO'!B:B,0)+MATCH($H$10,OFFSET('ANP ESTADO'!$A$1,MATCH($I$7,'ANP ESTADO'!B:B,0),0,100000,1),0),2,100000,2),2,FALSE) -> 2.202845353 | K20: =VLOOKUP($H$10,OFFSET('ANP REGIÃO'!$A$9,MATCH('Transporte EAI'!$I$7,'ANP REGIÃO'!A:A,0),1,10000,10000),MATCH('Transporte EAI'!AH20,'ANP REGIÃO'!$B$8:$G$8,0),FALSE) -> 2.380082902 | L20: 2202.845353 | M20: 800.35 | N20: 3003.195353 | O20: 2316 | Q20: 612.89 | S20: 182 | T20: 183.07 | U20: 934.62 | V20: 1730.58 | W20: 104.6 | X20: =EVEN((' CONSUMO DE MAT. B TOTAL'!$P$13+' CONSUMO DE MAT. B TOTAL'!P23)*2/28)*W20/(' CONSUMO DE MAT. B TOTAL'!$P$13+' CONSUMO DE MAT. B TOTAL'!P23) -> 9.961904762 | Y20: 1740.541905 | Z20: 3003.195353 | AA20: 4743.737257 | AH20: SUDESTE
B21: 4789.962641 | C21: 9 | E21: 'INDÚSTRIA NACIONAL DE ASFALTOS LTDA. | F21: INDÚSTRIA NACIONAL DE ASFALTOS LTDA - CEP:77053-080 | G21: Tocantins | H21: PALMAS - TO | I21: Presidente Dutra - MA | J21: =VLOOKUP(G21,OFFSET('ANP ESTADO'!$A$1,MATCH($I$7,'ANP ESTADO'!B:B,0)+MATCH($H$10,OFFSET('ANP ESTADO'!$A$1,MATCH($I$7,'ANP ESTADO'!B:B,0),0,100000,1),0),2,100000,2),2,FALSE) -> - | K21: =VLOOKUP($H$10,OFFSET('ANP REGIÃO'!$A$9,MATCH('Transporte EAI'!$I$7,'ANP REGIÃO'!A:A,0),1,10000,10000),MATCH('Transporte EAI'!AH21,'ANP REGIÃO'!$B$8:$G$8,0),FALSE) -> 2.986042641 | L21: 2986.042641 | M21: 1084.91 | N21: 4070.952641 | O21: 900 | Q21: 254.64 | S21: 91.36 | T21: 76.06 | U21: 388.31 | V21: 719.01 | W21: 0 | X21: =EVEN((' CONSUMO DE MAT. B TOTAL'!$P$13+' CONSUMO DE MAT. B TOTAL'!P24)*2/28)*W21/(' CONSUMO DE MAT. B TOTAL'!$P$13+' CONSUMO DE MAT. B TOTAL'!P24) -> 0 | Y21: 719.01 | Z21: 4070.952641 | AA21: 4789.962641 | AH21: NORTE
B22: 5486.844311 | C22: 10 | E22: 'NTA - NOVAS TÉCNICAS DE ASFALTOS S/A | F22: RUA SOFIA ATAURI FADIN, 150 SALA A - B. SANTA TEREZINHA - CEP:13140-000 | G22: São Paulo | H22: PAULINIA - SP | I22: Presidente Dutra - MA | J22: =VLOOKUP(G22,OFFSET('ANP ESTADO'!$A$1,MATCH($I$7,'ANP ESTADO'!B:B,0)+MATCH($H$10,OFFSET('ANP ESTADO'!$A$1,MATCH($I$7,'ANP ESTADO'!B:B,0),0,100000,1),0),2,100000,2),2,FALSE) -> 2.644417644 | K22: =VLOOKUP($H$10,OFFSET('ANP REGIÃO'!$A$9,MATCH('Transporte EAI'!$I$7,'ANP REGIÃO'!A:A,0),1,10000,10000),MATCH('Transporte EAI'!AH22,'ANP REGIÃO'!$B$8:$G$8,0),FALSE) -> 2.380082902 | L22: 2644.417644 | M22: =ROUND(((L22/(1-$O$7-$O$8-$O$9))-L22),2) -> 960.79 | N22: 3605.207644 | O22: 2470 | Q22: 651.85 | S22: 191.86 | T22: 194.7 | U22: 994.02 | V22: 1840.57 | W22: 431.2 | X22: =EVEN((' CONSUMO DE MAT. B TOTAL'!$P$13+' CONSUMO DE MAT. B TOTAL'!P25)*2/28)*W22/(' CONSUMO DE MAT. B TOTAL'!$P$13+' CONSUMO DE MAT. B TOTAL'!P25) -> 41.06666667 | Y22: 1881.636667 | Z22: 3605.207644 | AA22: 5486.844311 | AC22: 5486.844311 | AD22: 1881.636667 | AE22: 3605.207644 | AH22: SUDESTE
B23: 5616.66812 | C23: 11 | E23: COMPANHIA BRASILEIRA DE ASFALTOS DA AMAZÔNIA - IMPORTAÇÃO E EXPORTAÇÃO | F23: Avenida Doutor Olindo Dártora 2451, Galpão 02, Morro Grande - CEP:07726-555 | G23: São Paulo | H23: CAIEIRAS - SP | I23: Presidente Dutra - MA | J23: =VLOOKUP(G23,OFFSET('ANP ESTADO'!$A$1,MATCH($I$7,'ANP ESTADO'!B:B,0)+MATCH($H$10,OFFSET('ANP ESTADO'!$A$1,MATCH($I$7,'ANP ESTADO'!B:B,0),0,100000,1),0),2,100000,2),2,FALSE) -> 2.644417644 | K23: =VLOOKUP($H$10,OFFSET('ANP REGIÃO'!$A$9,MATCH('Transporte EAI'!$I$7,'ANP REGIÃO'!A:A,0),1,10000,10000),MATCH('Transporte EAI'!AH23,'ANP REGIÃO'!$B$8:$G$8,0),FALSE) -> 2.380082902 | L23: 2644.417644 | M23: =ROUND(((L23/(1-$O$7-$O$8-$O$9))-L23),2) -> 960.79 | N23: 3605.207644 | O23: 2644 | Q23: 695.87 | S23: 202.99 | T23: 207.85 | U23: 1061.15 | V23: 1964.87 | W23: 489.2 | X23: =EVEN((' CONSUMO DE MAT. B TOTAL'!$P$13+' CONSUMO DE MAT. B TOTAL'!P26)*2/28)*W23/(' CONSUMO DE MAT. B TOTAL'!$P$13+' CONSUMO DE MAT. B TOTAL'!P26) -> 46.59047619 | Y23: 2011.460476 | Z23: 3605.207644 | AA23: 5616.66812 | AH23: SUDESTE
B24: 5413.93999 | C24: 12 | E24: BETUNEL INDÚSTRIA E COMÉRCIO LTDA. | F24: R 16 , 82, Vila Nova Campo Grande - CEP:79.103-834 | G24: Mato Grosso do Sul | H24: CAMPO GRANDE - MS | I24: Presidente Dutra - MA | J24: =VLOOKUP(G24,OFFSET('ANP ESTADO'!$A$1,MATCH($I$7,'ANP ESTADO'!B:B,0)+MATCH($H$10,OFFSET('ANP ESTADO'!$A$1,MATCH($I$7,'ANP ESTADO'!B:B,0),0,100000,1),0),2,100000,2),2,FALSE) -> - | K24: =VLOOKUP($H$10,OFFSET('ANP REGIÃO'!$A$9,MATCH('Transporte EAI'!$I$7,'ANP REGIÃO'!A:A,0),1,10000,10000),MATCH('Transporte EAI'!AH24,'ANP REGIÃO'!$B$8:$G$8,0),FALSE) -> 2.586745228 | L24: 2586.745228 | M24: =ROUND(((L24/(1-$O$7-$O$8-$O$9))-L24),2) -> 939.83 | N24: 3526.575228 | O24: 2511 | Q24: 662.22 | S24: 194.48 | T24: 197.8 | U24: 1009.84 | V24: 1869.86 | W24: 183.8 | X24: =EVEN((' CONSUMO DE MAT. B TOTAL'!$P$13+' CONSUMO DE MAT. B TOTAL'!P27)*2/28)*W24/(' CONSUMO DE MAT. B TOTAL'!$P$13+' CONSUMO DE MAT. B TOTAL'!P27) -> 17.5047619 | Y24: 1887.364762 | Z24: 3526.575228 | AA24: 5413.93999 | AH24: CENTRO-OESTE
B25: 5540.486681 | C25: 13 | E25: CENTRO OESTE ASFALTOS LTDA. | F25: RUA N, S/N.º LOTES 39/43 E LOTES 129/133 - DISTRITO INDUSTRIAL - CEP:78098-400 | G25: Mato Grosso | H25: CUIABA - MT | I25: Presidente Dutra - MA | J25: =VLOOKUP(G25,OFFSET('ANP ESTADO'!$A$1,MATCH($I$7,'ANP ESTADO'!B:B,0)+MATCH($H$10,OFFSET('ANP ESTADO'!$A$1,MATCH($I$7,'ANP ESTADO'!B:B,0),0,100000,1),0),2,100000,2),2,FALSE) -> 2.771006204 | K25: =VLOOKUP($H$10,OFFSET('ANP REGIÃO'!$A$9,MATCH('Transporte EAI'!$I$7,'ANP REGIÃO'!A:A,0),1,10000,10000),MATCH('Transporte EAI'!AH25,'ANP REGIÃO'!$B$8:$G$8,0),FALSE) -> 2.586745228 | L25: 2771.006204 | M25: 1006.78 | N25: 3777.786204 | O25: 2354 | Q25: 622.5 | S25: 184.43 | T25: 185.94 | U25: 949.27 | V25: 1757.71 | W25: 52.4 | X25: =EVEN((' CONSUMO DE MAT. B TOTAL'!$P$13+' CONSUMO DE MAT. B TOTAL'!P28)*2/28)*W25/(' CONSUMO DE MAT. B TOTAL'!$P$13+' CONSUMO DE MAT. B TOTAL'!P28) -> 4.99047619 | Y25: 1762.700476 | Z25: 3777.786204 | AA25: 5540.486681 | AH25: CENTRO-OESTE
B26: 5539.776681 | C26: 14 | E26: BETUNEL INDÚSTRIA E COMÉRCIO LTDA. | F26: RUA N ESQUINA COM RUA X, S/N QD. IND. 7 L 01/08 - DIST. IND. - CEP:78015-285 | G26: Mato Grosso | H26: CUIABA - MT | I26: Presidente Dutra - MA | J26: =VLOOKUP(G26,OFFSET('ANP ESTADO'!$A$1,MATCH($I$7,'ANP ESTADO'!B:B,0)+MATCH($H$10,OFFSET('ANP ESTADO'!$A$1,MATCH($I$7,'ANP ESTADO'!B:B,0),0,100000,1),0),2,100000,2),2,FALSE) -> 2.771006204 | K26: =VLOOKUP($H$10,OFFSET('ANP REGIÃO'!$A$9,MATCH('Transporte EAI'!$I$7,'ANP REGIÃO'!A:A,0),1,10000,10000),MATCH('Transporte EAI'!AH26,'ANP REGIÃO'!$B$8:$G$8,0),FALSE) -> 2.586745228 | L26: 2771.006204 | M26: 1006.78 | N26: 3777.786204 | O26: 2353 | Q26: 622.25 | S26: 184.37 | T26: 185.86 | U26: 948.89 | V26: 1757 | W26: 52.4 | X26: =EVEN((' CONSUMO DE MAT. B TOTAL'!$P$13+' CONSUMO DE MAT. B TOTAL'!P29)*2/28)*W26/(' CONSUMO DE MAT. B TOTAL'!$P$13+' CONSUMO DE MAT. B TOTAL'!P29) -> 4.99047619 | Y26: 1761.990476 | Z26: 3777.786204 | AA26: 5539.776681 | AH26: CENTRO-OESTE
B27: 5555.466681 | C27: 15 | E27: EMAM - EMULSÕES E TRANSPORTES LTDA. | F27: RODOVIA DOS IMIGRANTES, S/Nº KM 8,6 - - CEP:60035-351 | G27: Mato Grosso | H27: VARZEA GRANDE - MT | I27: Presidente Dutra - MA | J27: =VLOOKUP(G27,OFFSET('ANP ESTADO'!$A$1,MATCH($I$7,'ANP ESTADO'!B:B,0)+MATCH($H$10,OFFSET('ANP ESTADO'!$A$1,MATCH($I$7,'ANP ESTADO'!B:B,0),0,100000,1),0),2,100000,2),2,FALSE) -> 2.771006204 | K27: =VLOOKUP($H$10,OFFSET('ANP REGIÃO'!$A$9,MATCH('Transporte EAI'!$I$7,'ANP REGIÃO'!A:A,0),1,10000,10000),MATCH('Transporte EAI'!AH27,'ANP REGIÃO'!$B$8:$G$8,0),FALSE) -> 2.586745228 | L27: 2771.006204 | M27: 1006.78 | N27: 3777.786204 | O27: 2375 | Q27: 627.81 | S27: 185.77 | T27: 187.52 | U27: 957.36 | V27: 1772.69 | W27: 52.4 | X27: =EVEN((' CONSUMO DE MAT. B TOTAL'!$P$13+' CONSUMO DE MAT. B TOTAL'!P30)*2/28)*W27/(' CONSUMO DE MAT. B TOTAL'!$P$13+' CONSUMO DE MAT. B TOTAL'!P30) -> 4.99047619 | Y27: 1777.680476 | Z27: 3777.786204 | AA27: 5555.466681 | AC27: 5555.466681 | AD27: 1777.680476 | AE27: 3777.786204 | AH27: CENTRO-OESTE
B28: 5688.624787 | C28: 16 | E28: VIAPOL LTDA. | F28: VITO ARDITO, 6401 KM 118,5 - JARDIM CAMPO GRANDE - CEP:12282-535 | G28: São Paulo | H28: CACAPAVA - SP | I28: Presidente Dutra - MA | J28: =VLOOKUP(G28,OFFSET('ANP ESTADO'!$A$1,MATCH($I$7,'ANP ESTADO'!B:B,0)+MATCH($H$10,OFFSET('ANP ESTADO'!$A$1,MATCH($I$7,'ANP ESTADO'!B:B,0),0,100000,1),0),2,100000,2),2,FALSE) -> 2.644417644 | K28: =VLOOKUP($H$10,OFFSET('ANP REGIÃO'!$A$9,MATCH('Transporte EAI'!$I$7,'ANP REGIÃO'!A:A,0),1,10000,10000),MATCH('Transporte EAI'!AH28,'ANP REGIÃO'!$B$8:$G$8,0),FALSE) -> 2.380082902 | L28: 2644.417644 | M28: 960.79 | N28: 3605.207644 | O28: 2741 | Q28: 720.41 | S28: 209.2 | T28: 215.18 | U28: 1098.57 | V28: 2034.16 | W28: 517.2 | X28: =EVEN((' CONSUMO DE MAT. B TOTAL'!$P$13+' CONSUMO DE MAT. B TOTAL'!P31)*2/28)*W28/(' CONSUMO DE MAT. B TOTAL'!$P$13+' CONSUMO DE MAT. B TOTAL'!P31) -> 49.25714286 | Y28: 2083.417143 | Z28: 3605.207644 | AA28: 5688.624787 | AC28: 5688.624787 | AD28: 2083.417143 | AE28: 3605.207644 | AH28: SUDESTE
B29: 5287.401949 | C29: 17 | E29: STRATURA ASFALTOS S/A | F29: RUA LUIS DE CAMÕES, 26 - CAMPOS ELÍSEOS - CEP:25225-030 | G29: Rio de Janeiro | H29: DUQUE DE CAXIAS - RJ | I29: Presidente Dutra - MA | J29: =VLOOKUP(G29,OFFSET('ANP ESTADO'!$A$1,MATCH($I$7,'ANP ESTADO'!B:B,0)+MATCH($H$10,OFFSET('ANP ESTADO'!$A$1,MATCH($I$7,'ANP ESTADO'!B:B,0),0,100000,1),0),2,100000,2),2,FALSE) -> - | K29: =VLOOKUP($H$10,OFFSET('ANP REGIÃO'!$A$9,MATCH('Transporte EAI'!$I$7,'ANP REGIÃO'!A:A,0),1,10000,10000),MATCH('Transporte EAI'!AH29,'ANP REGIÃO'!$B$8:$G$8,0),FALSE) -> 2.380082902 | L29: 2380.082902 | M29: 864.75 | N29: 3244.832902 | O29: 2704 | Q29: 711.05 | S29: 206.83 | T29: 212.39 | U29: 1084.31 | V29: 2007.75 | W29: 365.6 | X29: =EVEN((' CONSUMO DE MAT. B TOTAL'!$P$13+' CONSUMO DE MAT. B TOTAL'!P32)*2/28)*W29/(' CONSUMO DE MAT. B TOTAL'!$P$13+' CONSUMO DE MAT. B TOTAL'!P32) -> 34.81904762 | Y29: 2042.569048 | Z29: 3244.832902 | AA29: 5287.401949 | AC29: 5287.401949 | AD29: 2042.569048 | AE29: 3244.832902 | AH29: SUDESTE
B30: 5300.271949 | C30: 18 | E30: PROBITEC - PRODUTOS BETUMINOSOS E TECNOLOGIA DE APLICAÇÃO LTDA. | F30: AVENIDA CANAL DA PAVUNA, 620 - PAVUNA - CEP:21535-630 | G30: Rio de Janeiro | H30: RIO DE JANEIRO - RJ | I30: Presidente Dutra - MA | J30: =VLOOKUP(G30,OFFSET('ANP ESTADO'!$A$1,MATCH($I$7,'ANP ESTADO'!B:B,0)+MATCH($H$10,OFFSET('ANP ESTADO'!$A$1,MATCH($I$7,'ANP ESTADO'!B:B,0),0,100000,1),0),2,100000,2),2,FALSE) -> - | K30: =VLOOKUP($H$10,OFFSET('ANP REGIÃO'!$A$9,MATCH('Transporte EAI'!$I$7,'ANP REGIÃO'!A:A,0),1,10000,10000),MATCH('Transporte EAI'!AH30,'ANP REGIÃO'!$B$8:$G$8,0),FALSE) -> 2.380082902 | L30: 2380.082902 | M30: 864.75 | N30: 3244.832902 | O30: 2722 | Q30: 715.61 | S30: 207.99 | T30: 213.75 | U30: 1091.26 | V30: 2020.62 | W30: 365.6 | X30: =EVEN((' CONSUMO DE MAT. B TOTAL'!$P$13+' CONSUMO DE MAT. B TOTAL'!P33)*2/28)*W30/(' CONSUMO DE MAT. B TOTAL'!$P$13+' CONSUMO DE MAT. B TOTAL'!P33) -> 34.81904762 | Y30: 2055.439048 | Z30: 3244.832902 | AA30: 5300.271949 | AC30: 5300.271949 | AD30: 2055.439048 | AE30: 3244.832902 | AH30: SUDESTE
B31: 5672.383187 | C31: 19 | E31: CASA DO ASFALTO DISTRIBUIDORA, INDÚSTRIA E COMÉRCIO DE ASFALTO LTDA. | F31: BR 376, PARQUE INDUSTRIAL, S/N LOTE 6/7/7-A-3-1 - GL.PATR.MARIALVA - CEP:86990-000 | G31: Paraná | H31: MARIALVA - PR | I31: Presidente Dutra - MA | J31: =VLOOKUP(G31,OFFSET('ANP ESTADO'!$A$1,MATCH($I$7,'ANP ESTADO'!B:B,0)+MATCH($H$10,OFFSET('ANP ESTADO'!$A$1,MATCH($I$7,'ANP ESTADO'!B:B,0),0,100000,1),0),2,100000,2),2,FALSE) -> 2.700638902 | K31: =VLOOKUP($H$10,OFFSET('ANP REGIÃO'!$A$9,MATCH('Transporte EAI'!$I$7,'ANP REGIÃO'!A:A,0),1,10000,10000),MATCH('Transporte EAI'!AH31,'ANP REGIÃO'!$B$8:$G$8,0),FALSE) -> 2.70024386 | L31: 2700.638902 | M31: 981.21 | N31: 3681.848902 | O31: 2626 | Q31: 691.32 | S31: 201.84 | T31: 206.49 | U31: 1054.21 | V31: 1952.02 | W31: 404.4 | X31: =EVEN((' CONSUMO DE MAT. B TOTAL'!$P$13+' CONSUMO DE MAT. B TOTAL'!P34)*2/28)*W31/(' CONSUMO DE MAT. B TOTAL'!$P$13+' CONSUMO DE MAT. B TOTAL'!P34) -> 38.51428571 | Y31: 1990.534286 | Z31: 3681.848902 | AA31: 5672.383187 | AC31: 5672.383187 | AD31: 1990.534286 | AE31: 3681.848902 | AH31: SUL
B32: 5794.557949 | C32: 20 | E32: PETROBRAS DISTRIBUIDORA S.A. | F32: RUA MAQUINISTA ELEODORO JACINTO, 100 - OFICINAS - CEP:84045-170 | G32: Paraná | H32: PONTA GROSSA - PR | I32: Presidente Dutra - MA | J32: =VLOOKUP(G32,OFFSET('ANP ESTADO'!$A$1,MATCH($I$7,'ANP ESTADO'!B:B,0)+MATCH($H$10,OFFSET('ANP ESTADO'!$A$1,MATCH($I$7,'ANP ESTADO'!B:B,0),0,100000,1),0),2,100000,2),2,FALSE) -> 2.700638902 | K32: =VLOOKUP($H$10,OFFSET('ANP REGIÃO'!$A$9,MATCH('Transporte EAI'!$I$7,'ANP REGIÃO'!A:A,0),1,10000,10000),MATCH('Transporte EAI'!AH32,'ANP REGIÃO'!$B$8:$G$8,0),FALSE) -> 2.70024386 | L32: 2700.638902 | M32: 981.21 | N32: 3681.848902 | O32: 2791 | Q32: 733.06 | S32: 212.4 | T32: 218.96 | U32: 1117.87 | V32: 2069.89 | W32: 449.6 | X32: =EVEN((' CONSUMO DE MAT. B TOTAL'!$P$13+' CONSUMO DE MAT. B TOTAL'!P35)*2/28)*W32/(' CONSUMO DE MAT. B TOTAL'!$P$13+' CONSUMO DE MAT. B TOTAL'!P35) -> 42.81904762 | Y32: 2112.709048 | Z32: 3681.848902 | AA32: 5794.557949 | AC32: 5794.557949 | AD32: 2112.709048 | AE32: 3681.848902 | AH32: SUL
D42: Acre
D43: Alagoas
D44: Amapá
D45: Amazonas
D46: Bahia
D47: Ceará
D48: Distrito Federal
D49: Espírito Santo
D50: Goiás
D51: Maranhão
D52: Mato Grosso
D53: Mato Grosso do Sul
D54: Minas Gerais
D55: Pará
D56: Paraíba
D57: Paraná
D58: Pernambuco
D59: Piauí
D60: Rio de Janeiro
D61: Rio Grande do Norte
D62: Rio Grande do Sul
D63: Rondônia
D64: Roraima
D65: Santa Catarina
D66: São Paulo
D67: Sergipe
D68: Tocantins
D72: ASFALTOS DILUÍDOS CM-30
D73: ASFALTOS DILUÍDOS CM-70
D74: ASFALTOS DILUÍDOS CR-250
D75: ASFALTOS DILUÍDOS CR-70
D76: CAP MODIFICADO POR BORRACHA DE PNEU AB22
D77: CAP MODIFICADO POR BORRACHA DE PNEU AB8
D78: CAP MODIFICADO POR POLÍMERO 55-75-E
D79: CAP MODIFICADO POR POLÍMERO 60-85-E
D80: CAP MODIFICADO POR POLÍMERO 65-90-E
D81: CIMENTOS ASFÁLTICOS CAP-150-200
D82: CIMENTOS ASFÁLTICOS CAP-30-45
D83: CIMENTOS ASFÁLTICOS CAP-50-70
D84: CIMENTOS ASFÁLTICOS CAP-85-100
D85: EMULSÃO ASFÁLTICA CATIÔNICA DE RUPTURA CONTROLADA PARA SERVIÇO DE LAMA ASFÁLTICA
D86: EMULSÃO ASFÁLTICA DE RUPTURA LENTA CATIÔNICA PARA SERVIÇO DE LAMA ASFÁLTICA
D87: EMULSÃO ASFÁLTICA DE RUPTURA LENTA DE CARGA NEUTRA PARA SERVIÇO DE LAMA ASFÁLTICA
D88: EMULSÃO ASFÁLTICA PARA SERVIÇO DE IMPRIMAÇÃO
D89: EMULSÕES ASF. MOD. POR POLÍMEROS RC1C-E
D90: EMULSÕES ASF. MOD. POR POLÍMEROS RL1C-E
D91: EMULSÕES ASF. MOD. POR POLÍMEROS RM1C-E
D92: EMULSÕES ASF. MOD. POR POLÍMEROS RR1C-E
D93: EMULSÕES ASF. MOD. POR POLÍMEROS RR2C-E
D94: EMULSÕES ASFÁLTICAS RL-1C
D95: EMULSÕES ASFÁLTICAS RM-1C
D96: EMULSÕES ASFÁLTICAS RM-2C
D97: EMULSÕES ASFÁLTICAS RR-1C
D98: EMULSÕES ASFÁLTICAS RR-2C

Sheet Transporte RR-2C
C2: MEMÓRIA DE CÁLCULO
C7: REAJUSTE | F7: TIPOLOGIA DO MATERIAL | I7: EMULSÕES ASFÁLTICAS RR-2C | M7: IMPOSTOS | N7: COFINS | O7: 0.0065 | P7: 0.0065
G8: ÍNDICE DE PAVIMENTAÇÃO DNIT | H8: 2014-07-01 | I8: ÍNDICE INICIAL | J8: 270.237 | N8: PIS | O8: 0.03 | P8: 0.03 | T8: LEGENDA | AC8: As empresas tributadas pelo Lucro Presumido pagam 0,65% de PIS e 3% de COFINS
H9: 2025-05-01 | I9: ÍNDICE FINAL | J9: 587.552 | N9: ICMS | O9: 0.23 | P9: 0.23 | Q9: =1-(O9/1) -> 0.77 | R9: =1-(P9/1) -> 0.77 | S9: =1-(Q9/1) -> 0.23 | T9: ENTRADA DE DADOS | AC9: As empresas tributadas pelo Lucro Real pagam 1,65% de PIS e 7,60% de COFINS
G10: Data ANP | H10: 2025-05-01
C11: DATA-BASE | D11: PRODUTOS | E11: LOCALIDADES | J11: CUSTO ANP (R$/Kg) | L11: CUSTO ANP | M11: IMPOSTOS DO PRODUTO | N11: CUSTO DO PRODUTO COM IMPOSTOS | O11: DMT's | P11: DMT'S FLUVIAL | Q11: CUSTO DO TRANSPORTE RODOVIA PAVIMENTADA | R11: CUSTO DO TRANSPORTE FLUVIAL | S11: CUSTO DO TRANSPORTE TOTAL | T11: ICMS | U11: ATUALIZAÇÃO DO CUSTO DE TRANSPORTE | V11: CUSTO DO TRANSPORTE RODOVIA PAVIMENTADA COM IMPOSTOS E ATUALIZAÇÃO MONETÁRIA | W11: PEDÁGIO | Y11: TOTAL TRANSPORTE | Z11: AQUISIÇÃO DO PRODUTO | AA11: TOTAL GERAL ( TRANSP + AQUISIÇÃO) | AC11: 1 | AD11: 2 | AE11: 3
C12: =H9 -> 2025-05-01 | E12: REFINARIAS | F12: ENDEREÇO | G12: ESTADO | H12: CIDADE | I12: DESTINO | J12: ESTADO | K12: REGIÃO | L12: R$/t | M12: R$/t | N12: R$/t | O12: KM | P12: KM | Q12: R$/t | R12: R$/t | S12: R$/t | T12: R$/t | U12: R$/t | V12: R$/t | W12: CUSTO | X12: R$/t | Y12: R$/t | Z12: R$/t | AA12: R$/t | AC12: TOTAL GERAL ( TRANSP + AQUISIÇÃO) | AD12: TOTAL TRANSPORTE | AE12: AQUISIÇÃO DO PRODUTO
B13: =AA13 -> 5493.796749 | C13: 1 | D13: =I7 -> EMULSÕES ASFÁLTICAS RR-2C | E13: 'CENTRO OESTE ASFALTOS LTDA. | F13: SETOR DE INFLAMÁVEIS, S/N TRECHO 02 - LOTE 1.100 - GUARÁ - CEP:71225-000 | G13: Distrito Federal | H13: BRASÍLIA - DF | I13: Presidente Dutra - MA | J13: =VLOOKUP(G13,OFFSET('ANP ESTADO'!$A$1,MATCH($I$7,'ANP ESTADO'!B:B,0)+MATCH($H$10,OFFSET('ANP ESTADO'!$A$1,MATCH($I$7,'ANP ESTADO'!B:B,0),0,100000,1),0),2,100000,2),2,FALSE) -> 3.077666749 | K13: =VLOOKUP($H$10,OFFSET('ANP REGIÃO'!$A$9,MATCH('Transporte RR-2C'!$I$7,'ANP REGIÃO'!A:A,0),1,10000,10000),MATCH('Transporte RR-2C'!AH13,'ANP REGIÃO'!$B$8:$G$8,0),FALSE) -> 3.261745309 | L13: =IF(AND(J13="-",K13="-"),"",IF(AND(J13<>0,K13="-"),J13*1000,IF(AND(J13="-",K13<>0),K13*1000,IF(AND(J13<>0,K13<>0),J13*1000,"")))) -> 3077.666749 | M13: =ROUND(((L13/(1-$O$7-$O$8-$O$9))-L13),2) -> 1118.2 | N13: =L13+M13 -> 4195.866749 | O13: 1688 | Q13: =ROUND((26.939+0.253*O13),2) -> 454 | S13: =ROUND((26.939+0.253*Q13),2) -> 141.8 | T13: =TRUNC(Q13*($O$9/(1-$O$9)),2) -> 135.61 | U13: =TRUNC(IF($J$8="","",(($J$9-$J$8)/$J$8)*(Q13+T13)),2) -> 692.32 | V13: =Q13+T13+U13 -> 1281.93 | W13: 140 | X13: =EVEN((' CONSUMO DE MAT. B TOTAL'!$P$13+' CONSUMO DE MAT. B TOTAL'!P15)*2/28)*W13/(' CONSUMO DE MAT. B TOTAL'!$P$13+' CONSUMO DE MAT. B TOTAL'!P15) -> 16 | Y13: =IF(AND(Q13="",T13=""),"",V13+X13) -> 1297.93 | Z13: =IF(OR(L13="",M13=""),"",L13+M13) -> 4195.866749 | AA13: =IF(OR(Y13="",Z13=""),"",Y13+Z13) -> 5493.796749 | AC13: =AA13 -> 5493.796749 | AD13: =Y13 -> 1297.93 | AE13: =Z13 -> 4195.866749 | AH13: =IF(OR(G13=$D$58,G13=$D$59,G13=$D$61,G13=$D$67,G13=$D$51,G13=$D$47,G13=$D$43,G13=$D$56,G13=$D$46),"NORDESTE",IF(OR(G13=$D$42,G13=$D$44,G13=$D$45,G13=$D$55,G13=$D$63,G13=$D$64,G13=$D$68),"NORTE",IF(OR(G13=$D$48,G13=$D$50,G13=$D$52,G13=$D$53),"CENTRO-OESTE",IF(OR(G13=$D$66,G13=$D$60,G13=$D$54,G13=$D$49),"SUDESTE",IF(OR(G13=$D$65,G13=$D$57,G13=$D$62),"SUL",""))))) -> CENTRO-OESTE
B14: =AA14 -> 5374.965533 | C14: 2 | E14: STRATURA ASFALTOS S/A | F14: AVENIDA PRESIDENTE WILSON, 08 - JUNDIAÍ - CEP:75115-100 | G14: Goiás | H14: ANÁPOLIS - GO | I14: Presidente Dutra - MA | J14: =VLOOKUP(G14,OFFSET('ANP ESTADO'!$A$1,MATCH($I$7,'ANP ESTADO'!B:B,0)+MATCH($H$10,OFFSET('ANP ESTADO'!$A$1,MATCH($I$7,'ANP ESTADO'!B:B,0),0,100000,1),0),2,100000,2),2,FALSE) -> 3.022353152 | K14: =VLOOKUP($H$10,OFFSET('ANP REGIÃO'!$A$9,MATCH('Transporte RR-2C'!$I$7,'ANP REGIÃO'!A:A,0),1,10000,10000),MATCH('Transporte RR-2C'!AH14,'ANP REGIÃO'!$B$8:$G$8,0),FALSE) -> 3.261745309 | L14: =IF(AND(J14="-",K14="-"),"",IF(AND(J14<>0,K14="-"),J14*1000,IF(AND(J14="-",K14<>0),K14*1000,IF(AND(J14<>0,K14<>0),J14*1000,"")))) -> 3022.353152 | M14: =ROUND(((L14/(1-$O$7-$O$8-$O$9))-L14),2) -> 1098.1 | N14: =L14+M14 -> 4120.453152 | O14: 1627 | Q14: =ROUND((26.939+0.253*O14),2) -> 438.57 | S14: 137.9 | T14: =TRUNC(Q14*($O$9/(1-$O$9)),2) -> 131 | U14: =TRUNC(IF($J$8="","",(($J$9-$J$8)/$J$8)*(Q14+T14)),2) -> 668.79 | V14: =Q14+T14+U14 -> 1238.36 | W14: 169.6 | X14: =EVEN((' CONSUMO DE MAT. B TOTAL'!$P$13+' CONSUMO DE MAT. B TOTAL'!P17)*2/28)*W14/(' CONSUMO DE MAT. B TOTAL'!$P$13+' CONSUMO DE MAT. B TOTAL'!P17) -> 16.15238095 | Y14: 1254.512381 | Z14: 4120.453152 | AA14: =IF(OR(Y14="",Z14=""),"",Y14+Z14) -> 5374.965533 | AC14: =AA14 -> 5374.965533 | AD14: =Y14 -> 1254.512381 | AE14: 4120.453152 | AH14: =IF(OR(G14=$D$58,G14=$D$59,G14=$D$61,G14=$D$67,G14=$D$51,G14=$D$47,G14=$D$43,G14=$D$56,G14=$D$46),"NORDESTE",IF(OR(G14=$D$42,G14=$D$44,G14=$D$45,G14=$D$55,G14=$D$63,G14=$D$64,G14=$D$68),"NORTE",IF(OR(G14=$D$48,G14=$D$50,G14=$D$52,G14=$D$53),"CENTRO-OESTE",IF(OR(G14=$D$66,G14=$D$60,G14=$D$54,G14=$D$49),"SUDESTE",IF(OR(G14=$D$65,G14=$D$57,G14=$D$62),"SUL",""))))) -> CENTRO-OESTE
B15: 5403.564105 | C15: 3 | E15: DISTRIBUIDORA BRASILEIRA DE ASFALTO SA - DISBRAL | F15: VIA PRIMARIA 8, S/N QD-18, MODS. 24/47 - DAIAG - CEP:74980-970 | G15: Goiás | H15: APARECIDA DE GOIANIA - GO | I15: Presidente Dutra - MA | J15: =VLOOKUP(G15,OFFSET('ANP ESTADO'!$A$1,MATCH($I$7,'ANP ESTADO'!B:B,0)+MATCH($H$10,OFFSET('ANP ESTADO'!$A$1,MATCH($I$7,'ANP ESTADO'!B:B,0),0,100000,1),0),2,100000,2),2,FALSE) -> 3.022353152 | K15: =VLOOKUP($H$10,OFFSET('ANP REGIÃO'!$A$9,MATCH('Transporte RR-2C'!$I$7,'ANP REGIÃO'!A:A,0),1,10000,10000),MATCH('Transporte RR-2C'!AH15,'ANP REGIÃO'!$B$8:$G$8,0),FALSE) -> 3.261745309 | L15: 3022.353152 | M15: 1098.1 | N15: 4120.453152 | O15: 1667 | Q15: 448.69 | S15: 140.46 | T15: 134.02 | U15: 684.22 | V15: 1266.93 | W15: 169.9 | X15: =EVEN((' CONSUMO DE MAT. B TOTAL'!$P$13+' CONSUMO DE MAT. B TOTAL'!P18)*2/28)*W15/(' CONSUMO DE MAT. B TOTAL'!$P$13+' CONSUMO DE MAT. B TOTAL'!P18) -> 16.18095238 | Y15: 1283.110952 | Z15: 4120.453152 | AA15: 5403.564105 | AC15: 5403.564105 | AD15: 1283.110952 | AE15: 4120.453152 | AH15: CENTRO-OESTE
A16: 2403 | B16: 5390.714105 | C16: 4 | E16: INDÚSTRIA NACIONAL DE ASFALTOS LTDA. | F16: VIA PRIMEIRA E SEGUNDA 3, S/N.º LOTES 01 A 10 - DISTRITO AGROINDUSTRIAL - CEP:75370-000 | G16: Goiás | H16: GOIANIRA - GO | I16: Presidente Dutra - MA | J16: =VLOOKUP(G16,OFFSET('ANP ESTADO'!$A$1,MATCH($I$7,'ANP ESTADO'!B:B,0)+MATCH($H$10,OFFSET('ANP ESTADO'!$A$1,MATCH($I$7,'ANP ESTADO'!B:B,0),0,100000,1),0),2,100000,2),2,FALSE) -> 3.022353152 | K16: =VLOOKUP($H$10,OFFSET('ANP REGIÃO'!$A$9,MATCH('Transporte RR-2C'!$I$7,'ANP REGIÃO'!A:A,0),1,10000,10000),MATCH('Transporte RR-2C'!AH16,'ANP REGIÃO'!$B$8:$G$8,0),FALSE) -> 3.261745309 | L16: 3022.353152 | M16: 1098.1 | N16: 4120.453152 | O16: 1649 | Q16: 444.14 | S16: 139.31 | T16: 132.66 | U16: 677.28 | V16: 1254.08 | W16: 169.9 | X16: =EVEN((' CONSUMO DE MAT. B TOTAL'!$P$13+' CONSUMO DE MAT. B TOTAL'!P19)*2/28)*W16/(' CONSUMO DE MAT. B TOTAL'!$P$13+' CONSUMO DE MAT. B TOTAL'!P19) -> 16.18095238 | Y16: 1270.260952 | Z16: 4120.453152 | AA16: 5390.714105 | AC16: 5390.714105 | AD16: 1270.260952 | AE16: 4120.453152 | AH16: CENTRO-OESTE
B17: 5845.286781 | C17: 5 | E17: STRATURA ASFALTOS S/A | F17: RUA VICTOR RODRIGUES RESENDE, 333 - DISTRITO IND. DE UBERLÂNDIA - CEP:38405-440 | G17: Minas Gerais | H17: UBERLANDIA - MG | I17: Presidente Dutra - MA | J17: =VLOOKUP(G17,OFFSET('ANP ESTADO'!$A$1,MATCH($I$7,'ANP ESTADO'!B:B,0)+MATCH($H$10,OFFSET('ANP ESTADO'!$A$1,MATCH($I$7,'ANP ESTADO'!B:B,0),0,100000,1),0),2,100000,2),2,FALSE) -> 3.171659162 | K17: =VLOOKUP($H$10,OFFSET('ANP REGIÃO'!$A$9,MATCH('Transporte RR-2C'!$I$7,'ANP REGIÃO'!A:A,0),1,10000,10000),MATCH('Transporte RR-2C'!AH17,'ANP REGIÃO'!$B$8:$G$8,0),FALSE) -> 3.044994528 | L17: 3171.659162 | M17: 1152.35 | N17: 4324.009162 | O17: 1993 | Q17: 531.17 | S17: 161.33 | T17: 158.66 | U17: 810 | V17: 1499.83 | W17: 225.2 | X17: =EVEN((' CONSUMO DE MAT. B TOTAL'!$P$13+' CONSUMO DE MAT. B TOTAL'!P20)*2/28)*W17/(' CONSUMO DE MAT. B TOTAL'!$P$13+' CONSUMO DE MAT. B TOTAL'!P20) -> 21.44761905 | Y17: 1521.277619 | Z17: 4324.009162 | AA17: 5845.286781 | AC17: 5845.286781 | AD17: 1521.277619 | AE17: 4324.009162 | AH17: SUDESTE
B18: 5845.286781 | C18: 6 | E18: BETUNEL INDÚSTRIA E COMÉRCIO LTDA. | F18: RUA VICTOR RODRIGUES DE REZENDE, 185 - DISTRITO INDUSTRIAL - CEP:38402-334 | G18: Minas Gerais | H18: UBERLANDIA - MG | I18: Presidente Dutra - MA | J18: =VLOOKUP(G18,OFFSET('ANP ESTADO'!$A$1,MATCH($I$7,'ANP ESTADO'!B:B,0)+MATCH($H$10,OFFSET('ANP ESTADO'!$A$1,MATCH($I$7,'ANP ESTADO'!B:B,0),0,100000,1),0),2,100000,2),2,FALSE) -> 3.171659162 | K18: =VLOOKUP($H$10,OFFSET('ANP REGIÃO'!$A$9,MATCH('Transporte RR-2C'!$I$7,'ANP REGIÃO'!A:A,0),1,10000,10000),MATCH('Transporte RR-2C'!AH18,'ANP REGIÃO'!$B$8:$G$8,0),FALSE) -> 3.044994528 | L18: 3171.659162 | M18: 1152.35 | N18: 4324.009162 | O18: 1993 | Q18: 531.17 | S18: 161.33 | T18: 158.66 | U18: 810 | V18: 1499.83 | W18: 225.2 | X18: =EVEN((' CONSUMO DE MAT. B TOTAL'!$P$13+' CONSUMO DE MAT. B TOTAL'!P21)*2/28)*W18/(' CONSUMO DE MAT. B TOTAL'!$P$13+' CONSUMO DE MAT. B TOTAL'!P21) -> 21.44761905 | Y18: 1521.277619 | Z18: 4324.009162 | AA18: 5845.286781 | AC18: 5845.286781 | AD18: 1521.277619 | AE18: 4324.009162 | AH18: SUDESTE
B19: 6560.788184 | C19: 7 | E19: ARAPETRO DISTRIBUIDORA DE PETRÓLEO LTDA. | F19: RUA 04, S/N° LOTES 17 A 20. - DISTRITO INDUSTRIAL 1/8 - CEP:78600-000 | G19: Mato grosso | H19: BARRA DO GARCAS - MT | I19: Presidente Dutra - MA | J19: =VLOOKUP(G19,OFFSET('ANP ESTADO'!$A$1,MATCH($I$7,'ANP ESTADO'!B:B,0)+MATCH($H$10,OFFSET('ANP ESTADO'!$A$1,MATCH($I$7,'ANP ESTADO'!B:B,0),0,100000,1),0),2,100000,2),2,FALSE) -> 3.65960247 | K19: =VLOOKUP($H$10,OFFSET('ANP REGIÃO'!$A$9,MATCH('Transporte RR-2C'!$I$7,'ANP REGIÃO'!A:A,0),1,10000,10000),MATCH('Transporte RR-2C'!AH19,'ANP REGIÃO'!$B$8:$G$8,0),FALSE) -> 3.261745309 | L19: =IF(AND(J19="-",K19="-"),"",IF(AND(J19<>0,K19="-"),J19*1000,IF(AND(J19="-",K19<>0),K19*1000,IF(AND(J19<>0,K19<>0),J19*1000,"")))) -> 3659.60247 | M19: =ROUND(((L19/(1-$O$7-$O$8-$O$9))-L19),2) -> 1329.63 | N19: 4989.23247 | O19: 2088 | Q19: 555.2 | S19: 167.4 | T19: 165.83 | U19: 846.64 | V19: 1567.67 | W19: 40.8 | X19: =EVEN((' CONSUMO DE MAT. B TOTAL'!$P$13+' CONSUMO DE MAT. B TOTAL'!P22)*2/28)*W19/(' CONSUMO DE MAT. B TOTAL'!$P$13+' CONSUMO DE MAT. B TOTAL'!P22) -> 3.885714286 | Y19: 1571.555714 | Z19: 4989.23247 | AA19: 6560.788184 | AH19: CENTRO-OESTE
B20: 6064.551066 | C20: 8 | E20: DISTRIBUIDORA BRASILEIRA DE ASFALTO SA - DISBRAL | F20: SÃO JUDAS TADEU, 288 - DISTRITO INDUSTRIAL - CEP:32450-000 | G20: Minas Gerais | H20: SARZEDO - MG | I20: Presidente Dutra - MA | J20: =VLOOKUP(G20,OFFSET('ANP ESTADO'!$A$1,MATCH($I$7,'ANP ESTADO'!B:B,0)+MATCH($H$10,OFFSET('ANP ESTADO'!$A$1,MATCH($I$7,'ANP ESTADO'!B:B,0),0,100000,1),0),2,100000,2),2,FALSE) -> 3.171659162 | K20: =VLOOKUP($H$10,OFFSET('ANP REGIÃO'!$A$9,MATCH('Transporte RR-2C'!$I$7,'ANP REGIÃO'!A:A,0),1,10000,10000),MATCH('Transporte RR-2C'!AH20,'ANP REGIÃO'!$B$8:$G$8,0),FALSE) -> 3.044994528 | L20: 3171.659162 | M20: 1152.35 | N20: 4324.009162 | O20: 2316 | Q20: 612.89 | S20: 182 | T20: 183.07 | U20: 934.62 | V20: 1730.58 | W20: 104.6 | X20: =EVEN((' CONSUMO DE MAT. B TOTAL'!$P$13+' CONSUMO DE MAT. B TOTAL'!P23)*2/28)*W20/(' CONSUMO DE MAT. B TOTAL'!$P$13+' CONSUMO DE MAT. B TOTAL'!P23) -> 9.961904762 | Y20: 1740.541905 | Z20: 4324.009162 | AA20: 6064.551066 | AH20: SUDESTE
B21: 4755.362422 | C21: 9 | E21: 'INDÚSTRIA NACIONAL DE ASFALTOS LTDA. | F21: INDÚSTRIA NACIONAL DE ASFALTOS LTDA - CEP:77053-080 | G21: Tocantins | H21: PALMAS - TO | I21: Presidente Dutra - MA | J21: =VLOOKUP(G21,OFFSET('ANP ESTADO'!$A$1,MATCH($I$7,'ANP ESTADO'!B:B,0)+MATCH($H$10,OFFSET('ANP ESTADO'!$A$1,MATCH($I$7,'ANP ESTADO'!B:B,0),0,100000,1),0),2,100000,2),2,FALSE) -> 2.960662422 | K21: =VLOOKUP($H$10,OFFSET('ANP REGIÃO'!$A$9,MATCH('Transporte RR-2C'!$I$7,'ANP REGIÃO'!A:A,0),1,10000,10000),MATCH('Transporte RR-2C'!AH21,'ANP REGIÃO'!$B$8:$G$8,0),FALSE) -> 3.283919195 | L21: 2960.662422 | M21: 1075.69 | N21: 4036.352422 | O21: 900 | Q21: 254.64 | S21: 91.36 | T21: 76.06 | U21: =TRUNC(IF($J$8="","",(($J$9-$J$8)/$J$8)*(Q21+T21)),2) -> 388.31 | V21: 719.01 | W21: 0 | X21: =EVEN((' CONSUMO DE MAT. B TOTAL'!$P$13+' CONSUMO DE MAT. B TOTAL'!P24)*2/28)*W21/(' CONSUMO DE MAT. B TOTAL'!$P$13+' CONSUMO DE MAT. B TOTAL'!P24) -> 0 | Y21: 719.01 | Z21: 4036.352422 | AA21: 4755.362422 | AH21: NORTE
B22: 5924.307973 | C22: 10 | E22: 'NTA - NOVAS TÉCNICAS DE ASFALTOS S/A | F22: RUA SOFIA ATAURI FADIN, 150 SALA A - B. SANTA TEREZINHA - CEP:13140-000 | G22: São Paulo | H22: PAULINIA - SP | I22: Presidente Dutra - MA | J22: =VLOOKUP(G22,OFFSET('ANP ESTADO'!$A$1,MATCH($I$7,'ANP ESTADO'!B:B,0)+MATCH($H$10,OFFSET('ANP ESTADO'!$A$1,MATCH($I$7,'ANP ESTADO'!B:B,0),0,100000,1),0),2,100000,2),2,FALSE) -> 2.965301306 | K22: =VLOOKUP($H$10,OFFSET('ANP REGIÃO'!$A$9,MATCH('Transporte RR-2C'!$I$7,'ANP REGIÃO'!A:A,0),1,10000,10000),MATCH('Transporte RR-2C'!AH22,'ANP REGIÃO'!$B$8:$G$8,0),FALSE) -> 3.044994528 | L22: 2965.301306 | M22: =ROUND(((L22/(1-$O$7-$O$8-$O$9))-L22),2) -> 1077.37 | N22: 4042.671306 | O22: 2470 | Q22: 651.85 | S22: 191.86 | T22: 194.7 | U22: 994.02 | V22: 1840.57 | W22: 431.2 | X22: =EVEN((' CONSUMO DE MAT. B TOTAL'!$P$13+' CONSUMO DE MAT. B TOTAL'!P25)*2/28)*W22/(' CONSUMO DE MAT. B TOTAL'!$P$13+' CONSUMO DE MAT. B TOTAL'!P25) -> 41.06666667 | Y22: 1881.636667 | Z22: 4042.671306 | AA22: 5924.307973 | AC22: 5924.307973 | AD22: 1881.636667 | AE22: 4042.671306 | AH22: SUDESTE
B23: 6054.131783 | C23: 11 | E23: COMPANHIA BRASILEIRA DE ASFALTOS DA AMAZÔNIA - IMPORTAÇÃO E EXPORTAÇÃO | F23: Avenida Doutor Olindo Dártora 2451, Galpão 02, Morro Grande - CEP:07726-555 | G23: São Paulo | H23: CAIEIRAS - SP | I23: Presidente Dutra - MA | J23: =VLOOKUP(G23,OFFSET('ANP ESTADO'!$A$1,MATCH($I$7,'ANP ESTADO'!B:B,0)+MATCH($H$10,OFFSET('ANP ESTADO'!$A$1,MATCH($I$7,'ANP ESTADO'!B:B,0),0,100000,1),0),2,100000,2),2,FALSE) -> 2.965301306 | K23: =VLOOKUP($H$10,OFFSET('ANP REGIÃO'!$A$9,MATCH('Transporte RR-2C'!$I$7,'ANP REGIÃO'!A:A,0),1,10000,10000),MATCH('Transporte RR-2C'!AH23,'ANP REGIÃO'!$B$8:$G$8,0),FALSE) -> 3.044994528 | L23: 2965.301306 | M23: =ROUND(((L23/(1-$O$7-$O$8-$O$9))-L23),2) -> 1077.37 | N23: 4042.671306 | O23: 2644 | Q23: 695.87 | S23: 202.99 | T23: 207.85 | U23: 1061.15 | V23: 1964.87 | W23: 489.2 | X23: =EVEN((' CONSUMO DE MAT. B TOTAL'!$P$13+' CONSUMO DE MAT. B TOTAL'!P26)*2/28)*W23/(' CONSUMO DE MAT. B TOTAL'!$P$13+' CONSUMO DE MAT. B TOTAL'!P26) -> 46.59047619 | Y23: 2011.460476 | Z23: 4042.671306 | AA23: 6054.131783 | AH23: SUDESTE
B24: 6106.656764 | C24: 12 | E24: BETUNEL INDÚSTRIA E COMÉRCIO LTDA. | F24: R 16 , 82, Vila Nova Campo Grande - CEP:79.103-834 | G24: Mato Grosso do Sul | H24: CAMPO GRANDE - MS | I24: Presidente Dutra - MA | J24: =VLOOKUP(G24,OFFSET('ANP ESTADO'!$A$1,MATCH($I$7,'ANP ESTADO'!B:B,0)+MATCH($H$10,OFFSET('ANP ESTADO'!$A$1,MATCH($I$7,'ANP ESTADO'!B:B,0),0,100000,1),0),2,100000,2),2,FALSE) -> 3.094852002 | K24: =VLOOKUP($H$10,OFFSET('ANP REGIÃO'!$A$9,MATCH('Transporte RR-2C'!$I$7,'ANP REGIÃO'!A:A,0),1,10000,10000),MATCH('Transporte RR-2C'!AH24,'ANP REGIÃO'!$B$8:$G$8,0),FALSE) -> 3.261745309 | L24: 3094.852002 | M24: =ROUND(((L24/(1-$O$7-$O$8-$O$9))-L24),2) -> 1124.44 | N24: 4219.292002 | O24: 2511 | Q24: 662.22 | S24: 194.48 | T24: 197.8 | U24: 1009.84 | V24: 1869.86 | W24: 183.8 | X24: =EVEN((' CONSUMO DE MAT. B TOTAL'!$P$13+' CONSUMO DE MAT. B TOTAL'!P27)*2/28)*W24/(' CONSUMO DE MAT. B TOTAL'!$P$13+' CONSUMO DE MAT. B TOTAL'!P27) -> 17.5047619 | Y24: 1887.364762 | Z24: 4219.292002 | AA24: 6106.656764 | AH24: CENTRO-OESTE
B25: 6751.932946 | C25: 13 | E25: CENTRO OESTE ASFALTOS LTDA. | F25: RUA N, S/N.º LOTES 39/43 E LOTES 129/133 - DISTRITO INDUSTRIAL - CEP:78098-400 | G25: Mato Grosso | H25: CUIABA - MT | I25: Presidente Dutra - MA | J25: =VLOOKUP(G25,OFFSET('ANP ESTADO'!$A$1,MATCH($I$7,'ANP ESTADO'!B:B,0)+MATCH($H$10,OFFSET('ANP ESTADO'!$A$1,MATCH($I$7,'ANP ESTADO'!B:B,0),0,100000,1),0),2,100000,2),2,FALSE) -> 3.65960247 | K25: =VLOOKUP($H$10,OFFSET('ANP REGIÃO'!$A$9,MATCH('Transporte RR-2C'!$I$7,'ANP REGIÃO'!A:A,0),1,10000,10000),MATCH('Transporte RR-2C'!AH25,'ANP REGIÃO'!$B$8:$G$8,0),FALSE) -> 3.261745309 | L25: 3659.60247 | M25: 1329.63 | N25: 4989.23247 | O25: 2354 | Q25: 622.5 | S25: 184.43 | T25: 185.94 | U25: 949.27 | V25: 1757.71 | W25: 52.4 | X25: =EVEN((' CONSUMO DE MAT. B TOTAL'!$P$13+' CONSUMO DE MAT. B TOTAL'!P28)*2/28)*W25/(' CONSUMO DE MAT. B TOTAL'!$P$13+' CONSUMO DE MAT. B TOTAL'!P28) -> 4.99047619 | Y25: 1762.700476 | Z25: 4989.23247 | AA25: 6751.932946 | AH25: CENTRO-OESTE
B26: 6751.222946 | C26: 14 | E26: BETUNEL INDÚSTRIA E COMÉRCIO LTDA. | F26: RUA N ESQUINA COM RUA X, S/N QD. IND. 7 L 01/08 - DIST. IND. - CEP:78015-285 | G26: Mato Grosso | H26: CUIABA - MT | I26: Presidente Dutra - MA | J26: =VLOOKUP(G26,OFFSET('ANP ESTADO'!$A$1,MATCH($I$7,'ANP ESTADO'!B:B,0)+MATCH($H$10,OFFSET('ANP ESTADO'!$A$1,MATCH($I$7,'ANP ESTADO'!B:B,0),0,100000,1),0),2,100000,2),2,FALSE) -> 3.65960247 | K26: =VLOOKUP($H$10,OFFSET('ANP REGIÃO'!$A$9,MATCH('Transporte RR-2C'!$I$7,'ANP REGIÃO'!A:A,0),1,10000,10000),MATCH('Transporte RR-2C'!AH26,'ANP REGIÃO'!$B$8:$G$8,0),FALSE) -> 3.261745309 | L26: 3659.60247 | M26: 1329.63 | N26: 4989.23247 | O26: 2353 | Q26: 622.25 | S26: 184.37 | T26: 185.86 | U26: 948.89 | V26: 1757 | W26: 52.4 | X26: =EVEN((' CONSUMO DE MAT. B TOTAL'!$P$13+' CONSUMO DE MAT. B TOTAL'!P29)*2/28)*W26/(' CONSUMO DE MAT. B TOTAL'!$P$13+' CONSUMO DE MAT. B TOTAL'!P29) -> 4.99047619 | Y26: 1761.990476 | Z26: 4989.23247 | AA26: 6751.222946 | AH26: CENTRO-OESTE
B27: 6766.912946 | C27: 15 | E27: EMAM - EMULSÕES E TRANSPORTES LTDA. | F27: RODOVIA DOS IMIGRANTES, S/Nº KM 8,6 - - CEP:60035-351 | G27: Mato Grosso | H27: VARZEA GRANDE - MT | I27: Presidente Dutra - MA | J27: =VLOOKUP(G27,OFFSET('ANP ESTADO'!$A$1,MATCH($I$7,'ANP ESTADO'!B:B,0)+MATCH($H$10,OFFSET('ANP ESTADO'!$A$1,MATCH($I$7,'ANP ESTADO'!B:B,0),0,100000,1),0),2,100000,2),2,FALSE) -> 3.65960247 | K27: =VLOOKUP($H$10,OFFSET('ANP REGIÃO'!$A$9,MATCH('Transporte RR-2C'!$I$7,'ANP REGIÃO'!A:A,0),1,10000,10000),MATCH('Transporte RR-2C'!AH27,'ANP REGIÃO'!$B$8:$G$8,0),FALSE) -> 3.261745309 | L27: 3659.60247 | M27: =ROUND(((L27/(1-$O$7-$O$8-$O$9))-L27),2) -> 1329.63 | N27: 4989.23247 | O27: 2375 | Q27: 627.81 | S27: 185.77 | T27: 187.52 | U27: 957.36 | V27: 1772.69 | W27: 52.4 | X27: =EVEN((' CONSUMO DE MAT. B TOTAL'!$P$13+' CONSUMO DE MAT. B TOTAL'!P30)*2/28)*W27/(' CONSUMO DE MAT. B TOTAL'!$P$13+' CONSUMO DE MAT. B TOTAL'!P30) -> 4.99047619 | Y27: 1777.680476 | Z27: 4989.23247 | AA27: 6766.912946 | AC27: 6766.912946 | AD27: 1777.680476 | AE27: 4989.23247 | AH27: CENTRO-OESTE
B28: 6126.088449 | C28: 16 | E28: VIAPOL LTDA. | F28: VITO ARDITO, 6401 KM 118,5 - JARDIM CAMPO GRANDE - CEP:12282-535 | G28: São Paulo | H28: CACAPAVA - SP | I28: Presidente Dutra - MA | J28: =VLOOKUP(G28,OFFSET('ANP ESTADO'!$A$1,MATCH($I$7,'ANP ESTADO'!B:B,0)+MATCH($H$10,OFFSET('ANP ESTADO'!$A$1,MATCH($I$7,'ANP ESTADO'!B:B,0),0,100000,1),0),2,100000,2),2,FALSE) -> 2.965301306 | K28: =VLOOKUP($H$10,OFFSET('ANP REGIÃO'!$A$9,MATCH('Transporte RR-2C'!$I$7,'ANP REGIÃO'!A:A,0),1,10000,10000),MATCH('Transporte RR-2C'!AH28,'ANP REGIÃO'!$B$8:$G$8,0),FALSE) -> 3.044994528 | L28: 2965.301306 | M28: 1077.37 | N28: 4042.671306 | O28: 2741 | Q28: 720.41 | S28: 209.2 | T28: 215.18 | U28: 1098.57 | V28: 2034.16 | W28: 517.2 | X28: =EVEN((' CONSUMO DE MAT. B TOTAL'!$P$13+' CONSUMO DE MAT. B TOTAL'!P31)*2/28)*W28/(' CONSUMO DE MAT. B TOTAL'!$P$13+' CONSUMO DE MAT. B TOTAL'!P31) -> 49.25714286 | Y28: 2083.417143 | Z28: 4042.671306 | AA28: 6126.088449 | AC28: 6126.088449 | AD28: 2083.417143 | AE28: 4042.671306 | AH28: SUDESTE
B29: 6193.893576 | C29: 17 | E29: STRATURA ASFALTOS S/A | F29: RUA LUIS DE CAMÕES, 26 - CAMPOS ELÍSEOS - CEP:25225-030 | G29: Rio de Janeiro | H29: DUQUE DE CAXIAS - RJ | I29: Presidente Dutra - MA | J29: =VLOOKUP(G29,OFFSET('ANP ESTADO'!$A$1,MATCH($I$7,'ANP ESTADO'!B:B,0)+MATCH($H$10,OFFSET('ANP ESTADO'!$A$1,MATCH($I$7,'ANP ESTADO'!B:B,0),0,100000,1),0),2,100000,2),2,FALSE) -> - | K29: =VLOOKUP($H$10,OFFSET('ANP REGIÃO'!$A$9,MATCH('Transporte RR-2C'!$I$7,'ANP REGIÃO'!A:A,0),1,10000,10000),MATCH('Transporte RR-2C'!AH29,'ANP REGIÃO'!$B$8:$G$8,0),FALSE) -> 3.044994528 | L29: 3044.994528 | M29: 1106.33 | N29: 4151.324528 | O29: 2704 | Q29: 711.05 | S29: 206.83 | T29: 212.39 | U29: 1084.31 | V29: 2007.75 | W29: 365.6 | X29: =EVEN((' CONSUMO DE MAT. B TOTAL'!$P$13+' CONSUMO DE MAT. B TOTAL'!P32)*2/28)*W29/(' CONSUMO DE MAT. B TOTAL'!$P$13+' CONSUMO DE MAT. B TOTAL'!P32) -> 34.81904762 | Y29: 2042.569048 | Z29: 4151.324528 | AA29: 6193.893576 | AC29: 6193.893576 | AD29: 2042.569048 | AE29: 4151.324528 | AH29: SUDESTE
B30: 6206.763576 | C30: 18 | E30: PROBITEC - PRODUTOS BETUMINOSOS E TECNOLOGIA DE APLICAÇÃO LTDA. | F30: AVENIDA CANAL DA PAVUNA, 620 - PAVUNA - CEP:21535-630 | G30: Rio de Janeiro | H30: RIO DE JANEIRO - RJ | I30: Presidente Dutra - MA | J30: =VLOOKUP(G30,OFFSET('ANP ESTADO'!$A$1,MATCH($I$7,'ANP ESTADO'!B:B,0)+MATCH($H$10,OFFSET('ANP ESTADO'!$A$1,MATCH($I$7,'ANP ESTADO'!B:B,0),0,100000,1),0),2,100000,2),2,FALSE) -> - | K30: =VLOOKUP($H$10,OFFSET('ANP REGIÃO'!$A$9,MATCH('Transporte RR-2C'!$I$7,'ANP REGIÃO'!A:A,0),1,10000,10000),MATCH('Transporte RR-2C'!AH30,'ANP REGIÃO'!$B$8:$G$8,0),FALSE) -> 3.044994528 | L30: 3044.994528 | M30: 1106.33 | N30: 4151.324528 | O30: 2722 | Q30: 715.61 | S30: 207.99 | T30: 213.75 | U30: 1091.26 | V30: 2020.62 | W30: 365.6 | X30: =EVEN((' CONSUMO DE MAT. B TOTAL'!$P$13+' CONSUMO DE MAT. B TOTAL'!P33)*2/28)*W30/(' CONSUMO DE MAT. B TOTAL'!$P$13+' CONSUMO DE MAT. B TOTAL'!P33) -> 34.81904762 | Y30: 2055.439048 | Z30: 4151.324528 | AA30: 6206.763576 | AC30: 6206.763576 | AD30: 2055.439048 | AE30: 4151.324528 | AH30: SUDESTE
B31: 6024.718032 | C31: 19 | E31: CASA DO ASFALTO DISTRIBUIDORA, INDÚSTRIA E COMÉRCIO DE ASFALTO LTDA. | F31: BR 376, PARQUE INDUSTRIAL, S/N LOTE 6/7/7-A-3-1 - GL.PATR.MARIALVA - CEP:86990-000 | G31: Paraná | H31: MARIALVA - PR | I31: Presidente Dutra - MA | J31: =VLOOKUP(G31,OFFSET('ANP ESTADO'!$A$1,MATCH($I$7,'ANP ESTADO'!B:B,0)+MATCH($H$10,OFFSET('ANP ESTADO'!$A$1,MATCH($I$7,'ANP ESTADO'!B:B,0),0,100000,1),0),2,100000,2),2,FALSE) -> 2.959073747 | K31: =VLOOKUP($H$10,OFFSET('ANP REGIÃO'!$A$9,MATCH('Transporte RR-2C'!$I$7,'ANP REGIÃO'!A:A,0),1,10000,10000),MATCH('Transporte RR-2C'!AH31,'ANP REGIÃO'!$B$8:$G$8,0),FALSE) -> 2.991794973 | L31: 2959.073747 | M31: 1075.11 | N31: 4034.183747 | O31: 2626 | Q31: 691.32 | S31: 201.84 | T31: 206.49 | U31: 1054.21 | V31: 1952.02 | W31: 404.4 | X31: =EVEN((' CONSUMO DE MAT. B TOTAL'!$P$13+' CONSUMO DE MAT. B TOTAL'!P34)*2/28)*W31/(' CONSUMO DE MAT. B TOTAL'!$P$13+' CONSUMO DE MAT. B TOTAL'!P34) -> 38.51428571 | Y31: 1990.534286 | Z31: 4034.183747 | AA31: 6024.718032 | AC31: 6024.718032 | AD31: 1990.534286 | AE31: 4034.183747 | AH31: SUL
B32: 6146.892794 | C32: 20 | E32: PETROBRAS DISTRIBUIDORA S.A. | F32: RUA MAQUINISTA ELEODORO JACINTO, 100 - OFICINAS - CEP:84045-170 | G32: Paraná | H32: PONTA GROSSA - PR | I32: Presidente Dutra - MA | J32: =VLOOKUP(G32,OFFSET('ANP ESTADO'!$A$1,MATCH($I$7,'ANP ESTADO'!B:B,0)+MATCH($H$10,OFFSET('ANP ESTADO'!$A$1,MATCH($I$7,'ANP ESTADO'!B:B,0),0,100000,1),0),2,100000,2),2,FALSE) -> 2.959073747 | K32: =VLOOKUP($H$10,OFFSET('ANP REGIÃO'!$A$9,MATCH('Transporte RR-2C'!$I$7,'ANP REGIÃO'!A:A,0),1,10000,10000),MATCH('Transporte RR-2C'!AH32,'ANP REGIÃO'!$B$8:$G$8,0),FALSE) -> 2.991794973 | L32: 2959.073747 | M32: 1075.11 | N32: 4034.183747 | O32: 2791 | Q32: 733.06 | S32: 212.4 | T32: 218.96 | U32: 1117.87 | V32: 2069.89 | W32: 449.6 | X32: =EVEN((' CONSUMO DE MAT. B TOTAL'!$P$13+' CONSUMO DE MAT. B TOTAL'!P35)*2/28)*W32/(' CONSUMO DE MAT. B TOTAL'!$P$13+' CONSUMO DE MAT. B TOTAL'!P35) -> 42.81904762 | Y32: 2112.709048 | Z32: 4034.183747 | AA32: 6146.892794 | AC32: 6146.892794 | AD32: 2112.709048 | AE32: 4034.183747 | AH32: SUL
D42: Acre
D43: Alagoas
D44: Amapá
D45: Amazonas
D46: Bahia
D47: Ceará
D48: Distrito Federal
D49: Espírito Santo
D50: Goiás
D51: Maranhão
D52: Mato Grosso
D53: Mato Grosso do Sul
D54: Minas Gerais
D55: Pará
D56: Paraíba
D57: Paraná
D58: Pernambuco
D59: Piauí
D60: Rio de Janeiro
D61: Rio Grande do Norte
D62: Rio Grande do Sul
D63: Rondônia
D64: Roraima
D65: Santa Catarina
D66: São Paulo
D67: Sergipe
D68: Tocantins
D72: ASFALTOS DILUÍDOS CM-30
D73: ASFALTOS DILUÍDOS CM-70
D74: ASFALTOS DILUÍDOS CR-250
D75: ASFALTOS DILUÍDOS CR-70
D76: CAP MODIFICADO POR BORRACHA DE PNEU AB22
D77: CAP MODIFICADO POR BORRACHA DE PNEU AB8
D78: CAP MODIFICADO POR POLÍMERO 55-75-E
D79: CAP MODIFICADO POR POLÍMERO 60-85-E
D80: CAP MODIFICADO POR POLÍMERO 65-90-E
D81: CIMENTOS ASFÁLTICOS CAP-150-200
D82: CIMENTOS ASFÁLTICOS CAP-30-45
D83: CIMENTOS ASFÁLTICOS CAP-50-70
D84: CIMENTOS ASFÁLTICOS CAP-85-100
D85: EMULSÃO ASFÁLTICA CATIÔNICA DE RUPTURA CONTROLADA PARA SERVIÇO DE LAMA ASFÁLTICA
D86: EMULSÃO ASFÁLTICA DE RUPTURA LENTA CATIÔNICA PARA SERVIÇO DE LAMA ASFÁLTICA
D87: EMULSÃO ASFÁLTICA DE RUPTURA LENTA DE CARGA NEUTRA PARA SERVIÇO DE LAMA ASFÁLTICA
D88: EMULSÃO ASFÁLTICA PARA SERVIÇO DE IMPRIMAÇÃO
D89: EMULSÕES ASF. MOD. POR POLÍMEROS RC1C-E
D90: EMULSÕES ASF. MOD. POR POLÍMEROS RL1C-E
D91: EMULSÕES ASF. MOD. POR POLÍMEROS RM1C-E
D92: EMULSÕES ASF. MOD. POR POLÍMEROS RR1C-E
D93: EMULSÕES ASF. MOD. POR POLÍMEROS RR2C-E
D94: EMULSÕES ASFÁLTICAS RL-1C
D95: EMULSÕES ASFÁLTICAS RM-1C
D96: EMULSÕES ASFÁLTICAS RM-2C
D97: EMULSÕES ASFÁLTICAS RR-1C
D98: EMULSÕES ASFÁLTICAS RR-2C

Sheet RESUMO_Transp
B11: ÍNDICE DE PAVIMENTAÇÃO DNIT | E11: TIPOLOGIA DO MATERIAL | G11: LIGANTE BETUMINOSO | K11: IMPOSTOS | L11: COFINS | M11: ='Transporte RR-2C'!O7 -> 0.0065 | N11: ='Transporte RR-2C'!P7 -> 0.0065
C12: DATA INICIAL | F12: 2014-07-01 | G12: ÍNDICE INICIAL | H12: ='Transporte RR-2C'!J8 -> 270.237 | L12: PIS | M12: ='Transporte RR-2C'!O8 -> 0.03 | N12: ='Transporte RR-2C'!P8 -> 0.03 | P12: LEGENDA
C13: DATA FINAL | F13: 2025-05-01 | G13: ÍNDICE FINAL | H13: ='Transporte RR-2C'!J9 -> 587.552 | L13: ICMS | M13: ='Transporte RR-2C'!O9 -> 0.23 | N13: ='Transporte RR-2C'!P9 -> 0.23 | P13: ENTRADA DE DADOS
B15: DATA-BASE | C15: PRODUTOS | D15: LOCALIDADES | H15: CUSTO ANP (R$/Kg) | J15: CUSTO ANP | K15: IMPOSTOS DO PRODUTO | L15: CUSTO DO PRODUTO COM IMPOSTOS | M15: DMT's | N15: DMT's | O15: CUSTO DO TRANSPORTE TOTAL | P15: ICMS | Q15: ATUALIZAÇÃO DO CUSTO DE TRANSPORTE | R15: CUSTO DO TRANSPORTE RODOVIA PAVIMENTADA COM IMPOSTOS E ATUALIZAÇÃO MONETÁRIA | S15: PEDÁGIO | U15: TOTAL TRANSPORTE | V15: TOTAL PRODUTO | W15: TOTAL GERAL
B16: =F13 -> 2025-05-01 | D16: REFINARIAS | E16: ENDEREÇO | F16: ORIGEM REFINARIAS / DISTRIBUIDORAS | G16: DESTINO | H16: ESTADO | I16: REGIÃO | J16: R$/t | K16: R$/t | L16: R$/t | M16: KM | N16: KM | O16: R$/t | P16: R$/t | Q16: R$/t | R16: R$/t | S16: CUSTO POR EIXO | T16: R$/t | U16: R$/t | V16: R$/t | W16: R$/t
B17: 1 | C17: EAI | D17: Refinaria Abreu e Lima | E17: Rodovia PE 60, Km 10 - Ipojuca - PE CEP:55590-000 | F17: =VLOOKUP($W17,'Transporte EAI'!$B:$AA,7,FALSE) -> ANÁPOLIS - GO | G17: =VLOOKUP($W17,'Transporte EAI'!$B:$AA,8,FALSE) -> Presidente Dutra - MA | H17: =VLOOKUP($W17,'Transporte EAI'!$B:$AA,9,FALSE) -> 2.270100671 | I17: =VLOOKUP($W17,'Transporte EAI'!$B:$AA,10,FALSE) -> 2.586745228 | J17: =VLOOKUP($W17,'Transporte EAI'!$B:$AA,11,FALSE) -> 2270.100671 | K17: =VLOOKUP($W17,'Transporte EAI'!$B:$AA,12,FALSE) -> 824.79 | L17: =VLOOKUP($W17,'Transporte EAI'!$B:$AA,13,FALSE) -> 3094.890671 | M17: =VLOOKUP($W17,'Transporte EAI'!$B:$AA,14,FALSE) -> 1627 | N17: =VLOOKUP($W17,'Transporte EAI'!$B:$AA,15,FALSE) -> 0 | O17: =VLOOKUP($W17,'Transporte EAI'!$B:$AA,18,FALSE) -> 137.9 | P17: =VLOOKUP($W17,'Transporte EAI'!$B:$AA,19,FALSE) -> 131 | Q17: =VLOOKUP($W17,'Transporte EAI'!$B:$AA,20,FALSE) -> 668.79 | R17: =VLOOKUP($W17,'Transporte EAI'!$B:$AA,21,FALSE) -> 1238.36 | S17: =VLOOKUP($W17,'Transporte EAI'!$B:$AA,22,FALSE) -> 169.6 | T17: =VLOOKUP($W17,'Transporte EAI'!$B:$AA,23,FALSE) -> 16.15238095 | U17: =VLOOKUP($W17,'Transporte EAI'!$B:$AA,24,FALSE) -> 1254.512381 | V17: =VLOOKUP($W17,'Transporte EAI'!$B:$AA,25,FALSE) -> 3094.890671 | W17: =SMALL('Transporte EAI'!$AA$13:$AA$32,1) -> 4349.403052
B18: 2 | D18: Refinaria Potiguar Clara Camarão | E18: Rodovia RN 221, KM 25 - Guamaré - RN CEP:59598-000 | F18: =VLOOKUP($W18,'Transporte EAI'!$B:$AA,7,FALSE) -> GOIANIRA - GO | G18: =VLOOKUP($W18,'Transporte EAI'!$B:$AA,8,FALSE) -> Presidente Dutra - MA | H18: =VLOOKUP($W18,'Transporte EAI'!$B:$AA,9,FALSE) -> 2.270100671 | I18: =VLOOKUP($W18,'Transporte EAI'!$B:$AA,10,FALSE) -> 2.586745228 | J18: =VLOOKUP($W18,'Transporte EAI'!$B:$AA,11,FALSE) -> 2270.100671 | K18: =VLOOKUP($W18,'Transporte EAI'!$B:$AA,12,FALSE) -> 824.79 | L18: =VLOOKUP($W18,'Transporte EAI'!$B:$AA,13,FALSE) -> 3094.890671 | M18: =VLOOKUP($W18,'Transporte EAI'!$B:$AA,14,FALSE) -> 1649 | N18: =VLOOKUP($W18,'Transporte EAI'!$B:$AA,15,FALSE) -> 0 | O18: =VLOOKUP($W18,'Transporte EAI'!$B:$AA,18,FALSE) -> 139.31 | P18: =VLOOKUP($W18,'Transporte EAI'!$B:$AA,19,FALSE) -> 132.66 | Q18: =VLOOKUP($W18,'Transporte EAI'!$B:$AA,20,FALSE) -> 677.28 | R18: =VLOOKUP($W18,'Transporte EAI'!$B:$AA,21,FALSE) -> 1254.08 | S18: =VLOOKUP($W18,'Transporte EAI'!$B:$AA,22,FALSE) -> 169.9 | T18: =VLOOKUP($W18,'Transporte EAI'!$B:$AA,23,FALSE) -> 16.18095238 | U18: =VLOOKUP($W18,'Transporte EAI'!$B:$AA,24,FALSE) -> 1270.260952 | V18: =VLOOKUP($W18,'Transporte EAI'!$B:$AA,25,FALSE) -> 3094.890671 | W18: =SMALL('Transporte EAI'!$AA$13:$AA$32,2) -> 4365.151624
B19: 3 | D19: Complexo Petroquímico do Rio de Janeiro (Comperj) | E19: Rodovia Estadual RJ-116 - Km 5,2 - Acesso A-1, s/n, Complemento Sambaetiba - Zona Urbana do 4º Distrito de Itaboraí - RJ CEP:24841-203 | F19: =VLOOKUP($W19,'Transporte EAI'!$B:$AA,7,FALSE) -> APARECIDA DE GOIANIA - GO | G19: =VLOOKUP($W19,'Transporte EAI'!$B:$AA,8,FALSE) -> Presidente Dutra - MA | H19: =VLOOKUP($W19,'Transporte EAI'!$B:$AA,9,FALSE) -> 2.270100671 | I19: =VLOOKUP($W19,'Transporte EAI'!$B:$AA,10,FALSE) -> 2.586745228 | J19: =VLOOKUP($W19,'Transporte EAI'!$B:$AA,11,FALSE) -> 2270.100671 | K19: =VLOOKUP($W19,'Transporte EAI'!$B:$AA,12,FALSE) -> 824.79 | L19: =VLOOKUP($W19,'Transporte EAI'!$B:$AA,13,FALSE) -> 3094.890671 | M19: =VLOOKUP($W19,'Transporte EAI'!$B:$AA,14,FALSE) -> 1667 | N19: =VLOOKUP($W19,'Transporte EAI'!$B:$AA,15,FALSE) -> 0 | O19: =VLOOKUP($W19,'Transporte EAI'!$B:$AA,18,FALSE) -> 140.46 | P19: =VLOOKUP($W19,'Transporte EAI'!$B:$AA,19,FALSE) -> 134.02 | Q19: =VLOOKUP($W19,'Transporte EAI'!$B:$AA,20,FALSE) -> 684.22 | R19: =VLOOKUP($W19,'Transporte EAI'!$B:$AA,21,FALSE) -> 1266.93 | S19: =VLOOKUP($W19,'Transporte EAI'!$B:$AA,22,FALSE) -> 169.9 | T19: =VLOOKUP($W19,'Transporte EAI'!$B:$AA,23,FALSE) -> 16.18095238 | U19: =VLOOKUP($W19,'Transporte EAI'!$B:$AA,24,FALSE) -> 1283.110952 | V19: =VLOOKUP($W19,'Transporte EAI'!$B:$AA,25,FALSE) -> 3094.890671 | W19: =SMALL('Transporte EAI'!$AA$13:$AA$32,3) -> 4378.001624
B20: 4 | F20: =VLOOKUP($W20,'Transporte EAI'!$B:$AA,7,FALSE) -> UBERLANDIA - MG | G20: =VLOOKUP($W20,'Transporte EAI'!$B:$AA,8,FALSE) -> Presidente Dutra - MA | H20: =VLOOKUP($W20,'Transporte EAI'!$B:$AA,9,FALSE) -> 2.202845353 | I20: =VLOOKUP($W20,'Transporte EAI'!$B:$AA,10,FALSE) -> 2.380082902 | J20: =VLOOKUP($W20,'Transporte EAI'!$B:$AA,11,FALSE) -> 2202.845353 | K20: =VLOOKUP($W20,'Transporte EAI'!$B:$AA,12,FALSE) -> 800.35 | L20: =VLOOKUP($W20,'Transporte EAI'!$B:$AA,13,FALSE) -> 3003.195353 | M20: =VLOOKUP($W20,'Transporte EAI'!$B:$AA,14,FALSE) -> 1993 | N20: =VLOOKUP($W20,'Transporte EAI'!$B:$AA,15,FALSE) -> 0 | O20: =VLOOKUP($W20,'Transporte EAI'!$B:$AA,18,FALSE) -> 161.33 | P20: =VLOOKUP($W20,'Transporte EAI'!$B:$AA,19,FALSE) -> 158.66 | Q20: =VLOOKUP($W20,'Transporte EAI'!$B:$AA,20,FALSE) -> 810 | R20: =VLOOKUP($W20,'Transporte EAI'!$B:$AA,21,FALSE) -> 1499.83 | S20: =VLOOKUP($W20,'Transporte EAI'!$B:$AA,22,FALSE) -> 225.2 | T20: =VLOOKUP($W20,'Transporte EAI'!$B:$AA,23,FALSE) -> 21.44761905 | U20: =VLOOKUP($W20,'Transporte EAI'!$B:$AA,24,FALSE) -> 1521.277619 | V20: =VLOOKUP($W20,'Transporte EAI'!$B:$AA,25,FALSE) -> 3003.195353 | W20: =SMALL('Transporte EAI'!$AA$13:$AA$32,4) -> 4524.472972
